Workbook

Sheet Instructions
B1: ='Event Details'!D5 -> Heart of England League
B3: Instructions
B5: General
B6: This Spreadsheet come cleared down and ready to go. If you require a copy with test data loaded contact Martin Smith (msmith46@talktalk.net).
B7: If you enter test data to familiarise yourself with the layout, there are three macros to clear down the data ready for the new meeting. The first two macros are found in the 'Event Details' spreadsheet. Macro Button1 ('Clear Competitors Names for Teamsheet Male') will clear down the names from the male teamsheet. Macro 2 will clear down the female teamsheet.
B8: The third macro is also found in the 'Results Entry' spreadsheets. Clicking on the button 'Clear Results Table'- will clear down the previous meetings results. It is recommended that you make a Back-Up copy prior to deleting the data.
B9: New for 2013 - Guests are allowed in the 800m and 1500m at the discretion of the Track Referee. They must wear the number sequence allocated for the U11 (not club Letter). Also, a 'Howler' has been introduced as a new event in the U11's.
B11: Event Details
B12: The first spreadsheet shows details of the Athletic Meeting. Changing the Division number changes the club details for that division. The details are taken from the 'Club Details' spreadsheet. The field highlighted in 'Green' can be amended as required.
B13: To amend or delete the Club Names for clubs promoted or relegated see 'Club Details' spreadsheet.
B14: To clear the Competitors Names , click on the two macro buttons 'Clear Competitors Names from Teamsheet Male' and 'Clear Competitors Names from Female Teamsheet'.
B16: Timetable
B17: This spreadsheet shows the 'League Programme'. Each event has been given a unique 'Event Number.' which arranges the events in time order. These fields can be amended for any changes at the beginning of the season. Also ensure that 'Non Scoring Events (NS) are shown as separate events in the Programme and identified with 'NS' in column G.
B18: The Timetable can be printed off at anytime.
B20: Team Declaration Sheet
B21: This spreadsheet is a blank Declaration Sheet for both Male and Female competitors. If any amendments are made to the 'Timetable' , please ensure that this spreadsheet is updated by changing the appropriate 'Event Number' (if required). Ideally, the Team Declaration Sheets should be Emailed to the Results Team 2 Days before the event.
B23: Team Sheets Male & Teamsheet Female
B24: There are two Team Sheets, one for Male and one for Female. Scroll across to see the eight Clubs
B25: Scroll along to the right to find the appropriate Club and enter the name of the 'A' and 'B'. competitor for each event. Also enter the names of competitors in the relay teams. There is a section at the bottom for Guests.
B26: U11 Non Scoring and Guests - Each athlete should wear a unique number (not letter). Remember to enter the number against the competitors name.
B27: If clubs have Emailed their Declaration Sheets in advance of the meeting, then the names can be 'Cut and Pasted' into the spreadsheet. ( Note. Take care to copy to the correct rows.)
B29: Results Entry
B30: Enter all Events (including U11 Scoring & U11 Relay NS)
B31: Enter the Event number In the 'green' box (cell B4) to bring up details of the event. In the 'blue area' you will see all the competitors names which have been taken from the Teamsheets.
B32: To enter the Result for the first competitor, enter the Club letter into the first green box,(i.e. 'C' for Bromsgrove ). For the 'B' race, enter 'CC' which will identify the 'B' runner. A Table of the Club letters is shown at the left of the spreadsheet.
B33: Note: if the B Competitor does the best throw/ jump/ time, you can enter the double letter (i.e.'CC') in Event A and single letter ('C') in the Event B. This will select the right name from the teamsheet.
B34: Next move right, and enter the time or distance ( i.e. '2.71' metres or '2.12.13' mins.) If a competitor did not finish, enter 'DNF' in the time box.
B35: Move down and enter the second competitor results. Move to next column right and enter the time/ distance.
B36: Once all the results for Event A have been completed, repeat the same for Event B. Entering the single or double letter as appropriate (i.e. "C" or "CC").
B37: Once all the results have been entered, click on the button "Save Data". If you wish to Amend this data at a later stage, enter the Event No. and click on the "Edit Data" button and the results are restored.
B38: To manually adjust the points for equal scores i.e joint 2nd.- see Results by Age Group.
B40: Results in Event Order
B41: If on the day you are connected to a printer, this report is useful for printing off and putting on the noticeboard.
B42: There are 7 pages in the spread sheet ‘Results in Event Order’. There are 10 results per page.
B43: After entering the first 10 results, print page one off and the page can be stuck on the notice board.
B44: The clubs can then see the results and the points position
B46: Results by Age Group
B47: This spreadsheet is automatically updated from the previous sheet. This sheet can be printed off at anytime to get the latest points position.
B48: In the points section on the right, a manual adjustment can be made if points need to be shared. In the green highlighted area above the points, enter for example, '-0.5' to take off half a point from one team and add '0.5' to the another team.
B50: Match Position
B51: This spreadsheet gives a summary of the 'Match Position' at any point in time. This is useful for the announcer who can read the information from the screen or print it off at any time.
B53: Results Summary
B54: This spreadsheet automatically calculates the Points and Position for each Age Group, and includes points added for providing Officials.
B56: Results by Club
B57: Enter a Club Letter in the Green Box (Cell B3). Enter each Club Letter in turn and it will produce the results for each Club. Can be printed off anytime.
B59: Adjustment for Officials
B60: 2 points per Official can be added up to a maximum of 10 for each Age Group i.e. U13 Females,U15 Females, U17 Females, U13 Male,U15 Male and U17 Men.
B62: Club Details by Division
B63: To amend or delete the Club Names in each Division for clubs promoted or relegated, enter the details here.
B65: Competitor Change Form
B66: This spreadsheet is a blank 'Change Form' and issued to Team Manager on the day of the event. Ideally, the Team Declaration Sheets should be Emailed to the Results Team 2 Days before the event. If any amendments are made to the 'Team Sheet' on the day, the Team Manager should use this sheet to notify the Results Team of any changes.
B68: Track Lane Draw
B69: This Spreadsheet is for the assistance of the Starter. It produces a printed list of randomly selected clubs over the 8 lanes of the track. The random sequence can be changed by entering 1 to 8 in the yellow highlighted area.
B71: Field Jumps and Field Throws and Timekeepers Slip
B72: These three spread sheets are optional but can be used for printing 'Field Event Cards'. Enter the 'Event Number' from the list on the left into Cell J4 the top of the 'card' and the events details are updated. If you also wish to print the Competitors names, enter "Y" into Cell S3. This only works if the names have already been entered into the Team Declaration Sheets. Also the clubs order is different for each event as they are randomly drawn from ' Lane Draw' spread sheet. The Timekeepers recording slip can also be printed off as required.

Sheet Event Details
D3: Event Details
J4: Notes
B5: Event Title | D5: Heart of England League | I5: 1 | J5: Changing the Division number (cell 'D9')
J6: updates the Club Details accordingly.
B7: Year | D7: 2015 | I7: 2 | J7: Clubs promoted or relegated are
J8: amended in the spreadsheet 'Club Details'.
B9: Division | D9: 2 | I9: 3 | J9: At Cell 'A17', enter the meeting
J10: number i.e. 1,2 or 3.
A11: Match | B11: Date | D11: Venue | F11: Host | I11: 4 | J11: At Cell 'C32', enter the number of
A12: 1 | B12: =VLOOKUP($A12,EventDates,C$43,FALSE) -> 10th May 2015 | D12: =VLOOKUP($A12,EventDates,E$43,FALSE) -> Stourport | F12: =VLOOKUP($A12,EventDates,F$43,FALSE) -> Kidd & Stourport | J12: Teams in the Division i.e. 8.
A13: 2 | B13: =VLOOKUP($A13,EventDates,C$43,FALSE) -> 7th June 2015 | D13: =VLOOKUP($A13,EventDates,E$43,FALSE) -> Corby | F13: =VLOOKUP($A13,EventDates,F$43,FALSE) -> Corby | I13: 5 | J13: Fields highlighted in 'Green' can be
A14: 3 | B14: =VLOOKUP($A14,EventDates,C$43,FALSE) -> 5th July 2015 | D14: =VLOOKUP($A14,EventDates,E$43,FALSE) -> Redditch | F14: =VLOOKUP($A14,EventDates,F$43,FALSE) -> Brom & Redditch | J14: amended as required.
I15: 6
B16: Next meeting
A17: 2 | B17: =IF($A17=3,B14,IF($A17=2,B13,B12)) -> 7th June 2015 | D17: =IF($A17=3,D14,IF($A17=2,D13,D12)) -> Corby | F17: =IF($A17=3,F14,IF($A17=2,F13,F12)) -> Corby
B20: Teams | C20: Letter | D20: Club Name | E20: U11 No's | G20: Short
G21: Name
B22: 1 | C22: =VLOOKUP($B22,ClubDetail,C$42,FALSE) -> C | D22: Brom & Redditch | E22: 650 | F22: 699 | G22: B&R | J22: Macros
B23: 2 | C23: O | D23: Corby | E23: 400 | F23: 449 | G23: Corby
B24: 3 | C24: I | D24: Kettering | E24: 50 | F24: 99 | G24: Kett
B25: 4 | C25: U | D25: Kidder & Stourport | E25: 250 | F25: 299 | G25: K&S | I25: 1
B26: 5 | C26: B | D26: Dudley & S'bridge | E26: 200 | F26: 249 | G26: DASH
B27: 6 | C27: F | D27: Tamworth | E27: 1 | F27: 49 | G27: Tam
B28: 7 | C28: G | D28: Royal Sutton | E28: 300 | F28: 349 | G28: Royal
B29: 8 | C29: X | D29: Wreake Runners | E29: 500 | F29: 549 | G29: Wreake
B30: 9 | C30: 0 | D30: 0 | E30: 0 | F30: 0 | G30: 0 | I30: 2
B32: Points | C32: =COUNTIF(C22:C30,"?") -> 8 | D32: (Total Number of Teams)
B42: =IF($D9=1,1,IF($D9=2,8,IF($D9=3,15,IF($D$9=4,22," ")))) -> 8 | C42: =IF($D9=1,2,IF($D9=2,9,IF($D9=3,16,IF($D$9=4,23," ")))) -> 9 | D42: =IF($D9=1,3,IF($D9=2,10,IF($D9=3,17,IF($D$9=4,24," ")))) -> 10 | E42: =IF($D9=1,4,IF($D9=2,11,IF($D9=3,18,IF($D$9=4,25," ")))) -> 11 | F42: =IF($D9=1,5,IF($D9=2,12,IF($D9=3,19,IF($D$9=4,26," ")))) -> 12 | G42: =IF($D9=1,6,IF($D9=2,13,IF($D9=3,20,IF($D$9=4,27," ")))) -> 13
C43: =IF($D9=1,2,IF($D9=2,9,IF($D9=3,16,IF($D$9=4,23," ")))) -> 9 | E43: =IF($D9=1,4,IF($D9=2,11,IF($D9=3,18,IF($D$9=4,25," ")))) -> 11 | F43: =IF($D9=1,5,IF($D9=2,12,IF($D9=3,19,IF($D$9=4,26," ")))) -> 12

Sheet Timetable
F1: ='Event Details'!D5&" Programme" -> Heart of England League Programme | T1: ='Event Details'!D5&" Programme by Age Group" -> Heart of England League Programme by Age Group
G2: ="Revised for "&'Event Details'!D7 -> Revised for 2015 | T2: ="Revised for "&'Event Details'!D7 -> Revised for 2015
C4: Event | G4: Non | I4: Event | Q4: Event | U4: Event
C5: No | D5: Time | E5: Event | F5: Age | G5: Scoring | I5: No | J5: Time | K5: Event | L5: Age | M5: Comment | Q5: No | R5: Time | S5: Event | U5: No | V5: Time | W5: Event
C7: Track Events | I7: Field Events
C9: 1 | D9: 11.45 | E9: 1500m | F9: U13 Female | I9: 2 | J9: 11.45 | K9: Howler | L9: U11 Male | S9: U11 Female | W9: U11 Male
C10: 4 | D10: 11.55 | E10: 1500m | F10: U15 Female | I10: 3 | J10: 11.45 | K10: Howler | L10: U11 Female | Q10: 3 | R10: =IF($Q10>0,VLOOKUP($Q10,EventsOrder,2,FALSE)," ") -> 11.45 | S10: =IF($Q10>0,VLOOKUP($Q10,EventsOrder,6,FALSE)," ") -> Howler | U10: 2 | V10: =IF($U10>0,VLOOKUP($U10,EventsOrder,2,FALSE)," ") -> 11.45 | W10: =IF($U10>0,VLOOKUP($U10,EventsOrder,6,FALSE)," ") -> Howler
C11: 7 | D11: 12.05 | E11: 1500m | F11: U17 F/Women | I11: 5 | J11: 12 | K11: High Jump | L11: U13 Male | Q11: 14 | R11: 12.3 | S11: Long Jump Pit1 | U11: 33 | V11: 2 | W11: 600m
C12: 11 | D12: 12.15 | E12: 70m hurdles | F12: U13 Female | I12: 6 | J12: 12 | K12: Long Jump | L12: U15 Male | M12: Pit 2 | Q12: 29 | R12: 1.5 | S12: 600m | U12: 34 | V12: 2.05 | W12: 600m NS
C13: 12 | D13: 12.2 | E13: 800m | F13: U13 Male | I13: 8 | J13: 12.15 | K13: Shot | L13: U17 Men | Q13: 30 | R13: 1.55 | S13: 600m NS | U13: 44 | V13: 2.1 | W13: Long Jump Pit 2
C14: 13 | D14: 12.3 | E14: 75m hurdles | F14: U15 Female | I14: 9 | J14: 12.15 | K14: Discus | L14: U15 Female | M14: Match 1 & 3 | Q14: 58 | R14: 3.1 | S14: 75m | U14: 61 | V14: 3.2 | W14: 75m
C15: 15 | D15: 12.35 | E15: 75m hurdles | F15: U13 Male | I15: 10 | J15: 12.15 | K15: Javelin | L15: U17 F/Women | M15: Match 2 | Q15: 59 | R15: 3.15 | S15: 75m NS | U15: 62 | V15: 3.25 | W15: 75m NS
C16: 16 | D16: 12.4 | E16: 800m | F16: U15 Male | I16: 14 | J16: 12.3 | K16: Long Jump | L16: U11 Female | M16: Pit1 | Q16: 81 | R16: 4.5 | S16: 4 x 100m Mixed NS | U16: 81 | V16: 4.5 | W16: 4 x 100m Mixed NS
C17: 18 | D17: 12.5 | E17: 800m | F17: U17 Men | I17: 17 | J17: 12.55 | K17: High Jump | L17: U15 Female
C18: 19 | D18: 1 | E18: 80m hurdles (U17) | F18: U17 Female | I18: 21 | J18: 1 | K18: Long Jump | L18: U15 Female | M18: Pit 2 | S18: U13 Female | W18: U13 Male
C19: 20 | D19: 1.05 | E19: 80m hurdles | F19: U15 Male | I19: 22 | J19: 1 | K19: Shot | L19: U15 Male | Q19: 1 | R19: =IF($Q19>0,VLOOKUP($Q19,EventsOrder,2,FALSE)," ") -> 11.45 | S19: =IF($Q19>0,VLOOKUP($Q19,EventsOrder,6,FALSE)," ") -> 1500m | U19: 5 | V19: =IF($U19>0,VLOOKUP($U19,EventsOrder,2,FALSE)," ") -> 12 | W19: =IF($U19>0,VLOOKUP($U19,EventsOrder,6,FALSE)," ") -> High Jump
C20: 25 | D20: 1.15 | E20: 800m | F20: U13 Female | I20: 23 | J20: 1 | K20: Discus | L20: U17 Men | M20: Match 1 & 3 | Q20: 11 | R20: 12.15 | S20: 70m hurdles | U20: 12 | V20: 12.2 | W20: 800m
C21: 26 | D21: 1.25 | E21: 800m | F21: U15 Female | I21: 24 | J21: 1 | K21: Javelin | L21: U13 Male | M21: Match 2 | Q21: 25 | R21: 1.15 | S21: 800m | U21: 15 | V21: 12.35 | W21: 75m hurdles
C22: 27 | D22: 1.35 | E22: 100m hurdles | F22: U17 Men | I22: 31 | J22: 1.4 | K22: High Jump | L22: U13 Female | Q22: 31 | R22: 1.4 | S22: High Jump | U22: 24 | V22: 1 | W22: Javelin Match 2
C23: 28 | D23: 1.4 | E23: 800m | F23: U17 F/Women | I23: 32 | J23: 1.3 | K23: Long Jump | L23: U17 Men | M23: Pit1 | Q23: 35 | R23: 2.1 | S23: 100m | U23: 41 | V23: 2.25 | W23: 100m
C24: 29 | D24: 1.5 | E24: 600m | F24: U11 Female | I24: 37 | J24: 1.5 | K24: Shot | L24: U17 F/Women | Q24: 38 | R24: 1.5 | S24: Discus Match 1 & 3 | U24: 52 | V24: 2.4 | W24: Shot
C25: 30 | D25: 1.55 | E25: 600m | F25: U11 Female | G25: NS | I25: 38 | J25: 1.5 | K25: Discus | L25: U13 Female | M25: Match 1 & 3 | Q25: 56 | R25: 2.5 | S25: Long Jump Pit 1 | U25: 64 | V25: 3.2 | W25: Long Jump Pit 2
C26: 33 | D26: 2 | E26: 600m | F26: U11 Male | I26: 39 | J26: 1.5 | K26: Javelin | L26: U15 Male | M26: Match 2 | Q26: 63 | R26: 3.35 | S26: 200m | U26: 70 | V26: 3.5 | W26: 200m
C27: 34 | D27: 2.05 | E27: 600m | F27: U11 Male | G27: NS | I27: 44 | J27: 2.1 | K27: Long Jump | L27: U11 Male | M27: Pit 2 | Q27: 65 | R27: 3.3 | S27: Shot | U27: 73 | V27: 4.2 | W27: 1500m
C28: 35 | D28: 2.1 | E28: 100m | F28: U13 Female | I28: 45 | J28: 2.25 | K28: High Jump | L28: U15 Male | Q28: 79 | R28: 4.2 | S28: Javelin Match 2 | U28: 78 | V28: 4.2 | W28: Discus Match 1 & 3
C29: 36 | D29: 2.15 | E29: 100m | F29: U15 Female | I29: 52 | J29: 2.4 | K29: Shot | L29: U13 Male | Q29: 82 | R29: 4.55 | S29: 4 x 100m | U29: 85 | V29: 5.1 | W29: 4 x 100m
C30: 40 | D30: 2.2 | E30: 100m | F30: U17 F/Women | I30: 53 | J30: 2.4 | K30: Discus | L30: U17 F/Women | M30: Match 1 & 3
C31: 41 | D31: 2.25 | E31: 100m | F31: U13 Male | I31: 54 | J31: 2.4 | K31: Javelin | L31: U15 Female | M31: Match 2 | S31: U15 Female | W31: U15 Male
C32: 42 | D32: 2.3 | E32: 100m | F32: U15 Male | I32: 56 | J32: 2.5 | K32: Long Jump | L32: U13 Female | M32: Pit 1 | Q32: 4 | R32: =IF($Q32>0,VLOOKUP($Q32,EventsOrder,2,FALSE)," ") -> 11.55 | S32: =IF($Q32>0,VLOOKUP($Q32,EventsOrder,6,FALSE)," ") -> 1500m | U32: 6 | V32: =IF($U32>0,VLOOKUP($U32,EventsOrder,2,FALSE)," ") -> 12 | W32: =IF($U32>0,VLOOKUP($U32,EventsOrder,6,FALSE)," ") -> Long Jump Pit 2
C33: 43 | D33: 2.35 | E33: 100m | F33: U17 Men | I33: 60 | J33: 3.1 | K33: High Jump | L33: U17 F/Women | Q33: 9 | R33: 12.15 | S33: Discus Match 1 & 3 | U33: 16 | V33: 12.4 | W33: 800m
C34: 50 | D34: 2.4 | E34: 300m | F34: U15 Female | I34: 64 | J34: 3.2 | K34: Long Jump | L34: U13 Male | M34: Pit 2 | Q34: 13 | R34: 12.3 | S34: 75m hurdles | U34: 20 | V34: 1.05 | W34: 80m hurdles
C35: 51 | D35: 2.45 | E35: 300m | F35: U17 F/Women | I35: 65 | J35: 3.3 | K35: Shot | L35: U13 Female | Q35: 17 | R35: 12.55 | S35: High Jump | U35: 22 | V35: 1 | W35: Shot
C36: 55 | D36: 2.55 | E36: 300m | F36: U15 Male | I36: 66 | J36: 3.3 | K36: Discus | L36: U15 Male | M36: Match 1 & 3 | Q36: 21 | R36: 1 | S36: Long Jump Pit 2 | U36: 39 | V36: 1.5 | W36: Javelin Match 2
C37: 57 | D37: 3 | E37: 400m | F37: U17 Men | I37: 67 | J37: 3.3 | K37: Javelin | L37: U17 Men | M37: Match 2 | Q37: 26 | R37: 1.25 | S37: 800m | U37: 42 | V37: 2.3 | W37: 100m
C38: 58 | D38: 3.1 | E38: 75m | F38: U11 Female | I38: 74 | J38: 4.1 | K38: High Jump | L38: U17 Men | Q38: 36 | R38: 2.15 | S38: 100m | U38: 45 | V38: 2.25 | W38: High Jump
C39: 59 | D39: 3.15 | E39: 75m | F39: U11 Female | G39: NS | I39: 75 | J39: 4 | K39: Long Jump | L39: U17 F/Women | M39: Pit1 | Q39: 50 | R39: 2.4 | S39: 300m | U39: 55 | V39: 2.55 | W39: 300m
C40: 61 | D40: 3.2 | E40: 75m | F40: U11 Male | I40: 77 | J40: 4.2 | K40: Shot | L40: U15 Female | Q40: 54 | R40: 2.4 | S40: Javelin Match 2 | U40: 66 | V40: 3.3 | W40: Discus Match 1 & 3
C41: 62 | D41: 3.25 | E41: 75m | F41: U11 Male | G41: NS | I41: 78 | J41: 4.2 | K41: Discus | L41: U13 Male | M41: Match 1 & 3 | Q41: 68 | R41: 3.4 | S41: 200m | U41: 71 | V41: 3.55 | W41: 200m
C42: 63 | D42: 3.35 | E42: 200m | F42: U13 Female | I42: 79 | J42: 4.2 | K42: Javelin | L42: U13 Female | M42: Match 2 | Q42: 77 | R42: 4.2 | S42: Shot | U42: 76 | V42: 4.3 | W42: 1500m
C43: 68 | D43: 3.4 | E43: 200m | F43: U15 Female | Q43: 83 | R43: 5 | S43: 4 x 100m | U43: 86 | V43: 5.15 | W43: 4 x 100m
C44: 69 | D44: 3.45 | E44: 200m | F44: U17 F/Women | J44: Guests - Non Scoring
C45: 70 | D45: 3.5 | E45: 200m | F45: U13 Male | I45: 88 | J45: 11.45 | K45: 1500m | L45: U13 Female | S45: U17 F/Women | W45: U17 Men
C46: 71 | D46: 3.55 | E46: 200m | F46: U15 Male | I46: 89 | J46: 11.55 | K46: 1500m | L46: U15 Female | Q46: 7 | R46: =IF($Q46>0,VLOOKUP($Q46,EventsOrder,2,FALSE)," ") -> 12.05 | S46: =IF($Q46>0,VLOOKUP($Q46,EventsOrder,6,FALSE)," ") -> 1500m | U46: 8 | V46: =IF($U46>0,VLOOKUP($U46,EventsOrder,2,FALSE)," ") -> 12.15 | W46: =IF($U46>0,VLOOKUP($U46,EventsOrder,6,FALSE)," ") -> Shot
C47: 72 | D47: 4 | E47: 200m | F47: U17 Men | I47: 90 | J47: 12.05 | K47: 1500m | L47: U17 F/Women | Q47: 10 | R47: 12.15 | S47: Javelin Match 2 | U47: 18 | V47: 12.5 | W47: 800m
C48: 73 | D48: 4.2 | E48: 1500m | F48: U13 Male | I48: 91 | J48: 12.2 | K48: 800m | L48: U13 Male | Q48: 19 | R48: 1 | S48: 80m hurdles (U17) | U48: 23 | V48: 1 | W48: Discus Match 1 & 3
C49: 76 | D49: 4.3 | E49: 1500m | F49: U15 Male | I49: 92 | J49: 12.4 | K49: 800m | L49: U15 Male | Q49: 28 | R49: 1.4 | S49: 800m | U49: 27 | V49: 1.35 | W49: 100m hurdles
C50: 80 | D50: 4.4 | E50: 1500m | F50: U17 Men | I50: 93 | J50: 12.5 | K50: 800m | L50: U17 Men | Q50: 37 | R50: 1.5 | S50: Shot | U50: 32 | V50: 1.3 | W50: Long Jump Pit1
C51: 81 | D51: 4.5 | E51: 4 x 100m Mixed | F51: U11 Fem/Male | G51: NS | I51: 94 | J51: 1.15 | K51: 800m | L51: U13 Female | Q51: 40 | R51: 2.2 | S51: 100m | U51: 43 | V51: 2.35 | W51: 100m
C52: 82 | D52: 4.55 | E52: 4 x 100m | F52: U13 Female | I52: 95 | J52: 1.25 | K52: 800m | L52: U15 Female | Q52: 51 | R52: 2.45 | S52: 300m | U52: 57 | V52: 3 | W52: 400m
C53: 83 | D53: 5 | E53: 4 x 100m | F53: U15 Female | I53: 96 | J53: 1.4 | K53: 800m | L53: U17 F/Women | Q53: 53 | R53: 2.4 | S53: Discus Match 1 & 3 | U53: 67 | V53: 3.3 | W53: Javelin Match 2
C54: 84 | D54: 5.05 | E54: 4 x 100m | F54: U17 F/Women | I54: 97 | J54: 4.2 | K54: 1500m | L54: U13 Male | Q54: 60 | R54: 3.1 | S54: High Jump | U54: 72 | V54: 4 | W54: 200m
C55: 85 | D55: 5.1 | E55: 4 x 100m | F55: U13 Male | I55: 98 | J55: 4.3 | K55: 1500m | L55: U15 Male | Q55: 69 | R55: 3.45 | S55: 200m | U55: 74 | V55: 4.1 | W55: High Jump
C56: 86 | D56: 5.15 | E56: 4 x 100m | F56: U15 Male | I56: 99 | J56: 4.4 | K56: 1500m | L56: U17 Men | Q56: 75 | R56: 4 | S56: Long Jump Pit1 | U56: 80 | V56: 4.4 | W56: 1500m
C57: 87 | D57: 5.2 | E57: 4 x 100m | F57: U17 Men | Q57: 84 | R57: 5.05 | S57: 4 x 100m | U57: 87 | V57: 5.2 | W57: 4 x 100m
K59: No of Trials | S59: Guests - Non Scoring
I60: Jumps | K60: 3 | L60: Long Jump - 2 Pits required | S60: Female | W60: Male
I61: Discus | K61: 3 | Q61: 88 | R61: =IF($Q61>0,VLOOKUP($Q61,EventsOrder,2,FALSE)," ") -> 11.45 | S61: =IF($Q61>0,VLOOKUP($Q61,EventsOrder,6,FALSE)," ") -> 1500m U13 Female | U61: 91 | V61: =IF($U61>0,VLOOKUP($U61,EventsOrder,2,FALSE)," ") -> 12.2 | W61: =IF($U61>0,VLOOKUP($U61,EventsOrder,6,FALSE)," ") -> 800m U13 Male
I62: Javelin | K62: 4 | Q62: 89 | R62: 11.55 | S62: 1500m U15 Female | U62: 92 | V62: 12.4 | W62: 800m U15 Male
I63: Shot | K63: 4 | Q63: 90 | R63: 12.05 | S63: 1500m U17 F/Women | U63: 93 | V63: 12.5 | W63: 800m U17 Men
Q64: 94 | R64: 1.15 | S64: 800m U13 Female | U64: 97 | V64: 4.2 | W64: 1500m U13 Male
J65: High Jump | Q65: 95 | R65: =IF($Q65>0,VLOOKUP($Q65,EventsOrder,2,FALSE)," ") -> 1.25 | S65: =IF($Q65>0,VLOOKUP($Q65,EventsOrder,6,FALSE)," ") -> 800m U15 Female | U65: 98 | V65: =IF($U65>0,VLOOKUP($U65,EventsOrder,2,FALSE)," ") -> 4.3 | W65: =IF($U65>0,VLOOKUP($U65,EventsOrder,6,FALSE)," ") -> 1500m U15 Male
J66: Opening Heights | Q66: 96 | R66: =IF($Q66>0,VLOOKUP($Q66,EventsOrder,2,FALSE)," ") -> 1.4 | S66: =IF($Q66>0,VLOOKUP($Q66,EventsOrder,6,FALSE)," ") -> 800m U17 F/Women | U66: 99 | V66: =IF($U66>0,VLOOKUP($U66,EventsOrder,2,FALSE)," ") -> 4.4 | W66: =IF($U66>0,VLOOKUP($U66,EventsOrder,6,FALSE)," ") -> 1500m U17 Men
J67: Male | K67: Female | R67: =IF($Q67>0,VLOOKUP($Q67,EventsOrder,2,FALSE)," ") ->  | S67: =IF($Q67>0,VLOOKUP($Q67,EventsOrder,6,FALSE)," ") ->  | V67: =IF($U67>0,VLOOKUP($U67,EventsOrder,2,FALSE)," ") ->  | W67: =IF($Q67>0,VLOOKUP($Q67,EventsOrder,6,FALSE)," ") -> 
I68: U13 | J68: 1.10m | K68: 1.00m
I69: U15 | J69: 1.20m | K69: 1.10m
I70: U17 | J70: 1.30m | K70: 1.20m
C74: Event No's - In Order of Time
C76: Event
C77: No | D77: Time | E77: Event | F77: Age | G77: Comment | I77: Event
G78: =E78&" "&IF(J78>0,J78,"") -> 
C79: 0 | G79: =E79&" "&IF(J79>0,J79,"") -> 
C80: 1 | D80: =VLOOKUP($C80,IF(ISNA(VLOOKUP($C80,Track,1,FALSE)),Field,Track),2,FALSE) -> 11.45 | E80: =VLOOKUP($C80,IF(ISNA(VLOOKUP($C80,Track,1,FALSE)),Field,Track),3,FALSE) -> 1500m | F80: =VLOOKUP($C80,IF(ISNA(VLOOKUP($C80,Track,1,FALSE)),Field,Track),4,FALSE) -> U13 Female | G80: =VLOOKUP($C80,IF(ISNA(VLOOKUP($C80,Track,1,FALSE)),Field,Track),5,FALSE) ->  | H80: =VLOOKUP($C80,IF(ISNA(VLOOKUP($C80,Track,1,FALSE)),Field,Track),3,FALSE)&" "&G80 -> 1500m
C81: 2 | D81: 11.45 | E81: Howler | F81: U11 Male | H81: Howler
C82: 3 | D82: 11.45 | E82: Howler | F82: U11 Female | H82: Howler
C83: 4 | D83: 11.55 | E83: 1500m | F83: U15 Female | H83: 1500m
C84: 5 | D84: 12 | E84: High Jump | F84: U13 Male | H84: High Jump
C85: 6 | D85: 12 | E85: Long Jump | F85: U15 Male | G85: Pit 2 | H85: Long Jump Pit 2
C86: 7 | D86: 12.05 | E86: 1500m | F86: U17 F/Women | H86: 1500m
C87: 8 | D87: 12.15 | E87: Shot | F87: U17 Men | H87: Shot
C88: 9 | D88: 12.15 | E88: Discus | F88: U15 Female | G88: Match 1 & 3 | H88: Discus Match 1 & 3
C89: 10 | D89: 12.15 | E89: Javelin | F89: U17 F/Women | G89: Match 2 | H89: Javelin Match 2
C90: 11 | D90: 12.15 | E90: 70m hurdles | F90: U13 Female | H90: 70m hurdles
C91: 12 | D91: 12.2 | E91: 800m | F91: U13 Male | H91: 800m
C92: 13 | D92: 12.3 | E92: 75m hurdles | F92: U15 Female | H92: 75m hurdles
C93: 14 | D93: 12.3 | E93: Long Jump | F93: U11 Female | G93: Pit1 | H93: Long Jump Pit1
C94: 15 | D94: 12.35 | E94: 75m hurdles | F94: U13 Male | H94: 75m hurdles
C95: 16 | D95: 12.4 | E95: 800m | F95: U15 Male | H95: 800m
C96: 17 | D96: 12.55 | E96: High Jump | F96: U15 Female | H96: High Jump
C97: 18 | D97: 12.5 | E97: 800m | F97: U17 Men | H97: 800m
C98: 19 | D98: 1 | E98: 80m hurdles (U17) | F98: U17 Female | H98: 80m hurdles (U17)
C99: 20 | D99: 1.05 | E99: 80m hurdles | F99: U15 Male | H99: 80m hurdles
C100: 21 | D100: 1 | E100: Long Jump | F100: U15 Female | G100: Pit 2 | H100: Long Jump Pit 2
C101: 22 | D101: 1 | E101: Shot | F101: U15 Male | H101: Shot
C102: 23 | D102: 1 | E102: Discus | F102: U17 Men | G102: Match 1 & 3 | H102: Discus Match 1 & 3
C103: 24 | D103: 1 | E103: Javelin | F103: U13 Male | G103: Match 2 | H103: Javelin Match 2
C104: 25 | D104: 1.15 | E104: 800m | F104: U13 Female | H104: 800m
C105: 26 | D105: 1.25 | E105: 800m | F105: U15 Female | H105: 800m
C106: 27 | D106: 1.35 | E106: 100m hurdles | F106: U17 Men | H106: 100m hurdles
C107: 28 | D107: 1.4 | E107: 800m | F107: U17 F/Women | H107: 800m
C108: 29 | D108: 1.5 | E108: 600m | F108: U11 Female | H108: 600m
C109: 30 | D109: 1.55 | E109: 600m | F109: U11 Female | G109: NS | H109: 600m NS
C110: 31 | D110: 1.4 | E110: High Jump | F110: U13 Female | H110: High Jump
C111: 32 | D111: 1.3 | E111: Long Jump | F111: U17 Men | G111: Pit1 | H111: Long Jump Pit1
C112: 33 | D112: =VLOOKUP($C112,IF(ISNA(VLOOKUP($C112,Track,1,FALSE)),Field,Track),2,FALSE) -> 2 | E112: =VLOOKUP($C112,IF(ISNA(VLOOKUP($C112,Track,1,FALSE)),Field,Track),3,FALSE) -> 600m | F112: =VLOOKUP($C112,IF(ISNA(VLOOKUP($C112,Track,1,FALSE)),Field,Track),4,FALSE) -> U11 Male | G112: =VLOOKUP($C112,IF(ISNA(VLOOKUP($C112,Track,1,FALSE)),Field,Track),5,FALSE) ->  | H112: =VLOOKUP($C112,IF(ISNA(VLOOKUP($C112,Track,1,FALSE)),Field,Track),3,FALSE)&" "&G112 -> 600m
C113: 34 | D113: 2.05 | E113: 600m | F113: U11 Male | G113: NS | H113: 600m NS
C114: 35 | D114: 2.1 | E114: 100m | F114: U13 Female | H114: 100m
C115: 36 | D115: 2.15 | E115: 100m | F115: U15 Female | H115: 100m
C116: 37 | D116: 1.5 | E116: Shot | F116: U17 F/Women | H116: Shot
C117: 38 | D117: 1.5 | E117: Discus | F117: U13 Female | G117: Match 1 & 3 | H117: Discus Match 1 & 3
C118: 39 | D118: 1.5 | E118: Javelin | F118: U15 Male | G118: Match 2 | H118: Javelin Match 2
C119: 40 | D119: 2.2 | E119: 100m | F119: U17 F/Women | H119: 100m
C120: 41 | D120: 2.25 | E120: 100m | F120: U13 Male | H120: 100m
C121: 42 | D121: 2.3 | E121: 100m | F121: U15 Male | H121: 100m
C122: 43 | D122: 2.35 | E122: 100m | F122: U17 Men | H122: 100m
C123: 44 | D123: 2.1 | E123: Long Jump | F123: U11 Male | G123: Pit 2 | H123: Long Jump Pit 2
C124: 45 | D124: 2.25 | E124: High Jump | F124: U15 Male | H124: High Jump
C125: 46
C126: 47
C127: 48
C128: 49
C129: 50 | D129: 2.4 | E129: 300m | F129: U15 Female | H129: 300m
C130: 51 | D130: 2.45 | E130: 300m | F130: U17 F/Women | H130: 300m
C131: 52 | D131: 2.4 | E131: Shot | F131: U13 Male | H131: Shot
C132: 53 | D132: 2.4 | E132: Discus | F132: U17 F/Women | G132: Match 1 & 3 | H132: Discus Match 1 & 3
C133: 54 | D133: 2.4 | E133: Javelin | F133: U15 Female | G133: Match 2 | H133: Javelin Match 2
C134: 55 | D134: 2.55 | E134: 300m | F134: U15 Male | H134: 300m
C135: 56 | D135: 2.5 | E135: Long Jump | F135: U13 Female | G135: Pit 1 | H135: Long Jump Pit 1
C136: 57 | D136: 3 | E136: 400m | F136: U17 Men | H136: 400m
C137: 58 | D137: 3.1 | E137: 75m | F137: U11 Female | H137: 75m
C138: 59 | D138: 3.15 | E138: 75m | F138: U11 Female | G138: NS | H138: 75m NS
C139: 60 | D139: 3.1 | E139: High Jump | F139: U17 F/Women | H139: High Jump
C140: 61 | D140: 3.2 | E140: 75m | F140: U11 Male | H140: 75m
C141: 62 | D141: 3.25 | E141: 75m | F141: U11 Male | G141: NS | H141: 75m NS
C142: 63 | D142: 3.35 | E142: 200m | F142: U13 Female | H142: 200m
C143: 64 | D143: 3.2 | E143: Long Jump | F143: U13 Male | G143: Pit 2 | H143: Long Jump Pit 2
C144: 65 | D144: =VLOOKUP($C144,IF(ISNA(VLOOKUP($C144,Track,1,FALSE)),Field,Track),2,FALSE) -> 3.3 | E144: =VLOOKUP($C144,IF(ISNA(VLOOKUP($C144,Track,1,FALSE)),Field,Track),3,FALSE) -> Shot | F144: =VLOOKUP($C144,IF(ISNA(VLOOKUP($C144,Track,1,FALSE)),Field,Track),4,FALSE) -> U13 Female | G144: =VLOOKUP($C144,IF(ISNA(VLOOKUP($C144,Track,1,FALSE)),Field,Track),5,FALSE) ->  | H144: =VLOOKUP($C144,IF(ISNA(VLOOKUP($C144,Track,1,FALSE)),Field,Track),3,FALSE)&" "&G144 -> Shot
C145: 66 | D145: 3.3 | E145: Discus | F145: U15 Male | G145: Match 1 & 3 | H145: Discus Match 1 & 3
C146: 67 | D146: 3.3 | E146: Javelin | F146: U17 Men | G146: Match 2 | H146: Javelin Match 2
C147: 68 | D147: 3.4 | E147: 200m | F147: U15 Female | H147: 200m
C148: 69 | D148: 3.45 | E148: 200m | F148: U17 F/Women | H148: 200m
C149: 70 | D149: 3.5 | E149: 200m | F149: U13 Male | H149: 200m
C150: 71 | D150: 3.55 | E150: 200m | F150: U15 Male | H150: 200m
C151: 72 | D151: 4 | E151: 200m | F151: U17 Men | H151: 200m
C152: 73 | D152: 4.2 | E152: 1500m | F152: U13 Male | H152: 1500m
C153: 74 | D153: 4.1 | E153: High Jump | F153: U17 Men | H153: High Jump
C154: 75 | D154: 4 | E154: Long Jump | F154: U17 F/Women | G154: Pit1 | H154: Long Jump Pit1
C155: 76 | D155: 4.3 | E155: 1500m | F155: U15 Male | H155: 1500m
C156: 77 | D156: 4.2 | E156: Shot | F156: U15 Female | H156: Shot
C157: 78 | D157: 4.2 | E157: Discus | F157: U13 Male | G157: Match 1 & 3 | H157: Discus Match 1 & 3
C158: 79 | D158: 4.2 | E158: Javelin | F158: U13 Female | G158: Match 2 | H158: Javelin Match 2
C159: 80 | D159: 4.4 | E159: 1500m | F159: U17 Men | H159: 1500m
C160: 81 | D160: 4.5 | E160: 4 x 100m Mixed | F160: U11 Fem/Male | G160: NS | H160: 4 x 100m Mixed NS
C161: 82 | D161: 4.55 | E161: 4 x 100m | F161: U13 Female | H161: 4 x 100m
C162: 83 | D162: 5 | E162: 4 x 100m | F162: U15 Female | H162: 4 x 100m
C163: 84 | D163: 5.05 | E163: 4 x 100m | F163: U17 F/Women | H163: 4 x 100m
C164: 85 | D164: 5.1 | E164: 4 x 100m | F164: U13 Male | H164: 4 x 100m
C165: 86 | D165: 5.15 | E165: 4 x 100m | F165: U15 Male | H165: 4 x 100m
C166: =C165+1 -> 87 | D166: 5.2 | E166: 4 x 100m | F166: U17 Men | H166: 4 x 100m
C167: =C166+1 -> 88 | D167: 11.45 | E167: 1500m | F167: U13 Female | G167: 0 | H167: =VLOOKUP($C167,IF(ISNA(VLOOKUP($C167,Track,1,FALSE)),Field,Track),3,FALSE)&" "&F167 -> 1500m U13 Female
C168: =C167+1 -> 89 | D168: 11.55 | E168: 1500m | F168: U15 Female | G168: 0 | H168: 1500m U15 Female
C169: =C168+1 -> 90 | D169: 12.05 | E169: 1500m | F169: U17 F/Women | H169: 1500m U17 F/Women
C170: 91 | D170: 12.2 | E170: 800m | F170: U13 Male | H170: =VLOOKUP($C170,IF(ISNA(VLOOKUP($C170,Track,1,FALSE)),Field,Track),3,FALSE)&" "&F170 -> 800m U13 Male
C171: 92 | D171: 12.4 | E171: 800m | F171: U15 Male | H171: 800m U15 Male
C172: 93 | D172: 12.5 | E172: 800m | F172: U17 Men | H172: 800m U17 Men
C173: 94 | D173: 1.15 | E173: 800m | F173: U13 Female | H173: 800m U13 Female
C174: 95 | D174: 1.25 | E174: 800m | F174: U15 Female | H174: 800m U15 Female
C175: 96 | D175: 1.4 | E175: 800m | F175: U17 F/Women | H175: 800m U17 F/Women
C176: 97 | D176: 4.2 | E176: 1500m | F176: U13 Male | H176: 1500m U13 Male
C177: 98 | D177: 4.3 | E177: 1500m | F177: U15 Male | H177: 1500m U15 Male
C178: 99 | D178: 4.4 | E178: 1500m | F178: U17 Men | H178: 1500m U17 Men

Sheet Team Declaration Sheet
C3: ='Event Details'!D5&" "&"Declaration Sheets Male" -> Heart of England League Declaration Sheets Male | J3: ='Event Details'!D7 -> 2015 | M3: ='Event Details'!D$5&" "&"Declaration Sheets Female" -> Heart of England League Declaration Sheets Female | T3: ='Event Details'!D$7 -> 2015
C4: Club | H4: Only 2 non scorers allowed per race | M4: Club | N4: =D4 -> 0 | R4: Only 2 non scorers allowed per race
B6: Event | C6: Time | D6: Events | G6: No | H6: A String | I6: No | J6: B String | L6: Event | M6: Time | N6: Events | Q6: No | R6: A String | S6: No | T6: B String
D7: Under 11 Male | N7: Under 11 Female
B8: 2 | C8: =IF($B8>0,VLOOKUP($B8,EventsOrder,2,FALSE)," ") -> 11.45 | D8: =IF($B8>0,VLOOKUP($B8,EventsOrder,6,FALSE)," ") -> Howler | L8: 3 | M8: =IF($L8>0,VLOOKUP($L8,EventsOrder,2,FALSE)," ") -> 11.45 | N8: =IF($L8>0,VLOOKUP($L8,EventsOrder,6,FALSE)," ") -> Howler
B9: 33 | C9: =IF($B9>0,VLOOKUP($B9,EventsOrder,2,FALSE)," ") -> 2 | D9: =IF($B9>0,VLOOKUP($B9,EventsOrder,6,FALSE)," ") -> 600m | L9: 14 | M9: =IF($L9>0,VLOOKUP($L9,EventsOrder,2,FALSE)," ") -> 12.3 | N9: =IF($L9>0,VLOOKUP($L9,EventsOrder,6,FALSE)," ") -> Long Jump Pit1
B10: 44 | C10: =IF($B10>0,VLOOKUP($B10,EventsOrder,2,FALSE)," ") -> 2.1 | D10: =IF($B10>0,VLOOKUP($B10,EventsOrder,6,FALSE)," ") -> Long Jump Pit 2 | L10: 29 | M10: =IF($L10>0,VLOOKUP($L10,EventsOrder,2,FALSE)," ") -> 1.5 | N10: =IF($L10>0,VLOOKUP($L10,EventsOrder,6,FALSE)," ") -> 600m
B11: 61 | C11: =IF($B11>0,VLOOKUP($B11,EventsOrder,2,FALSE)," ") -> 3.2 | D11: =IF($B11>0,VLOOKUP($B11,EventsOrder,6,FALSE)," ") -> 75m | L11: 58 | M11: =IF($L11>0,VLOOKUP($L11,EventsOrder,2,FALSE)," ") -> 3.1 | N11: =IF($L11>0,VLOOKUP($L11,EventsOrder,6,FALSE)," ") -> 75m
B12: Non-Scoring | G12: No's | H12: (enter Competitor No) | I12: No's | J12: (enter Competitor No) | L12: Non-Scoring | Q12: No's | R12: (enter Competitor No) | S12: No's | T12: (enter Competitor No)
C13: =IF($B13>0,VLOOKUP($B13,EventsOrder,2,FALSE)," ") ->  | D13: =IF($B13>0,VLOOKUP($B13,EventsOrder,6,FALSE)," ") ->  | M13: =IF($L13>0,VLOOKUP($L13,EventsOrder,2,FALSE)," ") ->  | N13: =IF($L13>0,VLOOKUP($L13,EventsOrder,6,FALSE)," ") -> 
B14: 34 | C14: =IF($B14>0,VLOOKUP($B14,EventsOrder,2,FALSE)," ") -> 2.05 | D14: =IF($B14>0,VLOOKUP($B14,EventsOrder,6,FALSE)," ") -> 600m NS | L14: 30 | M14: =IF($L14>0,VLOOKUP($L14,EventsOrder,2,FALSE)," ") -> 1.55 | N14: =IF($L14>0,VLOOKUP($L14,EventsOrder,6,FALSE)," ") -> 600m NS
B15: 62 | C15: =IF($B15>0,VLOOKUP($B15,EventsOrder,2,FALSE)," ") -> 3.25 | D15: =IF($B15>0,VLOOKUP($B15,EventsOrder,6,FALSE)," ") -> 75m NS | L15: 59 | M15: =IF($L15>0,VLOOKUP($L15,EventsOrder,2,FALSE)," ") -> 3.15 | N15: =IF($L15>0,VLOOKUP($L15,EventsOrder,6,FALSE)," ") -> 75m NS
L16: 81 | M16: =IF($L16>0,VLOOKUP($L16,EventsOrder,2,FALSE)," ") -> 4.5 | N16: =IF($L16>0,VLOOKUP($L16,EventsOrder,6,FALSE)," ") -> 4 x 100m Mixed NS | R16: =N$4 -> 0
B17: Event | C17: Time | D17: Events | G17: No | H17: A String | I17: No | J17: B String | L17: =L16&"R" -> 81R | Q17: 1 | S17: 2
D18: Under 13 Male | L18: =L16&"S" -> 81S | Q18: 3 | S18: 4
B19: 5 | C19: =IF($B19>0,VLOOKUP($B19,EventsOrder,2,FALSE)," ") -> 12 | D19: =IF($B19>0,VLOOKUP($B19,EventsOrder,6,FALSE)," ") -> High Jump
B20: 12 | C20: 12.2 | D20: 800m | L20: Event | M20: Time | N20: Events | Q20: No | R20: A String | S20: No | T20: B String
B21: 15 | C21: 12.35 | D21: 75m hurdles | N21: Under 13 Female
B22: 24 | C22: 1 | D22: Javelin Match 2 | L22: 1 | M22: =IF($L22>0,VLOOKUP($L22,EventsOrder,2,FALSE)," ") -> 11.45 | N22: =IF($L22>0,VLOOKUP($L22,EventsOrder,6,FALSE)," ") -> 1500m
B23: 41 | C23: 2.25 | D23: 100m | L23: 11 | M23: 12.15 | N23: 70m hurdles
B24: 52 | C24: 2.4 | D24: Shot | L24: 25 | M24: 1.15 | N24: 800m
B25: 64 | C25: =IF($B25>0,VLOOKUP($B25,EventsOrder,2,FALSE)," ") -> 3.2 | D25: =IF($B25>0,VLOOKUP($B25,EventsOrder,6,FALSE)," ") -> Long Jump Pit 2 | L25: 31 | M25: 1.4 | N25: High Jump
B26: 70 | C26: 3.5 | D26: 200m | L26: 35 | M26: 2.1 | N26: 100m
B27: 73 | C27: 4.2 | D27: 1500m | L27: 38 | M27: 1.5 | N27: Discus Match 1 & 3
B28: 78 | C28: 4.2 | D28: Discus Match 1 & 3 | L28: 56 | M28: 2.5 | N28: Long Jump Pit 1
B29: 85 | C29: 5.1 | D29: 4 x 100m | H29: =D$4 -> 0 | L29: 63 | M29: 3.35 | N29: 200m
B30: =B29&"R" -> 85R | G30: 1 | I30: 2 | L30: 65 | M30: 3.3 | N30: Shot
B31: =B29&"S" -> 85S | G31: 3 | I31: 4 | L31: 79 | M31: 4.2 | N31: Javelin Match 2
L32: 82 | M32: 4.55 | N32: 4 x 100m | R32: =N$4 -> 0
L33: =L32&"R" -> 82R | Q33: 1 | S33: 2
B34: Event | C34: Time | D34: Events | G34: No | H34: A String | I34: No | J34: B String | L34: =L32&"S" -> 82S | Q34: 3 | S34: 4
D35: Under 15 Male | M35: =IF($B35>0,VLOOKUP($B35,EventsOrder,2,FALSE)," ") ->  | N35: =IF($B35>0,VLOOKUP($B35,EventsOrder,6,FALSE)," ") -> 
B36: 6 | C36: =IF($B36>0,VLOOKUP($B36,EventsOrder,2,FALSE)," ") -> 12 | D36: =IF($B36>0,VLOOKUP($B36,EventsOrder,6,FALSE)," ") -> Long Jump Pit 2
B37: 16 | C37: 12.4 | D37: 800m | L37: Event | M37: Time | N37: Events | Q37: No | R37: A String | S37: No | T37: B String
B38: 20 | C38: 1.05 | D38: 80m hurdles | N38: Under 15 Female
B39: 22 | C39: 1 | D39: Shot | L39: 4 | M39: =IF($L39>0,VLOOKUP($L39,EventsOrder,2,FALSE)," ") -> 11.55 | N39: =IF($L39>0,VLOOKUP($L39,EventsOrder,6,FALSE)," ") -> 1500m
B40: 39 | C40: 1.5 | D40: Javelin Match 2 | L40: 9 | M40: 12.15 | N40: Discus Match 1 & 3
B41: 42 | C41: 2.3 | D41: 100m | L41: 13 | M41: 12.3 | N41: 75m hurdles
B42: 45 | C42: 2.25 | D42: High Jump | L42: 17 | M42: 12.55 | N42: High Jump
B43: 55 | C43: =IF($B43>0,VLOOKUP($B43,EventsOrder,2,FALSE)," ") -> 2.55 | D43: =IF($B43>0,VLOOKUP($B43,EventsOrder,6,FALSE)," ") -> 300m | L43: 21 | M43: 1 | N43: Long Jump Pit 2
B44: 66 | C44: 3.3 | D44: Discus Match 1 & 3 | L44: 26 | M44: 1.25 | N44: 800m
B45: 71 | C45: 3.55 | D45: 200m | L45: 36 | M45: 2.15 | N45: 100m
B46: 76 | C46: 4.3 | D46: 1500m | L46: 50 | M46: 2.4 | N46: 300m
B47: 86 | C47: 5.15 | D47: 4 x 100m | H47: =D$4 -> 0 | L47: 54 | M47: 2.4 | N47: Javelin Match 2
B48: =B47&"R" -> 86R | G48: 1 | I48: 2 | L48: 68 | M48: 3.4 | N48: 200m
B49: =B47&"S" -> 86S | G49: 3 | I49: 4 | L49: 77 | M49: 4.2 | N49: Shot
L50: 83 | M50: 5 | N50: 4 x 100m | R50: =N$4 -> 0
L51: =L50&"R" -> 83R | Q51: 1 | S51: 2
B52: Event | C52: Time | D52: Events | G52: No | H52: A String | I52: No | J52: B String | L52: =L50&"S" -> 83S | Q52: 3 | S52: 4
D53: Under 17 Male | M53: =IF($B53>0,VLOOKUP($B53,EventsOrder,2,FALSE)," ") ->  | N53: =IF($B53>0,VLOOKUP($B53,EventsOrder,6,FALSE)," ") -> 
B54: 8 | C54: =IF($B54>0,VLOOKUP($B54,EventsOrder,2,FALSE)," ") -> 12.15 | D54: =IF($B54>0,VLOOKUP($B54,EventsOrder,6,FALSE)," ") -> Shot
B55: 18 | C55: 12.5 | D55: 800m | L55: Event | M55: Time | N55: Events | Q55: No | R55: A String | S55: No | T55: B String
B56: 23 | C56: 1 | D56: Discus Match 1 & 3 | N56: U17 Female / Women
B57: 27 | C57: 1.35 | D57: 100m hurdles | L57: 7 | M57: =IF($L57>0,VLOOKUP($L57,EventsOrder,2,FALSE)," ") -> 12.05 | N57: =IF($L57>0,VLOOKUP($L57,EventsOrder,6,FALSE)," ") -> 1500m
B58: 32 | C58: 1.3 | D58: Long Jump Pit1 | L58: 10 | M58: 12.15 | N58: Javelin Match 2
B59: 43 | C59: 2.35 | D59: 100m | L59: 19 | M59: 1 | N59: 80m hurdles (U17)
B60: 57 | C60: 3 | D60: 400m | L60: 28 | M60: 1.4 | N60: 800m
B61: 67 | C61: =IF($B61>0,VLOOKUP($B61,EventsOrder,2,FALSE)," ") -> 3.3 | D61: =IF($B61>0,VLOOKUP($B61,EventsOrder,6,FALSE)," ") -> Javelin Match 2 | L61: 37 | M61: 1.5 | N61: Shot
B62: 72 | C62: 4 | D62: 200m | L62: 40 | M62: 2.2 | N62: 100m
B63: 74 | C63: 4.1 | D63: High Jump | L63: 51 | M63: 2.45 | N63: 300m | R63: =R$3 -> 0
B64: 80 | C64: 4.4 | D64: 1500m | L64: 53 | M64: 2.4 | N64: Discus Match 1 & 3
B65: 87 | C65: 5.2 | D65: 4 x 100m | H65: =D$4 -> 0 | L65: 60 | M65: 3.1 | N65: High Jump
B66: =B65&"R" -> 87R | G66: 1 | I66: 2 | L66: 69 | M66: 3.45 | N66: 200m
B67: =B65&"S" -> 87S | G67: 3 | I67: 4 | L67: 75 | M67: 4 | N67: Long Jump Pit1
L68: 84 | M68: 5.05 | N68: 4 x 100m | R68: =N$4 -> 0
L69: =L68&"R" -> 84R | Q69: 1 | S69: 2
L70: =L68&"S" -> 84S | Q70: 3 | S70: 4
C71: ='Event Details'!D$5&" "&"Declaration Sheets - Guests" -> Heart of England League Declaration Sheets - Guests | J71: ='Event Details'!D$7 -> 2015
C72: Club | D72: =D4 -> 0 | H72: Only 1 non scorers allowed per race
M73: ='Event Details'!D$5&" "&"Declaration Sheets - Guests" -> Heart of England League Declaration Sheets - Guests | T73: ='Event Details'!N$7 -> 0
B74: Event | C74: Time | D74: Events | G74: No | H74: A String | M74: Club | N74: =D4 -> 0 | R74: Only 1 non scorers allowed per race
D76: Male | L76: Event | M76: Time | N76: Events | Q76: No | R76: A String
B77: 91 | C77: =IF($B77>0,VLOOKUP($B77,EventsOrder,2,FALSE)," ") -> 12.2 | D77: =IF($B77>0,VLOOKUP($B77,EventsOrder,6,FALSE)," ") -> 800m U13 Male | N77: Female
B78: 92 | C78: 12.4 | D78: 800m U15 Male | L78: 88 | M78: =IF($L78>0,VLOOKUP($L78,EventsOrder,2,FALSE)," ") -> 11.45 | N78: =IF($L78>0,VLOOKUP($L78,EventsOrder,6,FALSE)," ") -> 1500m U13 Female
B79: 93 | C79: 12.5 | D79: 800m U17 Men | L79: 89 | M79: 11.55 | N79: 1500m U15 Female
B80: 97 | C80: 4.2 | D80: 1500m U13 Male | L80: 90 | M80: 12.05 | N80: 1500m U17 F/Women
B81: 98 | C81: 4.3 | D81: 1500m U15 Male | L81: 94 | M81: 1.15 | N81: 800m U13 Female
B82: 99 | C82: 4.4 | D82: 1500m U17 Men | L82: 95 | M82: 1.25 | N82: 800m U15 Female
L83: 96 | M83: 1.4 | N83: 800m U17 F/Women

Sheet Teamsheet Male
BA1: For Test data
C2: Heart of England League | H2: Club | J2: Date | M2: Club | O2: Date | R2: Club | T2: Date | W2: Club | Y2: Date | AB2: Club | AD2: Date | AG2: Club | AI2: Date | AL2: Club | AN2: Date | AQ2: Club | AS2: Date
C3: Declaration Sheets | G3: ='Event Details'!$C$22 -> C | H3: ='Event Details'!$D$22 -> Brom & Redditch | J3: ='Event Details'!$B$17 -> 7th June 2015 | L3: ='Event Details'!$C$23 -> O | M3: ='Event Details'!$D$23 -> Corby | O3: ='Event Details'!$B$17 -> 7th June 2015 | Q3: ='Event Details'!$C$24 -> I | R3: ='Event Details'!$D$24 -> Kettering | T3: ='Event Details'!$B$17 -> 7th June 2015 | V3: ='Event Details'!$C$25 -> U | W3: ='Event Details'!$D$25 -> Kidder & Stourport | Y3: ='Event Details'!$B$17 -> 7th June 2015 | AA3: ='Event Details'!$C$26 -> B | AB3: ='Event Details'!$D$26 -> Dudley & S'bridge | AD3: ='Event Details'!$B$17 -> 7th June 2015 | AF3: ='Event Details'!$C$27 -> F | AG3: ='Event Details'!$D$27 -> Tamworth | AI3: ='Event Details'!$B$17 -> 7th June 2015 | AK3: ='Event Details'!$C$28 -> G | AL3: ='Event Details'!$D$28 -> Royal Sutton | AN3: ='Event Details'!$B$17 -> 7th June 2015 | AP3: ='Event Details'!$C$29 -> X | AQ3: ='Event Details'!$D$29 -> Wreake Runners | AS3: ='Event Details'!$B$17 -> 7th June 2015
C4: Only 2 non scorers allowed per race
B6: Event | C6: Time | D6: Events | G6: No | H6: A String | I6: No | J6: B String | L6: No | M6: A String | N6: No | O6: B String | Q6: No | R6: A String | S6: No | T6: B String | V6: No | W6: A String | X6: No | Y6: B String | AA6: No | AB6: A String | AC6: No | AD6: B String | AF6: No | AG6: A String | AH6: No | AI6: B String | AK6: No | AL6: A String | AM6: No | AN6: B String | AP6: No | AQ6: A String | AR6: No | AS6: B String | AU6: No | AV6: A String | AW6: No | AX6: B String | AZ6: No | BA6: A String | BB6: No | BC6: B String
D7: Under 11 Male
B8: 2 | C8: =IF($B8>0,VLOOKUP($B8,EventsOrder,2,FALSE)," ") -> 11.45 | D8: =IF($B8>0,VLOOKUP($B8,EventsOrder,6,FALSE)," ") -> Howler | L8: O | M8: Marvin Camera | N8: OO | O8: Danii Baker-Marshall | Q8: I | R8: Alfie Frayne | S8: II | T8: Jamie Lake | AA8: B | AB8: John Sparry | AC8: BB | AD8: Alex Jhonson | AF8: F | AG8: Ashley Johnson | AH8: FF | AI8: Kai Buckley | AK8: G | AL8: Tyrique Fagan | AM8: GG | AN8: Jacob Thomas | AP8: X | AQ8: Jack Hollidge | AR8: XX | AS8: Finley Venables | BA8: =CONCATENATE(LEFT(BA$3,3),$B8,LEFT(BA$6,1)) -> 2A | BC8: =CONCATENATE(LEFT(BA$3,3),$B8,LEFT(BC$6,1)) -> 2B
B9: 33 | C9: =IF($B9>0,VLOOKUP($B9,EventsOrder,2,FALSE)," ") -> 2 | D9: =IF($B9>0,VLOOKUP($B9,EventsOrder,6,FALSE)," ") -> 600m | G9: C | H9: Sebastian Purvis | L9: O | M9: Seb Beckwith | N9: OO | O9: Elliot Dee | Q9: I | R9: Alfie Frayne | S9: II | T9: Ben Brooker | V9: U | W9: Harry Lees | X9: UU | AA9: B | AB9: John Sparry | AC9: BB | AD9: Jaime Crooke | AF9: F | AG9: James Stretton | AH9: FF | AI9: Daniel Aston | AK9: G | AL9: Jacob Thomas | AM9: GG | AN9: Harry Darrock | AP9: X | AQ9: Jack Hollidge | AR9: XX | AS9: Finley Venables | BA9: =CONCATENATE(LEFT(BA$3,3),$B9,LEFT(BA$6,1)) -> 33A | BC9: =CONCATENATE(LEFT(BA$3,3),$B9,LEFT(BC$6,1)) -> 33B
B10: 44 | C10: =IF($B10>0,VLOOKUP($B10,EventsOrder,2,FALSE)," ") -> 2.1 | D10: =IF($B10>0,VLOOKUP($B10,EventsOrder,6,FALSE)," ") -> Long Jump Pit 2 | G10: C | H10: Sebastian Purvis | L10: O | M10: Fabian Powell | N10: OO | O10: Elliot Powell | Q10: I | R10: Daniel Short | S10: II | T10: Ben Brooker | V10: U | W10: Harry Lees | X10: UU | AA10: B | AB10: Alex Jhonson | AF10: F | AG10: James Stretton | AH10: FF | AI10: Daniel Aston | AK10: G | AL10: Harry Darock | AM10: GG | AN10: Tobias Clarke | AP10: X | AQ10: Jack Hollidge | AR10: XX | AS10: Finley Venables | BA10: 44A | BC10: 44B
B11: 61 | C11: =IF($B11>0,VLOOKUP($B11,EventsOrder,2,FALSE)," ") -> 3.2 | D11: =IF($B11>0,VLOOKUP($B11,EventsOrder,6,FALSE)," ") -> 75m | G11: C | H11: Sebastian Purvis | L11: O | M11: Fabian Powell | N11: OO | O11: Seb Beckwith | Q11: I | R11: Alfie Frayne | S11: II | T11: Daniel Short | V11: U | W11: Harry Lees | X11: UU | AA11: B | AB11: John Sparry | AC11: BB | AD11: Jaime Crooke | AF11: F | AG11: Ashley Johnson | AH11: FF | AI11: Kai Buckley | AK11: G | AL11: Tyrique Fagan | AM11: GG | AN11: Tobias Clarke | AP11: X | AQ11: Jack Hollidge | AR11: XX | AS11: Finley Venables
B12: Non-Scoring | G12: No's | H12: (enter Competitor No) | I12: No's | J12: (enter Competitor No) | L12: No's | M12: (enter Competitor No) | N12: No's | O12: (enter Competitor No) | Q12: No's | R12: (enter Competitor No) | S12: No's | T12: (enter Competitor No) | V12: No's | W12: (enter Competitor No) | X12: No's | Y12: (enter Competitor No) | AA12: No's | AB12: (enter Competitor No) | AC12: No's | AD12: (enter Competitor No) | AF12: No's | AG12: (enter Competitor No) | AH12: No's | AI12: (enter Competitor No) | AK12: No's | AL12: (enter Competitor No) | AM12: No's | AN12: (enter Competitor No) | AP12: No's | AQ12: (enter Competitor No) | AR12: No's | AS12: (enter Competitor No) | AU12: No's | AV12: (enter Competitor No) | AW12: No's | AX12: (enter Competitor No) | AZ12: No's | BA12: (enter Competitor No) | BB12: No's | BC12: (enter Competitor No)
C13: =IF($B13>0,VLOOKUP($B13,EventsOrder,2,FALSE)," ") ->  | D13: =IF($B13>0,VLOOKUP($B13,EventsOrder,6,FALSE)," ") ->  | AZ13: =$B13 -> 0 | BA13: =CONCATENATE(LEFT(BA$3,3),$B13,LEFT(BA$6,1)) -> A | BB13: =$B13 -> 0 | BC13: =CONCATENATE(LEFT(BA$3,3),$B13,LEFT(BC$6,1)) -> B
B14: 34 | C14: =IF($B14>0,VLOOKUP($B14,EventsOrder,2,FALSE)," ") -> 2.05 | D14: =IF($B14>0,VLOOKUP($B14,EventsOrder,6,FALSE)," ") -> 600m NS | Q14: 94 | R14: Daniel Short | AF14: 12 | AG14: Ashley Johnson | AH14: 13 | AI14: Kai Buckley | AK14: 317 | AL14: Tyrique Fagan | AM14: 318 | AN14: Tobias Clarke | AP14: 507 | AQ14: ROHAN STOKES | AZ14: =$B14 -> 34 | BA14: 34A | BB14: =$B14 -> 34 | BC14: 34B
B15: 62 | C15: =IF($B15>0,VLOOKUP($B15,EventsOrder,2,FALSE)," ") -> 3.25 | D15: =IF($B15>0,VLOOKUP($B15,EventsOrder,6,FALSE)," ") -> 75m NS | L15: 412 | M15: Seb Beckwith | Q15: 95 | R15: Ben Brooker | S15: 99 | T15: Jamie Lake | AA15: 205 | AB15: Alex Jhonson | AF15: 14 | AG15: James Stretton | AH15: 15 | AI15: Daniel Aston | AK15: 315 | AL15: Harry Darrock | AM15: 319 | AN15: Jacob Thomas | AQ15: ROHAN STOKES | AZ15: 62 | BA15: 62A | BB15: 62 | BC15: 62B
B17: Event | C17: Time | D17: Events | G17: No | H17: A String | I17: No | J17: B String | L17: No | M17: A String | N17: No | O17: B String | Q17: No | R17: A String | S17: No | T17: B String | V17: No | W17: A String | X17: No | Y17: B String | AA17: No | AB17: A String | AC17: No | AD17: B String | AF17: No | AG17: A String | AH17: No | AI17: B String | AK17: No | AL17: A String | AM17: No | AN17: B String | AP17: No | AQ17: A String | AR17: No | AS17: B String | AU17: No | AV17: A String | AW17: No | AX17: B String | AZ17: No | BA17: A String | BB17: No | BC17: B String
D18: Under 13 Male
B19: 5 | C19: =IF($B19>0,VLOOKUP($B19,EventsOrder,2,FALSE)," ") -> 12 | D19: =IF($B19>0,VLOOKUP($B19,EventsOrder,6,FALSE)," ") -> High Jump | G19: C | H19: James Pickup | I19: CC | J19: A String only | Q19: I | R19: Brandon Raulia | T19: A String only | V19: U | W19: Billy Hall | AA19: B | AB19: Nathan Crook | AD19: A string only | AS19: A String only | BA19: =CONCATENATE(LEFT(BA$3,3),$B19,LEFT(BA$6,1)) -> 5A | BC19: A String only
B20: 12 | C20: 12.2 | D20: 800m | G20: C | H20: Joe Cunliffe | I20: CC | J20: James Pickup | L20: O | M20: Jake Lawson | Q20: I | R20: Dylan Bowley | S20: II | T20: Ethan Nelis | V20: U | W20: Billy Hall | AA20: B | AB20: Alex Hurrell | AC20: BB | AD20: Zak Thurley | AF20: F | AG20: Timothy Li | AP20: X | AQ20: Roman Watson Quilter | AR20: XX | AS20: Euan Gibbs | BA20: =CONCATENATE(LEFT(BA$3,3),$B20,LEFT(BA$6,1)) -> 12A | BC20: =CONCATENATE(LEFT(BA$3,3),$B20,LEFT(BC$6,1)) -> 12B
B21: 15 | C21: 12.35 | D21: 75m hurdles | G21: C | H21: Matthew Griffin | I21: CC | J21: Dominic Cook | Q21: I | R21: Brandon Raulia | S21: II | T21: Ryan Raulia | AF21: F | AG21: Joel Bickley | AH21: FF | AI21: Finlay Moss | AP21: X | AQ21: Lucca Watson Quilter | AR21: XX | AS21: Charlie Rennie | BA21: 15A | BC21: 15B
B22: 24 | C22: 1 | D22: Javelin Match 2 | H22: NA | J22: NA | BA22: 24A | BC22: 24B
B23: 41 | C23: 2.25 | D23: 100m | G23: C | H23: Alistair Cook | I23: CC | J23: Dominic Cook | L23: O | M23: Luca Mayes | Q23: I | R23: Max Mowforth | S23: II | T23: Cole Sinnott | V23: U | W23: Ryan Bennett | X23: UU | Y23: Billy Hall | AA23: B | AB23: Nathan Crook | AC23: BB | AD23: Nathan Pearson | AF23: F | AG23: Timothy Li | AH23: FF | AI23: James Sherriff | AK23: G | AL23: Daniel Olatundun | AM23: GG | AN23: Daniel Mills | AP23: X | AQ23: David Seidu | AR23: XX | AS23: Lucca Watson Quilter | BA23: 41A | BC23: 41B
B24: 52 | C24: 2.4 | D24: Shot | G24: C | H24: James Pickup | I24: CC | J24: Harrison Mayne | Q24: I | R24: Dylan Bowley | S24: II | T24: Ethan Nelis | V24: U | W24: Ryan Bennett | AA24: B | AB24: Nathan Crook | AF24: F | AG24: James Sherriff | AH24: FF | AI24: Finlay Cross | AK24: G | AL24: Daniel Olatundun | AM24: GG | AN24: Connor Race | AP24: X | AQ24: Roman Watson Quilter | AR24: XX | AS24: David Seidu | BA24: 52A | BC24: 52B
B25: 64 | C25: =IF($B25>0,VLOOKUP($B25,EventsOrder,2,FALSE)," ") -> 3.2 | D25: =IF($B25>0,VLOOKUP($B25,EventsOrder,6,FALSE)," ") -> Long Jump Pit 2 | G25: C | H25: Toby Hill | I25: CC | J25: Matthew Griffin | L25: O | M25: Luca Mayes | N25: OO | O25: Jake Lawson | Q25: I | R25: Max Mowforth | S25: II | T25: Cole Sinnott | V25: U | W25: Ryan Bennett | AA25: B | AB25: Jack Compton | AC25: BB | AD25: Nathan Pearson | AF25: F | AG25: Joel Bickley | AH25: FF | AI25: Timothy Li | AK25: G | AL25: Joseph Creed | AP25: X | AQ25: Euan Gibbs | AR25: XX | AS25: Charlie Rennie | BA25: 64A | BC25: 64B
B26: 70 | C26: 3.5 | D26: 200m | G26: C | H26: Mackenzie Besford | I26: CC | J26: Matthew Griffin | Q26: I | R26: Max Mowforth | S26: II | T26: Cole Sinnott | AA26: B | AB26: Jack Compton | AC26: BB | AD26: Zak Thurley | AF26: F | AG26: Joel Bickley | AK26: G | AL26: Daniel Olatundun | AM26: GG | AN26: Connor Race | AP26: X | AQ26: David Seidu | AR26: XX | AS26: Roman Watson Quilter | BA26: 70A | BC26: 70B
B27: 73 | C27: 4.2 | D27: 1500m | G27: C | H27: Joshua Robins | I27: CC | J27: Harrison Mayne | L27: O | M27: Archie Parkinson | N27: OO | O27: Luca Mayes | Q27: I | R27: Ollie Read | S27: II | T27: Ryan Raulia | AF27: F | AG27: James Sherriff | AH27: FF | AI27: Finlay Cross | AP27: X | AQ27: Lucca Watson Quilter | AR27: XX | AS27: Ethan Patel | BA27: 73A | BC27: 73B
B28: 78 | C28: 4.2 | D28: Discus Match 1 & 3 | G28: C | H28: Alistair Cook | I28: CC | J28: Toby Hill | Q28: I | R28: Dylan Bowley | S28: II | T28: Ethan Nelis | AA28: B | AB28: Zak Thurley | AK28: G | AL28: Daniel Mills | AM28: GG | AN28: Connor Race | BA28: 78A | BC28: 78B
B29: 85 | C29: 5.1 | D29: 4 x 100m | G29: C | H29: =H$3 -> Brom & Redditch | M29: =M$3 -> Corby | Q29: I | R29: =R$3 -> Kettering | W29: =W$3 -> Kidder & Stourport | AA29: B | AB29: =AB$3 -> Dudley & S'bridge | AF29: F | AG29: =AG$3 -> Tamworth | AK29: G | AL29: RSCAC | AP29: X | AQ29: =AQ$3 -> Wreake Runners | AV29: =AV$3 -> 0 | BA29: =BA$3 -> 0
B30: =B29&"R" -> 85R | G30: 1 | H30: Matthew Griffin | I30: 2 | J30: Mackenzie Besford | L30: 1 | N30: 2 | Q30: 1 | R30: Max Mowforth | S30: 2 | T30: Cole Sinnott | V30: 1 | X30: 2 | AA30: 1 | AB30: Nathan Crook | AC30: 2 | AD30: Nathan Pearson | AF30: 1 | AG30: Timothy Li | AH30: 2 | AI30: James Sherriff | AK30: 1 | AL30: Daniel Olatundun | AM30: 2 | AN30: Connor Race | AP30: 1 | AQ30: Roman watson Quilter | AR30: 2 | AS30: David seidu | AU30: 1 | AW30: 2 | AZ30: 1 | BA30: =CONCATENATE(LEFT(BA$3,3),$B30,LEFT(BA$6,1)) -> 85RA | BB30: 2 | BC30: =CONCATENATE(LEFT(BA$3,3),$B30,LEFT(BC$6,1)) -> 85RB
B31: =B29&"S" -> 85S | G31: 3 | H31: Toby Hill | I31: 4 | J31: Alistair Cook | L31: 3 | N31: 4 | Q31: 3 | R31: Ethan Nelis | S31: 4 | T31: Dylan Bowley | V31: 3 | X31: 4 | AA31: 3 | AB31: Jack Compton | AC31: 4 | AD31: Zak thurley | AF31: 3 | AG31: Finlay Cross | AH31: 4 | AI31: Joel Bickley | AK31: 3 | AL31: Daniel Mills | AM31: 4 | AN31: Joseph Creed | AP31: 3 | AQ31: Lucca Watson Quilter | AR31: 4 | AS31: Euan Gibbs | AU31: 3 | AW31: 4 | AZ31: 3 | BA31: 85SA | BB31: 4 | BC31: 85SB
B34: Event | C34: Time | D34: Events | G34: No | H34: A String | I34: No | J34: B String | L34: No | M34: A String | N34: No | O34: B String | Q34: No | R34: A String | S34: No | T34: B String | V34: No | W34: A String | X34: No | Y34: B String | AA34: No | AB34: A String | AC34: No | AD34: B String | AF34: No | AG34: A String | AH34: No | AI34: B String | AK34: No | AL34: A String | AM34: No | AN34: B String | AP34: No | AQ34: A String | AR34: No | AS34: B String | AU34: No | AV34: A String | AW34: No | AX34: B String | AZ34: No | BA34: A String | BB34: No | BC34: B String
D35: Under 15 Male
B36: 6 | C36: =IF($B36>0,VLOOKUP($B36,EventsOrder,2,FALSE)," ") -> 12 | D36: =IF($B36>0,VLOOKUP($B36,EventsOrder,6,FALSE)," ") -> Long Jump Pit 2 | G36: C | H36: Will Thorley | I36: CC | J36: George Clements | L36: O | M36: Morgan Potter | N36: OO | O36: Joel Camera | Q36: I | R36: Dylan Mukhtar | V36: U | W36: Jack Lambert | AA36: B | AB36: Brandon Granger | AF36: F | AG36: James Oakley | AH36: FF | AI36: Oliver Barnard | AK36: G | AL36: Luke O'Brien | AM36: GG | AN36: Harrison Casey | BA36: =CONCATENATE(LEFT(BA$3,3),$B36,LEFT(BA$6,1)) -> 6A | BC36: =CONCATENATE(LEFT(BA$3,3),$B36,LEFT(BC$6,1)) -> 6B
B37: 16 | C37: 12.4 | D37: 800m | G37: C | H37: David Peaty | I37: CC | L37: O | M37: Adam McCrone | Q37: I | R37: Oliver Winstone | AA37: B | AB37: Tom Slatter | AC37: BB | AD37: Harry Walters | AF37: F | AG37: James Oakley | AH37: FF | AI37: Daniel Nesbitt | AK37: G | AL37: Harrison Casey | AM37: GG | AN37: Luke Stoddart | BA37: 16A | BC37: 16B
B38: 20 | C38: 1.05 | D38: 80m hurdles | G38: C | H38: Will Thorley | I38: CC | J38: Alfie Pullen | L38: O | M38: Finlay Wilson | Q38: I | R38: Lewis-Morgan Barton | V38: U | W38: Kieran Beech | X38: UU | Y38: James Bendall | AF38: F | AG38: Owen Sherriff | AH38: FF | AK38: G | AL38: Luke Stoddart | AM38: GG | BA38: 20A | BC38: 20B
B39: 22 | C39: 1 | D39: Shot | G39: C | H39: Tom Deykin | I39: CC | J39: Trenton Roberts | L39: O | M39: Sam Haines | N39: OO | O39: Joel Camera | Q39: I | R39: Tapuwa Chitiga | S39: II | T39: Henri Codling | V39: U | W39: Jack Lambert | X39: UU | Y39: Christopher Telling | AA39: B | AB39: Brandon Granger | AF39: F | AG39: Lewis Johnson | AH39: FF | AI39: Andrew Woods | AK39: G | AL39: James Ward | AM39: GG | AP39: X | AQ39: Josh Rocks | AR39: XX | AS39: Charlie McGlinchey | BA39: 22A | BC39: 22B
B40: 39 | C40: 1.5 | D40: Javelin Match 2 | H40: NA | J40: MA | M40: XX | O40: XX | AK40: G | AM40: GG | AP40: X | BA40: 39A | BC40: 39B
B41: 42 | C41: 2.3 | D41: 100m | G41: C | H41: Josh Pearson | I41: CC | J41: Alfie Pullen | L41: O | M41: Reece Cromblehome | N41: OO | O41: Sam Haines | Q41: I | R41: Tapuwa Chitiga | S41: II | T41: Dylan Mukhtar | AA41: B | AB41: Josh Galloway | AF41: F | AG41: Connor Hepple | AH41: FF | AI41: Dan Cartwright | AK41: G | AL41: Cameron Harris | AM41: GG | AN41: Aidan Bishop | AP41: X | AQ41: Jacob Fairhurst | AR41: XX | AS41: Josh Rocks | BA41: 42A | BC41: 42B
B42: 45 | C42: 2.25 | D42: High Jump | G42: C | H42: Jordan Hinds | I42: CC | J42: A String only | L42: O | M42: Jacob Morris | Q42: I | R42: Lewis-Morgan Barton | S42: II | T42: A String only | V42: U | W42: Kieran Beech | X42: UU | Y42: A String only | AA42: B | AB42: Tom Slater | AF42: F | AG42: Lewis Johnson | AI42: A String Only | AK42: G | AL42: Luke O'Brien | AP42: X | AR42: XX | AS42: A String only | BA42: =CONCATENATE(LEFT(BA$3,3),$B42,LEFT(BA$6,1)) -> 45A | BC42: A String only
B43: 55 | C43: =IF($B43>0,VLOOKUP($B43,EventsOrder,2,FALSE)," ") -> 2.55 | D43: =IF($B43>0,VLOOKUP($B43,EventsOrder,6,FALSE)," ") -> 300m | G43: C | H43: Josh Pearson | I43: CC | J43: George Clements | L43: O | M43: Alex Cunningham | Q43: I | R43: Henri Codling | S43: II | T43: Oliver Winstone | AA43: B | AB43: Daniel McGregor | AF43: F | AG43: Andrew Woods | AH43: FF | AI43: Max Kent | AK43: G | AL43: Ben White | AM43: GG | AN43: Luke Stoddart | AP43: X | AQ43: Charlie McGlinchey | BA43: =CONCATENATE(LEFT(BA$3,3),$B43,LEFT(BA$6,1)) -> 55A | BC43: =CONCATENATE(LEFT(BA$3,3),$B43,LEFT(BC$6,1)) -> 55B
B44: 66 | C44: 3.3 | D44: Discus Match 1 & 3 | G44: C | H44: Will Thorley | I44: CC | J44: David Peaty | L44: O | M44: Sam Haines | N44: OO | O44: Alex Cunningham | Q44: I | R44: Tapuwa Chitiga | S44: II | T44: Josh Cannell | V44: U | W44: Jack Lambert | X44: UU | Y44: James Bendall | AA44: B | AB44: Adam Bodin | AC44: BB | AD44: Harry Walters | AF44: F | AG44: Connor Hepple | AH44: FF | AI44: Oliver Barnard | AK44: G | AL44: James Ward | AP44: X | AQ44: Chris Nealon | BA44: 66A | BC44: 66B
B45: 71 | C45: 3.55 | D45: 200m | G45: C | H45: Jordan Hinds | I45: CC | J45: George Clements | L45: O | M45: Reece Cromblehome | N45: OO | O45: Jacob Morris | Q45: I | R45: Lewis-Morgan Barton | S45: II | T45: Henri Codling | V45: U | W45: Kieran Beech | X45: UU | Y45: Christopher Telling | AA45: B | AB45: Josh Galloway | AC45: BB | AD45: Tom Slater | AF45: F | AG45: Dan Cartwright | AH45: FF | AI45: Owen Sherriff | AK45: G | AL45: Luke O'Brien | AM45: GG | AN45: James Ward | AP45: X | AQ45: Jacob Fairhurst | AR45: XX | AS45: Josh Rocks | BA45: 71A | BC45: 71B
B46: 76 | C46: 4.3 | D46: 1500m | G46: C | H46: Tom Deykin | I46: CC | J46: Trenton Roberts | L46: O | M46: Morgan Potter | N46: OO | O46: Alex Cunningham | Q46: I | R46: Josh Cannell | V46: U | W46: Christopher Telling | AA46: B | AB46: Adam Bodin | AC46: BB | AD46: Daniel McGregor | AF46: F | AG46: Andrew Woods | AH46: FF | AI46: Max Kent | AK46: G | AL46: Lewis Duvalle | AM46: GG | AN46: Ben White | AP46: X | AQ46: Charlie McGlinchey | AR46: XX | AS46: Chris Nealon | BA46: 76A | BC46: 76B
B47: 86 | C47: 5.15 | D47: 4 x 100m | G47: C | H47: =H$3 -> Brom & Redditch | L47: O | M47: =M$3 -> Corby | Q47: I | R47: =R$3 -> Kettering | W47: =W$3 -> Kidder & Stourport | AA47: B | AB47: =AB$3 -> Dudley & S'bridge | AF47: F | AG47: =AG$3 -> Tamworth | AK47: G | AL47: =AL$3 -> Royal Sutton | AP47: X | AQ47: =AQ$3 -> Wreake Runners | AV47: =AV$3 -> 0 | BA47: =BA$3 -> 0
B48: =B47&"R" -> 86R | G48: 1 | H48: George Clements | I48: 2 | J48: Alfie Pullen | L48: 1 | M48: Reece Cromblehome | N48: 2 | O48: Jacob Morris | Q48: 1 | R48: Dylan Mukhtar | S48: 2 | T48: Henri Codling | V48: 1 | W48: Jack Lambert | X48: 2 | Y48: Kieran Beech | AA48: 1 | AB48: Brandon Granger | AC48: 2 | AD48: Tom Slater | AF48: 1 | AG48: Owen Sherriff | AH48: 2 | AI48: Dan Cartwight | AK48: 1 | AL48: Cameron Harris | AM48: 2 | AN48: Luke O'Brien | AP48: 1 | AQ48: Josh Rocks | AR48: 2 | AS48: Charlie McGlinchey | AU48: 1 | AW48: 2 | AZ48: 1 | BA48: =CONCATENATE(LEFT(BA$3,3),$B48,LEFT(BA$6,1)) -> 86RA | BB48: 2 | BC48: =CONCATENATE(LEFT(BA$3,3),$B48,LEFT(BC$6,1)) -> 86RB
B49: =B47&"S" -> 86S | G49: 3 | H49: Will Thorley | I49: 4 | J49: Josh Pearson | L49: 3 | N49: 4 | O49: Evan Blackman | Q49: 3 | R49: Lewis-Morgan Barton | S49: 4 | T49: Tapuwa Chitiga | V49: 3 | W49: James Bendall | X49: 4 | Y49: Christopher Telling | AA49: 3 | AB49: Adam Brodin | AC49: 4 | AD49: Josh Galloway | AF49: 3 | AG49: Connor Hepple | AH49: 4 | AI49: Oliver Barnard | AK49: 3 | AL49: James Ward | AM49: 4 | AN49: Aidan Bishop | AP49: 3 | AQ49: Chris Nealon | AR49: 4 | AS49: Jacob Fairhurst | AU49: 3 | AW49: 4 | AZ49: 3 | BA49: 86SA | BB49: 4 | BC49: 86SB
B52: Event | C52: Time | D52: Events | G52: No | H52: A String | I52: No | J52: B String | L52: No | M52: A String | N52: No | O52: B String | Q52: No | R52: A String | S52: No | T52: B String | V52: No | W52: A String | X52: No | Y52: B String | AA52: No | AB52: A String | AC52: No | AD52: B String | AF52: No | AG52: A String | AH52: No | AI52: B String | AK52: No | AL52: A String | AM52: No | AN52: B String | AP52: No | AQ52: A String | AR52: No | AS52: B String | AU52: No | AV52: A String | AW52: No | AX52: B String | AZ52: No | BA52: A String | BB52: No | BC52: B String
D53: Under 17 Male
B54: 8 | C54: =IF($B54>0,VLOOKUP($B54,EventsOrder,2,FALSE)," ") -> 12.15 | D54: =IF($B54>0,VLOOKUP($B54,EventsOrder,6,FALSE)," ") -> Shot | G54: C | H54: Issac Hill | I54: CC | J54: Aaron Pattison | V54: U | W54: James Milburn | X54: UU | Y54: Thomas Palmer | AA54: B | AB54: James Kelly | AK54: G | AL54: Sam Grimshaw | AM54: GG | AP54: X | AQ54: George Alvey | AR54: XX | AS54: Sam Alvey | BA54: =CONCATENATE(LEFT(BA$3,3),$B54,LEFT(BA$6,1)) -> 8A | BC54: =CONCATENATE(LEFT(BA$3,3),$B54,LEFT(BC$6,1)) -> 8B
B55: 18 | C55: 12.5 | D55: 800m | G55: C | H55: Gareth Richardson | I55: CC | J55: Alex Johnson | L55: O | M55: Jack Benstead | N55: OO | V55: U | W55: Thomas Palmer | AK55: G | AL55: Lee Hetherington | AM55: GG | AP55: X | AQ55: Luke Berryman | AR55: XX | AS55: George Alvey | BA55: 18A | BC55: 18B
B56: 23 | C56: 1 | D56: Discus Match 1 & 3 | V56: U | W56: James Milburn | X56: UU | Y56: Greg Knight | AA56: B | AB56: James Kelly | AK56: G | AL56: Sam Grimshaw | AM56: GG | AP56: X | AQ56: Sam Alvey | AR56: XX | AS56: Tom Paget Wright | BA56: 23A | BC56: 23B
B57: 27 | C57: 1.35 | D57: 100m hurdles | Q57: I | R57: Tim Hale | V57: U | W57: James Milburn | BA57: 27A | BC57: 27B
B58: 32 | C58: 1.3 | D58: Long Jump Pit1 | G58: C | H58: Issac Hill | I58: CC | J58: Andrew Johnson | L58: O | M58: Jack Benstead | Q58: I | R58: Ethan Mehmet | S58: II | T58: Sam Bott | V58: U | W58: Christopher Lane | AK58: G | AL58: George Creed | AP58: X | AQ58: Luke Berryman | AR58: XX | AS58: Tom Paget Wright | BA58: 32A | BC58: 32B
B59: 43 | C59: 2.35 | D59: 100m | G59: C | H59: Issac Hill | I59: CC | J59: Cian Allen | L59: O | M59: Harry Merriman | Q59: I | R59: Sam Bott | AA59: B | AB59: Ladi Ablu | AC59: BB | AD59: James Kelly | AK59: G | AL59: Ethan Brough | AM59: GG | AN59: George Creed | AP59: X | AQ59: Tom Paget Wright | AR59: XX | BA59: 43A | BC59: 43B
B60: 57 | C60: 3 | D60: 400m | L60: O | M60: Matthew Patterson | Q60: I | R60: Jake Trent | S60: II | T60: Ethan Mehmet | V60: U | W60: Thomas Palmer | X60: UU | Y60: Greg Knight | AF60: F | AG60: Owen Kent | AK60: G | AL60: Lee Hetherington | AP60: X | AQ60: Sam Alvey | BA60: 57A | BC60: 57B
B61: 67 | C61: =IF($B61>0,VLOOKUP($B61,EventsOrder,2,FALSE)," ") -> 3.3 | D61: =IF($B61>0,VLOOKUP($B61,EventsOrder,6,FALSE)," ") -> Javelin Match 2 | G61: C | H61: NA | I61: CC | J61: NA | AP61: X | BA61: 67A | BC61: 67B
B62: 72 | C62: 4 | D62: 200m | G62: C | H62: Andrew Johnson | I62: CC | J62: Aaron Pattison | L62: O | M62: Harry Merriman | N62: OO | O62: Matthew Patterson | Q62: I | R62: Sam Bott | S62: II | T62: Tim Hale | V62: U | W62: Christopher Lane | AF62: F | AG62: Owen Kent | AK62: G | AL62: Greg Knight | AM62: GG | AN62: Sam Grimshaw | AP62: X | BA62: 72A | BC62: 72B
B63: 74 | C63: 4.1 | D63: High Jump | G63: C | H63: Tom Ward | J63: A String only | S63: II | T63: A String only | V63: U | W63: Christopher Lane | X63: UU | Y63: A String only | AK63: G | AL63: Lee Hetherington | AM63: GG | AP63: X | AS63: A String only | BA63: =CONCATENATE(LEFT(BA$3,3),$B63,LEFT(BA$6,1)) -> 74A | BC63: A String only
B64: 80 | C64: 4.4 | D64: 1500m | G64: C | H64: Conor Smith | I64: CC | J64: Alex Johnson | L64: O | M64: Harry Freeman | Q64: I | R64: Jake Trent | AP64: X | AQ64: Luke Berryman | BA64: =CONCATENATE(LEFT(BA$3,3),$B64,LEFT(BA$6,1)) -> 80A | BC64: =CONCATENATE(LEFT(BA$3,3),$B64,LEFT(BC$6,1)) -> 80B
B65: 87 | C65: 5.2 | D65: 4 x 100m | G65: C | H65: =H$3 -> Brom & Redditch | L65: O | M65: =M$3 -> Corby | Q65: I | R65: =R$3 -> Kettering | V65: U | W65: =W$3 -> Kidder & Stourport | AB65: =AB$3 -> Dudley & S'bridge | AG65: =AG$3 -> Tamworth | AK65: G | AL65: =AL$3 -> Royal Sutton | AP65: X | AQ65: =AQ$3 -> Wreake Runners | AV65: =AV$3 -> 0 | BA65: =BA$3 -> 0
B66: =B65&"R" -> 87R | G66: 1 | H66: Cian Allen | I66: 2 | J66: Isaac Hill | L66: 1 | N66: 2 | Q66: 1 | R66: Jake Trent | S66: 2 | T66: Tim Hale | V66: 1 | W66: Christopher Lane | X66: 2 | Y66: Thomas Palmer | AA66: 1 | AC66: 2 | AF66: 1 | AH66: 2 | AK66: 1 | AL66: Ethan Brough | AM66: 2 | AN66: George Creed | AP66: 1 | AQ66: Sam Alvey | AR66: 2 | AS66: Luke Berryman | AU66: 1 | AW66: 2 | AZ66: 1 | BA66: =CONCATENATE(LEFT(BA$3,3),$B66,LEFT(BA$6,1)) -> 87RA | BB66: 2 | BC66: =CONCATENATE(LEFT(BA$3,3),$B66,LEFT(BC$6,1)) -> 87RB
B67: =B65&"S" -> 87S | G67: 3 | H67: Aaron Pattison | I67: 4 | J67: Andrew Johnson | L67: 3 | N67: 4 | Q67: 3 | R67: Ethan Mehmet | S67: 4 | T67: Sam Bott | V67: 3 | W67: Greg Knight | X67: 4 | Y67: James Milburn | AA67: 3 | AC67: 4 | AF67: 3 | AH67: 4 | AK67: 3 | AL67: Lee Hetherington | AM67: 4 | AN67: Sam Grimshaw | AP67: 3 | AQ67: GEORGE ALVEY | AR67: 4 | AU67: 3 | AW67: 4 | AZ67: 3 | BA67: 87SA | BB67: 4 | BC67: 87SB
C72: Guests - Non-Scoring
B74: Event | C74: Time | D74: Events | G74: No | H74: A String | L74: No | M74: A String | Q74: No | R74: A String | V74: No | W74: A String | AA74: No | AB74: A String | AF74: No | AG74: A String | AK74: No | AL74: A String | AP74: No | AQ74: A String | AU74: No | AV74: A String | AZ74: No | BA74: A String
D76: Male
B77: 91 | C77: =IF($B77>0,VLOOKUP($B77,EventsOrder,2,FALSE)," ") -> 12.2 | D77: =IF($B77>0,VLOOKUP($B77,EventsOrder,6,FALSE)," ") -> 800m U13 Male | Q77: 96 | R77: Joshua Geddes | AZ77: =$B77 -> 91 | BA77: =CONCATENATE(LEFT(BA$3,3),$B77,LEFT(BA$6,1)) -> 91A
B78: 92 | C78: 12.4 | D78: 800m U15 Male | AZ78: =$B78 -> 92 | BA78: 92A
B79: 93 | C79: 12.5 | D79: 800m U17 Men | AZ79: 93 | BA79: 93A
B80: 97 | C80: 4.2 | D80: 1500m U13 Male | Q80: 97 | R80: Joshua Clutton | AZ80: 97 | BA80: 97A
B81: 98 | C81: 4.3 | D81: 1500m U15 Male | AF81: 16 | AG81: Oliver Barnard | AZ81: 98 | BA81: 98A
B82: 99 | C82: 4.4 | D82: 1500m U17 Men | AZ82: 99 | BA82: 99A
B89: =COLUMN(B1) -> 2 | C89: 3 | D89: 4 | E89: 5 | F89: 6 | G89: 7 | H89: 8 | I89: 9 | J89: 10 | K89: 11 | L89: 12 | M89: 13 | N89: 14 | O89: 15 | P89: 16 | Q89: 17 | R89: 18 | S89: 19 | T89: 20 | U89: 21 | V89: 22 | W89: 23 | X89: 24 | Y89: 25 | Z89: 26 | AA89: 27 | AB89: 28 | AC89: 29 | AD89: 30 | AE89: 31 | AF89: 32 | AG89: 33 | AH89: 34 | AI89: 35 | AJ89: 36 | AK89: 37 | AL89: 38 | AM89: 39 | AN89: 40 | AO89: 41 | AP89: 42 | AQ89: 43 | AR89: 44 | AS89: 45

Sheet Teamsheet Female
C2: Heart of England League | H2: Female | M2: Female | R2: Female | W2: Female | AB2: Female | AG2: Female | AL2: Female | AQ2: Female
C3: Declaration Sheets | G3: ='Event Details'!$C$22 -> C | H3: ='Event Details'!$D$22 -> Brom & Redditch | J3: ='Event Details'!$B$17 -> 7th June 2015 | L3: ='Event Details'!$C$23 -> O | M3: ='Event Details'!$D$23 -> Corby | O3: ='Event Details'!$B$17 -> 7th June 2015 | Q3: ='Event Details'!$C$24 -> I | R3: ='Event Details'!$D$24 -> Kettering | T3: ='Event Details'!$B$17 -> 7th June 2015 | V3: ='Event Details'!$C$25 -> U | W3: ='Event Details'!$D$25 -> Kidder & Stourport | Y3: ='Event Details'!$B$17 -> 7th June 2015 | AA3: ='Event Details'!$C$26 -> B | AB3: ='Event Details'!$D$26 -> Dudley & S'bridge | AD3: ='Event Details'!$B$17 -> 7th June 2015 | AF3: ='Event Details'!$C$27 -> F | AG3: ='Event Details'!$D$27 -> Tamworth | AI3: ='Event Details'!$B$17 -> 7th June 2015 | AK3: ='Event Details'!$C$28 -> G | AL3: ='Event Details'!$D$28 -> Royal Sutton | AN3: ='Event Details'!$B$17 -> 7th June 2015 | AP3: ='Event Details'!$C$29 -> X | AQ3: ='Event Details'!$D$29 -> Wreake Runners | AS3: ='Event Details'!$B$17 -> 7th June 2015
C4: Only 2 non scorers allowed per race
B6: Event | C6: Time | D6: Events | G6: No | H6: A String | I6: No | J6: B String | L6: No | M6: A String | N6: No | O6: B String | Q6: No | R6: A String | S6: No | T6: B String | V6: No | W6: A String | X6: No | Y6: B String | AA6: No | AB6: A String | AC6: No | AD6: B String | AF6: No | AG6: A String | AH6: No | AI6: B String | AK6: No | AL6: A String | AM6: No | AN6: B String | AP6: No | AQ6: A String | AR6: No | AS6: B String | AU6: No | AV6: A String | AW6: No | AX6: B String | AZ6: No | BA6: A String | BB6: No | BC6: B String
D7: Under 11 Female
B8: 3 | C8: =IF($B8>0,VLOOKUP($B8,EventsOrder,2,FALSE)," ") -> 11.45 | D8: =IF($B8>0,VLOOKUP($B8,EventsOrder,6,FALSE)," ") -> Howler | G8: C | H8: Jessica Causer | I8: CC | J8: Georgia Duncombe | L8: O | M8: KIERA POTTER | N8: OO | O8: CASIE SEYMOUR | Q8: I | R8: Maddie Moxey | AA8: B | AB8: Libby Davies | AC8: BB | AD8: Kiki Thuray | AF8: F | AG8: Tegan Vickery | AK8: G | AL8: Sian Duval | AM8: GG | AN8: Zara Buchanan | AP8: X | AQ8: Mackenzie Smith | AR8: XX | AS8: Destiny Nicholson | BA8: =CONCATENATE(LEFT(BA$3,3),$B8,LEFT(BA$6,1)) -> 3A | BC8: =CONCATENATE(LEFT(BA$3,3),$B8,LEFT(BC$6,1)) -> 3B
B9: 14 | C9: =IF($B9>0,VLOOKUP($B9,EventsOrder,2,FALSE)," ") -> 12.3 | D9: =IF($B9>0,VLOOKUP($B9,EventsOrder,6,FALSE)," ") -> Long Jump Pit1 | G9: C | H9: Jessica Causer | I9: CC | J9: Alana Pullen | L9: O | M9: MADELINE MAYES | N9: OO | O9: ERIN MCCLYMONT | Q9: I | R9: Emma Robinson | S9: II | T9: Kate Nelis | V9: U | W9: Libby Oliver | X9: UU | Y9: Hannah Telling | AA9: B | AB9: Libby Davies | AC9: BB | AD9: Vyvyenne Crook | AK9: G | AL9: Hope Stirland | AM9: GG | AN9: Charlotte Prince | AP9: X | AQ9: Isobel Orencas | AR9: XX | AS9: Eliza Weselby | BA9: =CONCATENATE(LEFT(BA$3,3),$B9,LEFT(BA$6,1)) -> 14A | BC9: =CONCATENATE(LEFT(BA$3,3),$B9,LEFT(BC$6,1)) -> 14B
B10: 29 | C10: =IF($B10>0,VLOOKUP($B10,EventsOrder,2,FALSE)," ") -> 1.5 | D10: =IF($B10>0,VLOOKUP($B10,EventsOrder,6,FALSE)," ") -> 600m | G10: C | H10: Alana Pullen | I10: CC | J10: Georgia Duncombe | L10: O | M10: MADELINE MAYES | N10: OO | O10: CASIE SEYMOUR | Q10: I | R10: Emma Robinson | S10: II | T10: Kate Nelis | V10: U | W10: Hannah Telling | AA10: B | AB10: Libby Davies | AC10: BB | AD10: Kiki Thuray | AF10: F | AG10: Tegan Vickery | AK10: G | AL10: Hope Stirland | AM10: GG | AN10: Zara Buchanan | AP10: X | AQ10: Destiny Nicholson | AR10: XX | AS10: Eliza Weselby | BA10: =CONCATENATE(LEFT(BA$3,3),$B10,LEFT(BA$6,1)) -> 29A | BC10: =CONCATENATE(LEFT(BA$3,3),$B10,LEFT(BC$6,1)) -> 29B
B11: 58 | C11: =IF($B11>0,VLOOKUP($B11,EventsOrder,2,FALSE)," ") -> 3.1 | D11: =IF($B11>0,VLOOKUP($B11,EventsOrder,6,FALSE)," ") -> 75m | G11: C | H11: Jessica Causer | I11: CC | J11: Alana Pullen | L11: O | M11: MADELINE MAYES | N11: OO | O11: ERIN MCCLYMONT | Q11: I | R11: Kate Nelis | S11: II | T11: Emma Robinson | V11: U | W11: Libby Oliver | X11: UU | Y11: Hannah Telling | AA11: B | AB11: Vyvyenne Crook | AC11: BB | AD11: Libby Milward | AF11: F | AG11: Tegan Vickery | AK11: G | AL11: Hope Stirland | AM11: GG | AN11: Charlotte Prince | AP11: X | AQ11: Isobel Orencas | AR11: XX | AS11: Mackenzie Smith
B12: Non-Scoring | G12: No's | H12: (enter Competitor No) | I12: No's | J12: (enter Competitor No) | L12: No's | M12: (enter Competitor No) | N12: No's | O12: (enter Competitor No) | Q12: No's | R12: (enter Competitor No) | S12: No's | T12: (enter Competitor No) | V12: No's | W12: (enter Competitor No) | X12: No's | Y12: (enter Competitor No) | AA12: No's | AB12: (enter Competitor No) | AC12: No's | AD12: (enter Competitor No) | AF12: No's | AG12: (enter Competitor No) | AH12: No's | AI12: (enter Competitor No) | AK12: No's | AL12: (enter Competitor No) | AM12: No's | AN12: (enter Competitor No) | AP12: No's | AQ12: (enter Competitor No) | AR12: No's | AS12: (enter Competitor No) | AU12: No's | AV12: (enter Competitor No) | AW12: No's | AX12: (enter Competitor No) | AZ12: No's | BA12: (enter Competitor No) | BB12: No's | BC12: (enter Competitor No)
C13: =IF($B13>0,VLOOKUP($B13,EventsOrder,2,FALSE)," ") ->  | D13: =IF($B13>0,VLOOKUP($B13,EventsOrder,6,FALSE)," ") ->  | AZ13: =$B13 -> 0 | BA13: =CONCATENATE(LEFT(BA$3,3),$B13,LEFT(BA$6,1)) -> A | BB13: =$B13 -> 0 | BC13: =CONCATENATE(LEFT(BA$3,3),$B13,LEFT(BC$6,1)) -> B
B14: 30 | C14: =IF($B14>0,VLOOKUP($B14,EventsOrder,2,FALSE)," ") -> 1.55 | D14: =IF($B14>0,VLOOKUP($B14,EventsOrder,6,FALSE)," ") -> 600m NS | L14: 409 | M14: KIERA POTTER | N14: 410 | O14: EMMA TIERNEY | AK14: 307 | AL14: Charlotte Prince | AM14: 306 | AN14: Sian Duval | AP14: 500 | AQ14: Maddy Torbitt | AR14: 504 | AS14: Mackenzie Smith | AZ14: =$B14 -> 30 | BA14: =CONCATENATE(LEFT(BA$3,3),$B14,LEFT(BA$6,1)) -> 30A | BB14: =$B14 -> 30 | BC14: =CONCATENATE(LEFT(BA$3,3),$B14,LEFT(BC$6,1)) -> 30B
B15: 59 | C15: =IF($B15>0,VLOOKUP($B15,EventsOrder,2,FALSE)," ") -> 3.15 | D15: =IF($B15>0,VLOOKUP($B15,EventsOrder,6,FALSE)," ") -> 75m NS | G15: 650 | H15: Georgia Duncombe | L15: 411 | M15: CASIE SEYMOUR | N15: 409 | O15: KIERA POTTER | AK15: 302 | AL15: Zara Buchanan | AM15: 306 | AN15: Sian Duval | AP15: 503 | AQ15: Maddy Torbitt | AR15: 504 | AS15: Destiny Nicholson | AZ15: =$B15 -> 59 | BA15: =CONCATENATE(LEFT(BA$3,3),$B15,LEFT(BA$6,1)) -> 59A | BB15: =$B15 -> 59 | BC15: =CONCATENATE(LEFT(BA$3,3),$B15,LEFT(BC$6,1)) -> 59B
B16: 81 | C16: =IF($B16>0,VLOOKUP($B16,EventsOrder,2,FALSE)," ") -> 4.5 | D16: =IF($B16>0,VLOOKUP($B16,EventsOrder,6,FALSE)," ") -> 4 x 100m Mixed NS | H16: =H$3 -> Brom & Redditch | M16: =M$3 -> Corby | R16: =R$3 -> Kettering | W16: =W$3 -> Kidder & Stourport | AB16: =AB$3 -> Dudley & S'bridge | AG16: =AG$3 -> Tamworth | AL16: =AL$3 -> Royal Sutton | AQ16: =AQ$3 -> Wreake Runners | AV16: =AV$3 -> 0 | BA16: =BA$3 -> 0
B17: =B16&"R" -> 81R | G17: 1 | H17: Georgia Duncombe | I17: 2 | J17: Seb Purvis | L17: 1 | M17: MADELINE MAYES | N17: 2 | O17: CASIE SEYMOUR | Q17: 1 | R17: Emma Robinson | S17: 2 | T17: kate Nelis | V17: 1 | X17: 2 | AA17: 1 | AB17: Alex Johnson | AC17: 2 | AD17: Vyvyenne Crook | AF17: 1 | AG17: Tegan Vickery | AH17: 2 | AI17: Kai Buckley | AK17: 1 | AL17: Tyrique Grant-Fagen | AM17: 2 | AN17: Hope Stirland | AP17: 1 | AQ17: Mackenzie Smith | AR17: 2 | AS17: Eliza Weselby | AU17: 1 | AW17: 2 | AZ17: 1 | BA17: =CONCATENATE(LEFT(BA$3,3),$B17,LEFT(BA$6,1)) -> 81RA | BB17: 2 | BC17: =CONCATENATE(LEFT(BC$3,3),$B17,LEFT(BC$6,1)) -> 81RB
B18: =B16&"S" -> 81S | G18: 3 | H18: Jessica Causer | I18: 4 | J18: Alana Pullen | L18: 3 | M18: FABIAN POWEL | N18: 4 | O18: ELLIOT DEE | Q18: 3 | R18: Jamie Lake | S18: 4 | T18: Alfie Frayne | V18: 3 | X18: 4 | AA18: 3 | AB18: Libby Milward | AC18: 4 | AD18: Jamiie Crooke | AF18: 3 | AG18: James Stretton | AH18: 4 | AI18: Daniel Aston | AK18: 3 | AL18: Tobias Clarke | AM18: 4 | AN18: Zara Buchanan | AP18: 3 | AQ18: Rohan Stokes | AR18: 4 | AS18: Jack Hollidge | AU18: 3 | AW18: 4 | AZ18: 3 | BA18: 81SA | BB18: 4 | BC18: 81SB
B20: Event | C20: Time | D20: Events | G20: No | H20: A String | I20: No | J20: B String | L20: No | M20: A String | N20: No | O20: B String | Q20: No | R20: A String | S20: No | T20: B String | V20: No | W20: A String | X20: No | Y20: B String | AA20: No | AB20: A String | AC20: No | AD20: B String | AF20: No | AG20: A String | AH20: No | AI20: B String | AK20: No | AL20: A String | AM20: No | AN20: B String | AP20: No | AQ20: A String | AR20: No | AS20: B String | AU20: No | AV20: A String | AW20: No | AX20: B String | AZ20: No | BA20: A String | BB20: No | BC20: B String
D21: Under 13 Female
B22: 1 | C22: =IF($B22>0,VLOOKUP($B22,EventsOrder,2,FALSE)," ") -> 11.45 | D22: =IF($B22>0,VLOOKUP($B22,EventsOrder,6,FALSE)," ") -> 1500m | G22: C | H22: Kate Mellors | L22: O | M22: TRINITY COOMBS | N22: OO | O22: IMOGEN DEE | Q22: I | R22: Millie Toseland | S22: II | T22: Mia Brockway | V22: U | W22: Libby Hawkswell | AF22: F | AG22: Charlotte Perry | AH22: FF | AK22: G | AL22: Elsa Buchanan | AP22: X | AQ22: Rachel Nealon | AR22: XX | AS22: Katie Parker | BA22: =CONCATENATE(LEFT(BA$3,3),$B22,LEFT(BA$6,1)) -> 1A | BC22: =CONCATENATE(LEFT(BA$3,3),$B22,LEFT(BC$6,1)) -> 1B
B23: 11 | C23: 12.15 | D23: 70m hurdles | G23: C | H23: Henna Khaliq | Q23: I | R23: Harriet Drake-Lee | S23: II | T23: Matilda Braithwaite | V23: U | W23: Libby Hawkswell | AA23: B | AB23: Niamh Darby | AC23: BB | AD23: Jessica Granger | AF23: F | AG23: Niamh Kilgallen | AH23: FF | AP23: X | AQ23: Flora Miskin Young | AR23: XX | AS23: Ravenn Cook | BA23: 11A | BC23: =CONCATENATE(LEFT(BA$3,3),$B23,LEFT(BC$6,1)) -> 11B
B24: 25 | C24: 1.15 | D24: 800m | G24: C | H24: Quincy Roberts | L24: O | M24: MATILDA SUMMERVILLE-COTTON | N24: OO | O24: ANNIE BECKWITH | Q24: I | R24: Sky-Lily Kay | S24: II | T24: Natalie Short | AF24: F | AG24: Sian Lewis | AH24: FF | AI24: Sophie Perry | AK24: G | AL24: Maddie Hammond | AM24: GG | AN24: Milly Fidkin | AP24: X | AQ24: Maya Stokes | AR24: XX | AS24: Indie King | BA24: 25A | BC24: =CONCATENATE(LEFT(BA$3,3),$B24,LEFT(BC$6,1)) -> 25B
B25: 31 | C25: 1.4 | D25: High Jump | G25: C | H25: Grace Dockray | I25: CC | J25: A String only | L25: O | M25: SOPHIE BEATY | N25: OO | O25: A String only | Q25: I | R25: Harriet Drake-Lee | S25: II | T25: A String only | AI25: A String Only | AK25: G | AL25: Elsa Buchanan | AS25: A String only | BA25: 31A | BC25: A String only
B26: 35 | C26: 2.1 | D26: 100m | G26: C | H26: Henna Khaliq | L26: O | M26: SOPHIE BEATY | N26: OO | O26: EMMA WILLIAMS | Q26: I | R26: Berny Kwei-tagoe | S26: II | T26: Ellen Smith | V26: U | W26: Izzy Mullett | AA26: B | AB26: Niamh Darby | AC26: BB | AD26: Jessica Granger | AF26: F | AG26: Niamh Kilgallen | AH26: FF | AI26: Sian Lewis | AK26: G | AL26: Freya Liddington | AM26: GG | AN26: Isobel Millington | AP26: X | AQ26: Katie Parker | AR26: XX | AS26: Flora Miskin Young | BA26: 35A | BC26: =CONCATENATE(LEFT(BA$3,3),$B26,LEFT(BC$6,1)) -> 35B
B27: 38 | C27: 1.5 | D27: Discus Match 1 & 3 | G27: C | H27: Kate Mellors | I27: CC | J27: Tally Scoltock | L27: O | M27: TRINITY COOMBS | Q27: I | R27: Millie Toseland | S27: II | T27: Matilda Braithwaite | AF27: F | AG27: Charlotte Perry | AH27: FF | AI27: Lauren Bowman | AK27: G | AL27: Thea Criddle | AM27: GG | AN27: Isobel Millington | AP27: X | AQ27: Maya Stokes | AR27: XX | AS27: Grace Alvey | BA27: 38A | BC27: 38B
B28: 56 | C28: =IF($B28>0,VLOOKUP($B28,EventsOrder,2,FALSE)," ") -> 2.5 | D28: =IF($B28>0,VLOOKUP($B28,EventsOrder,6,FALSE)," ") -> Long Jump Pit 1 | G28: C | H28: Quincy Roberts | I28: CC | J28: Tally Scoltock | L28: O | M28: SOPHIE BEATY | N28: OO | O28: EMMA WILLIAMS | Q28: I | R28: Blainne Conway | S28: II | T28: Millie Webb | AA28: B | AB28: Molly Hall | AC28: BB | AD28: Jessica Granger | AF28: F | AG28: Sian Lewis | AH28: FF | AI28: Sophie Perry | AK28: G | AL28: Freya Liddington | AM28: GG | AN28: Zoe Trevis | AP28: X | AQ28: Flora Miskin-Young | AR28: XX | AS28: Sophie Thorpe | BA28: 56A | BC28: 56B
B29: 63 | C29: 3.35 | D29: 200m | G29: C | H29: Henna Khaliq | L29: O | M29: MATILDA SUMMERVILLE-COTTON | N29: OO | O29: EMMA WILLIAMS | Q29: I | R29: Ellen Smith | S29: II | T29: Millie Webb | V29: U | W29: Izzy Mullett | AA29: B | AB29: Niamh Darby | AC29: BB | AD29: Molly Hall | AF29: F | AG29: Niamh Kilgallen | AH29: FF | AI29: Lauren Bowman | AK29: G | AL29: Maddie Hammond | AM29: GG | AN29: Zoe Trevis | AP29: X | AQ29: Sophie Thorpe | AR29: XX | AS29: Ravenn Cook | BA29: 63A | BC29: 63B
B30: 65 | C30: 3.3 | D30: Shot | G30: C | H30: Kate Mellors | I30: CC | J30: Tally Scoltock | Q30: I | R30: Harriet Drake-Lee | S30: II | T30: Millie Toseland | AF30: F | AG30: Sophie Perry | AH30: FF | AI30: Lauren Bowman | AK30: G | AL30: Thea Criddle | AM30: GG | AN30: Freya Liddington | AP30: X | AQ30: Grace Alvey | AR30: XX | AS30: Rachel Nealon | BA30: 65A | BC30: 65B
B31: 79 | C31: 4.2 | D31: Javelin Match 2 | H31: NA | J31: NA | M31: XX | AQ31: Maya Stokes ? | AS31: Katie Parker | BA31: 79A | BC31: 79B
B32: 82 | C32: 4.55 | D32: 4 x 100m | G32: C | H32: =H$3 -> Brom & Redditch | L32: O | M32: =M$3 -> Corby | Q32: I | R32: =R$3 -> Kettering | V32: U | W32: =W$3 -> Kidder & Stourport | AA32: B | AB32: =AB$3 -> Dudley & S'bridge | AF32: F | AG32: =AG$3 -> Tamworth | AK32: G | AL32: =AL$3 -> Royal Sutton | AP32: X | AQ32: =AQ$3 -> Wreake Runners | AV32: =AV$3 -> 0 | BA32: =BA$3 -> 0
B33: =B32&"R" -> 82R | G33: 1 | H33: Katie Mellors | I33: 2 | J33: Tally Scoltock | L33: 1 | M33: TRINITY COOMBS | N33: 2 | Q33: 1 | R33: Berny Kwei-Tagoe | S33: 2 | T33: Ellen Smith | V33: 1 | X33: 2 | AA33: 1 | AC33: 2 | AF33: 1 | AG33: Charlotte Perry | AH33: 2 | AI33: Lauren Bowman | AK33: 1 | AL33: Freya Liddington | AM33: 2 | AN33: Milly Fidkin | AP33: 1 | AQ33: Poppy Tott - Buswell | AR33: 2 | AS33: Katie Parker | AU33: 1 | AW33: 2 | AZ33: 1 | BA33: =CONCATENATE(LEFT(BA$3,3),$B33,LEFT(BA$6,1)) -> 82RA | BB33: 2 | BC33: =CONCATENATE(LEFT(BC$3,3),$B33,LEFT(BC$6,1)) -> 82RB
B34: =B32&"S" -> 82S | G34: 3 | H34: Quincy Roberts | I34: 4 | J34: Henna Khaliq | L34: 3 | M34: SOPHIE BEATY | N34: 4 | O34: MATILDA SUMMERVILLE COTTON | Q34: 3 | R34: Millie Webb | S34: 4 | T34: Matilda Braithwaite | V34: 3 | X34: 4 | AA34: 3 | AC34: 4 | AF34: 3 | AG34: Niamh Kilgallen | AH34: 4 | AI34: Sophie Perry | AK34: 3 | AL34: Zoe Trevis | AM34: 4 | AN34: Isobel Millington | AP34: 3 | AQ34: Flora Miskin Young | AR34: 4 | AS34: Maya Stokes | AU34: 3 | AW34: 4 | AZ34: 3 | BA34: 82SA | BB34: 4 | BC34: 82SB
B37: Event | C37: Time | D37: Events | G37: No | H37: A String | I37: No | J37: B String | L37: No | M37: A String | N37: No | O37: B String | Q37: No | R37: A String | S37: No | T37: B String | V37: No | W37: A String | X37: No | Y37: B String | AA37: No | AB37: A String | AC37: No | AD37: B String | AF37: No | AG37: A String | AH37: No | AI37: B String | AK37: No | AL37: A String | AM37: No | AN37: B String | AP37: No | AQ37: A String | AR37: No | AS37: B String | AU37: No | AV37: A String | AW37: No | AX37: B String | AZ37: No | BA37: A String | BB37: No | BC37: B String
D38: Under 15 Female
B39: 4 | C39: =IF($B39>0,VLOOKUP($B39,EventsOrder,2,FALSE)," ") -> 11.55 | D39: =IF($B39>0,VLOOKUP($B39,EventsOrder,6,FALSE)," ") -> 1500m | G39: C | H39: Ellen Bowen | I39: CC | J39: Amy Mijovic-Cauldwell | L39: O | M39: ELOISE COOMBS | N39: OO | O39: SELINA SCOTT | Q39: I | R39: Danielle McGann Gaskell | AA39: B | AB39: Grace Slater | AF39: F | AG39: Charlotte Bush | AH39: FF | AI39: Katie Stretton | AK39: G | AL39: Caitlin O'Connor | AM39: GG | AP39: X | AQ39: Hollie Gamble | AR39: XX | AS39: Rosie Timlock | BA39: =CONCATENATE(LEFT(BA$3,3),$B39,LEFT(BA$6,1)) -> 4A | BC39: =CONCATENATE(LEFT(BA$3,3),$B39,LEFT(BC$6,1)) -> 4B
B40: 9 | C40: 12.15 | D40: Discus Match 1 & 3 | G40: C | H40: Chole Dockray | I40: CC | J40: Orla Lewis | L40: O | M40: CHLOE SHARMAN | N40: OO | O40: LAUREN MCMULLEN | Q40: I | R40: Olivia Knibb | V40: U | W40: Georgia Lees | AF40: F | AK40: G | AL40: Maddy Underwood | AM40: GG | AN40: Madeleine Shay | AP40: X | AQ40: Rosie Timlock | AR40: XX | AS40: Scarlet Paget Wright | BA40: 9A | BC40: =CONCATENATE(LEFT(BA$3,3),$B40,LEFT(BC$6,1)) -> 9B
B41: 13 | C41: 12.3 | D41: 75m hurdles | Q41: I | R41: Maurella Forbes | V41: U | W41: Monica Aresu | X41: UU | Y41: Yasmin Berrows | AA41: B | AB41: Jessica Crook | AF41: F | AG41: Emily Findlater | AK41: G | AL41: Caiitlin O'Connor | AP41: X | AQ41: Josie Orange | AR41: XX | BA41: 13A | BC41: =CONCATENATE(LEFT(BA$3,3),$B41,LEFT(BC$6,1)) -> 13B
B42: 17 | C42: 12.55 | D42: High Jump | G42: C | H42: Eva James | I42: CC | J42: A String only | L42: O | M42: ALICE MERRIMAN | N42: OO | O42: A String only | Q42: I | R42: Maurella Forbes | S42: II | T42: A String only | V42: U | W42: Rosie Meacham | X42: UU | Y42: A string only | AA42: B | AB42: Emma Sherwood | AF42: F | AG42: Katie Stretton | AH42: FF | AI42: A String Only | AK42: G | AL42: Evie Gough | AS42: A String only | BA42: 17A | BC42: A String only
B43: 21 | C43: 1 | D43: Long Jump Pit 2 | G43: C | H43: Orla Lewis | I43: CC | J43: Robyn Yeomans | L43: O | M43: GEORGIA MILLS | N43: OO | O43: LAURA DEW | Q43: I | R43: Alex Beale | S43: II | T43: Poppy Jones | V43: U | W43: Jessica Surridge | X43: UU | Y43: Rosie Meacham | AA43: B | AB43: Jessica Crook | AC43: BB | AD43: Grace Slater | AF43: F | AG43: Eve Clawley | AH43: FF | AI43: Lauren Swindell | AK43: G | AL43: Maddy Underwood | AM43: GG | AN43: Beth Darrock | AP43: X | AQ43: Scarlett Pagett-Wright | AR43: XX | AS43: Emily Mctaggart | BA43: 21A | BC43: =CONCATENATE(LEFT(BA$3,3),$B43,LEFT(BC$6,1)) -> 21B
B44: 26 | C44: 1.25 | D44: 800m | G44: C | H44: Alice Battey | I44: CC | J44: Anna Nicod | L44: O | M44: DONNA HERON | N44: OO | O44: LAURA DEW | Q44: I | R44: Harriet Jolley | S44: II | T44: Olivia Knibb | V44: U | W44: Georgia Lees | AA44: B | AB44: Erin Owen | AF44: F | AG44: Eve Clawley | AH44: FF | AI44: Lauren Swindell | AK44: G | AL44: Mel Adkins | AP44: X | AQ44: Scarlet Paget Wright | BA44: 26A | BC44: 26B
B45: 36 | C45: 2.15 | D45: 100m | G45: C | H45: Robyn Yeomans | I45: CC | J45: Eva James | L45: O | M45: GEORGIA MILLS | N45: OO | O45: ALICE MERRIMAN | Q45: I | R45: Erin Healy | S45: II | T45: Millie Eve | V45: U | W45: Monica Aresu | X45: UU | Y45: Yasmin Berrows | AA45: B | AB45: Zara Milward | AC45: BB | AD45: Jessica Crook | AF45: F | AG45: Lauren Swindell | AK45: G | AL45: Chelsea Parkes | AM45: GG | AN45: Beth Darrock | AP45: X | AQ45: Megan Luxford | AR45: XX | AS45: Josie Orange | BA45: 36A | BC45: 36B
B46: 50 | C46: =IF($B46>0,VLOOKUP($B46,EventsOrder,2,FALSE)," ") -> 2.4 | D46: =IF($B46>0,VLOOKUP($B46,EventsOrder,6,FALSE)," ") -> 300m | G46: C | H46: Ellen Bowen | I46: CC | J46: Amy Mijovic-Cauldwell | L46: O | M46: ELOISE COOMBS | N46: OO | O46: LAUREN MCMULLEN | Q46: I | R46: Emily Williams | S46: II | T46: Olivia Knibb | V46: U | W46: Jessica Surridge | X46: UU | Y46: Georgia Lees | AA46: B | AB46: Emma Sherwood | AC46: BB | AD46: Zara Milward | AF46: F | AG46: Emily Findlater | AH46: FF | AI46: Eve Clawley | AK46: G | AL46: Mel Adkins | AM46: GG | AN46: Evie Gough | AP46: X | AQ46: Emily McTaggart | AR46: XX | AS46: Hollie Gamble | BA46: 50A | BC46: 50B
B47: 54 | C47: 2.4 | D47: Javelin Match 2 | H47: NA | J47: NA | M47: XX | O47: XX | AQ47: Rosie Weselby | BA47: 54A | BC47: 54B
B48: 68 | C48: 3.4 | D48: 200m | G48: C | H48: Orla Lewis | I48: CC | J48: Robyn Yeomans | L48: O | M48: DONNA HERON | N48: OO | O48: ALICE MERRIMAN | Q48: I | R48: Maurella Forbes | S48: II | T48: Alex Beale | V48: U | W48: Monica Aresu | X48: UU | Y48: Rosie Meacham | AA48: B | AB48: Lauren Milward | AC48: BB | AD48: Isobel Fisher | AF48: F | AG48: Emily Findlater | AH48: FF | AI48: Katie Stretton | AK48: G | AL48: Madeleine Shay | AM48: GG | AN48: Elley Criddle | AP48: X | AQ48: Josie Orange | AR48: XX | AS48: Megan Luxford | BA48: 68A | BC48: 68B
B49: 77 | C49: 4.2 | D49: Shot | G49: C | H49: Amy Mijovic-Cauldwell | I49: CC | J49: Martha Cllifford | L49: O | M49: CHLOE SHARMAN | N49: OO | O49: LAUREN MCMULLEN | Q49: I | R49: Alex Beale | V49: U | W49: Jessica Surridge | X49: UU | Y49: Yasmin Berrows | AA49: B | AB49: Grace Slater | AC49: BB | AF49: F | AK49: G | AL49: Elley Criddle | AM49: GG | AN49: Beth Darrock | AP49: X | AQ49: Megan Luxford | BA49: 77A | BC49: 77B
B50: 83 | C50: 5 | D50: 4 x 100m | G50: C | H50: =H$3 -> Brom & Redditch | L50: O | M50: =M$3 -> Corby | Q50: I | R50: =R$3 -> Kettering | V50: U | W50: =W$3 -> Kidder & Stourport | AA50: B | AB50: =AB$3 -> Dudley & S'bridge | AF50: F | AG50: =AG$3 -> Tamworth | AK50: G | AL50: =AL$3 -> Royal Sutton | AP50: X | AQ50: =AQ$3 -> Wreake Runners | AV50: =AV$3 -> 0 | BA50: =BA$3 -> 0
B51: =B50&"R" -> 83R | G51: 1 | H51: Eva James | I51: 2 | J51: Robyn Yeomans | L51: 1 | M51: DONNA HERON | N51: 2 | O51: ALICE MERRIMAN | Q51: 1 | R51: Alex Beale | S51: 2 | T51: Erin Healy | V51: 1 | W51: Monica Aresu | X51: 2 | Y51: Jessica Surridge | AA51: 1 | AB51: Jessica Crooke | AC51: 2 | AD51: Emma Sherwood | AF51: 1 | AG51: Eve Clawley | AH51: 2 | AI51: Katie Stretton | AK51: 1 | AL51: Elley Criddle | AM51: 2 | AN51: Maddy Underwood | AP51: 1 | AQ51: Megan Luxford | AR51: 2 | AS51: Scarlett Pagett-Wright | AU51: 1 | AW51: 2 | AZ51: 1 | BA51: =CONCATENATE(LEFT(BA$3,3),$B51,LEFT(BA$6,1)) -> 83RA | BB51: 2 | BC51: =CONCATENATE(LEFT(BC$3,3),$B51,LEFT(BC$6,1)) -> 83RB
B52: =B50&"S" -> 83S | G52: 3 | H52: Alice Battey | I52: 4 | J52: Orla Lewis | L52: 3 | M52: GEORGIA MILLS | N52: 4 | O52: LAUREN MCMULLEN | Q52: 3 | R52: Millie Eve | S52: 4 | T52: Emily Williams | V52: 3 | W52: Rosie Meacham | X52: 4 | Y52: Yasmin Berrows | AA52: 3 | AB52: Lauren Milward | AC52: 4 | AD52: Zara Milward | AF52: 3 | AG52: Emily Findlater | AH52: 4 | AI52: Lauren Swindell | AK52: 3 | AL52: Evie Gough | AM52: 4 | AN52: Chelsea Parkes | AP52: 3 | AQ52: Josie Orange | AR52: 4 | AS52: Emiliy McTaggart | AU52: 3 | AW52: 4 | AZ52: 3 | BA52: 83SA | BB52: 4 | BC52: 83SB
B55: Event | C55: Time | D55: Events | G55: No | H55: A String | I55: No | J55: B String | L55: No | M55: A String | N55: No | O55: B String | Q55: No | R55: A String | S55: No | T55: B String | V55: No | W55: A String | X55: No | Y55: B String | AA55: No | AB55: A String | AC55: No | AD55: B String | AF55: No | AG55: A String | AH55: No | AI55: B String | AK55: No | AL55: A String | AM55: No | AN55: B String | AP55: No | AQ55: A String | AR55: No | AS55: B String | AU55: No | AV55: A String | AW55: No | AX55: B String | AZ55: No | BA55: A String | BB55: No | BC55: B String
D56: U17 Female / Women
B57: 7 | C57: =IF($B57>0,VLOOKUP($B57,EventsOrder,2,FALSE)," ") -> 12.05 | D57: =IF($B57>0,VLOOKUP($B57,EventsOrder,6,FALSE)," ") -> 1500m | L57: O | M57: ELLIE MAY HATAHAWAY | Q57: I | R57: Hannah Winstone | S57: II | T57: Sophie Moss | AP57: X | AQ57: Fern Harrison | AS57: Jess Hazel | BA57: =CONCATENATE(LEFT(BA$3,3),$B57,LEFT(BA$6,1)) -> 7A | BC57: =CONCATENATE(LEFT(BA$3,3),$B57,LEFT(BC$6,1)) -> 7B
B58: 10 | C58: 12.15 | D58: Javelin Match 2 | H58: NA | J58: NA | BA58: 10A | BC58: 10B
B59: 19 | C59: 1 | D59: 80m hurdles (U17) | BA59: 19A | BC59: 19B
B60: 28 | C60: 1.4 | D60: 800m | G60: C | H60: Megan Nicod | I60: CC | J60: Charlotte Knight | L60: O | M60: AMY SAVILLE | Q60: I | R60: Claudia Nevett | S60: II | T60: Chloe Hearne | AA60: B | AB60: Daisy Slater | AK60: G | AL60: Lucy Wood | AM60: GG | AN60: Rebecca Evans | AP60: X | AQ60: Fern Harrison | AR60: XX | AS60: Michaela Knight | BA60: 28A | BC60: 28B
B61: 37 | C61: 1.5 | D61: Shot | G61: C | H61: Lauren Powell | I61: CC | J61: Yasmine Al-daftari (Vet) | Q61: I | R61: Sophie Moss | S61: II | T61: Freya Marlow | V61: U | W61: Francais Milburn | X61: UU | Y61: Sarah Stuart-Smith | AA61: B | AB61: Danielle Kinsell | AK61: G | AL61: Chrissie Prince | AM61: GG | AN61: Anna Short | AP61: X | AQ61: Rosie Weselby | AR61: XX | AS61: Jess Hazel | BA61: 37A | BC61: 37B
B62: 40 | C62: 2.2 | D62: 100m | L62: O | M62: TANAYA MAYOH | Q62: I | R62: Sheena Britten | S62: II | T62: Esther Owewsa | AA62: B | AB62: Lauren Hemmings | AC62: BB | AD62: Annabel Mullinder | AK62: G | AL62: Anna Short | AM62: GG | AN62: Sophie Goodby | BA62: 40A | BC62: 40B
B63: 51 | C63: 2.45 | D63: 300m | G63: C | H63: Megan Nicod | L63: O | M63: ELLIE MAY HATAHAWAY | N63: OO | O63: AMY SAVILLE | Q63: I | R63: Ella Palmer | S63: II | T63: Chloe Hearne | V63: U | W63: Sarah Stuart-Smith | AK63: G | AL63: Jenny Hopkinson | AM63: GG | AN63: Rebecca Evans | AP63: X | AQ63: Michaela Knight | AR63: XX | AS63: Rosie Weselby | BA63: 51A | BC63: 51B
B64: 53 | C64: =IF($B64>0,VLOOKUP($B64,EventsOrder,2,FALSE)," ") -> 2.4 | D64: =IF($B64>0,VLOOKUP($B64,EventsOrder,6,FALSE)," ") -> Discus Match 1 & 3 | G64: C | H64: Lauren Powell | I64: CC | J64: Yasmine Al-daftari (Vet) | Q64: I | R64: Ella Palmer | S64: II | T64: Freya Marlow | V64: U | W64: Francais Milburn | AA64: B | AB64: Danielle Kinsell | AK64: G | AL64: Chrissie Prince | AM64: GG | AN64: Lucy Wood | AP64: X | AQ64: Michaela knight | BA64: 53A | BC64: 53B
B65: 60 | C65: 3.1 | D65: High Jump | G65: C | H65: Megan Nicod | I65: CC | J65: A String only | L65: O | M65: ELLIE MAY HATHAWAY | O65: A String only | Q65: I | R65: Freya Marlow | S65: II | T65: A String only | V65: U | W65: Sarah Stuart-Smith | Y65: A String only | AK65: G | AL65: Sophie Goodby | AS65: A String only | BA65: 60A | BC65: A String only
B66: 69 | C66: 3.45 | D66: 200m | G66: C | H66: Jessica Bennett | I66: CC | J66: Lauren Powell | L66: O | M66: TANAYAH MAYOH | Q66: I | R66: Sheena Britten | S66: II | T66: Niamh Ruffles | AA66: B | AB66: Lauren Hemmings | AC66: BB | AD66: Annabel Mullinder | AK66: G | AL66: Anna Short | AM66: GG | AN66: Regan Keating | AP66: X | AQ66: Jess Hazel | BA66: 69A | BC66: =CONCATENATE(LEFT(BA$3,3),$B66,LEFT(BC$6,1)) -> 69B
B67: 75 | C67: 4 | D67: Long Jump Pit1 | G67: C | H67: Yasmine Al-daftari (Vet) | I67: CC | J67: Yasmine Al-daftari (Vet) | L67: O | M67: TANAYAH MAYOH | N67: OO | O67: ELLIE MAY HATHAWAY | Q67: I | R67: Esther owewsa | S67: II | T67: Chloe Hearne | AA67: B | AB67: Annabel Mullinder | AK67: G | AL67: Sophie Goodby | AM67: GG | AN67: Regan Keating | BA67: 75A | BC67: =CONCATENATE(LEFT(BA$3,3),$B67,LEFT(BC$6,1)) -> 75B
B68: 84 | C68: 5.05 | D68: 4 x 100m | G68: C | H68: =H$3 -> Brom & Redditch | I68: CC | M68: =M$3 -> Corby | Q68: I | R68: =R$3 -> Kettering | W68: =W$3 -> Kidder & Stourport | AB68: =AB$3 -> Dudley & S'bridge | AG68: =AG$3 -> Tamworth | AK68: G | AL68: =AL$3 -> Royal Sutton | AP68: X | AQ68: =AQ$3 -> Wreake Runners | AV68: =AV$3 -> 0 | BA68: =BA$3 -> 0
B69: =B68&"R" -> 84R | G69: 1 | I69: 2 | L69: 1 | N69: 2 | Q69: 1 | R69: Ella Palmer | S69: 2 | T69: Niamh Ruffles | V69: 1 | X69: 2 | AA69: 1 | AC69: 2 | AF69: 1 | AH69: 2 | AK69: 1 | AL69: Sophie Goodby | AM69: 2 | AN69: Regan Keating | AP69: 1 | AQ69: Jess Hazel | AR69: 2 | AS69: Rosie Weselby | AU69: 1 | AW69: 2 | AZ69: 1 | BA69: =CONCATENATE(LEFT(BA$3,3),$B69,LEFT(BA$6,1)) -> 84RA | BB69: 2 | BC69: =CONCATENATE(LEFT(BC$3,3),$B69,LEFT(BC$6,1)) -> 84RB
B70: =B68&"S" -> 84S | G70: 3 | I70: 4 | L70: 3 | N70: 4 | Q70: 3 | R70: Esther Owewsa | S70: 4 | T70: Rebecca Hughes | V70: 3 | X70: 4 | AA70: 3 | AC70: 4 | AF70: 3 | AH70: 4 | AK70: 3 | AL70: Anna Short | AM70: 4 | AN70: Jenny Hopkinson | AP70: 3 | AQ70: Fern Harrison | AR70: 4 | AS70: Michaela Knight | AU70: 3 | AW70: 4 | AZ70: 3 | BA70: 84SA | BB70: 4 | BC70: 84SB
C75: Guests - Non-Scoring
B77: Event | C77: Time | D77: Events | G77: No | H77: A String | L77: No | M77: A String | Q77: No | R77: A String | V77: No | W77: A String | AA77: No | AB77: A String | AF77: No | AG77: A String | AK77: No | AL77: A String | AP77: No | AQ77: A String | AU77: No | AV77: A String | AZ77: No | BA77: A String
D79: Female
B80: 88 | C80: =IF($B80>0,VLOOKUP($B80,EventsOrder,2,FALSE)," ") -> 11.45 | D80: =IF($B80>0,VLOOKUP($B80,EventsOrder,6,FALSE)," ") -> 1500m U13 Female | AQ80: Grace Alvey | AZ80: =$B80 -> 88 | BA80: =CONCATENATE(LEFT(BA$3,3),$B80,LEFT(BA$6,1)) -> 88A
B81: 89 | C81: 11.55 | D81: 1500m U15 Female | G81: 661 | H81: Ellie Moss | AZ81: 89 | BA81: 89A
B82: 90 | C82: 12.05 | D82: 1500m U17 F/Women | AQ82: Rosie Wesleby | AZ82: 90 | BA82: 90A
B83: 94 | C83: 1.15 | D83: 800m U13 Female | Q83: 99 | R83: Blainne Conway | AQ83: Sophie Thorpe | AZ83: 94 | BA83: =CONCATENATE(LEFT(BA$3,3),$B83,LEFT(BA$6,1)) -> 94A
B84: 95 | C84: 1.25 | D84: 800m U15 Female | G84: 662 | H84: Martha Clifford | AZ84: 95 | BA84: 95A
B85: 96 | C85: 1.4 | D85: 800m U17 F/Women | AZ85: 96 | BA85: 96A
B88: =COLUMN(B1) -> 2 | C88: 3 | D88: 4 | E88: 5 | F88: 6 | G88: 7 | H88: 8 | I88: 9 | J88: 10 | K88: 11 | L88: 12 | M88: 13 | N88: 14 | O88: 15 | P88: 16 | Q88: 17 | R88: 18 | S88: 19 | T88: 20 | U88: 21 | V88: 22 | W88: 23 | X88: 24 | Y88: 25 | Z88: 26 | AA88: 27 | AB88: 28 | AC88: 29 | AD88: 30 | AE88: 31 | AF88: 32 | AG88: 33 | AH88: 34 | AI88: 35 | AJ88: 36 | AK88: 37 | AL88: 38 | AM88: 39 | AN88: 40 | AO88: 41 | AP88: 42 | AQ88: 43 | AR88: 44 | AS88: 45

Sheet Results Entry
B2: Event | D2: Age | AD2: ='Event Details'!C32 -> 8 | AE2: =AD2-1 -> 7 | AF2: 6 | AG2: 5 | AH2: 4 | AI2: 3 | AJ2: 2 | AK2: 1 | AT2: =BC29&BC29 -> CC | AU2: OO | AV2: II | AW2: UU | AX2: BB | AY2: FF | AZ2: GG | BA2: XX
B3: No | C3: Time | D3: Group | E3: Event | H3: NS | I3: M/F
B4: 50 | C4: =VLOOKUP($B$4,EventsOrder,2,FALSE) -> 2.4 | D4: =VLOOKUP($B$4,EventsOrder,4,FALSE) -> U15 Female | E4: =VLOOKUP($B$4,EventsOrder,3,FALSE) -> 300m | H4: =VLOOKUP($B$4,EventsOrder,5,FALSE) ->  | I4: =IF(MID(D4,5,1)="F","F","M") -> F | Q4: Results Entry | T4: ="Enter single or double letter for Club Letter i.e. as "&A10&" or "&A10&A10 -> Enter single or double letter for Club Letter i.e. as C or CC
T5: Enter Club Letter for both SCORING and NON SCORING results.
D6: Names from Club Teamsheet | T6: Enter Time as "2.10.5" for mins or "12.55" for mtrs
R7: Event A | Y7: Event B
A8: Club | B8: Club | E8: U11 | F8: Event A | J8: U11 | K8: Event B | P8: Club | Q8: Time/ | R8: U11 | S8: Name | W8: Club | X8: Time/ | Y8: U11 | Z8: Name
A9: Letter | E9: No. | F9: Name | J9: No. | K9: Name | P9: Letter | Q9: Dist | R9: No. | W9: Letter | X9: Dist | Y9: No.
A10: ='Event Details'!$C22 -> C | B10: ='Event Details'!$D22 -> Brom & Redditch | E10: =VLOOKUP($B$4,IF($I$4="F",TeamSheetFemale,TeamSheetMale),AD10-1,FALSE) -> C | F10: =VLOOKUP($B$4,IF($I$4="F",TeamSheetFemale,TeamSheetMale),AD10,FALSE) -> Ellen Bowen | J10: =VLOOKUP($B$4,IF($I$4="F",TeamSheetFemale,TeamSheetMale),AD10+1,FALSE) -> CC | K10: =VLOOKUP($B$4,IF($I$4="F",TeamSheetFemale,TeamSheetMale),AD10+2,FALSE) -> Amy Mijovic-Cauldwell | O10: 1st | P10: B | Q10: 43.2 | R10: =IF(LEN($P10)=1,VLOOKUP(LEFT($P10,1),Result2,5,FALSE),IF(LEN($P10)=2,VLOOKUP(LEFT($P10,1),Result2,10,FALSE),"")) -> B | S10: =IF(LEN($P10)=1,VLOOKUP(LEFT($P10,1),Result2,6,FALSE),IF(LEN($P10)=2,VLOOKUP(LEFT($P10,1),Result2,11,FALSE),"")) -> Emma Sherwood | V10: 1st | W10: BB | X10: 43.7 | Z10: =IF(LEN(W10)=1,VLOOKUP(LEFT(W10,1),Result2,6,FALSE),IF(LEN(W10)=2,VLOOKUP(LEFT(W10,1),Result2,11,FALSE),"")) -> Zara Milward | AC10: =AD10-1 -> 6 | AD10: 7 | AE10: =AD10+1 -> 8 | AF10: =AE10+1 -> 9
A11: ='Event Details'!$C23 -> O | B11: ='Event Details'!$D23 -> Corby | E11: O | F11: ELOISE COOMBS | J11: OO | K11: LAUREN MCMULLEN | O11: 2nd | P11: I | Q11: 44.5 | R11: =IF(LEN($P11)=1,VLOOKUP(LEFT($P11,1),Result2,5,FALSE),IF(LEN($P11)=2,VLOOKUP(LEFT($P11,1),Result2,10,FALSE),"")) -> I | S11: =IF(LEN(P11)=1,VLOOKUP(LEFT(P11,1),Result2,6,FALSE),IF(LEN(P11)=2,VLOOKUP(LEFT(P11,1),Result2,11,FALSE),"")) -> Emily Williams | V11: 2nd | W11: UU | X11: 45.5 | Z11: Georgia Lees | AC11: =AD11-1 -> 11 | AD11: 12 | AE11: =AD11+1 -> 13 | AF11: 14
A12: ='Event Details'!$C24 -> I | B12: ='Event Details'!$D24 -> Kettering | E12: I | F12: Emily Williams | J12: II | K12: Olivia Knibb | O12: 3rd | P12: F | Q12: 45.1 | R12: F | S12: Emily Findlater | V12: 3rd | W12: FF | X12: 46 | Z12: Eve Clawley | AC12: 16 | AD12: 17 | AE12: 18 | AF12: 19
A13: ='Event Details'!$C25 -> U | B13: ='Event Details'!$D25 -> Kidder & Stourport | E13: U | F13: Jessica Surridge | J13: UU | K13: Georgia Lees | O13: 4th | P13: X | Q13: 45.8 | R13: X | S13: Emily McTaggart | V13: 4th | W13: OO | X13: 49.4 | Z13: LAUREN MCMULLEN | AC13: 21 | AD13: 22 | AE13: 23 | AF13: 24
A14: ='Event Details'!$C26 -> B | B14: ='Event Details'!$D26 -> Dudley & S'bridge | E14: B | F14: Emma Sherwood | J14: BB | K14: Zara Milward | O14: 5th | P14: O | Q14: 47.2 | R14: O | S14: ELOISE COOMBS | V14: 5th | W14: XX | X14: 49.8 | Z14: Hollie Gamble | AC14: 26 | AD14: 27 | AE14: 28 | AF14: 29
A15: ='Event Details'!$C27 -> F | B15: ='Event Details'!$D27 -> Tamworth | E15: F | F15: Emily Findlater | J15: FF | K15: Eve Clawley | O15: 6th | P15: G | Q15: 47.7 | R15: G | S15: Mel Adkins | V15: 6th | W15: CC | X15: 50.4 | Z15: Amy Mijovic-Cauldwell | AC15: 31 | AD15: 32 | AE15: 33 | AF15: 34
A16: ='Event Details'!$C28 -> G | B16: ='Event Details'!$D28 -> Royal Sutton | E16: G | F16: Mel Adkins | J16: GG | K16: Evie Gough | O16: 7th | P16: U | Q16: 49.3 | R16: U | S16: Jessica Surridge | V16: 7th | W16: II | X16: 51.7 | Y16: =IF(LEN($W16)=1,VLOOKUP(LEFT($W16,1),Result2,5,FALSE),IF(LEN($W16)=2,VLOOKUP(LEFT($W16,1),Result2,10,FALSE),"")) -> II | Z16: Olivia Knibb | AC16: 36 | AD16: 37 | AE16: 38 | AF16: 39
A17: ='Event Details'!$C29 -> X | B17: ='Event Details'!$D29 -> Wreake Runners | E17: X | F17: Emily McTaggart | J17: XX | K17: Hollie Gamble | O17: 8th | P17: C | Q17: 49.9 | R17: C | S17: Ellen Bowen | V17: 8th | W17: GG | X17: 52 | Y17: GG | Z17: Evie Gough | AC17: 41 | AD17: 42 | AE17: 43 | AF17: 44
AM25: Points | AU25: Time / Distance | BC25: Position | BK25: Placing | CE25: Col No. in Team Names
K26: ='Event Details'!D5 -> Heart of England League | O26: Results | AM26: ='Event Details'!$D22 -> Brom & Redditch | AN26: ='Event Details'!$D23 -> Corby | AO26: ='Event Details'!$D24 -> Kettering | AP26: ='Event Details'!$D25 -> Kidder & Stourport | AQ26: ='Event Details'!$D26 -> Dudley & S'bridge | AR26: ='Event Details'!$D27 -> Tamworth | AS26: ='Event Details'!$D28 -> Royal Sutton | AT26: ='Event Details'!$D29 -> Wreake Runners | AU26: ='Event Details'!$D22 -> Brom & Redditch | AV26: ='Event Details'!$D23 -> Corby | AW26: ='Event Details'!$D24 -> Kettering | AX26: ='Event Details'!$D25 -> Kidder & Stourport | AY26: ='Event Details'!$D26 -> Dudley & S'bridge | AZ26: ='Event Details'!$D27 -> Tamworth | BA26: ='Event Details'!$D28 -> Royal Sutton | BB26: ='Event Details'!$D29 -> Wreake Runners | BC26: ='Event Details'!$D22 -> Brom & Redditch | BD26: ='Event Details'!$D23 -> Corby | BE26: ='Event Details'!$D24 -> Kettering | BF26: ='Event Details'!$D25 -> Kidder & Stourport | BG26: ='Event Details'!$D26 -> Dudley & S'bridge | BH26: ='Event Details'!$D27 -> Tamworth | BI26: ='Event Details'!$D28 -> Royal Sutton | BJ26: ='Event Details'!$D29 -> Wreake Runners | CC26: =BC29 -> C | CD26: O | CE26: I | CF26: U | CG26: B | CH26: F | CI26: G | CJ26: X
D27: Division | E27: ='Event Details'!D9 -> 2 | I27: Venue | K27: ='Event Details'!F17 -> Corby | Q27: Date | R27: ='Event Details'!B17 -> 7th June 2015 | BK27: 1St | BL27: 2nd | BM27: 3rd | BN27: 4th | BO27: 5th | BP27: 6th | BQ27: 7th | BR27: 8th | CC27: 7 | CD27: 12 | CE27: 17 | CF27: 22 | CG27: 27 | CH27: 32 | CI27: 37 | CJ27: 42
B28: Event | G28: Club Letter | O28: Time / Distance | W28: U11 No's | AE28: Competitor's Name
B29: No | C29: Time | D29: Event | G29: 1st | H29: 2nd | I29: 3rd | J29: 4th | K29: 5th | L29: 6th | M29: 7th | N29: 8th | O29: 1st | P29: 2nd | Q29: 3rd | R29: 4th | S29: 5th | T29: 6th | U29: 7th | V29: 8th | W29: 1st | X29: 2nd | Y29: 3rd | Z29: 4th | AA29: 5th | AB29: 6th | AC29: 7th | AD29: 8th | AE29: 1st | AF29: 2nd | AG29: 3rd | AH29: 4th | AI29: 5th | AJ29: 6th | AK29: 7th | AL29: 8th | AM29: ='Event Details'!$C22 -> C | AN29: ='Event Details'!$C23 -> O | AO29: ='Event Details'!$C24 -> I | AP29: ='Event Details'!$C25 -> U | AQ29: ='Event Details'!$C26 -> B | AR29: ='Event Details'!$C27 -> F | AS29: ='Event Details'!$C28 -> G | AT29: ='Event Details'!$C29 -> X | AU29: ='Event Details'!$C22 -> C | AV29: ='Event Details'!$C23 -> O | AW29: ='Event Details'!$C24 -> I | AX29: ='Event Details'!$C25 -> U | AY29: ='Event Details'!$C26 -> B | AZ29: ='Event Details'!$C27 -> F | BA29: ='Event Details'!$C28 -> G | BB29: ='Event Details'!$C29 -> X | BC29: ='Event Details'!$C22 -> C | BD29: ='Event Details'!$C23 -> O | BE29: ='Event Details'!$C24 -> I | BF29: ='Event Details'!$C25 -> U | BG29: ='Event Details'!$C26 -> B | BH29: ='Event Details'!$C27 -> F | BI29: ='Event Details'!$C28 -> G | BJ29: ='Event Details'!$C29 -> X | BK29: ='Event Details'!C32 -> 8 | BL29: =BK29-1 -> 7 | BM29: 6 | BN29: 5 | BO29: 4 | BP29: 3 | BQ29: 2 | BR29: 1 | BS29: 1 | BT29: =BS29+1 -> 2 | BU29: 3 | BV29: 4 | BW29: 5 | BX29: 6 | BY29: 7 | BZ29: 8 | CC29: 1 | CD29: =CC29+1 -> 2 | CE29: 3 | CF29: 4 | CG29: 5 | CH29: 6 | CI29: 7 | CJ29: 8
A30: =B30&"A" -> 1A | B30: 1 | C30: =VLOOKUP(B30,EventsOrder,2,FALSE) -> 11.45 | D30: =VLOOKUP(B30,EventsOrder,4,FALSE) -> U13 Female | E30: A | F30: =IF(MID(D30,5,1)="F","F","M") -> F | G30: X | H30: G | I30: F | J30: I | K30: U | L30: O | O30: 5.15.6 | P30: 5.36.0 | Q30: 5.55.0 | R30: 5.59.3 | S30: 6.04.8 | T30: 6.05.5 | W30: X | X30: G | Y30: F | Z30: I | AA30: U | AB30: O | AE30: =IF(LEN(G30)=0,"",VLOOKUP($B30,IF($F30="F",TeamSheetFemale,TeamSheetMale),CC30,FALSE)) -> Rachel Nealon | AF30: Elsa Buchanan | AG30: Charlotte Perry | AH30: Millie Toseland | AI30: Libby Hawkswell | AJ30: TRINITY COOMBS | AM30: =IF(OR($F30="NS",AU30="DNF"),0,IF(BC30>0,$BK$29+1-BC30,0)) -> 0 | AN30: =IF(OR($F30="NS",AV30="DNF"),0,IF(BD30>0,$BK$29+1-BD30,0)) -> 3 | AO30: =IF(OR($F30="NS",AW30="DNF"),0,IF(BE30>0,$BK$29+1-BE30,0)) -> 5 | AP30: =IF(OR($F30="NS",AX30="DNF"),0,IF(BF30>0,$BK$29+1-BF30,0)) -> 4 | AQ30: =IF(OR($F30="NS",AY30="DNF"),0,IF(BG30>0,$BK$29+1-BG30,0)) -> 0 | AR30: =IF(OR($F30="NS",AZ30="DNF"),0,IF(BH30>0,$BK$29+1-BH30,0)) -> 6 | AS30: =IF(OR($F30="NS",BA30="DNF"),0,IF(BI30>0,$BK$29+1-BI30,0)) -> 7 | AT30: =IF(OR($F30="NS",BB30="DNF"),0,IF(BJ30>0,$BK$29+1-BJ30,0)) -> 8 | AU30: =OFFSET($N30,0,BC30) -> 0 | AV30: 6.05.5 | AW30: 5.59.3 | AX30: 6.04.8 | AY30: 0 | AZ30: 5.55.0 | BA30: 5.36.0 | BB30: 5.15.6 | BC30: =IF(ISNA(MATCH(BC$29,$BS30:$BZ30,0)),0,MATCH(BC$29,$BS30:$BZ30,0)) -> 0 | BD30: 6 | BE30: 4 | BF30: 5 | BG30: 0 | BH30: 3 | BI30: 2 | BJ30: 1 | BK30: =IF(LEN(G30)>0,VLOOKUP(LEFT(G30,1),Clubs,5,FALSE),0) -> Wreake | BL30: =IF(LEN(H30)>0,VLOOKUP(LEFT(H30,1),Clubs,5,FALSE),0) -> Royal | BM30: Tam | BN30: Kett | BO30: K&S | BP30: Corby | BQ30: 0 | BR30: 0 | BS30: =LEFT(G30,1) -> X | BT30: G | BU30: F | BV30: I | BW30: U | BX30: O | CC30: =IF(LEN(G30)=0,"",HLOOKUP(BS30,$CC$26:$CJ$28,2,FALSE)+IF(LEN(G30)=2,2,0)) -> 42 | CD30: =IF(LEN(H30)=0,"",HLOOKUP(BT30,$CC$26:$CJ$28,2,FALSE)+IF(LEN(H30)=2,2,0)) -> 37 | CE30: 32 | CF30: 17 | CG30: 22 | CH30: 12
A31: =B30&"B" -> 1B | D31: =VLOOKUP(B30,EventsOrder,3,FALSE) -> 1500m | E31: B | G31: XX | H31: OO | I31: II | O31: 5.25.8 | P31: 5.40.1 | Q31: 5.50.2 | W31: XX | X31: OO | Y31: II | AE31: =IF(LEN(G31)=0,"",VLOOKUP($B30,IF($F30="F",TeamSheetFemale,TeamSheetMale),CC31,FALSE)) -> Katie Parker | AF31: IMOGEN DEE | AG31: Mia Brockway | AM31: =IF(OR($F31="NS",AU31="DNF"),0,IF(BC31>0,$BK$29+1-BC31,0)) -> 0 | AN31: 7 | AO31: 6 | AP31: 0 | AQ31: 0 | AR31: 0 | AS31: 0 | AT31: 8 | AU31: 0 | AV31: 5.40.1 | AW31: 5.50.2 | AX31: 0 | AY31: 0 | AZ31: 0 | BA31: 0 | BB31: 5.25.8 | BC31: 0 | BD31: 2 | BE31: 3 | BF31: 0 | BG31: 0 | BH31: 0 | BI31: 0 | BJ31: 1 | BK31: Wreake | BL31: Corby | BM31: Kett | BN31: 0 | BO31: 0 | BP31: 0 | BQ31: 0 | BR31: 0 | BS31: X | BT31: O | BU31: I | CC31: =IF(LEN(G31)=0,"",HLOOKUP(BS31,$CC$26:$CJ$28,2,FALSE)+IF(LEN(G31)=2,2,0)) -> 44 | CD31: 14 | CE31: 19
A32: =B32&"A" -> 2A | B32: 2 | C32: =VLOOKUP(B32,EventsOrder,2,FALSE) -> 11.45 | D32: =VLOOKUP(B32,EventsOrder,4,FALSE) -> U11 Male | E32: A | F32: =IF(MID(D32,5,1)="F","F","M") -> M | G32: I | H32: FF | I32: GG | J32: B | K32: X | O32: 35.74 | P32: 33.88 | Q32: 30.56 | R32: 25.45 | S32: 23.16 | W32: I | X32: FF | Y32: GG | Z32: B | AA32: X | AE32: =IF(LEN(G32)=0,"",VLOOKUP($B32,IF($F32="F",TeamSheetFemale,TeamSheetMale),CC32,FALSE)) -> Alfie Frayne | AF32: Kai Buckley | AG32: Jacob Thomas | AH32: John Sparry | AI32: Jack Hollidge | AM32: 0 | AN32: 0 | AO32: 8 | AP32: 0 | AQ32: 5 | AR32: 7 | AS32: 6 | AT32: 4 | AU32: 0 | AV32: 0 | AW32: 35.74 | AX32: 0 | AY32: 25.45 | AZ32: 33.88 | BA32: 30.56 | BB32: 23.16 | BC32: 0 | BD32: 0 | BE32: 1 | BF32: 0 | BG32: 4 | BH32: 2 | BI32: 3 | BJ32: 5 | BK32: Kett | BL32: Tam | BM32: Royal | BN32: DASH | BO32: Wreake | BP32: 0 | BQ32: 0 | BR32: 0 | BS32: I | BT32: F | BU32: G | BV32: B | BW32: X | CC32: 17 | CD32: =IF(LEN(H32)=0,"",HLOOKUP(BT32,$CC$26:$CJ$28,2,FALSE)+IF(LEN(H32)=2,2,0)) -> 34 | CE32: 39 | CF32: 27 | CG32: 42
A33: =B32&"B" -> 2B | D33: =VLOOKUP(B32,EventsOrder,3,FALSE) -> Howler | E33: B | G33: G | H33: BB | I33: XX | O33: 26.89 | P33: 21.5 | Q33: 21.09 | AE33: =IF(LEN(G33)=0,"",VLOOKUP($B32,IF($F32="F",TeamSheetFemale,TeamSheetMale),CC33,FALSE)) -> Tyrique Fagan | AF33: Alex Jhonson | AG33: Finley Venables | AM33: 0 | AN33: 0 | AO33: 0 | AP33: 0 | AQ33: 7 | AR33: 0 | AS33: 8 | AT33: 6 | AU33: 0 | AV33: 0 | AW33: 0 | AX33: 0 | AY33: 21.5 | AZ33: 0 | BA33: 26.89 | BB33: 21.09 | BC33: 0 | BD33: 0 | BE33: 0 | BF33: 0 | BG33: 2 | BH33: 0 | BI33: 1 | BJ33: 3 | BK33: Royal | BL33: DASH | BM33: Wreake | BN33: 0 | BO33: 0 | BP33: 0 | BQ33: 0 | BR33: 0 | BS33: G | BT33: B | BU33: X | CC33: 37 | CD33: 29 | CE33: 44
A34: =B34&"A" -> 3A | B34: 3 | C34: =VLOOKUP(B34,EventsOrder,2,FALSE) -> 11.45 | D34: =VLOOKUP(B34,EventsOrder,4,FALSE) -> U11 Female | E34: A | F34: =IF(MID(D34,5,1)="F","F","M") -> F | G34: X | H34: O | I34: GG | J34: CC | K34: F | L34: BB | O34: 27.78 | P34: 18.92 | Q34: 18.61 | R34: 13.56 | S34: 12.3 | T34: 11.26 | W34: X | X34: O | Y34: GG | Z34: CC | AA34: F | AB34: BB | AE34: =IF(LEN(G34)=0,"",VLOOKUP($B34,IF($F34="F",TeamSheetFemale,TeamSheetMale),CC34,FALSE)) -> Mackenzie Smith | AF34: KIERA POTTER | AG34: Zara Buchanan | AH34: Georgia Duncombe | AI34: Tegan Vickery | AJ34: Kiki Thuray | AM34: 5 | AN34: 7 | AO34: 0 | AP34: 0 | AQ34: 3 | AR34: 4 | AS34: 6 | AT34: 8 | AU34: 13.56 | AV34: 18.92 | AW34: 0 | AX34: 0 | AY34: 11.26 | AZ34: 12.3 | BA34: 18.61 | BB34: 27.78 | BC34: =IF(ISNA(MATCH(BC$29,$BS34:$BZ34,0)),0,MATCH(BC$29,$BS34:$BZ34,0)) -> 4 | BD34: 2 | BE34: 0 | BF34: 0 | BG34: 6 | BH34: 5 | BI34: 3 | BJ34: 1 | BK34: =IF(LEN(G34)>0,VLOOKUP(LEFT(G34,1),Clubs,5,FALSE),0) -> Wreake | BL34: Corby | BM34: Royal | BN34: B&R | BO34: Tam | BP34: DASH | BQ34: 0 | BR34: 0 | BS34: =LEFT(G34,1) -> X | BT34: =LEFT(H34,1) -> O | BU34: G | BV34: C | BW34: F | BX34: B | CC34: 42 | CD34: 12 | CE34: 39 | CF34: 9 | CG34: 32 | CH34: 29
A35: =B34&"B" -> 3B | D35: =VLOOKUP(B34,EventsOrder,3,FALSE) -> Howler | E35: B | G35: XX | H35: OO | I35: B | J35: G | K35: C | O35: 21.98 | P35: 14.28 | Q35: 10.65 | R35: 7.62 | S35: 7.1 | AE35: =IF(LEN(G35)=0,"",VLOOKUP($B34,IF($F34="F",TeamSheetFemale,TeamSheetMale),CC35,FALSE)) -> Destiny Nicholson | AF35: CASIE SEYMOUR | AG35: Libby Davies | AH35: Sian Duval | AI35: Jessica Causer | AM35: 4 | AN35: 7 | AO35: 0 | AP35: 0 | AQ35: 6 | AR35: 0 | AS35: 5 | AT35: 8 | AU35: =OFFSET($N35,0,BC35) -> 7.1 | AV35: =OFFSET($N35,0,BD35) -> 14.28 | AW35: =OFFSET($N35,0,BE35) -> 0 | AX35: =OFFSET($N35,0,BF35) -> 0 | AY35: =OFFSET($N35,0,BG35) -> 10.65 | AZ35: =OFFSET($N35,0,BH35) -> 0 | BA35: =OFFSET($N35,0,BI35) -> 7.62 | BB35: =OFFSET($N35,0,BJ35) -> 21.98 | BC35: 5 | BD35: 2 | BE35: 0 | BF35: 0 | BG35: 3 | BH35: 0 | BI35: 4 | BJ35: 1 | BK35: Wreake | BL35: Corby | BM35: DASH | BN35: Royal | BO35: B&R | BP35: 0 | BQ35: 0 | BR35: 0 | BS35: X | BT35: =LEFT(H35,1) -> O | BU35: B | BV35: G | BW35: C | CC35: 44 | CD35: 14 | CE35: 27 | CF35: 37 | CG35: 7
A36: =B36&"A" -> 4A | B36: 4 | C36: =VLOOKUP(B36,EventsOrder,2,FALSE) -> 11.55 | D36: =VLOOKUP(B36,EventsOrder,4,FALSE) -> U15 Female | E36: A | F36: =IF(MID(D36,5,1)="F","F","M") -> F | G36: C | H36: O | I36: F | J36: X | K36: B | L36: G | O36: 5.01.1 | P36: 5.06.5 | Q36: 5.08.5 | R36: 5.12.0 | S36: 5.23.0 | T36: 5.59.1 | W36: C | X36: O | Y36: F | Z36: X | AA36: B | AB36: G | AE36: =IF(LEN(G36)=0,"",VLOOKUP($B36,IF($F36="F",TeamSheetFemale,TeamSheetMale),CC36,FALSE)) -> Ellen Bowen | AF36: ELOISE COOMBS | AG36: Charlotte Bush | AH36: Hollie Gamble | AI36: Grace Slater | AJ36: Caitlin O'Connor | AM36: 8 | AN36: 7 | AO36: 0 | AP36: 0 | AQ36: 4 | AR36: 6 | AS36: 3 | AT36: 5 | AU36: 5.01.1 | AV36: 5.06.5 | AW36: 0 | AX36: 0 | AY36: 5.23.0 | AZ36: 5.08.5 | BA36: 5.59.1 | BB36: 5.12.0 | BC36: 1 | BD36: 2 | BE36: 0 | BF36: 0 | BG36: 5 | BH36: 3 | BI36: 6 | BJ36: 4 | BK36: B&R | BL36: Corby | BM36: Tam | BN36: Wreake | BO36: DASH | BP36: Royal | BQ36: 0 | BR36: 0 | BS36: C | BT36: O | BU36: F | BV36: X | BW36: B | BX36: G | CC36: 7 | CD36: =IF(LEN(H36)=0,"",HLOOKUP(BT36,$CC$26:$CJ$28,2,FALSE)+IF(LEN(H36)=2,2,0)) -> 12 | CE36: =IF(LEN(I36)=0,"",HLOOKUP(BU36,$CC$26:$CJ$28,2,FALSE)+IF(LEN(I36)=2,2,0)) -> 32 | CF36: =IF(LEN(J36)=0,"",HLOOKUP(BV36,$CC$26:$CJ$28,2,FALSE)+IF(LEN(J36)=2,2,0)) -> 42 | CG36: =IF(LEN(K36)=0,"",HLOOKUP(BW36,$CC$26:$CJ$28,2,FALSE)+IF(LEN(K36)=2,2,0)) -> 27 | CH36: =IF(LEN(L36)=0,"",HLOOKUP(BX36,$CC$26:$CJ$28,2,FALSE)+IF(LEN(L36)=2,2,0)) -> 37 | CI36: =IF(LEN(M36)=0,"",HLOOKUP(BY36,$CC$26:$CJ$28,2,FALSE)+IF(LEN(M36)=2,2,0)) ->  | CJ36: =IF(LEN(N36)=0,"",HLOOKUP(BZ36,$CC$26:$CJ$28,2,FALSE)+IF(LEN(N36)=2,2,0)) -> 
A37: =B36&"B" -> 4B | D37: =VLOOKUP(B36,EventsOrder,3,FALSE) -> 1500m | E37: B | G37: CC | H37: OO | I37: XX | J37: FF | O37: 5.03.1 | P37: 5.04.3 | Q37: 5.21.3 | R37: 6.06.1 | W37: CC | X37: OO | Y37: XX | Z37: FF | AE37: =IF(LEN(G37)=0,"",VLOOKUP($B36,IF($F36="F",TeamSheetFemale,TeamSheetMale),CC37,FALSE)) -> Amy Mijovic-Cauldwell | AF37: SELINA SCOTT | AG37: Rosie Timlock | AH37: Katie Stretton | AM37: 8 | AN37: 7 | AO37: 0 | AP37: 0 | AQ37: 0 | AR37: 5 | AS37: 0 | AT37: 6 | AU37: 5.03.1 | AV37: 5.04.3 | AW37: 0 | AX37: 0 | AY37: 0 | AZ37: 6.06.1 | BA37: 0 | BB37: 5.21.3 | BC37: 1 | BD37: 2 | BE37: 0 | BF37: 0 | BG37: 0 | BH37: 4 | BI37: 0 | BJ37: 3 | BK37: B&R | BL37: Corby | BM37: Wreake | BN37: Tam | BO37: 0 | BP37: 0 | BQ37: 0 | BR37: 0 | BS37: C | BT37: O | BU37: X | BV37: F | CC37: 9 | CD37: 14 | CE37: 44 | CF37: 34
A38: =B38&"A" -> 5A | B38: 5 | C38: =VLOOKUP(B38,EventsOrder,2,FALSE) -> 12 | D38: =VLOOKUP(B38,EventsOrder,4,FALSE) -> U13 Male | E38: A | F38: =IF(MID(D38,5,1)="F","F","M") -> M | G38: I | H38: B | I38: C | O38: 1.27 | P38: 1.22 | Q38: 1.13 | W38: I | X38: B | Y38: C | AE38: =IF(LEN(G38)=0,"",VLOOKUP($B38,IF($F38="F",TeamSheetFemale,TeamSheetMale),CC38,FALSE)) -> Brandon Raulia | AF38: Nathan Crook | AG38: James Pickup | AM38: 6 | AN38: 0 | AO38: 8 | AP38: 0 | AQ38: 7 | AR38: 0 | AS38: 0 | AT38: 0 | AU38: 1.13 | AV38: 0 | AW38: 1.27 | AX38: 0 | AY38: 1.22 | AZ38: 0 | BA38: 0 | BB38: 0 | BC38: 3 | BD38: 0 | BE38: 1 | BF38: 0 | BG38: 2 | BH38: 0 | BI38: 0 | BJ38: 0 | BK38: Kett | BL38: DASH | BM38: B&R | BN38: 0 | BO38: 0 | BP38: 0 | BQ38: 0 | BR38: 0 | BS38: I | BT38: B | BU38: C | CC38: 17 | CD38: 27 | CE38: 7
A39: =B38&"B" -> 5B | D39: =VLOOKUP(B38,EventsOrder,3,FALSE) -> High Jump | E39: B | AE39: =IF(LEN(G39)=0,"",VLOOKUP($B38,IF($F38="F",TeamSheetFemale,TeamSheetMale),CC39,FALSE)) ->  | AM39: 0 | AN39: 0 | AO39: 0 | AP39: 0 | AQ39: 0 | AR39: 0 | AS39: 0 | AT39: 0 | AU39: 0 | AV39: 0 | AW39: 0 | AX39: 0 | AY39: 0 | AZ39: 0 | BA39: 0 | BB39: 0 | BC39: 0 | BD39: 0 | BE39: 0 | BF39: 0 | BG39: 0 | BH39: 0 | BI39: 0 | BJ39: 0 | BK39: 0 | BL39: 0 | BM39: 0 | BN39: 0 | BO39: 0 | BP39: 0 | BQ39: 0 | BR39: 0
A40: =B40&"A" -> 6A | B40: 6 | C40: =VLOOKUP(B40,EventsOrder,2,FALSE) -> 12 | D40: =VLOOKUP(B40,EventsOrder,4,FALSE) -> U15 Male | E40: A | F40: =IF(MID(D40,5,1)="F","F","M") -> M | G40: O | H40: F | I40: GG | J40: B | K40: U | L40: CC | O40: 4.65 | P40: 4.62 | Q40: 4.52 | R40: 4.36 | S40: 4.14 | T40: 3.89 | W40: O | X40: F | Y40: GG | Z40: B | AA40: U | AB40: CC | AE40: =IF(LEN(G40)=0,"",VLOOKUP($B40,IF($F40="F",TeamSheetFemale,TeamSheetMale),CC40,FALSE)) -> Morgan Potter | AF40: James Oakley | AG40: Harrison Casey | AH40: Brandon Granger | AI40: Jack Lambert | AJ40: George Clements | AM40: 3 | AN40: 8 | AO40: 0 | AP40: 4 | AQ40: 5 | AR40: 7 | AS40: 6 | AT40: 0 | AU40: 3.89 | AV40: 4.65 | AW40: 0 | AX40: 4.14 | AY40: 4.36 | AZ40: 4.62 | BA40: 4.52 | BB40: 0 | BC40: 6 | BD40: 1 | BE40: 0 | BF40: 5 | BG40: 4 | BH40: 2 | BI40: 3 | BJ40: 0 | BK40: =IF(LEN(G40)>0,VLOOKUP(LEFT(G40,1),Clubs,5,FALSE),0) -> Corby | BL40: =IF(LEN(H40)>0,VLOOKUP(LEFT(H40,1),Clubs,5,FALSE),0) -> Tam | BM40: =IF(LEN(I40)>0,VLOOKUP(LEFT(I40,1),Clubs,5,FALSE),0) -> Royal | BN40: =IF(LEN(J40)>0,VLOOKUP(LEFT(J40,1),Clubs,5,FALSE),0) -> DASH | BO40: =IF(LEN(K40)>0,VLOOKUP(LEFT(K40,1),Clubs,5,FALSE),0) -> K&S | BP40: =IF(LEN(L40)>0,VLOOKUP(LEFT(L40,1),Clubs,5,FALSE),0) -> B&R | BQ40: =IF(LEN(M40)>0,VLOOKUP(LEFT(M40,1),Clubs,5,FALSE),0) -> 0 | BR40: =IF(LEN(N40)>0,VLOOKUP(LEFT(N40,1),Clubs,5,FALSE),0) -> 0 | BS40: =LEFT(G40,1) -> O | BT40: F | BU40: G | BV40: B | BW40: U | BX40: C | CC40: 12 | CD40: 32 | CE40: 39 | CF40: 27 | CG40: 22 | CH40: 9
A41: =B40&"B" -> 6B | D41: =VLOOKUP(B40,EventsOrder,3,FALSE) -> Long Jump | E41: B | G41: G | H41: FF | I41: OO | J41: C | O41: 4.42 | P41: 4.29 | Q41: 3.9 | R41: 3.69 | AE41: =IF(LEN(G41)=0,"",VLOOKUP($B40,IF($F40="F",TeamSheetFemale,TeamSheetMale),CC41,FALSE)) -> Luke O'Brien | AF41: Oliver Barnard | AG41: Joel Camera | AH41: Will Thorley | AM41: 5 | AN41: 6 | AO41: 0 | AP41: 0 | AQ41: 0 | AR41: 7 | AS41: 8 | AT41: 0 | AU41: 3.69 | AV41: 3.9 | AW41: 0 | AX41: 0 | AY41: =OFFSET($N41,0,BG41) -> 0 | AZ41: =OFFSET($N41,0,BH41) -> 4.29 | BA41: =OFFSET($N41,0,BI41) -> 4.42 | BB41: =OFFSET($N41,0,BJ41) -> 0 | BC41: 4 | BD41: 3 | BE41: 0 | BF41: 0 | BG41: 0 | BH41: 2 | BI41: 1 | BJ41: 0 | BK41: Royal | BL41: Tam | BM41: Corby | BN41: B&R | BO41: 0 | BP41: 0 | BQ41: 0 | BR41: 0 | BS41: G | BT41: =LEFT(H41,1) -> F | BU41: =LEFT(I41,1) -> O | BV41: =LEFT(J41,1) -> C | BW41: =LEFT(K41,1) ->  | BX41: =LEFT(L41,1) ->  | BY41: =LEFT(M41,1) ->  | BZ41: =LEFT(N41,1) ->  | CC41: 37 | CD41: 34 | CE41: 14 | CF41: 7
A42: =B42&"A" -> 7A | B42: 7 | C42: =VLOOKUP(B42,EventsOrder,2,FALSE) -> 12.05 | D42: =VLOOKUP(B42,EventsOrder,4,FALSE) -> U17 F/Women | E42: A | F42: =IF(MID(D42,5,1)="F","F","M") -> F | G42: X | H42: O | I42: I | O42: 5.01.6 | P42: 5.11.5 | Q42: 5,20.2 | W42: X | X42: O | Y42: I | AE42: =IF(LEN(G42)=0,"",VLOOKUP($B42,IF($F42="F",TeamSheetFemale,TeamSheetMale),CC42,FALSE)) -> Fern Harrison | AF42: ELLIE MAY HATAHAWAY | AG42: Hannah Winstone | AM42: 0 | AN42: 7 | AO42: 6 | AP42: 0 | AQ42: 0 | AR42: 0 | AS42: 0 | AT42: 8 | AU42: 0 | AV42: 5.11.5 | AW42: 5,20.2 | AX42: 0 | AY42: 0 | AZ42: 0 | BA42: 0 | BB42: 5.01.6 | BC42: 0 | BD42: 2 | BE42: 3 | BF42: 0 | BG42: 0 | BH42: 0 | BI42: 0 | BJ42: 1 | BK42: Wreake | BL42: Corby | BM42: Kett | BN42: 0 | BO42: 0 | BP42: 0 | BQ42: 0 | BR42: 0 | BS42: X | BT42: O | BU42: I | CC42: 42 | CD42: 12 | CE42: 17
A43: =B42&"B" -> 7B | D43: =VLOOKUP(B42,EventsOrder,3,FALSE) -> 1500m | E43: B | G43: XX | H43: II | O43: 5.12.1 | P43: 5.24.6 | W43: 0 | X43: II | AE43: =IF(LEN(G43)=0,"",VLOOKUP($B42,IF($F42="F",TeamSheetFemale,TeamSheetMale),CC43,FALSE)) -> Jess Hazel | AF43: Sophie Moss | AM43: 0 | AN43: 0 | AO43: 7 | AP43: 0 | AQ43: 0 | AR43: 0 | AS43: 0 | AT43: 8 | AU43: 0 | AV43: 0 | AW43: 5.24.6 | AX43: 0 | AY43: 0 | AZ43: 0 | BA43: 0 | BB43: 5.12.1 | BC43: 0 | BD43: 0 | BE43: 2 | BF43: 0 | BG43: 0 | BH43: 0 | BI43: 0 | BJ43: 1 | BK43: Wreake | BL43: Kett | BM43: 0 | BN43: 0 | BO43: 0 | BP43: 0 | BQ43: 0 | BR43: 0 | BS43: X | BT43: I | CC43: 44 | CD43: 19
A44: =B44&"A" -> 8A | B44: 8 | C44: =VLOOKUP(B44,EventsOrder,2,FALSE) -> 12.15 | D44: =VLOOKUP(B44,EventsOrder,4,FALSE) -> U17 Men | E44: A | F44: =IF(MID(D44,5,1)="F","F","M") -> M | G44: B | H44: CC | I44: U | J44: G | O44: 10.44 | P44: 9.07 | Q44: 8.88 | R44: 8.32 | W44: B | X44: CC | Y44: U | Z44: G | AE44: =IF(LEN(G44)=0,"",VLOOKUP($B44,IF($F44="F",TeamSheetFemale,TeamSheetMale),CC44,FALSE)) -> James Kelly | AF44: Aaron Pattison | AG44: James Milburn | AH44: Sam Grimshaw | AM44: 7 | AN44: 0 | AO44: 0 | AP44: 6 | AQ44: 8 | AR44: 0 | AS44: 5 | AT44: 0 | AU44: 9.07 | AV44: 0 | AW44: 0 | AX44: 8.88 | AY44: 10.44 | AZ44: 0 | BA44: 8.32 | BB44: 0 | BC44: 2 | BD44: 0 | BE44: 0 | BF44: 3 | BG44: 1 | BH44: 0 | BI44: 4 | BJ44: 0 | BK44: DASH | BL44: B&R | BM44: K&S | BN44: Royal | BO44: 0 | BP44: 0 | BQ44: 0 | BR44: 0 | BS44: B | BT44: C | BU44: U | BV44: G | CC44: 27 | CD44: =IF(LEN(H44)=0,"",HLOOKUP(BT44,$CC$26:$CJ$28,2,FALSE)+IF(LEN(H44)=2,2,0)) -> 9 | CE44: =IF(LEN(I44)=0,"",HLOOKUP(BU44,$CC$26:$CJ$28,2,FALSE)+IF(LEN(I44)=2,2,0)) -> 22 | CF44: =IF(LEN(J44)=0,"",HLOOKUP(BV44,$CC$26:$CJ$28,2,FALSE)+IF(LEN(J44)=2,2,0)) -> 37 | CG44: =IF(LEN(K44)=0,"",HLOOKUP(BW44,$CC$26:$CJ$28,2,FALSE)+IF(LEN(K44)=2,2,0)) ->  | CH44: =IF(LEN(L44)=0,"",HLOOKUP(BX44,$CC$26:$CJ$28,2,FALSE)+IF(LEN(L44)=2,2,0)) ->  | CI44: =IF(LEN(M44)=0,"",HLOOKUP(BY44,$CC$26:$CJ$28,2,FALSE)+IF(LEN(M44)=2,2,0)) ->  | CJ44: =IF(LEN(N44)=0,"",HLOOKUP(BZ44,$CC$26:$CJ$28,2,FALSE)+IF(LEN(N44)=2,2,0)) -> 
A45: =B44&"B" -> 8B | D45: =VLOOKUP(B44,EventsOrder,3,FALSE) -> Shot | E45: B | G45: C | H45: UU | O45: 7.99 | P45: 5.95 | AE45: =IF(LEN(G45)=0,"",VLOOKUP($B44,IF($F44="F",TeamSheetFemale,TeamSheetMale),CC45,FALSE)) -> Issac Hill | AF45: Thomas Palmer | AM45: 8 | AN45: 0 | AO45: 0 | AP45: 7 | AQ45: 0 | AR45: 0 | AS45: 0 | AT45: 0 | AU45: 7.99 | AV45: 0 | AW45: 0 | AX45: 5.95 | AY45: 0 | AZ45: 0 | BA45: 0 | BB45: 0 | BC45: 1 | BD45: 0 | BE45: 0 | BF45: 2 | BG45: 0 | BH45: 0 | BI45: 0 | BJ45: 0 | BK45: B&R | BL45: K&S | BM45: 0 | BN45: 0 | BO45: 0 | BP45: 0 | BQ45: 0 | BR45: 0 | BS45: C | BT45: U | CC45: 7 | CD45: 24
A46: =B46&"A" -> 9A | B46: 9 | C46: =VLOOKUP(B46,EventsOrder,2,FALSE) -> 12.15 | D46: =VLOOKUP(B46,EventsOrder,4,FALSE) -> U15 Female | E46: A | F46: =IF(MID(D46,5,1)="F","F","M") -> F | G46: C | H46: O | I46: U | J46: G | K46: XX | L46: I | O46: 25.4 | P46: 16.95 | Q46: 16.21 | R46: 14.18 | S46: 12.53 | T46: 10.43 | W46: C | X46: O | Y46: U | Z46: G | AA46: XX | AB46: I | AE46: =IF(LEN(G46)=0,"",VLOOKUP($B46,IF($F46="F",TeamSheetFemale,TeamSheetMale),CC46,FALSE)) -> Chole Dockray | AF46: CHLOE SHARMAN | AG46: Georgia Lees | AH46: Maddy Underwood | AI46: Scarlet Paget Wright | AJ46: Olivia Knibb | AM46: 8 | AN46: 7 | AO46: 3 | AP46: 6 | AQ46: 0 | AR46: 0 | AS46: 5 | AT46: 4 | AU46: 25.4 | AV46: 16.95 | AW46: 10.43 | AX46: 16.21 | AY46: 0 | AZ46: 0 | BA46: 14.18 | BB46: 12.53 | BC46: 1 | BD46: 2 | BE46: 6 | BF46: 3 | BG46: 0 | BH46: 0 | BI46: 4 | BJ46: 5 | BK46: B&R | BL46: Corby | BM46: K&S | BN46: Royal | BO46: Wreake | BP46: Kett | BQ46: 0 | BR46: 0 | BS46: C | BT46: O | BU46: U | BV46: G | BW46: X | BX46: I | CC46: 7 | CD46: 12 | CE46: 22 | CF46: 37 | CG46: 44 | CH46: 17
A47: =B46&"B" -> 9B | D47: =VLOOKUP(B46,EventsOrder,3,FALSE) -> Discus | E47: B | G47: OO | H47: CC | I47: GG | J47: X | O47: 15.36 | P47: 15.24 | Q47: 12.32 | R47: 8.62 | AE47: =IF(LEN(G47)=0,"",VLOOKUP($B46,IF($F46="F",TeamSheetFemale,TeamSheetMale),CC47,FALSE)) -> LAUREN MCMULLEN | AF47: Orla Lewis | AG47: Madeleine Shay | AH47: Rosie Timlock | AM47: 7 | AN47: 8 | AO47: 0 | AP47: 0 | AQ47: 0 | AR47: 0 | AS47: 6 | AT47: 5 | AU47: 15.24 | AV47: 15.36 | AW47: 0 | AX47: 0 | AY47: 0 | AZ47: 0 | BA47: 12.32 | BB47: 8.62 | BC47: 2 | BD47: 1 | BE47: 0 | BF47: 0 | BG47: 0 | BH47: 0 | BI47: 3 | BJ47: 4 | BK47: Corby | BL47: B&R | BM47: Royal | BN47: Wreake | BO47: 0 | BP47: 0 | BQ47: 0 | BR47: 0 | BS47: O | BT47: C | BU47: G | BV47: X | CC47: 14 | CD47: 9 | CE47: 39 | CF47: 42
A48: =B48&"A" -> 10A | B48: 10 | C48: =VLOOKUP(B48,EventsOrder,2,FALSE) -> 12.15 | D48: =VLOOKUP(B48,EventsOrder,4,FALSE) -> U17 F/Women | E48: A | F48: =IF(MID(D48,5,1)="F","F","M") -> F | AE48: =IF(LEN(G48)=0,"",VLOOKUP($B48,IF($F48="F",TeamSheetFemale,TeamSheetMale),CC48,FALSE)) ->  | AM48: 0 | AN48: 0 | AO48: 0 | AP48: 0 | AQ48: 0 | AR48: 0 | AS48: 0 | AT48: 0 | AU48: 0 | AV48: 0 | AW48: 0 | AX48: 0 | AY48: 0 | AZ48: 0 | BA48: 0 | BB48: 0 | BC48: 0 | BD48: 0 | BE48: 0 | BF48: 0 | BG48: 0 | BH48: 0 | BI48: 0 | BJ48: 0 | BK48: 0 | BL48: 0 | BM48: 0 | BN48: 0 | BO48: 0 | BP48: 0 | BQ48: 0 | BR48: 0
A49: =B48&"B" -> 10B | D49: =VLOOKUP(B48,EventsOrder,3,FALSE) -> Javelin | E49: B | AE49: =IF(LEN(G49)=0,"",VLOOKUP($B48,IF($F48="F",TeamSheetFemale,TeamSheetMale),CC49,FALSE)) ->  | AM49: 0 | AN49: 0 | AO49: 0 | AP49: 0 | AQ49: 0 | AR49: 0 | AS49: 0 | AT49: 0 | AU49: 0 | AV49: 0 | AW49: 0 | AX49: 0 | AY49: 0 | AZ49: 0 | BA49: 0 | BB49: 0 | BC49: 0 | BD49: 0 | BE49: 0 | BF49: 0 | BG49: 0 | BH49: 0 | BI49: 0 | BJ49: 0 | BK49: 0 | BL49: 0 | BM49: 0 | BN49: 0 | BO49: 0 | BP49: 0 | BQ49: 0 | BR49: 0
A50: =B50&"A" -> 11A | B50: 11 | C50: =VLOOKUP(B50,EventsOrder,2,FALSE) -> 12.15 | D50: =VLOOKUP(B50,EventsOrder,4,FALSE) -> U13 Female | E50: A | F50: =IF(MID(D50,5,1)="F","F","M") -> F | G50: F | H50: X | I50: B | J50: C | K50: I | L50: U | O50: 12.9 | P50: 13.5 | Q50: 13.7 | R50: 14.3 | S50: 14.4 | T50: 17.9 | AE50: =IF(LEN(G50)=0,"",VLOOKUP($B50,IF($F50="F",TeamSheetFemale,TeamSheetMale),CC50,FALSE)) -> Niamh Kilgallen | AF50: Flora Miskin Young | AG50: Niamh Darby | AH50: Henna Khaliq | AI50: Harriet Drake-Lee | AJ50: Libby Hawkswell | AM50: 5 | AN50: 0 | AO50: 4 | AP50: 3 | AQ50: 6 | AR50: 8 | AS50: 0 | AT50: 7 | AU50: 14.3 | AV50: 0 | AW50: 14.4 | AX50: 17.9 | AY50: 13.7 | AZ50: 12.9 | BA50: 0 | BB50: 13.5 | BC50: =IF(ISNA(MATCH(BC$29,$BS50:$BZ50,0)),0,MATCH(BC$29,$BS50:$BZ50,0)) -> 4 | BD50: 0 | BE50: 5 | BF50: 6 | BG50: 3 | BH50: 1 | BI50: 0 | BJ50: 2 | BK50: Tam | BL50: Wreake | BM50: DASH | BN50: B&R | BO50: Kett | BP50: K&S | BQ50: 0 | BR50: 0 | BS50: F | BT50: X | BU50: B | BV50: C | BW50: I | BX50: U | CC50: 32 | CD50: 42 | CE50: 27 | CF50: 7 | CG50: 17 | CH50: 22
A51: =B50&"B" -> 11B | D51: =VLOOKUP(B50,EventsOrder,3,FALSE) -> 70m hurdles | E51: B | G51: II | H51: BB | I51: XX | O51: 16.1 | P51: 16.3 | Q51: 18.4 | W51: II | X51: BB | Y51: XX | AE51: =IF(LEN(G51)=0,"",VLOOKUP($B50,IF($F50="F",TeamSheetFemale,TeamSheetMale),CC51,FALSE)) -> Matilda Braithwaite | AF51: Jessica Granger | AG51: Ravenn Cook | AM51: 0 | AN51: 0 | AO51: 8 | AP51: 0 | AQ51: 7 | AR51: 0 | AS51: 0 | AT51: 6 | AU51: 0 | AV51: 0 | AW51: 16.1 | AX51: 0 | AY51: 16.3 | AZ51: 0 | BA51: 0 | BB51: 18.4 | BC51: 0 | BD51: 0 | BE51: 1 | BF51: 0 | BG51: 2 | BH51: 0 | BI51: 0 | BJ51: 3 | BK51: Kett | BL51: DASH | BM51: Wreake | BN51: 0 | BO51: 0 | BP51: 0 | BQ51: 0 | BR51: 0 | BS51: I | BT51: B | BU51: X | CC51: 19 | CD51: 29 | CE51: 44
A52: =B52&"A" -> 12A | B52: 12 | C52: =VLOOKUP(B52,EventsOrder,2,FALSE) -> 12.2 | D52: =VLOOKUP(B52,EventsOrder,4,FALSE) -> U13 Male | E52: A | F52: =IF(MID(D52,5,1)="F","F","M") -> M | G52: I | H52: F | I52: X | J52: C | K52: O | L52: B | O52: 2.18.7 | P52: 2.18.7 | Q52: 2.37.3 | R52: 2.43.8 | S52: 2.59.5 | T52: 3.25.4 | W52: I | X52: F | Y52: X | Z52: C | AA52: O | AB52: B | AE52: =IF(LEN(G52)=0,"",VLOOKUP($B52,IF($F52="F",TeamSheetFemale,TeamSheetMale),CC52,FALSE)) -> Dylan Bowley | AF52: Timothy Li | AG52: Roman Watson Quilter | AH52: Joe Cunliffe | AI52: Jake Lawson | AJ52: Alex Hurrell | AM52: 5 | AN52: 4 | AO52: 8 | AP52: 0 | AQ52: 3 | AR52: 7 | AS52: 0 | AT52: 6 | AU52: 2.43.8 | AV52: 2.59.5 | AW52: 2.18.7 | AX52: 0 | AY52: 3.25.4 | AZ52: 2.18.7 | BA52: 0 | BB52: 2.37.3 | BC52: 4 | BD52: 5 | BE52: 1 | BF52: 0 | BG52: 6 | BH52: 2 | BI52: 0 | BJ52: 3 | BK52: =IF(LEN(G52)>0,VLOOKUP(LEFT(G52,1),Clubs,5,FALSE),0) -> Kett | BL52: =IF(LEN(H52)>0,VLOOKUP(LEFT(H52,1),Clubs,5,FALSE),0) -> Tam | BM52: =IF(LEN(I52)>0,VLOOKUP(LEFT(I52,1),Clubs,5,FALSE),0) -> Wreake | BN52: =IF(LEN(J52)>0,VLOOKUP(LEFT(J52,1),Clubs,5,FALSE),0) -> B&R | BO52: =IF(LEN(K52)>0,VLOOKUP(LEFT(K52,1),Clubs,5,FALSE),0) -> Corby | BP52: =IF(LEN(L52)>0,VLOOKUP(LEFT(L52,1),Clubs,5,FALSE),0) -> DASH | BQ52: =IF(LEN(M52)>0,VLOOKUP(LEFT(M52,1),Clubs,5,FALSE),0) -> 0 | BR52: =IF(LEN(N52)>0,VLOOKUP(LEFT(N52,1),Clubs,5,FALSE),0) -> 0 | BS52: =LEFT(G52,1) -> I | BT52: F | BU52: X | BV52: C | BW52: O | BX52: B | CC52: 17 | CD52: 32 | CE52: 42 | CF52: 7 | CG52: 12 | CH52: 27
A53: =B52&"B" -> 12B | D53: =VLOOKUP(B52,EventsOrder,3,FALSE) -> 800m | E53: B | G53: XX | H53: II | O53: 2.40.1 | P53: 2.45.6 | W53: XX | X53: II | AE53: =IF(LEN(G53)=0,"",VLOOKUP($B52,IF($F52="F",TeamSheetFemale,TeamSheetMale),CC53,FALSE)) -> Euan Gibbs | AF53: Ethan Nelis | AM53: 0 | AN53: 0 | AO53: 7 | AP53: 0 | AQ53: 0 | AR53: 0 | AS53: 0 | AT53: 8 | AU53: 0 | AV53: 0 | AW53: 2.45.6 | AX53: 0 | AY53: =OFFSET($N53,0,BG53) -> 0 | AZ53: =OFFSET($N53,0,BH53) -> 0 | BA53: =OFFSET($N53,0,BI53) -> 0 | BB53: =OFFSET($N53,0,BJ53) -> 2.40.1 | BC53: 0 | BD53: 0 | BE53: 2 | BF53: 0 | BG53: 0 | BH53: 0 | BI53: 0 | BJ53: 1 | BK53: Wreake | BL53: Kett | BM53: 0 | BN53: 0 | BO53: 0 | BP53: 0 | BQ53: 0 | BR53: 0 | BS53: X | BT53: =LEFT(H53,1) -> I | BU53: =LEFT(I53,1) ->  | BV53: =LEFT(J53,1) ->  | BW53: =LEFT(K53,1) ->  | BX53: =LEFT(L53,1) ->  | BY53: =LEFT(M53,1) ->  | BZ53: =LEFT(N53,1) ->  | CC53: 44 | CD53: 19
A54: =B54&"A" -> 13A | B54: 13 | C54: =VLOOKUP(B54,EventsOrder,2,FALSE) -> 12.3 | D54: =VLOOKUP(B54,EventsOrder,4,FALSE) -> U15 Female | E54: A | F54: =IF(MID(D54,5,1)="F","F","M") -> F | G54: U | H54: I | I54: X | J54: B | K54: F | L54: G | O54: 12.4 | P54: 13.1 | Q54: 13.7 | R54: 13.9 | S54: 14.5 | T54: 16.3 | W54: U | X54: I | Y54: X | Z54: B | AA54: F | AB54: G | AE54: =IF(LEN(G54)=0,"",VLOOKUP($B54,IF($F54="F",TeamSheetFemale,TeamSheetMale),CC54,FALSE)) -> Monica Aresu | AF54: Maurella Forbes | AG54: Josie Orange | AH54: Jessica Crook | AI54: Emily Findlater | AJ54: Caiitlin O'Connor | AM54: 0 | AN54: 0 | AO54: 7 | AP54: 8 | AQ54: 5 | AR54: 4 | AS54: 3 | AT54: 6 | AU54: 0 | AV54: 0 | AW54: 13.1 | AX54: 12.4 | AY54: 13.9 | AZ54: 14.5 | BA54: 16.3 | BB54: 13.7 | BC54: 0 | BD54: 0 | BE54: 2 | BF54: 1 | BG54: 4 | BH54: 5 | BI54: 6 | BJ54: 3 | BK54: K&S | BL54: Kett | BM54: Wreake | BN54: DASH | BO54: Tam | BP54: Royal | BQ54: 0 | BR54: 0 | BS54: U | BT54: I | BU54: X | BV54: B | BW54: F | BX54: G | CC54: 22 | CD54: 17 | CE54: 42 | CF54: 27 | CG54: 32 | CH54: 37
A55: =B54&"B" -> 13B | D55: =VLOOKUP(B54,EventsOrder,3,FALSE) -> 75m hurdles | E55: B | G55: UU | O55: 17.5 | AE55: =IF(LEN(G55)=0,"",VLOOKUP($B54,IF($F54="F",TeamSheetFemale,TeamSheetMale),CC55,FALSE)) -> Yasmin Berrows | AM55: 0 | AN55: 0 | AO55: 0 | AP55: 8 | AQ55: 0 | AR55: 0 | AS55: 0 | AT55: 0 | AU55: 0 | AV55: 0 | AW55: 0 | AX55: 17.5 | AY55: 0 | AZ55: 0 | BA55: 0 | BB55: 0 | BC55: 0 | BD55: 0 | BE55: 0 | BF55: 1 | BG55: 0 | BH55: 0 | BI55: 0 | BJ55: 0 | BK55: K&S | BL55: 0 | BM55: 0 | BN55: 0 | BO55: 0 | BP55: 0 | BQ55: 0 | BR55: 0 | BS55: U | CC55: 24
A56: =B56&"A" -> 14A | B56: 14 | C56: =VLOOKUP(B56,EventsOrder,2,FALSE) -> 12.3 | D56: =VLOOKUP(B56,EventsOrder,4,FALSE) -> U11 Female | E56: A | F56: =IF(MID(D56,5,1)="F","F","M") -> F | G56: U | H56: C | I56: I | J56: X | K56: G | L56: BB | O56: 3.42 | P56: 3.37 | Q56: 3.23 | R56: 3.18 | S56: 3.07 | T56: 2.87 | W56: U | X56: C | Y56: I | Z56: X | AA56: G | AB56: BB | AE56: =IF(LEN(G56)=0,"",VLOOKUP($B56,IF($F56="F",TeamSheetFemale,TeamSheetMale),CC56,FALSE)) -> Libby Oliver | AF56: Jessica Causer | AG56: Emma Robinson | AH56: Isobel Orencas | AI56: Hope Stirland | AJ56: Vyvyenne Crook | AM56: 7 | AN56: 0 | AO56: 6 | AP56: 8 | AQ56: 3 | AR56: 0 | AS56: 4 | AT56: 5 | AU56: 3.37 | AV56: 0 | AW56: 3.23 | AX56: 3.42 | AY56: 2.87 | AZ56: 0 | BA56: 3.07 | BB56: 3.18 | BC56: 2 | BD56: 0 | BE56: 3 | BF56: 1 | BG56: 6 | BH56: 0 | BI56: 5 | BJ56: 4 | BK56: K&S | BL56: B&R | BM56: Kett | BN56: Wreake | BO56: Royal | BP56: DASH | BQ56: 0 | BR56: 0 | BS56: U | BT56: C | BU56: I | BV56: X | BW56: G | BX56: B | CC56: 22 | CD56: 7 | CE56: 17 | CF56: 42 | CG56: 37 | CH56: 29
A57: =B56&"B" -> 14B | D57: =VLOOKUP(B56,EventsOrder,3,FALSE) -> Long Jump | E57: B | G57: XX | H57: CC | I57: B | J57: UU | K57: II | L57: OO | O57: 2.97 | P57: 2.87 | Q57: 2.77 | R57: 2.63 | S57: 2.53 | T57: 2.23 | AE57: =IF(LEN(G57)=0,"",VLOOKUP($B56,IF($F56="F",TeamSheetFemale,TeamSheetMale),CC57,FALSE)) -> Eliza Weselby | AF57: Alana Pullen | AG57: Libby Davies | AH57: Hannah Telling | AI57: Kate Nelis | AJ57: ERIN MCCLYMONT | AM57: 7 | AN57: 3 | AO57: 4 | AP57: 5 | AQ57: 6 | AR57: 0 | AS57: 0 | AT57: 8 | AU57: 2.87 | AV57: 2.23 | AW57: 2.53 | AX57: 2.63 | AY57: 2.77 | AZ57: 0 | BA57: 0 | BB57: 2.97 | BC57: 2 | BD57: 6 | BE57: 5 | BF57: 4 | BG57: 3 | BH57: 0 | BI57: 0 | BJ57: 1 | BK57: Wreake | BL57: B&R | BM57: DASH | BN57: K&S | BO57: Kett | BP57: Corby | BQ57: 0 | BR57: 0 | BS57: X | BT57: C | BU57: B | BV57: U | BW57: I | BX57: O | CC57: 44 | CD57: 9 | CE57: 27 | CF57: 24 | CG57: 19 | CH57: 14
A58: =B58&"A" -> 15A | B58: 15 | C58: =VLOOKUP(B58,EventsOrder,2,FALSE) -> 12.35 | D58: =VLOOKUP(B58,EventsOrder,4,FALSE) -> U13 Male | E58: A | F58: =IF(MID(D58,5,1)="F","F","M") -> M | G58: C | H58: X | I58: F | J58: I | O58: 14.6 | P58: 16.2 | Q58: 16.8 | R58: 17.1 | W58: C | X58: X | Y58: F | Z58: I | AE58: =IF(LEN(G58)=0,"",VLOOKUP($B58,IF($F58="F",TeamSheetFemale,TeamSheetMale),CC58,FALSE)) -> Matthew Griffin | AF58: Lucca Watson Quilter | AG58: Joel Bickley | AH58: Brandon Raulia | AM58: 8 | AN58: 0 | AO58: 5 | AP58: 0 | AQ58: 0 | AR58: 6 | AS58: 0 | AT58: 7 | AU58: 14.6 | AV58: 0 | AW58: 17.1 | AX58: 0 | AY58: 0 | AZ58: 16.8 | BA58: 0 | BB58: 16.2 | BC58: 1 | BD58: 0 | BE58: 4 | BF58: 0 | BG58: 0 | BH58: 3 | BI58: 0 | BJ58: 2 | BK58: B&R | BL58: Wreake | BM58: Tam | BN58: Kett | BO58: 0 | BP58: 0 | BQ58: 0 | BR58: 0 | BS58: C | BT58: X | BU58: F | BV58: I | CC58: 7 | CD58: 42 | CE58: 32 | CF58: 17
A59: =B58&"B" -> 15B | D59: =VLOOKUP(B58,EventsOrder,3,FALSE) -> 75m hurdles | E59: B | G59: CC | H59: II | O59: 16.6 | P59: 18.4 | AE59: =IF(LEN(G59)=0,"",VLOOKUP($B58,IF($F58="F",TeamSheetFemale,TeamSheetMale),CC59,FALSE)) -> Dominic Cook | AF59: Ryan Raulia | AM59: 8 | AN59: 0 | AO59: 7 | AP59: 0 | AQ59: 0 | AR59: 0 | AS59: 0 | AT59: 0 | AU59: 16.6 | AV59: 0 | AW59: 18.4 | AX59: 0 | AY59: 0 | AZ59: 0 | BA59: 0 | BB59: 0 | BC59: 1 | BD59: 0 | BE59: 2 | BF59: 0 | BG59: 0 | BH59: 0 | BI59: 0 | BJ59: 0 | BK59: B&R | BL59: Kett | BM59: 0 | BN59: 0 | BO59: 0 | BP59: 0 | BQ59: 0 | BR59: 0 | BS59: C | BT59: I | CC59: 9 | CD59: 19
A60: =B60&"A" -> 16A | B60: 16 | C60: =VLOOKUP(B60,EventsOrder,2,FALSE) -> 12.4 | D60: =VLOOKUP(B60,EventsOrder,4,FALSE) -> U15 Male | E60: A | F60: =IF(MID(D60,5,1)="F","F","M") -> M | G60: G | H60: F | I60: B | J60: I | K60: C | O60: 2.14.7 | P60: 2.14.7 | Q60: 2.20.9 | R60: 2.29.4 | S60: 2.47.2 | W60: G | X60: F | Y60: B | Z60: I | AA60: C | AE60: =IF(LEN(G60)=0,"",VLOOKUP($B60,IF($F60="F",TeamSheetFemale,TeamSheetMale),CC60,FALSE)) -> Harrison Casey | AF60: James Oakley | AG60: Tom Slatter | AH60: Oliver Winstone | AI60: David Peaty | AM60: 4 | AN60: 0 | AO60: 5 | AP60: 0 | AQ60: 6 | AR60: 7 | AS60: 8 | AT60: 0 | AU60: 2.47.2 | AV60: 0 | AW60: 2.29.4 | AX60: 0 | AY60: 2.20.9 | AZ60: 2.14.7 | BA60: 2.14.7 | BB60: 0 | BC60: 5 | BD60: 0 | BE60: 4 | BF60: 0 | BG60: 3 | BH60: 2 | BI60: 1 | BJ60: 0 | BK60: Royal | BL60: Tam | BM60: DASH | BN60: Kett | BO60: B&R | BP60: 0 | BQ60: 0 | BR60: 0 | BS60: G | BT60: F | BU60: B | BV60: I | BW60: C | CC60: 37 | CD60: =IF(LEN(H60)=0,"",HLOOKUP(BT60,$CC$26:$CJ$28,2,FALSE)+IF(LEN(H60)=2,2,0)) -> 32 | CE60: =IF(LEN(I60)=0,"",HLOOKUP(BU60,$CC$26:$CJ$28,2,FALSE)+IF(LEN(I60)=2,2,0)) -> 27 | CF60: =IF(LEN(J60)=0,"",HLOOKUP(BV60,$CC$26:$CJ$28,2,FALSE)+IF(LEN(J60)=2,2,0)) -> 17 | CG60: =IF(LEN(K60)=0,"",HLOOKUP(BW60,$CC$26:$CJ$28,2,FALSE)+IF(LEN(K60)=2,2,0)) -> 7 | CH60: =IF(LEN(L60)=0,"",HLOOKUP(BX60,$CC$26:$CJ$28,2,FALSE)+IF(LEN(L60)=2,2,0)) ->  | CI60: =IF(LEN(M60)=0,"",HLOOKUP(BY60,$CC$26:$CJ$28,2,FALSE)+IF(LEN(M60)=2,2,0)) ->  | CJ60: =IF(LEN(N60)=0,"",HLOOKUP(BZ60,$CC$26:$CJ$28,2,FALSE)+IF(LEN(N60)=2,2,0)) -> 
A61: =B60&"B" -> 16B | D61: =VLOOKUP(B60,EventsOrder,3,FALSE) -> 800m | E61: B | G61: FF | H61: GG | I61: BB | O61: 2.37.2 | P61: 2.38.7 | Q61: 2.39.8 | AE61: =IF(LEN(G61)=0,"",VLOOKUP($B60,IF($F60="F",TeamSheetFemale,TeamSheetMale),CC61,FALSE)) -> Daniel Nesbitt | AF61: Luke Stoddart | AG61: Harry Walters | AM61: 0 | AN61: 0 | AO61: 0 | AP61: 0 | AQ61: 6 | AR61: 8 | AS61: 7 | AT61: 0 | AU61: 0 | AV61: 0 | AW61: 0 | AX61: 0 | AY61: 2.39.8 | AZ61: 2.37.2 | BA61: 2.38.7 | BB61: 0 | BC61: 0 | BD61: 0 | BE61: 0 | BF61: 0 | BG61: 3 | BH61: 1 | BI61: 2 | BJ61: 0 | BK61: Tam | BL61: Royal | BM61: DASH | BN61: 0 | BO61: 0 | BP61: 0 | BQ61: 0 | BR61: 0 | BS61: F | BT61: G | BU61: B | CC61: 34 | CD61: 39 | CE61: 29
A62: =B62&"A" -> 17A | B62: 17 | C62: =VLOOKUP(B62,EventsOrder,2,FALSE) -> 12.55 | D62: =VLOOKUP(B62,EventsOrder,4,FALSE) -> U15 Female | E62: A | F62: =IF(MID(D62,5,1)="F","F","M") -> F | G62: B | H62: I | I62: C | J62: G | K62: O | L62: U | M62: F | O62: 1.6 | P62: 1.35 | Q62: 1.3 | R62: 1.3 | S62: 1.25 | T62: 1.2 | U62: 1.15 | W62: B | X62: I | Y62: C | Z62: G | AA62: O | AB62: U | AC62: F | AE62: =IF(LEN(G62)=0,"",VLOOKUP($B62,IF($F62="F",TeamSheetFemale,TeamSheetMale),CC62,FALSE)) -> Emma Sherwood | AF62: Maurella Forbes | AG62: Eva James | AH62: Evie Gough | AI62: ALICE MERRIMAN | AJ62: Rosie Meacham | AK62: Katie Stretton | AM62: =IF(OR($F62="NS",AU62="DNF"),0,IF(BC62>0,$BK$29+1-BC62,0)) -> 6 | AN62: =IF(OR($F62="NS",AV62="DNF"),0,IF(BD62>0,$BK$29+1-BD62,0)) -> 4 | AO62: =IF(OR($F62="NS",AW62="DNF"),0,IF(BE62>0,$BK$29+1-BE62,0)) -> 7 | AP62: =IF(OR($F62="NS",AX62="DNF"),0,IF(BF62>0,$BK$29+1-BF62,0)) -> 3 | AQ62: =IF(OR($F62="NS",AY62="DNF"),0,IF(BG62>0,$BK$29+1-BG62,0)) -> 8 | AR62: =IF(OR($F62="NS",AZ62="DNF"),0,IF(BH62>0,$BK$29+1-BH62,0)) -> 2 | AS62: =IF(OR($F62="NS",BA62="DNF"),0,IF(BI62>0,$BK$29+1-BI62,0)) -> 5 | AT62: =IF(OR($F62="NS",BB62="DNF"),0,IF(BJ62>0,$BK$29+1-BJ62,0)) -> 0 | AU62: 1.3 | AV62: 1.25 | AW62: 1.35 | AX62: 1.2 | AY62: 1.6 | AZ62: 1.15 | BA62: 1.3 | BB62: 0 | BC62: 3 | BD62: 5 | BE62: 2 | BF62: 6 | BG62: 1 | BH62: 7 | BI62: 4 | BJ62: 0 | BK62: DASH | BL62: Kett | BM62: B&R | BN62: Royal | BO62: Corby | BP62: K&S | BQ62: Tam | BR62: 0 | BS62: B | BT62: I | BU62: C | BV62: G | BW62: O | BX62: U | BY62: F | CC62: =IF(LEN(G62)=0,"",HLOOKUP(BS62,$CC$26:$CJ$28,2,FALSE)+IF(LEN(G62)=2,2,0)) -> 27 | CD62: 17 | CE62: 7 | CF62: 37 | CG62: 12 | CH62: 22 | CI62: 32
A63: =B62&"B" -> 17B | D63: =VLOOKUP(B62,EventsOrder,3,FALSE) -> High Jump | E63: B | AE63: =IF(LEN(G63)=0,"",VLOOKUP($B62,IF($F62="F",TeamSheetFemale,TeamSheetMale),CC63,FALSE)) ->  | AM63: 0 | AN63: 0 | AO63: 0 | AP63: 0 | AQ63: 0 | AR63: 0 | AS63: 0 | AT63: 0 | AU63: 0 | AV63: 0 | AW63: 0 | AX63: 0 | AY63: 0 | AZ63: 0 | BA63: 0 | BB63: 0 | BC63: 0 | BD63: 0 | BE63: 0 | BF63: 0 | BG63: 0 | BH63: 0 | BI63: 0 | BJ63: 0 | BK63: 0 | BL63: 0 | BM63: 0 | BN63: 0 | BO63: 0 | BP63: 0 | BQ63: 0 | BR63: 0
A64: =B64&"A" -> 18A | B64: 18 | C64: =VLOOKUP(B64,EventsOrder,2,FALSE) -> 12.5 | D64: =VLOOKUP(B64,EventsOrder,4,FALSE) -> U17 Men | E64: C | F64: =IF(MID(D64,5,1)="F","F","M") -> M | G64: G | H64: O | I64: C | J64: U | O64: 2.05.2 | P64: 2.06.0 | Q64: 2.16.7 | R64: 2.24.1 | W64: G | X64: O | Y64: C | Z64: U | AE64: =IF(LEN(G64)=0,"",VLOOKUP($B64,IF($F64="F",TeamSheetFemale,TeamSheetMale),CC64,FALSE)) -> Lee Hetherington | AF64: Jack Benstead | AG64: Gareth Richardson | AH64: Thomas Palmer | AM64: 6 | AN64: 7 | AO64: 0 | AP64: 5 | AQ64: 0 | AR64: 0 | AS64: 8 | AT64: 0 | AU64: 2.16.7 | AV64: 2.06.0 | AW64: 0 | AX64: 2.24.1 | AY64: 0 | AZ64: 0 | BA64: 2.05.2 | BB64: 0 | BC64: 3 | BD64: 2 | BE64: 0 | BF64: 4 | BG64: 0 | BH64: 0 | BI64: 1 | BJ64: 0 | BK64: Royal | BL64: Corby | BM64: B&R | BN64: K&S | BO64: 0 | BP64: 0 | BQ64: 0 | BR64: 0 | BS64: G | BT64: O | BU64: C | BV64: U | CC64: 37 | CD64: 12 | CE64: 7 | CF64: 22
A65: =B64&"B" -> 18B | D65: =VLOOKUP(B64,EventsOrder,3,FALSE) -> 800m | E65: D | G65: CC | O65: 2.19.6 | W65: CC | AE65: =IF(LEN(G65)=0,"",VLOOKUP($B64,IF($F64="F",TeamSheetFemale,TeamSheetMale),CC65,FALSE)) -> Alex Johnson | AM65: 8 | AN65: 0 | AO65: 0 | AP65: 0 | AQ65: 0 | AR65: 0 | AS65: 0 | AT65: 0 | AU65: 2.19.6 | AV65: 0 | AW65: 0 | AX65: 0 | AY65: 0 | AZ65: 0 | BA65: 0 | BB65: 0 | BC65: 1 | BD65: 0 | BE65: 0 | BF65: 0 | BG65: 0 | BH65: 0 | BI65: 0 | BJ65: 0 | BK65: B&R | BL65: 0 | BM65: 0 | BN65: 0 | BO65: 0 | BP65: 0 | BQ65: 0 | BR65: 0 | BS65: C | CC65: 9
A66: =B66&"A" -> 19A | B66: 19 | C66: =VLOOKUP(B66,EventsOrder,2,FALSE) -> 1 | D66: =VLOOKUP(B66,EventsOrder,4,FALSE) -> U17 Female | E66: A | F66: =IF(MID(D66,5,1)="F","F","M") -> F | AE66: =IF(LEN(G66)=0,"",VLOOKUP($B66,IF($F66="F",TeamSheetFemale,TeamSheetMale),CC66,FALSE)) ->  | AM66: 0 | AN66: 0 | AO66: 0 | AP66: 0 | AQ66: 0 | AR66: 0 | AS66: 0 | AT66: 0 | AU66: 0 | AV66: 0 | AW66: 0 | AX66: 0 | AY66: 0 | AZ66: 0 | BA66: 0 | BB66: 0 | BC66: =IF(ISNA(MATCH(BC$29,$BS66:$BZ66,0)),0,MATCH(BC$29,$BS66:$BZ66,0)) -> 0 | BD66: 0 | BE66: 0 | BF66: 0 | BG66: 0 | BH66: 0 | BI66: 0 | BJ66: 0 | BK66: 0 | BL66: 0 | BM66: 0 | BN66: 0 | BO66: 0 | BP66: 0 | BQ66: 0 | BR66: 0 | CD66: =IF(LEN(H66)=0,"",HLOOKUP(BT66,$CC$26:$CJ$28,2,FALSE)+IF(LEN(H66)=2,2,0)) -> 
A67: =B66&"B" -> 19B | D67: =VLOOKUP(B66,EventsOrder,3,FALSE) -> 80m hurdles (U17) | E67: B | AE67: =IF(LEN(G67)=0,"",VLOOKUP($B66,IF($F66="F",TeamSheetFemale,TeamSheetMale),CC67,FALSE)) ->  | AM67: 0 | AN67: 0 | AO67: 0 | AP67: 0 | AQ67: 0 | AR67: 0 | AS67: 0 | AT67: 0 | AU67: =OFFSET($N67,0,BC67) -> 0 | AV67: =OFFSET($N67,0,BD67) -> 0 | AW67: =OFFSET($N67,0,BE67) -> 0 | AX67: =OFFSET($N67,0,BF67) -> 0 | AY67: 0 | AZ67: 0 | BA67: 0 | BB67: 0 | BC67: 0 | BD67: 0 | BE67: 0 | BF67: 0 | BG67: 0 | BH67: 0 | BI67: 0 | BJ67: 0 | BK67: 0 | BL67: 0 | BM67: 0 | BN67: 0 | BO67: 0 | BP67: 0 | BQ67: 0 | BR67: 0
A68: =B68&"A" -> 20A | B68: 20 | C68: =VLOOKUP(B68,EventsOrder,2,FALSE) -> 1.05 | D68: =VLOOKUP(B68,EventsOrder,4,FALSE) -> U15 Male | E68: A | F68: =IF(MID(D68,5,1)="F","F","M") -> M | G68: F | H68: U | I68: C | J68: I | K68: G | L68: O | O68: 12.5 | P68: 14 | Q68: 15.3 | R68: 16.2 | S68: 16.4 | T68: 18.1 | W68: F | X68: U | Y68: C | Z68: I | AA68: G | AB68: O | AE68: =IF(LEN(G68)=0,"",VLOOKUP($B68,IF($F68="F",TeamSheetFemale,TeamSheetMale),CC68,FALSE)) -> Owen Sherriff | AF68: Kieran Beech | AG68: Will Thorley | AH68: Lewis-Morgan Barton | AI68: Luke Stoddart | AJ68: Finlay Wilson | AM68: 6 | AN68: 3 | AO68: 5 | AP68: 7 | AQ68: 0 | AR68: 8 | AS68: 4 | AT68: 0 | AU68: 15.3 | AV68: 18.1 | AW68: 16.2 | AX68: 14 | AY68: 0 | AZ68: 12.5 | BA68: 16.4 | BB68: 0 | BC68: 3 | BD68: 6 | BE68: 4 | BF68: 2 | BG68: 0 | BH68: 1 | BI68: 5 | BJ68: 0 | BK68: Tam | BL68: K&S | BM68: B&R | BN68: Kett | BO68: Royal | BP68: Corby | BQ68: 0 | BR68: 0 | BS68: F | BT68: U | BU68: C | BV68: I | BW68: G | BX68: O | CC68: =IF(LEN(G68)=0,"",HLOOKUP(BS68,$CC$26:$CJ$28,2,FALSE)+IF(LEN(G68)=2,2,0)) -> 32 | CD68: 22 | CE68: 7 | CF68: 17 | CG68: 37 | CH68: 12
A69: =B68&"B" -> 20B | D69: =VLOOKUP(B68,EventsOrder,3,FALSE) -> 80m hurdles | E69: B | G69: CC | O69: 15 | W69: CC | AE69: =IF(LEN(G69)=0,"",VLOOKUP($B68,IF($F68="F",TeamSheetFemale,TeamSheetMale),CC69,FALSE)) -> Alfie Pullen | AM69: 8 | AN69: 0 | AO69: 0 | AP69: 0 | AQ69: 0 | AR69: 0 | AS69: 0 | AT69: 0 | AU69: 15 | AV69: 0 | AW69: 0 | AX69: 0 | AY69: 0 | AZ69: 0 | BA69: 0 | BB69: 0 | BC69: 1 | BD69: 0 | BE69: 0 | BF69: 0 | BG69: 0 | BH69: 0 | BI69: 0 | BJ69: 0 | BK69: B&R | BL69: 0 | BM69: 0 | BN69: 0 | BO69: 0 | BP69: 0 | BQ69: 0 | BR69: 0 | BS69: C | CC69: 9
A70: =B70&"A" -> 21A | B70: 21 | C70: =VLOOKUP(B70,EventsOrder,2,FALSE) -> 1 | D70: =VLOOKUP(B70,EventsOrder,4,FALSE) -> U15 Female | E70: C | F70: =IF(MID(D70,5,1)="F","F","M") -> F | G70: B | H70: I | I70: O | J70: X | K70: U | L70: CC | M70: GG | N70: F | O70: 4.17 | P70: 4.09 | Q70: 4.03 | R70: 3.98 | S70: 3.76 | T70: 3.61 | U70: 3.47 | V70: 3.43 | W70: B | X70: I | Y70: O | Z70: X | AA70: U | AB70: CC | AC70: GG | AD70: F | AE70: =IF(LEN(G70)=0,"",VLOOKUP($B70,IF($F70="F",TeamSheetFemale,TeamSheetMale),CC70,FALSE)) -> Jessica Crook | AF70: Alex Beale | AG70: GEORGIA MILLS | AH70: Scarlett Pagett-Wright | AI70: Jessica Surridge | AJ70: Robyn Yeomans | AK70: Beth Darrock | AL70: Eve Clawley | AM70: 3 | AN70: 6 | AO70: 7 | AP70: 4 | AQ70: 8 | AR70: 1 | AS70: 2 | AT70: 5 | AU70: 3.61 | AV70: 4.03 | AW70: 4.09 | AX70: 3.76 | AY70: 4.17 | AZ70: 3.43 | BA70: 3.47 | BB70: 3.98 | BC70: 6 | BD70: 3 | BE70: 2 | BF70: 5 | BG70: 1 | BH70: 8 | BI70: 7 | BJ70: 4 | BK70: DASH | BL70: Kett | BM70: Corby | BN70: Wreake | BO70: K&S | BP70: B&R | BQ70: Royal | BR70: Tam | BS70: B | BT70: I | BU70: O | BV70: X | BW70: U | BX70: C | BY70: G | BZ70: F | CC70: 27 | CD70: 17 | CE70: 12 | CF70: 42 | CG70: 22 | CH70: 9 | CI70: 39 | CJ70: 32
A71: =B70&"B" -> 21B | D71: =VLOOKUP(B70,EventsOrder,3,FALSE) -> Long Jump | E71: D | G71: II | H71: C | I71: G | J71: XX | K71: FF | L71: BB | M71: OO | O71: 3.73 | P71: 3.47 | Q71: 3.44 | R71: 3.43 | S71: 3.35 | T71: 3.07 | U71: 2.57 | AC71: OO | AE71: =IF(LEN(G71)=0,"",VLOOKUP($B70,IF($F70="F",TeamSheetFemale,TeamSheetMale),CC71,FALSE)) -> Poppy Jones | AF71: Orla Lewis | AG71: Maddy Underwood | AH71: Emily Mctaggart | AI71: Lauren Swindell | AJ71: Grace Slater | AK71: LAURA DEW | AM71: 7 | AN71: 2 | AO71: 8 | AP71: 0 | AQ71: 3 | AR71: 4 | AS71: 6 | AT71: 5 | AU71: 3.47 | AV71: 2.57 | AW71: 3.73 | AX71: 0 | AY71: 3.07 | AZ71: 3.35 | BA71: 3.44 | BB71: 3.43 | BC71: 2 | BD71: 7 | BE71: 1 | BF71: 0 | BG71: 6 | BH71: 5 | BI71: 3 | BJ71: 4 | BK71: Kett | BL71: B&R | BM71: Royal | BN71: Wreake | BO71: Tam | BP71: DASH | BQ71: Corby | BR71: 0 | BS71: I | BT71: C | BU71: G | BV71: X | BW71: F | BX71: B | BY71: O | CC71: 19 | CD71: 7 | CE71: 37 | CF71: 44 | CG71: 34 | CH71: 29 | CI71: 14
A72: =B72&"A" -> 22A | B72: 22 | C72: =VLOOKUP(B72,EventsOrder,2,FALSE) -> 1 | D72: =VLOOKUP(B72,EventsOrder,4,FALSE) -> U15 Male | E72: A | F72: =IF(MID(D72,5,1)="F","F","M") -> M | G72: I | H72: U | I72: G | J72: O | K72: F | L72: XX | M72: C | N72: B | O72: 10.55 | P72: 9.62 | Q72: 7.21 | R72: 6.53 | S72: 6.43 | T72: 5.68 | U72: 5.56 | V72: 4.68 | W72: I | X72: U | Y72: G | Z72: O | AA72: F | AB72: XX | AC72: C | AD72: B | AE72: =IF(LEN(G72)=0,"",VLOOKUP($B72,IF($F72="F",TeamSheetFemale,TeamSheetMale),CC72,FALSE)) -> Tapuwa Chitiga | AF72: Jack Lambert | AG72: James Ward | AH72: Sam Haines | AI72: Lewis Johnson | AJ72: Charlie McGlinchey | AK72: Tom Deykin | AL72: Brandon Granger | AM72: 2 | AN72: 5 | AO72: 8 | AP72: 7 | AQ72: 1 | AR72: 4 | AS72: 6 | AT72: 3 | AU72: 5.56 | AV72: 6.53 | AW72: 10.55 | AX72: 9.62 | AY72: 4.68 | AZ72: 6.43 | BA72: 7.21 | BB72: 5.68 | BC72: 7 | BD72: 4 | BE72: 1 | BF72: 2 | BG72: 8 | BH72: 5 | BI72: 3 | BJ72: 6 | BK72: Kett | BL72: K&S | BM72: Royal | BN72: Corby | BO72: Tam | BP72: Wreake | BQ72: B&R | BR72: DASH | BS72: I | BT72: U | BU72: G | BV72: O | BW72: F | BX72: X | BY72: C | BZ72: B | CC72: 17 | CD72: 22 | CE72: 37 | CF72: 12 | CG72: 32 | CH72: 44 | CI72: 7 | CJ72: 27
A73: =B72&"B" -> 22B | D73: =VLOOKUP(B72,EventsOrder,3,FALSE) -> Shot | E73: B | G73: II | H73: UU | I73: OO | J73: X | K73: CC | O73: 6.84 | P73: 5.2 | Q73: 4.67 | R73: 4.38 | S73: 4.23 | AE73: =IF(LEN(G73)=0,"",VLOOKUP($B72,IF($F72="F",TeamSheetFemale,TeamSheetMale),CC73,FALSE)) -> Henri Codling | AF73: Christopher Telling | AG73: Joel Camera | AH73: Josh Rocks | AI73: Trenton Roberts | AM73: 4 | AN73: 6 | AO73: 8 | AP73: 7 | AQ73: 0 | AR73: 0 | AS73: 0 | AT73: 5 | AU73: 4.23 | AV73: 4.67 | AW73: 6.84 | AX73: 5.2 | AY73: 0 | AZ73: 0 | BA73: 0 | BB73: 4.38 | BC73: 5 | BD73: 3 | BE73: 1 | BF73: 2 | BG73: 0 | BH73: 0 | BI73: 0 | BJ73: 4 | BK73: Kett | BL73: K&S | BM73: Corby | BN73: Wreake | BO73: B&R | BP73: 0 | BQ73: 0 | BR73: 0 | BS73: I | BT73: U | BU73: O | BV73: X | BW73: C | CC73: 19 | CD73: 24 | CE73: 14 | CF73: 42 | CG73: 9
A74: =B74&"A" -> 23A | B74: 23 | C74: =VLOOKUP(B74,EventsOrder,2,FALSE) -> 1 | D74: =VLOOKUP(B74,EventsOrder,4,FALSE) -> U17 Men | E74: A | F74: =IF(MID(D74,5,1)="F","F","M") -> M | G74: U | H74: B | I74: X | J74: G | O74: 29.63 | P74: 27.43 | Q74: 21.28 | R74: 16.36 | W74: U | X74: B | Y74: X | Z74: G | AE74: =IF(LEN(G74)=0,"",VLOOKUP($B74,IF($F74="F",TeamSheetFemale,TeamSheetMale),CC74,FALSE)) -> James Milburn | AF74: James Kelly | AG74: Sam Alvey | AH74: Sam Grimshaw | AM74: 0 | AN74: 0 | AO74: 0 | AP74: 8 | AQ74: 7 | AR74: 0 | AS74: 5 | AT74: 6 | AU74: 0 | AV74: 0 | AW74: 0 | AX74: 29.63 | AY74: 27.43 | AZ74: 0 | BA74: 16.36 | BB74: 21.28 | BC74: 0 | BD74: 0 | BE74: 0 | BF74: 1 | BG74: 2 | BH74: 0 | BI74: 4 | BJ74: 3 | BK74: K&S | BL74: DASH | BM74: Wreake | BN74: Royal | BO74: 0 | BP74: 0 | BQ74: 0 | BR74: 0 | BS74: U | BT74: B | BU74: X | BV74: G | CC74: 22 | CD74: 27 | CE74: 42 | CF74: 37
A75: =B74&"B" -> 23B | D75: =VLOOKUP(B74,EventsOrder,3,FALSE) -> Discus | E75: B | G75: UU | H75: XX | O75: 23.56 | P75: 11.21 | AE75: =IF(LEN(G75)=0,"",VLOOKUP($B74,IF($F74="F",TeamSheetFemale,TeamSheetMale),CC75,FALSE)) -> Greg Knight | AF75: Tom Paget Wright | AM75: 0 | AN75: 0 | AO75: 0 | AP75: 8 | AQ75: 0 | AR75: 0 | AS75: 0 | AT75: 7 | AU75: 0 | AV75: 0 | AW75: 0 | AX75: 23.56 | AY75: 0 | AZ75: 0 | BA75: 0 | BB75: 11.21 | BC75: 0 | BD75: 0 | BE75: 0 | BF75: 1 | BG75: 0 | BH75: 0 | BI75: 0 | BJ75: 2 | BK75: K&S | BL75: Wreake | BM75: 0 | BN75: 0 | BO75: 0 | BP75: 0 | BQ75: 0 | BR75: 0 | BS75: U | BT75: X | CC75: 24 | CD75: 44
A76: =B76&"A" -> 24A | B76: 24 | C76: =VLOOKUP(B76,EventsOrder,2,FALSE) -> 1 | D76: =VLOOKUP(B76,EventsOrder,4,FALSE) -> U13 Male | E76: A | F76: =IF(MID(D76,5,1)="F","F","M") -> M | AE76: =IF(LEN(G76)=0,"",VLOOKUP($B76,IF($F76="F",TeamSheetFemale,TeamSheetMale),CC76,FALSE)) ->  | AM76: 0 | AN76: 0 | AO76: 0 | AP76: 0 | AQ76: 0 | AR76: 0 | AS76: 0 | AT76: 0 | AU76: 0 | AV76: 0 | AW76: 0 | AX76: 0 | AY76: 0 | AZ76: 0 | BA76: 0 | BB76: 0 | BC76: 0 | BD76: 0 | BE76: 0 | BF76: 0 | BG76: 0 | BH76: 0 | BI76: 0 | BJ76: 0 | BK76: =IF(LEN(G76)>0,VLOOKUP(LEFT(G76,1),Clubs,5,FALSE),0) -> 0 | BL76: =IF(LEN(H76)>0,VLOOKUP(LEFT(H76,1),Clubs,5,FALSE),0) -> 0 | BM76: =IF(LEN(I76)>0,VLOOKUP(LEFT(I76,1),Clubs,5,FALSE),0) -> 0 | BN76: =IF(LEN(J76)>0,VLOOKUP(LEFT(J76,1),Clubs,5,FALSE),0) -> 0 | BO76: =IF(LEN(K76)>0,VLOOKUP(LEFT(K76,1),Clubs,5,FALSE),0) -> 0 | BP76: =IF(LEN(L76)>0,VLOOKUP(LEFT(L76,1),Clubs,5,FALSE),0) -> 0 | BQ76: =IF(LEN(M76)>0,VLOOKUP(LEFT(M76,1),Clubs,5,FALSE),0) -> 0 | BR76: =IF(LEN(N76)>0,VLOOKUP(LEFT(N76,1),Clubs,5,FALSE),0) -> 0 | BS76: =LEFT(G76,1) -> 
A77: =B76&"B" -> 24B | D77: =VLOOKUP(B76,EventsOrder,3,FALSE) -> Javelin | E77: B | AE77: =IF(LEN(G77)=0,"",VLOOKUP($B76,IF($F76="F",TeamSheetFemale,TeamSheetMale),CC77,FALSE)) ->  | AM77: 0 | AN77: 0 | AO77: 0 | AP77: 0 | AQ77: 0 | AR77: 0 | AS77: 0 | AT77: 0 | AU77: 0 | AV77: 0 | AW77: 0 | AX77: 0 | AY77: =OFFSET($N77,0,BG77) -> 0 | AZ77: =OFFSET($N77,0,BH77) -> 0 | BA77: =OFFSET($N77,0,BI77) -> 0 | BB77: =OFFSET($N77,0,BJ77) -> 0 | BC77: 0 | BD77: 0 | BE77: 0 | BF77: 0 | BG77: 0 | BH77: 0 | BI77: 0 | BJ77: 0 | BK77: 0 | BL77: 0 | BM77: 0 | BN77: 0 | BO77: 0 | BP77: 0 | BQ77: 0 | BR77: 0 | BT77: =LEFT(H77,1) ->  | BU77: =LEFT(I77,1) ->  | BV77: =LEFT(J77,1) ->  | BW77: =LEFT(K77,1) ->  | BX77: =LEFT(L77,1) ->  | BY77: =LEFT(M77,1) ->  | BZ77: =LEFT(N77,1) -> 
A78: =B78&"A" -> 25A | B78: 25 | C78: =VLOOKUP(B78,EventsOrder,2,FALSE) -> 1.15 | D78: =VLOOKUP(B78,EventsOrder,4,FALSE) -> U13 Female | E78: A | F78: =IF(MID(D78,5,1)="F","F","M") -> F | G78: F | H78: X | I78: G | J78: I | K78: O | L78: C | O78: 2.31.3 | P78: 2.33.1 | Q78: 2.37.3 | R78: 2.43.2 | S78: 2.56.1 | T78: 3.08.8 | W78: F | X78: X | Y78: G | Z78: I | AA78: O | AB78: C | AE78: =IF(LEN(G78)=0,"",VLOOKUP($B78,IF($F78="F",TeamSheetFemale,TeamSheetMale),CC78,FALSE)) -> Sian Lewis | AF78: Maya Stokes | AG78: Maddie Hammond | AH78: Sky-Lily Kay | AI78: MATILDA SUMMERVILLE-COTTON | AJ78: Quincy Roberts | AM78: 3 | AN78: 4 | AO78: 5 | AP78: 0 | AQ78: 0 | AR78: 8 | AS78: 6 | AT78: 7 | AU78: 3.08.8 | AV78: 2.56.1 | AW78: 2.43.2 | AX78: 0 | AY78: 0 | AZ78: 2.31.3 | BA78: 2.37.3 | BB78: 2.33.1 | BC78: 6 | BD78: 5 | BE78: 4 | BF78: 0 | BG78: 0 | BH78: 1 | BI78: 3 | BJ78: 2 | BK78: Tam | BL78: Wreake | BM78: Royal | BN78: Kett | BO78: Corby | BP78: B&R | BQ78: 0 | BR78: 0 | BS78: F | BT78: X | BU78: G | BV78: I | BW78: O | BX78: C | CC78: 32 | CD78: 42 | CE78: 37 | CF78: 17 | CG78: 12 | CH78: 7
A79: =B78&"B" -> 25B | D79: =VLOOKUP(B78,EventsOrder,3,FALSE) -> 800m | E79: B | G79: XX | H79: II | I79: GG | J79: OO | K79: FF | O79: 2.38.2 | P79: 2.39.0 | Q79: 2.59.2 | R79: 3.01.1 | S79: 3.03.4 | W79: XX | X79: II | Y79: GG | Z79: OO | AA79: FF | AE79: =IF(LEN(G79)=0,"",VLOOKUP($B78,IF($F78="F",TeamSheetFemale,TeamSheetMale),CC79,FALSE)) -> Indie King | AF79: Natalie Short | AG79: Milly Fidkin | AH79: ANNIE BECKWITH | AI79: Sophie Perry | AM79: 0 | AN79: 5 | AO79: 7 | AP79: 0 | AQ79: 0 | AR79: 4 | AS79: 6 | AT79: 8 | AU79: 0 | AV79: 3.01.1 | AW79: 2.39.0 | AX79: 0 | AY79: 0 | AZ79: 3.03.4 | BA79: 2.59.2 | BB79: 2.38.2 | BC79: 0 | BD79: 4 | BE79: 2 | BF79: 0 | BG79: 0 | BH79: 5 | BI79: 3 | BJ79: 1 | BK79: Wreake | BL79: Kett | BM79: Royal | BN79: Corby | BO79: Tam | BP79: 0 | BQ79: 0 | BR79: 0 | BS79: X | BT79: I | BU79: G | BV79: O | BW79: F | CC79: 44 | CD79: 19 | CE79: 39 | CF79: 14 | CG79: 34
A80: =B80&"A" -> 26A | B80: 26 | C80: =VLOOKUP(B80,EventsOrder,2,FALSE) -> 1.25 | D80: =VLOOKUP(B80,EventsOrder,4,FALSE) -> U15 Female | E80: A | F80: =IF(MID(D80,5,1)="F","F","M") -> F | G80: U | H80: F | I80: C | J80: G | K80: O | L80: X | M80: I | O80: 2.26.8 | P80: 2.27.7 | Q80: 2.29.5 | R80: 2.40.5 | S80: 2.40.5 | T80: 2.44.9 | U80: 2.49.7 | W80: U | X80: F | Y80: C | Z80: G | AA80: O | AB80: X | AC80: I | AE80: =IF(LEN(G80)=0,"",VLOOKUP($B80,IF($F80="F",TeamSheetFemale,TeamSheetMale),CC80,FALSE)) -> Georgia Lees | AF80: Eve Clawley | AG80: Alice Battey | AH80: Mel Adkins | AI80: DONNA HERON | AJ80: Scarlet Paget Wright | AK80: Harriet Jolley | AM80: 6 | AN80: 4 | AO80: 2 | AP80: 8 | AQ80: 0 | AR80: 7 | AS80: 5 | AT80: 3 | AU80: 2.29.5 | AV80: 2.40.5 | AW80: 2.49.7 | AX80: 2.26.8 | AY80: 0 | AZ80: 2.27.7 | BA80: 2.40.5 | BB80: 2.44.9 | BC80: 3 | BD80: 5 | BE80: 7 | BF80: 1 | BG80: 0 | BH80: 2 | BI80: 4 | BJ80: 6 | BK80: K&S | BL80: Tam | BM80: B&R | BN80: Royal | BO80: Corby | BP80: Wreake | BQ80: Kett | BR80: 0 | BS80: U | BT80: F | BU80: C | BV80: G | BW80: O | BX80: X | BY80: I | CC80: 22 | CD80: 32 | CE80: 7 | CF80: 37 | CG80: 12 | CH80: 42 | CI80: 17
A81: =B80&"B" -> 26B | D81: =VLOOKUP(B80,EventsOrder,3,FALSE) -> 800m | E81: B | G81: CC | H81: FF | I81: OO | J81: II | O81: 2.33.0 | P81: 2.45.0 | Q81: 2.48.6 | R81: 2.59.5 | W81: CC | X81: FF | Y81: OO | Z81: II | AE81: =IF(LEN(G81)=0,"",VLOOKUP($B80,IF($F80="F",TeamSheetFemale,TeamSheetMale),CC81,FALSE)) -> Anna Nicod | AF81: Lauren Swindell | AG81: LAURA DEW | AH81: Olivia Knibb | AM81: 8 | AN81: 6 | AO81: 5 | AP81: 0 | AQ81: 0 | AR81: 7 | AS81: 0 | AT81: 0 | AU81: 2.33.0 | AV81: 2.48.6 | AW81: 2.59.5 | AX81: 0 | AY81: 0 | AZ81: 2.45.0 | BA81: 0 | BB81: 0 | BC81: 1 | BD81: 3 | BE81: 4 | BF81: 0 | BG81: 0 | BH81: 2 | BI81: 0 | BJ81: 0 | BK81: B&R | BL81: Tam | BM81: Corby | BN81: Kett | BO81: 0 | BP81: 0 | BQ81: 0 | BR81: 0 | BS81: C | BT81: F | BU81: O | BV81: I | CC81: 9 | CD81: 34 | CE81: 14 | CF81: 19
A82: =B82&"A" -> 27A | B82: 27 | C82: =VLOOKUP(B82,EventsOrder,2,FALSE) -> 1.35 | D82: =VLOOKUP(B82,EventsOrder,4,FALSE) -> U17 Men | E82: A | F82: =IF(MID(D82,5,1)="F","F","M") -> M | G82: U | O82: 17.2 | W82: U | AE82: =IF(LEN(G82)=0,"",VLOOKUP($B82,IF($F82="F",TeamSheetFemale,TeamSheetMale),CC82,FALSE)) -> James Milburn | AM82: 0 | AN82: 0 | AO82: 0 | AP82: 8 | AQ82: 0 | AR82: 0 | AS82: 0 | AT82: 0 | AU82: 0 | AV82: 0 | AW82: 0 | AX82: 17.2 | AY82: 0 | AZ82: 0 | BA82: 0 | BB82: 0 | BC82: =IF(ISNA(MATCH(BC$29,$BS82:$BZ82,0)),0,MATCH(BC$29,$BS82:$BZ82,0)) -> 0 | BD82: 0 | BE82: 0 | BF82: 1 | BG82: 0 | BH82: 0 | BI82: 0 | BJ82: 0 | BK82: K&S | BL82: 0 | BM82: 0 | BN82: 0 | BO82: 0 | BP82: 0 | BQ82: 0 | BR82: 0 | BS82: U | CC82: 22
A83: =B82&"B" -> 27B | D83: =VLOOKUP(B82,EventsOrder,3,FALSE) -> 100m hurdles | E83: B | AE83: =IF(LEN(G83)=0,"",VLOOKUP($B82,IF($F82="F",TeamSheetFemale,TeamSheetMale),CC83,FALSE)) ->  | AM83: 0 | AN83: 0 | AO83: 0 | AP83: 0 | AQ83: 0 | AR83: 0 | AS83: 0 | AT83: 0 | AU83: 0 | AV83: 0 | AW83: 0 | AX83: 0 | AY83: 0 | AZ83: 0 | BA83: 0 | BB83: 0 | BC83: 0 | BD83: 0 | BE83: 0 | BF83: 0 | BG83: 0 | BH83: 0 | BI83: 0 | BJ83: 0 | BK83: 0 | BL83: 0 | BM83: 0 | BN83: 0 | BO83: 0 | BP83: 0 | BQ83: 0 | BR83: 0
A84: =B84&"A" -> 28A | B84: 28 | C84: =VLOOKUP(B84,EventsOrder,2,FALSE) -> 1.4 | D84: =VLOOKUP(B84,EventsOrder,4,FALSE) -> U17 F/Women | E84: A | F84: =IF(MID(D84,5,1)="F","F","M") -> F | G84: X | H84: O | I84: C | J84: I | K84: B | L84: G | O84: 2.30.6 | P84: 2.31.7 | Q84: 2.32.2 | R84: 2.35.8 | S84: 2.53.4 | T84: 2.55.7 | W84: X | X84: O | Y84: C | Z84: I | AA84: B | AB84: G | AE84: =IF(LEN(G84)=0,"",VLOOKUP($B84,IF($F84="F",TeamSheetFemale,TeamSheetMale),CC84,FALSE)) -> Fern Harrison | AF84: AMY SAVILLE | AG84: Megan Nicod | AH84: Claudia Nevett | AI84: Daisy Slater | AJ84: Lucy Wood | AM84: 6 | AN84: 7 | AO84: 5 | AP84: 0 | AQ84: 4 | AR84: 0 | AS84: 3 | AT84: 8 | AU84: 2.32.2 | AV84: 2.31.7 | AW84: 2.35.8 | AX84: 0 | AY84: 2.53.4 | AZ84: 0 | BA84: 2.55.7 | BB84: 2.30.6 | BC84: 3 | BD84: 2 | BE84: 4 | BF84: 0 | BG84: 5 | BH84: 0 | BI84: 6 | BJ84: 1 | BK84: Wreake | BL84: Corby | BM84: B&R | BN84: Kett | BO84: DASH | BP84: Royal | BQ84: 0 | BR84: 0 | BS84: X | BT84: O | BU84: C | BV84: I | BW84: B | BX84: G | CC84: 42 | CD84: 12 | CE84: 7 | CF84: 17 | CG84: 27 | CH84: 37
A85: =B84&"B" -> 28B | D85: =VLOOKUP(B84,EventsOrder,3,FALSE) -> 800m | E85: B | G85: CC | H85: XX | O85: 2.40.4 | P85: 3.04.7 | W85: CC | X85: XX | AE85: =IF(LEN(G85)=0,"",VLOOKUP($B84,IF($F84="F",TeamSheetFemale,TeamSheetMale),CC85,FALSE)) -> Charlotte Knight | AF85: Michaela Knight | AM85: 8 | AN85: 0 | AO85: 0 | AP85: 0 | AQ85: 0 | AR85: 0 | AS85: 0 | AT85: 7 | AU85: 2.40.4 | AV85: 0 | AW85: 0 | AX85: 0 | AY85: 0 | AZ85: 0 | BA85: 0 | BB85: 3.04.7 | BC85: 1 | BD85: 0 | BE85: 0 | BF85: 0 | BG85: 0 | BH85: 0 | BI85: 0 | BJ85: 2 | BK85: B&R | BL85: Wreake | BM85: 0 | BN85: 0 | BO85: 0 | BP85: 0 | BQ85: 0 | BR85: 0 | BS85: C | BT85: X | CC85: 9 | CD85: 44
A86: =B86&"A" -> 29A | B86: 29 | C86: =VLOOKUP(B86,EventsOrder,2,FALSE) -> 1.5 | D86: =VLOOKUP(B86,EventsOrder,4,FALSE) -> U11 Female | E86: A | F86: =IF(MID(D86,5,1)="F","F","M") -> F | G86: O | H86: X | I86: G | J86: F | K86: C | L86: I | M86: B | N86: U | O86: 1.54.1 | P86: 1.55.2 | Q86: 2.02.5 | R86: 2.16.3 | S86: 2.19.2 | T86: 2.24.1 | U86: 2.24.5 | V86: 2.24.5 | W86: O | X86: X | Y86: G | Z86: F | AA86: C | AB86: I | AC86: B | AD86: U | AE86: =IF(LEN(G86)=0,"",VLOOKUP($B86,IF($F86="F",TeamSheetFemale,TeamSheetMale),CC86,FALSE)) -> MADELINE MAYES | AF86: Destiny Nicholson | AG86: Hope Stirland | AH86: Tegan Vickery | AI86: Alana Pullen | AJ86: Emma Robinson | AK86: Libby Davies | AL86: Hannah Telling | AM86: 4 | AN86: 8 | AO86: 3 | AP86: 1 | AQ86: 2 | AR86: 5 | AS86: 6 | AT86: 7 | AU86: 2.19.2 | AV86: 1.54.1 | AW86: 2.24.1 | AX86: 2.24.5 | AY86: 2.24.5 | AZ86: 2.16.3 | BA86: 2.02.5 | BB86: 1.55.2 | BC86: 5 | BD86: 1 | BE86: 6 | BF86: 8 | BG86: 7 | BH86: 4 | BI86: 3 | BJ86: 2 | BK86: Corby | BL86: Wreake | BM86: Royal | BN86: Tam | BO86: B&R | BP86: Kett | BQ86: DASH | BR86: K&S | BS86: O | BT86: X | BU86: G | BV86: F | BW86: C | BX86: I | BY86: B | BZ86: U | CC86: 12 | CD86: 42 | CE86: 37 | CF86: 32 | CG86: 7 | CH86: 17 | CI86: 27 | CJ86: 22
A87: =B86&"B" -> 29B | D87: =VLOOKUP(B86,EventsOrder,3,FALSE) -> 600m | E87: B | G87: XX | H87: OO | I87: GG | J87: BB | K87: II | L87: CC | O87: 2.04.4 | P87: 2.14.7 | Q87: 2.14.7 | R87: 2.21.3 | S87: 2.21.6 | T87: 2.26.2 | W87: XX | X87: OO | Y87: GG | Z87: BB | AA87: II | AB87: CC | AE87: =IF(LEN(G87)=0,"",VLOOKUP($B86,IF($F86="F",TeamSheetFemale,TeamSheetMale),CC87,FALSE)) -> Eliza Weselby | AF87: CASIE SEYMOUR | AG87: Zara Buchanan | AH87: Kiki Thuray | AI87: Kate Nelis | AJ87: Georgia Duncombe | AM87: 3 | AN87: 7 | AO87: 4 | AP87: 0 | AQ87: 5 | AR87: 0 | AS87: 6 | AT87: 8 | AU87: 2.26.2 | AV87: 2.14.7 | AW87: 2.21.6 | AX87: 0 | AY87: 2.21.3 | AZ87: 0 | BA87: 2.14.7 | BB87: 2.04.4 | BC87: 6 | BD87: 2 | BE87: 5 | BF87: 0 | BG87: 4 | BH87: 0 | BI87: 3 | BJ87: 1 | BK87: Wreake | BL87: Corby | BM87: Royal | BN87: DASH | BO87: Kett | BP87: B&R | BQ87: 0 | BR87: 0 | BS87: X | BT87: O | BU87: G | BV87: B | BW87: I | BX87: C | CC87: 44 | CD87: 14 | CE87: 39 | CF87: 29 | CG87: 19 | CH87: 9
A88: =B88&"A" -> 30A | B88: 30 | C88: =VLOOKUP(B88,EventsOrder,2,FALSE) -> 1.55 | D88: =VLOOKUP(B88,EventsOrder,4,FALSE) -> U11 Female | E88: A | F88: =IF(MID(D88,5,1)="F","F","M") -> F | G88: X | H88: GG | I88: XX | J88: G | K88: OO | L88: O | O88: 2.05.1 | P88: 2.05.9 | Q88: 2.06.7 | R88: 2.07.6 | S88: 2.35.2 | T88: 2.41.2 | W88: 500 | X88: 306 | Y88: 504 | Z88: 307 | AA88: 410 | AB88: 409 | AE88: =IF(LEN(G88)=0,"",VLOOKUP($B88,IF($F88="F",TeamSheetFemale,TeamSheetMale),CC88,FALSE)) -> Maddy Torbitt | AF88: Sian Duval | AG88: Mackenzie Smith | AH88: Charlotte Prince | AI88: EMMA TIERNEY | AJ88: KIERA POTTER | AM88: 0 | AN88: 4 | AO88: 0 | AP88: 0 | AQ88: 0 | AR88: 0 | AS88: 7 | AT88: 8 | AU88: 0 | AV88: 2.35.2 | AW88: 0 | AX88: 0 | AY88: 0 | AZ88: 0 | BA88: 2.05.9 | BB88: 2.05.1 | BC88: 0 | BD88: 5 | BE88: 0 | BF88: 0 | BG88: 0 | BH88: 0 | BI88: 2 | BJ88: 1 | BK88: Wreake | BL88: Royal | BM88: Wreake | BN88: Royal | BO88: Corby | BP88: Corby | BQ88: 0 | BR88: 0 | BS88: X | BT88: G | BU88: X | BV88: G | BW88: O | BX88: O | CC88: 42 | CD88: 39 | CE88: 44 | CF88: 37 | CG88: 14 | CH88: 12
A89: =B88&"B" -> 30B | D89: =VLOOKUP(B88,EventsOrder,3,FALSE) -> 600m | E89: B | AE89: =IF(LEN(G89)=0,"",VLOOKUP($B88,IF($F88="F",TeamSheetFemale,TeamSheetMale),CC89,FALSE)) ->  | AM89: 0 | AN89: 0 | AO89: 0 | AP89: 0 | AQ89: 0 | AR89: 0 | AS89: 0 | AT89: 0 | AU89: 0 | AV89: 0 | AW89: 0 | AX89: 0 | AY89: 0 | AZ89: 0 | BA89: 0 | BB89: 0 | BC89: 0 | BD89: 0 | BE89: 0 | BF89: 0 | BG89: 0 | BH89: 0 | BI89: 0 | BJ89: 0 | BK89: 0 | BL89: 0 | BM89: 0 | BN89: 0 | BO89: 0 | BP89: 0 | BQ89: 0 | BR89: 0
A90: =B90&"A" -> 31A | B90: 31 | C90: =VLOOKUP(B90,EventsOrder,2,FALSE) -> 1.4 | D90: =VLOOKUP(B90,EventsOrder,4,FALSE) -> U13 Female | E90: A | F90: =IF(MID(D90,5,1)="F","F","M") -> F | G90: C | H90: G | I90: I | O90: 1.3 | P90: 1.3 | Q90: 1.25 | W90: C | X90: G | Y90: I | AE90: =IF(LEN(G90)=0,"",VLOOKUP($B90,IF($F90="F",TeamSheetFemale,TeamSheetMale),CC90,FALSE)) -> Grace Dockray | AF90: Elsa Buchanan | AG90: Harriet Drake-Lee | AM90: 8 | AN90: 0 | AO90: 6 | AP90: 0 | AQ90: 0 | AR90: 0 | AS90: 7 | AT90: 0 | AU90: 1.3 | AV90: 0 | AW90: 1.25 | AX90: 0 | AY90: 0 | AZ90: 0 | BA90: 1.3 | BB90: 0 | BC90: 1 | BD90: 0 | BE90: 3 | BF90: 0 | BG90: 0 | BH90: 0 | BI90: 2 | BJ90: 0 | BK90: B&R | BL90: Royal | BM90: Kett | BN90: 0 | BO90: 0 | BP90: 0 | BQ90: 0 | BR90: 0 | BS90: C | BT90: G | BU90: I | CC90: =IF(LEN(G90)=0,"",HLOOKUP(BS90,$CC$26:$CJ$28,2,FALSE)+IF(LEN(G90)=2,2,0)) -> 7 | CD90: 37 | CE90: 17
A91: =B90&"B" -> 31B | D91: =VLOOKUP(B90,EventsOrder,3,FALSE) -> High Jump | E91: B | AE91: =IF(LEN(G91)=0,"",VLOOKUP($B90,IF($F90="F",TeamSheetFemale,TeamSheetMale),CC91,FALSE)) ->  | AM91: 0 | AN91: 0 | AO91: 0 | AP91: 0 | AQ91: 0 | AR91: 0 | AS91: 0 | AT91: 0 | AU91: 0 | AV91: 0 | AW91: 0 | AX91: 0 | AY91: 0 | AZ91: 0 | BA91: 0 | BB91: 0 | BC91: 0 | BD91: 0 | BE91: 0 | BF91: 0 | BG91: 0 | BH91: 0 | BI91: 0 | BJ91: 0 | BK91: 0 | BL91: 0 | BM91: 0 | BN91: 0 | BO91: 0 | BP91: 0 | BQ91: 0 | BR91: 0
A92: =B92&"A" -> 32A | B92: 32 | C92: =VLOOKUP(B92,EventsOrder,2,FALSE) -> 1.3 | D92: =VLOOKUP(B92,EventsOrder,4,FALSE) -> U17 Men | E92: A | F92: =IF(MID(D92,5,1)="F","F","M") -> M | G92: CC | H92: O | I92: G | J92: XX | K92: II | O92: 5.45 | P92: 5.37 | Q92: 5.07 | R92: 4.73 | S92: 3.92 | W92: CC | X92: O | Y92: G | Z92: XX | AA92: II | AE92: =IF(LEN(G92)=0,"",VLOOKUP($B92,IF($F92="F",TeamSheetFemale,TeamSheetMale),CC92,FALSE)) -> Andrew Johnson | AF92: Jack Benstead | AG92: George Creed | AH92: Tom Paget Wright | AI92: Sam Bott | AM92: 8 | AN92: 7 | AO92: 4 | AP92: 0 | AQ92: 0 | AR92: 0 | AS92: 6 | AT92: 5 | AU92: 5.45 | AV92: 5.37 | AW92: 3.92 | AX92: 0 | AY92: 0 | AZ92: 0 | BA92: 5.07 | BB92: 4.73 | BC92: 1 | BD92: 2 | BE92: 5 | BF92: 0 | BG92: 0 | BH92: 0 | BI92: 3 | BJ92: 4 | BK92: B&R | BL92: Corby | BM92: Royal | BN92: Wreake | BO92: Kett | BP92: 0 | BQ92: 0 | BR92: 0 | BS92: C | BT92: O | BU92: G | BV92: X | BW92: I | CC92: =IF(LEN(G92)=0,"",HLOOKUP(BS92,$CC$26:$CJ$28,2,FALSE)+IF(LEN(G92)=2,2,0)) -> 9 | CD92: =IF(LEN(H92)=0,"",HLOOKUP(BT92,$CC$26:$CJ$28,2,FALSE)+IF(LEN(H92)=2,2,0)) -> 12 | CE92: =IF(LEN(I92)=0,"",HLOOKUP(BU92,$CC$26:$CJ$28,2,FALSE)+IF(LEN(I92)=2,2,0)) -> 37 | CF92: =IF(LEN(J92)=0,"",HLOOKUP(BV92,$CC$26:$CJ$28,2,FALSE)+IF(LEN(J92)=2,2,0)) -> 44 | CG92: =IF(LEN(K92)=0,"",HLOOKUP(BW92,$CC$26:$CJ$28,2,FALSE)+IF(LEN(K92)=2,2,0)) -> 19 | CH92: =IF(LEN(L92)=0,"",HLOOKUP(BX92,$CC$26:$CJ$28,2,FALSE)+IF(LEN(L92)=2,2,0)) ->  | CI92: =IF(LEN(M92)=0,"",HLOOKUP(BY92,$CC$26:$CJ$28,2,FALSE)+IF(LEN(M92)=2,2,0)) ->  | CJ92: =IF(LEN(N92)=0,"",HLOOKUP(BZ92,$CC$26:$CJ$28,2,FALSE)+IF(LEN(N92)=2,2,0)) -> 
A93: =B92&"B" -> 32B | D93: =VLOOKUP(B92,EventsOrder,3,FALSE) -> Long Jump | E93: B | G93: C | H93: X | O93: 5.29 | P93: 4.4 | AE93: =IF(LEN(G93)=0,"",VLOOKUP($B92,IF($F92="F",TeamSheetFemale,TeamSheetMale),CC93,FALSE)) -> Issac Hill | AF93: Luke Berryman | AM93: 8 | AN93: 0 | AO93: 0 | AP93: 0 | AQ93: 0 | AR93: 0 | AS93: 0 | AT93: 7 | AU93: 5.29 | AV93: 0 | AW93: 0 | AX93: 0 | AY93: 0 | AZ93: 0 | BA93: 0 | BB93: 4.4 | BC93: 1 | BD93: 0 | BE93: 0 | BF93: 0 | BG93: 0 | BH93: 0 | BI93: 0 | BJ93: 2 | BK93: B&R | BL93: Wreake | BM93: 0 | BN93: 0 | BO93: 0 | BP93: 0 | BQ93: 0 | BR93: 0 | BS93: C | BT93: X | CC93: =IF(LEN(G93)=0,"",HLOOKUP(BS93,$CC$26:$CJ$28,2,FALSE)+IF(LEN(G93)=2,2,0)) -> 7 | CD93: 42
A94: =B94&"A" -> 33A | B94: 33 | C94: =VLOOKUP(B94,EventsOrder,2,FALSE) -> 2 | D94: =VLOOKUP(B94,EventsOrder,4,FALSE) -> U11 Male | E94: C | F94: =IF(MID(D94,5,1)="F","F","M") -> M | G94: C | H94: F | I94: X | J94: U | K94: B | L94: O | M94: G | O94: 1.59.4 | P94: 2.01.1 | Q94: 2.02.2 | R94: 2.05.5 | S94: 2.08.5 | T94: 2.13.5 | U94: 2.14.5 | W94: C | X94: F | Y94: X | Z94: U | AA94: B | AB94: O | AC94: G | AE94: =IF(LEN(G94)=0,"",VLOOKUP($B94,IF($F94="F",TeamSheetFemale,TeamSheetMale),CC94,FALSE)) -> Sebastian Purvis | AF94: James Stretton | AG94: Jack Hollidge | AH94: Harry Lees | AI94: John Sparry | AJ94: Seb Beckwith | AK94: Jacob Thomas | AM94: =IF(OR($F94="NS",AU94="DNF"),0,IF(BC94>0,$BK$29+1-BC94,0)) -> 8 | AN94: =IF(OR($F94="NS",AV94="DNF"),0,IF(BD94>0,$BK$29+1-BD94,0)) -> 3 | AO94: =IF(OR($F94="NS",AW94="DNF"),0,IF(BE94>0,$BK$29+1-BE94,0)) -> 0 | AP94: =IF(OR($F94="NS",AX94="DNF"),0,IF(BF94>0,$BK$29+1-BF94,0)) -> 5 | AQ94: =IF(OR($F94="NS",AY94="DNF"),0,IF(BG94>0,$BK$29+1-BG94,0)) -> 4 | AR94: =IF(OR($F94="NS",AZ94="DNF"),0,IF(BH94>0,$BK$29+1-BH94,0)) -> 7 | AS94: =IF(OR($F94="NS",BA94="DNF"),0,IF(BI94>0,$BK$29+1-BI94,0)) -> 2 | AT94: =IF(OR($F94="NS",BB94="DNF"),0,IF(BJ94>0,$BK$29+1-BJ94,0)) -> 6 | AU94: 1.59.4 | AV94: 2.13.5 | AW94: 0 | AX94: 2.05.5 | AY94: 2.08.5 | AZ94: 2.01.1 | BA94: 2.14.5 | BB94: 2.02.2 | BC94: 1 | BD94: 6 | BE94: 0 | BF94: 4 | BG94: 5 | BH94: 2 | BI94: 7 | BJ94: 3 | BK94: B&R | BL94: Tam | BM94: Wreake | BN94: K&S | BO94: DASH | BP94: Corby | BQ94: Royal | BR94: 0 | BS94: C | BT94: F | BU94: X | BV94: U | BW94: B | BX94: O | BY94: G | CC94: =IF(LEN(G94)=0,"",HLOOKUP(BS94,$CC$26:$CJ$28,2,FALSE)+IF(LEN(G94)=2,2,0)) -> 7 | CD94: =IF(LEN(H94)=0,"",HLOOKUP(BT94,$CC$26:$CJ$28,2,FALSE)+IF(LEN(H94)=2,2,0)) -> 32 | CE94: 42 | CF94: 22 | CG94: 27 | CH94: 12 | CI94: 37
A95: =B94&"B" -> 33B | D95: =VLOOKUP(B94,EventsOrder,3,FALSE) -> 600m | E95: D | G95: FF | H95: GG | I95: II | J95: BB | K95: XX | O95: 2.05.6 | P95: 2.15.5 | Q95: 2.16.1 | R95: 2.17.6 | S95: 2.21.3 | AE95: =IF(LEN(G95)=0,"",VLOOKUP($B94,IF($F94="F",TeamSheetFemale,TeamSheetMale),CC95,FALSE)) -> Daniel Aston | AF95: Harry Darrock | AG95: Ben Brooker | AH95: Jaime Crooke | AI95: Finley Venables | AM95: 0 | AN95: 0 | AO95: 6 | AP95: 0 | AQ95: 5 | AR95: 8 | AS95: 7 | AT95: 4 | AU95: 0 | AV95: 0 | AW95: 2.16.1 | AX95: 0 | AY95: 2.17.6 | AZ95: 2.05.6 | BA95: 2.15.5 | BB95: 2.21.3 | BC95: 0 | BD95: 0 | BE95: 3 | BF95: 0 | BG95: 4 | BH95: 1 | BI95: 2 | BJ95: 5 | BK95: Tam | BL95: Royal | BM95: Kett | BN95: DASH | BO95: Wreake | BP95: 0 | BQ95: 0 | BR95: 0 | BS95: F | BT95: G | BU95: I | BV95: B | BW95: X | CC95: =IF(LEN(G95)=0,"",HLOOKUP(BS95,$CC$26:$CJ$28,2,FALSE)+IF(LEN(G95)=2,2,0)) -> 34 | CD95: 39 | CE95: 19 | CF95: 29 | CG95: 44
A96: =B96&"A" -> 34A | B96: 34 | C96: =VLOOKUP(B96,EventsOrder,2,FALSE) -> 2.05 | D96: =VLOOKUP(B96,EventsOrder,4,FALSE) -> U11 Male | E96: A | F96: =IF(MID(D96,5,1)="F","F","M") -> M | G96: G | H96: F | I96: I | J96: X | O96: 2.03.6 | P96: 2.13.8 | Q96: 2.17.4 | R96: 2.18.9 | W96: 317 | X96: 12 | Y96: 94 | Z96: 507 | AE96: =IF(LEN(G96)=0,"",VLOOKUP($B96,IF($F96="F",TeamSheetFemale,TeamSheetMale),CC96,FALSE)) -> Tyrique Fagan | AF96: Ashley Johnson | AG96: Daniel Short | AH96: ROHAN STOKES | AM96: 0 | AN96: 0 | AO96: 6 | AP96: 0 | AQ96: 0 | AR96: 7 | AS96: 8 | AT96: 5 | AU96: 0 | AV96: 0 | AW96: 2.17.4 | AX96: 0 | AY96: 0 | AZ96: 2.13.8 | BA96: 2.03.6 | BB96: 2.18.9 | BC96: 0 | BD96: 0 | BE96: 3 | BF96: 0 | BG96: 0 | BH96: 2 | BI96: 1 | BJ96: 4 | BK96: Royal | BL96: Tam | BM96: Kett | BN96: Wreake | BO96: 0 | BP96: 0 | BQ96: 0 | BR96: 0 | BS96: G | BT96: F | BU96: I | BV96: X | CC96: =IF(LEN(G96)=0,"",HLOOKUP(BS96,$CC$26:$CJ$28,2,FALSE)+IF(LEN(G96)=2,2,0)) -> 37 | CD96: 32 | CE96: 17 | CF96: 42
A97: =B96&"B" -> 34B | D97: =VLOOKUP(B96,EventsOrder,3,FALSE) -> 600m | E97: B | G97: F | O97: 2.04.6 | AE97: =IF(LEN(G97)=0,"",VLOOKUP($B96,IF($F96="F",TeamSheetFemale,TeamSheetMale),CC97,FALSE)) -> Ashley Johnson | AM97: 0 | AN97: 0 | AO97: 0 | AP97: 0 | AQ97: 0 | AR97: 8 | AS97: 0 | AT97: 0 | AU97: 0 | AV97: 0 | AW97: 0 | AX97: 0 | AY97: 0 | AZ97: 2.04.6 | BA97: 0 | BB97: 0 | BC97: 0 | BD97: 0 | BE97: 0 | BF97: 0 | BG97: 0 | BH97: 1 | BI97: 0 | BJ97: 0 | BK97: Tam | BL97: 0 | BM97: 0 | BN97: 0 | BO97: 0 | BP97: 0 | BQ97: 0 | BR97: 0 | BS97: F | CC97: 32
A98: =B98&"A" -> 35A | B98: 35 | C98: =VLOOKUP(B98,EventsOrder,2,FALSE) -> 2.1 | D98: =VLOOKUP(B98,EventsOrder,4,FALSE) -> U13 Female | E98: A | F98: =IF(MID(D98,5,1)="F","F","M") -> F | G98: O | H98: I | I98: U | J98: B | K98: G | L98: C | M98: F | N98: X | O98: 14.1 | P98: 14.3 | Q98: 14.3 | R98: 14.5 | S98: 14.7 | T98: 15.3 | U98: 15.6 | V98: 15.8 | W98: O | X98: I | Y98: U | Z98: B | AA98: G | AB98: C | AC98: F | AD98: X | AE98: =IF(LEN(G98)=0,"",VLOOKUP($B98,IF($F98="F",TeamSheetFemale,TeamSheetMale),CC98,FALSE)) -> SOPHIE BEATY | AF98: Berny Kwei-tagoe | AG98: Izzy Mullett | AH98: Niamh Darby | AI98: Freya Liddington | AJ98: Henna Khaliq | AK98: Niamh Kilgallen | AL98: Katie Parker | AM98: 3 | AN98: 8 | AO98: 7 | AP98: 6 | AQ98: 5 | AR98: 2 | AS98: 4 | AT98: 1 | AU98: 15.3 | AV98: 14.1 | AW98: 14.3 | AX98: 14.3 | AY98: 14.5 | AZ98: 15.6 | BA98: 14.7 | BB98: 15.8 | BC98: =IF(ISNA(MATCH(BC$29,$BS98:$BZ98,0)),0,MATCH(BC$29,$BS98:$BZ98,0)) -> 6 | BD98: 1 | BE98: 2 | BF98: 3 | BG98: 4 | BH98: 7 | BI98: 5 | BJ98: 8 | BK98: Corby | BL98: Kett | BM98: K&S | BN98: DASH | BO98: Royal | BP98: B&R | BQ98: Tam | BR98: Wreake | BS98: O | BT98: I | BU98: U | BV98: B | BW98: G | BX98: C | BY98: F | BZ98: X | CC98: 12 | CD98: 17 | CE98: 22 | CF98: 27 | CG98: 37 | CH98: 7 | CI98: 32 | CJ98: 42
A99: =B98&"B" -> 35B | D99: =VLOOKUP(B98,EventsOrder,3,FALSE) -> 100m | E99: B | G99: FF | H99: II | I99: BB | J99: GG | K99: XX | L99: OO | O99: 14.8 | P99: 14.9 | Q99: 15 | R99: 15.3 | S99: 15.7 | T99: 16.2 | W99: FF | X99: II | Y99: BB | Z99: GG | AA99: XX | AB99: OO | AE99: =IF(LEN(G99)=0,"",VLOOKUP($B98,IF($F98="F",TeamSheetFemale,TeamSheetMale),CC99,FALSE)) -> Sian Lewis | AF99: Ellen Smith | AG99: Jessica Granger | AH99: Isobel Millington | AI99: Flora Miskin Young | AJ99: EMMA WILLIAMS | AM99: 0 | AN99: 3 | AO99: 7 | AP99: 0 | AQ99: 6 | AR99: 8 | AS99: 5 | AT99: 4 | AU99: =OFFSET($N99,0,BC99) -> 0 | AV99: =OFFSET($N99,0,BD99) -> 16.2 | AW99: =OFFSET($N99,0,BE99) -> 14.9 | AX99: =OFFSET($N99,0,BF99) -> 0 | AY99: 15 | AZ99: 14.8 | BA99: 15.3 | BB99: 15.7 | BC99: 0 | BD99: 6 | BE99: 2 | BF99: 0 | BG99: 3 | BH99: 1 | BI99: 4 | BJ99: 5 | BK99: Tam | BL99: Kett | BM99: DASH | BN99: Royal | BO99: Wreake | BP99: Corby | BQ99: 0 | BR99: 0 | BS99: F | BT99: I | BU99: B | BV99: G | BW99: X | BX99: O | CC99: 34 | CD99: 19 | CE99: 29 | CF99: 39 | CG99: 44 | CH99: 14
A100: =B100&"A" -> 36A | B100: 36 | C100: =VLOOKUP(B100,EventsOrder,2,FALSE) -> 2.15 | D100: =VLOOKUP(B100,EventsOrder,4,FALSE) -> U15 Female | E100: C | F100: =IF(MID(D100,5,1)="F","F","M") -> F | G100: B | H100: I | I100: U | J100: X | K100: O | L100: C | M100: G | N100: F | O100: 13.2 | P100: 13.4 | Q100: 13.8 | R100: 14 | S100: 14.3 | T100: 14.9 | U100: 15.7 | V100: 16.1 | W100: B | X100: I | Y100: U | Z100: X | AA100: O | AB100: C | AC100: G | AD100: F | AE100: =IF(LEN(G100)=0,"",VLOOKUP($B100,IF($F100="F",TeamSheetFemale,TeamSheetMale),CC100,FALSE)) -> Zara Milward | AF100: Erin Healy | AG100: Monica Aresu | AH100: Megan Luxford | AI100: GEORGIA MILLS | AJ100: Robyn Yeomans | AK100: Chelsea Parkes | AL100: Lauren Swindell | AM100: 3 | AN100: 4 | AO100: 7 | AP100: 6 | AQ100: 8 | AR100: 1 | AS100: 2 | AT100: 5 | AU100: 14.9 | AV100: 14.3 | AW100: 13.4 | AX100: 13.8 | AY100: 13.2 | AZ100: 16.1 | BA100: 15.7 | BB100: 14 | BC100: 6 | BD100: 5 | BE100: 2 | BF100: 3 | BG100: 1 | BH100: 8 | BI100: 7 | BJ100: 4 | BK100: DASH | BL100: Kett | BM100: K&S | BN100: Wreake | BO100: Corby | BP100: B&R | BQ100: Royal | BR100: Tam | BS100: B | BT100: I | BU100: U | BV100: X | BW100: O | BX100: C | BY100: G | BZ100: F | CC100: 27 | CD100: 17 | CE100: 22 | CF100: 42 | CG100: 12 | CH100: 7 | CI100: 37 | CJ100: 32
A101: =B100&"B" -> 36B | D101: =VLOOKUP(B100,EventsOrder,3,FALSE) -> 100m | E101: D | G101: BB | H101: UU | I101: XX | J101: OO | K101: II | L101: CC | M101: GG | O101: 13.6 | P101: 14.1 | Q101: 14.1 | R101: 14.5 | S101: 14.7 | T101: 15.1 | U101: 16.7 | AC101: GG | AE101: =IF(LEN(G101)=0,"",VLOOKUP($B100,IF($F100="F",TeamSheetFemale,TeamSheetMale),CC101,FALSE)) -> Jessica Crook | AF101: Yasmin Berrows | AG101: Josie Orange | AH101: ALICE MERRIMAN | AI101: Millie Eve | AJ101: Eva James | AK101: Beth Darrock | AM101: 3 | AN101: 5 | AO101: 4 | AP101: 7 | AQ101: 8 | AR101: 0 | AS101: 2 | AT101: 6 | AU101: 15.1 | AV101: 14.5 | AW101: 14.7 | AX101: 14.1 | AY101: 13.6 | AZ101: 0 | BA101: 16.7 | BB101: 14.1 | BC101: 6 | BD101: 4 | BE101: 5 | BF101: 2 | BG101: 1 | BH101: 0 | BI101: 7 | BJ101: 3 | BK101: DASH | BL101: K&S | BM101: Wreake | BN101: Corby | BO101: Kett | BP101: B&R | BQ101: Royal | BR101: 0 | BS101: B | BT101: U | BU101: X | BV101: O | BW101: I | BX101: C | BY101: G | CC101: 29 | CD101: 24 | CE101: 44 | CF101: 14 | CG101: 19 | CH101: 9 | CI101: 39
A102: =B102&"A" -> 37A | B102: 37 | C102: =VLOOKUP(B102,EventsOrder,2,FALSE) -> 1.5 | D102: =VLOOKUP(B102,EventsOrder,4,FALSE) -> U17 F/Women | E102: A | F102: =IF(MID(D102,5,1)="F","F","M") -> F | G102: G | H102: C | I102: XX | J102: B | K102: UU | L102: II | O102: 10.04 | P102: 7.16 | Q102: 6.22 | R102: 6.21 | S102: 5.78 | T102: 5.09 | W102: G | X102: C | Y102: XX | Z102: B | AA102: UU | AB102: II | AE102: =IF(LEN(G102)=0,"",VLOOKUP($B102,IF($F102="F",TeamSheetFemale,TeamSheetMale),CC102,FALSE)) -> Chrissie Prince | AF102: Lauren Powell | AG102: Jess Hazel | AH102: Danielle Kinsell | AI102: Sarah Stuart-Smith | AJ102: Freya Marlow | AM102: 7 | AN102: 0 | AO102: 3 | AP102: 4 | AQ102: 5 | AR102: 0 | AS102: 8 | AT102: 6 | AU102: 7.16 | AV102: 0 | AW102: 5.09 | AX102: 5.78 | AY102: 6.21 | AZ102: 0 | BA102: 10.04 | BB102: 6.22 | BC102: 2 | BD102: 0 | BE102: 6 | BF102: 5 | BG102: 4 | BH102: 0 | BI102: 1 | BJ102: 3 | BK102: Royal | BL102: B&R | BM102: Wreake | BN102: DASH | BO102: K&S | BP102: Kett | BQ102: 0 | BR102: 0 | BS102: G | BT102: C | BU102: X | BV102: B | BW102: U | BX102: I | CC102: 37 | CD102: 7 | CE102: 44 | CF102: 27 | CG102: 24 | CH102: 19
A103: =B102&"B" -> 37B | D103: =VLOOKUP(B102,EventsOrder,3,FALSE) -> Shot | E103: B | G103: GG | H103: CC | I103: U | J103: x | K103: I | O103: 7.43 | P103: 6.38 | Q103: 5.49 | R103: 5.23 | S103: 4.01 | AE103: =IF(LEN(G103)=0,"",VLOOKUP($B102,IF($F102="F",TeamSheetFemale,TeamSheetMale),CC103,FALSE)) -> Anna Short | AF103: Yasmine Al-daftari (Vet) | AG103: Francais Milburn | AH103: Rosie Weselby | AI103: Sophie Moss | AM103: 7 | AN103: 0 | AO103: 4 | AP103: 6 | AQ103: 0 | AR103: 0 | AS103: 8 | AT103: 5 | AU103: 6.38 | AV103: 0 | AW103: 4.01 | AX103: 5.49 | AY103: 0 | AZ103: 0 | BA103: 7.43 | BB103: 5.23 | BC103: 2 | BD103: 0 | BE103: 5 | BF103: 3 | BG103: 0 | BH103: 0 | BI103: 1 | BJ103: 4 | BK103: Royal | BL103: B&R | BM103: K&S | BN103: Wreake | BO103: Kett | BP103: 0 | BQ103: 0 | BR103: 0 | BS103: G | BT103: C | BU103: U | BV103: x | BW103: I | CC103: 39 | CD103: 9 | CE103: 22 | CF103: 42 | CG103: 17
A104: =B104&"A" -> 38A | B104: 38 | C104: =VLOOKUP(B104,EventsOrder,2,FALSE) -> 1.5 | D104: =VLOOKUP(B104,EventsOrder,4,FALSE) -> U13 Female | E104: A | F104: =IF(MID(D104,5,1)="F","F","M") -> F | G104: X | H104: C | I104: I | J104: G | K104: F | O104: 15.34 | P104: 14.48 | Q104: 13.34 | R104: 12.86 | S104: 9.31 | W104: X | X104: C | Y104: I | Z104: G | AA104: F | AE104: =IF(LEN(G104)=0,"",VLOOKUP($B104,IF($F104="F",TeamSheetFemale,TeamSheetMale),CC104,FALSE)) -> Maya Stokes | AF104: Kate Mellors | AG104: Millie Toseland | AH104: Thea Criddle | AI104: Charlotte Perry | AM104: 7 | AN104: 0 | AO104: 6 | AP104: 0 | AQ104: 0 | AR104: 4 | AS104: 5 | AT104: 8 | AU104: 14.48 | AV104: 0 | AW104: 13.34 | AX104: 0 | AY104: 0 | AZ104: 9.31 | BA104: 12.86 | BB104: 15.34 | BC104: 2 | BD104: 0 | BE104: 3 | BF104: 0 | BG104: 0 | BH104: 5 | BI104: 4 | BJ104: 1 | BK104: Wreake | BL104: B&R | BM104: Kett | BN104: Royal | BO104: Tam | BP104: 0 | BQ104: 0 | BR104: 0 | BS104: X | BT104: C | BU104: I | BV104: G | BW104: F | CC104: 42 | CD104: 7 | CE104: 17 | CF104: 37 | CG104: 32
A105: =B104&"B" -> 38B | D105: =VLOOKUP(B104,EventsOrder,3,FALSE) -> Discus | E105: B | G105: GG | H105: II | I105: XX | J105: FF | K105: CC | O105: 13.51 | P105: 12.21 | Q105: 11.67 | R105: 9.27 | S105: 7.5 | AE105: =IF(LEN(G105)=0,"",VLOOKUP($B104,IF($F104="F",TeamSheetFemale,TeamSheetMale),CC105,FALSE)) -> Isobel Millington | AF105: Matilda Braithwaite | AG105: Grace Alvey | AH105: Lauren Bowman | AI105: Tally Scoltock | AM105: 4 | AN105: 0 | AO105: 7 | AP105: 0 | AQ105: 0 | AR105: 5 | AS105: 8 | AT105: 6 | AU105: 7.5 | AV105: 0 | AW105: 12.21 | AX105: 0 | AY105: 0 | AZ105: 9.27 | BA105: 13.51 | BB105: 11.67 | BC105: 5 | BD105: 0 | BE105: 2 | BF105: 0 | BG105: 0 | BH105: 4 | BI105: 1 | BJ105: 3 | BK105: Royal | BL105: Kett | BM105: Wreake | BN105: Tam | BO105: B&R | BP105: 0 | BQ105: 0 | BR105: 0 | BS105: G | BT105: I | BU105: X | BV105: F | BW105: C | CC105: 39 | CD105: 19 | CE105: 44 | CF105: 34 | CG105: 9
A106: =B106&"A" -> 39A | B106: 39 | C106: =VLOOKUP(B106,EventsOrder,2,FALSE) -> 1.5 | D106: =VLOOKUP(B106,EventsOrder,4,FALSE) -> U15 Male | E106: A | F106: =IF(MID(D106,5,1)="F","F","M") -> M | AE106: =IF(LEN(G106)=0,"",VLOOKUP($B106,IF($F106="F",TeamSheetFemale,TeamSheetMale),CC106,FALSE)) ->  | AM106: 0 | AN106: 0 | AO106: 0 | AP106: 0 | AQ106: 0 | AR106: 0 | AS106: 0 | AT106: 0 | AU106: 0 | AV106: 0 | AW106: 0 | AX106: 0 | AY106: 0 | AZ106: 0 | BA106: 0 | BB106: 0 | BC106: 0 | BD106: 0 | BE106: 0 | BF106: 0 | BG106: 0 | BH106: 0 | BI106: 0 | BJ106: 0 | BK106: 0 | BL106: 0 | BM106: 0 | BN106: 0 | BO106: 0 | BP106: 0 | BQ106: 0 | BR106: 0
A107: =B106&"B" -> 39B | D107: =VLOOKUP(B106,EventsOrder,3,FALSE) -> Javelin | E107: B | AE107: =IF(LEN(G107)=0,"",VLOOKUP($B106,IF($F106="F",TeamSheetFemale,TeamSheetMale),CC107,FALSE)) ->  | AM107: 0 | AN107: 0 | AO107: 0 | AP107: 0 | AQ107: 0 | AR107: 0 | AS107: 0 | AT107: 0 | AU107: 0 | AV107: 0 | AW107: 0 | AX107: 0 | AY107: 0 | AZ107: 0 | BA107: 0 | BB107: 0 | BC107: 0 | BD107: 0 | BE107: 0 | BF107: 0 | BG107: 0 | BH107: 0 | BI107: 0 | BJ107: 0 | BK107: 0 | BL107: 0 | BM107: 0 | BN107: 0 | BO107: 0 | BP107: 0 | BQ107: 0 | BR107: 0
A108: =B108&"A" -> 40A | B108: 40 | C108: =VLOOKUP(B108,EventsOrder,2,FALSE) -> 2.2 | D108: =VLOOKUP(B108,EventsOrder,4,FALSE) -> U17 F/Women | E108: A | F108: =IF(MID(D108,5,1)="F","F","M") -> F | G108: I | H108: B | I108: O | J108: G | O108: 13.7 | P108: 14.2 | Q108: 14.3 | R108: 14.8 | W108: I | X108: B | Y108: O | Z108: G | AE108: =IF(LEN(G108)=0,"",VLOOKUP($B108,IF($F108="F",TeamSheetFemale,TeamSheetMale),CC108,FALSE)) -> Sheena Britten | AF108: Lauren Hemmings | AG108: TANAYA MAYOH | AH108: Anna Short | AM108: 0 | AN108: 6 | AO108: 8 | AP108: 0 | AQ108: 7 | AR108: 0 | AS108: 5 | AT108: 0 | AU108: 0 | AV108: 14.3 | AW108: 13.7 | AX108: 0 | AY108: 14.2 | AZ108: 0 | BA108: 14.8 | BB108: 0 | BC108: 0 | BD108: 3 | BE108: 1 | BF108: 0 | BG108: 2 | BH108: 0 | BI108: 4 | BJ108: 0 | BK108: Kett | BL108: DASH | BM108: Corby | BN108: Royal | BO108: 0 | BP108: 0 | BQ108: 0 | BR108: 0 | BS108: I | BT108: B | BU108: O | BV108: G | CC108: 17 | CD108: 27 | CE108: 12 | CF108: 37
A109: =B108&"B" -> 40B | D109: =VLOOKUP(B108,EventsOrder,3,FALSE) -> 100m | E109: B | G109: GG | H109: BB | I109: II | O109: 14 | P109: 14.3 | Q109: 15.3 | W109: GG | X109: BB | Y109: II | AE109: =IF(LEN(G109)=0,"",VLOOKUP($B108,IF($F108="F",TeamSheetFemale,TeamSheetMale),CC109,FALSE)) -> Sophie Goodby | AF109: Annabel Mullinder | AG109: Esther Owewsa | AM109: 0 | AN109: 0 | AO109: 6 | AP109: 0 | AQ109: 7 | AR109: 0 | AS109: 8 | AT109: 0 | AU109: 0 | AV109: 0 | AW109: 15.3 | AX109: 0 | AY109: 14.3 | AZ109: 0 | BA109: 14 | BB109: 0 | BC109: 0 | BD109: 0 | BE109: 3 | BF109: 0 | BG109: 2 | BH109: 0 | BI109: 1 | BJ109: 0 | BK109: Royal | BL109: DASH | BM109: Kett | BN109: 0 | BO109: 0 | BP109: 0 | BQ109: 0 | BR109: 0 | BS109: G | BT109: B | BU109: I | CC109: 39 | CD109: 29 | CE109: 19
A110: =B110&"A" -> 41A | B110: 41 | C110: =VLOOKUP(B110,EventsOrder,2,FALSE) -> 2.25 | D110: =VLOOKUP(B110,EventsOrder,4,FALSE) -> U13 Male | E110: A | F110: =IF(MID(D110,5,1)="F","F","M") -> M | G110: X | H110: F | I110: C | J110: I | K110: G | L110: O | M110: U | N110: B | O110: 13.5 | P110: 13.7 | Q110: 13.9 | R110: 14.1 | S110: 14.2 | T110: 14.4 | U110: 15.3 | V110: 15.9 | W110: X | X110: F | Y110: C | Z110: I | AA110: G | AB110: O | AC110: U | AD110: B | AE110: =IF(LEN(G110)=0,"",VLOOKUP($B110,IF($F110="F",TeamSheetFemale,TeamSheetMale),CC110,FALSE)) -> David Seidu | AF110: Timothy Li | AG110: Alistair Cook | AH110: Max Mowforth | AI110: Daniel Olatundun | AJ110: Luca Mayes | AK110: Ryan Bennett | AL110: Nathan Crook | AM110: 6 | AN110: 3 | AO110: 5 | AP110: 2 | AQ110: 1 | AR110: 7 | AS110: 4 | AT110: 8 | AU110: 13.9 | AV110: 14.4 | AW110: 14.1 | AX110: 15.3 | AY110: 15.9 | AZ110: 13.7 | BA110: 14.2 | BB110: 13.5 | BC110: 3 | BD110: 6 | BE110: 4 | BF110: 7 | BG110: 8 | BH110: 2 | BI110: 5 | BJ110: 1 | BK110: Wreake | BL110: Tam | BM110: B&R | BN110: Kett | BO110: Royal | BP110: Corby | BQ110: K&S | BR110: DASH | BS110: X | BT110: F | BU110: C | BV110: I | BW110: G | BX110: O | BY110: U | BZ110: B | CC110: 42 | CD110: 32 | CE110: 7 | CF110: 17 | CG110: 37 | CH110: 12 | CI110: 22 | CJ110: 27
A111: =B110&"B" -> 41B | D111: =VLOOKUP(B110,EventsOrder,3,FALSE) -> 100m | E111: B | G111: FF | H111: II | I111: XX | J111: CC | K111: GG | L111: BB | O111: 14 | P111: 14.6 | Q111: 14.7 | R111: 15.2 | S111: 16.4 | T111: 16.8 | W111: FF | X111: II | Y111: XX | Z111: CC | AA111: GG | AB111: BB | AE111: =IF(LEN(G111)=0,"",VLOOKUP($B110,IF($F110="F",TeamSheetFemale,TeamSheetMale),CC111,FALSE)) -> James Sherriff | AF111: Cole Sinnott | AG111: Lucca Watson Quilter | AH111: Dominic Cook | AI111: Daniel Mills | AJ111: Nathan Pearson | AM111: 5 | AN111: 0 | AO111: 7 | AP111: 0 | AQ111: 3 | AR111: 8 | AS111: 4 | AT111: 6 | AU111: 15.2 | AV111: 0 | AW111: 14.6 | AX111: 0 | AY111: 16.8 | AZ111: 14 | BA111: 16.4 | BB111: 14.7 | BC111: 4 | BD111: 0 | BE111: 2 | BF111: 0 | BG111: 6 | BH111: 1 | BI111: 5 | BJ111: 3 | BK111: Tam | BL111: Kett | BM111: Wreake | BN111: B&R | BO111: Royal | BP111: DASH | BQ111: 0 | BR111: 0 | BS111: F | BT111: I | BU111: X | BV111: C | BW111: G | BX111: B | CC111: 34 | CD111: 19 | CE111: 44 | CF111: 9 | CG111: 39 | CH111: 29
A112: =B112&"A" -> 42A | B112: 42 | C112: =VLOOKUP(B112,EventsOrder,2,FALSE) -> 2.3 | D112: =VLOOKUP(B112,EventsOrder,4,FALSE) -> U15 Male | E112: A | F112: =IF(MID(D112,5,1)="F","F","M") -> M | G112: C | H112: F | I112: I | J112: G | K112: X | L112: B | M112: O | O112: 11.7 | P112: 12.1 | Q112: 12.2 | R112: 12.7 | S112: 12.8 | T112: 12.8 | U112: 14.8 | W112: C | X112: F | Y112: I | Z112: G | AA112: X | AB112: B | AC112: O | AE112: =IF(LEN(G112)=0,"",VLOOKUP($B112,IF($F112="F",TeamSheetFemale,TeamSheetMale),CC112,FALSE)) -> Josh Pearson | AF112: Connor Hepple | AG112: Tapuwa Chitiga | AH112: Cameron Harris | AI112: Jacob Fairhurst | AJ112: Josh Galloway | AK112: Reece Cromblehome | AM112: 8 | AN112: 2 | AO112: 6 | AP112: 0 | AQ112: 3 | AR112: 7 | AS112: 5 | AT112: 4 | AU112: 11.7 | AV112: 14.8 | AW112: 12.2 | AX112: 0 | AY112: 12.8 | AZ112: 12.1 | BA112: 12.7 | BB112: 12.8 | BC112: 1 | BD112: 7 | BE112: 3 | BF112: 0 | BG112: 6 | BH112: 2 | BI112: 4 | BJ112: 5 | BK112: B&R | BL112: Tam | BM112: Kett | BN112: Royal | BO112: Wreake | BP112: DASH | BQ112: Corby | BR112: 0 | BS112: C | BT112: F | BU112: I | BV112: G | BW112: X | BX112: B | BY112: O | CC112: 7 | CD112: 32 | CE112: 17 | CF112: 37 | CG112: 42 | CH112: 27 | CI112: 12
A113: =B112&"B" -> 42B | D113: =VLOOKUP(B112,EventsOrder,3,FALSE) -> 100m | E113: B | G113: FF | H113: OO | I113: GG | J113: CC | K113: XX | O113: 12.2 | P113: 12.8 | Q113: 13.4 | R113: 14.2 | S113: 14.5 | W113: FF | X113: OO | Y113: GG | Z113: CC | AA113: XX | AE113: =IF(LEN(G113)=0,"",VLOOKUP($B112,IF($F112="F",TeamSheetFemale,TeamSheetMale),CC113,FALSE)) -> Dan Cartwright | AF113: Sam Haines | AG113: Aidan Bishop | AH113: Alfie Pullen | AI113: Josh Rocks | AM113: 5 | AN113: 7 | AO113: 0 | AP113: 0 | AQ113: 0 | AR113: 8 | AS113: 6 | AT113: 4 | AU113: 14.2 | AV113: 12.8 | AW113: 0 | AX113: 0 | AY113: 0 | AZ113: 12.2 | BA113: 13.4 | BB113: 14.5 | BC113: 4 | BD113: 2 | BE113: 0 | BF113: 0 | BG113: 0 | BH113: 1 | BI113: 3 | BJ113: 5 | BK113: Tam | BL113: Corby | BM113: Royal | BN113: B&R | BO113: Wreake | BP113: 0 | BQ113: 0 | BR113: 0 | BS113: F | BT113: O | BU113: G | BV113: C | BW113: X | CC113: 34 | CD113: 14 | CE113: 39 | CF113: 9 | CG113: 44
A114: =B114&"A" -> 43A | B114: 43 | C114: =VLOOKUP(B114,EventsOrder,2,FALSE) -> 2.35 | D114: =VLOOKUP(B114,EventsOrder,4,FALSE) -> U17 Men | E114: A | F114: =IF(MID(D114,5,1)="F","F","M") -> M | G114: O | H114: G | I114: I | J114: C | K114: B | L114: X | O114: 11.8 | P114: 11.9 | Q114: 12.2 | R114: 12.5 | S114: 13 | T114: 13.7 | W114: O | X114: G | Y114: I | Z114: C | AA114: B | AB114: X | AE114: =IF(LEN(G114)=0,"",VLOOKUP($B114,IF($F114="F",TeamSheetFemale,TeamSheetMale),CC114,FALSE)) -> Harry Merriman | AF114: Ethan Brough | AG114: Sam Bott | AH114: Issac Hill | AI114: Ladi Ablu | AJ114: Tom Paget Wright | AM114: 5 | AN114: 8 | AO114: 6 | AP114: 0 | AQ114: 4 | AR114: 0 | AS114: 7 | AT114: 3 | AU114: 12.5 | AV114: 11.8 | AW114: 12.2 | AX114: 0 | AY114: 13 | AZ114: 0 | BA114: 11.9 | BB114: 13.7 | BC114: =IF(ISNA(MATCH(BC$29,$BS114:$BZ114,0)),0,MATCH(BC$29,$BS114:$BZ114,0)) -> 4 | BD114: 1 | BE114: 3 | BF114: 0 | BG114: 5 | BH114: 0 | BI114: 2 | BJ114: 6 | BK114: Corby | BL114: Royal | BM114: Kett | BN114: B&R | BO114: DASH | BP114: Wreake | BQ114: 0 | BR114: 0 | BS114: O | BT114: G | BU114: I | BV114: C | BW114: B | BX114: X | CC114: 12 | CD114: 37 | CE114: 17 | CF114: 7 | CG114: 27 | CH114: 42
A115: =B114&"B" -> 43B | D115: =VLOOKUP(B114,EventsOrder,3,FALSE) -> 100m | E115: B | G115: CC | H115: GG | O115: 12.5 | P115: 12.6 | W115: CC | X115: GG | AE115: =IF(LEN(G115)=0,"",VLOOKUP($B114,IF($F114="F",TeamSheetFemale,TeamSheetMale),CC115,FALSE)) -> Cian Allen | AF115: George Creed | AM115: 8 | AN115: 0 | AO115: 0 | AP115: 0 | AQ115: 0 | AR115: 0 | AS115: 7 | AT115: 0 | AU115: 12.5 | AV115: 0 | AW115: 0 | AX115: 0 | AY115: 0 | AZ115: 0 | BA115: 12.6 | BB115: 0 | BC115: 1 | BD115: 0 | BE115: 0 | BF115: 0 | BG115: 0 | BH115: 0 | BI115: 2 | BJ115: 0 | BK115: B&R | BL115: Royal | BM115: 0 | BN115: 0 | BO115: 0 | BP115: 0 | BQ115: 0 | BR115: 0 | BS115: C | BT115: G | CC115: 9 | CD115: 39
A116: =B116&"A" -> 44A | B116: 44 | C116: =VLOOKUP(B116,EventsOrder,2,FALSE) -> 2.1 | D116: =VLOOKUP(B116,EventsOrder,4,FALSE) -> U11 Male | E116: A | F116: =IF(MID(D116,5,1)="F","F","M") -> M | G116: O | H116: F | I116: I | J116: U | K116: GG | L116: X | M116: C | N116: B | O116: 3.6 | P116: 3.5 | Q116: 3.24 | R116: 3.18 | S116: 3.16 | T116: 3 | U116: 2.75 | V116: 2.69 | W116: O | X116: F | Y116: I | Z116: U | AA116: GG | AB116: X | AC116: C | AD116: B | AE116: =IF(LEN(G116)=0,"",VLOOKUP($B116,IF($F116="F",TeamSheetFemale,TeamSheetMale),CC116,FALSE)) -> Fabian Powell | AF116: James Stretton | AG116: Daniel Short | AH116: Harry Lees | AI116: Tobias Clarke | AJ116: Jack Hollidge | AK116: Sebastian Purvis | AL116: Alex Jhonson | AM116: 2 | AN116: 8 | AO116: 6 | AP116: 5 | AQ116: 1 | AR116: 7 | AS116: 4 | AT116: 3 | AU116: 2.75 | AV116: 3.6 | AW116: 3.24 | AX116: 3.18 | AY116: 2.69 | AZ116: 3.5 | BA116: 3.16 | BB116: 3 | BC116: 7 | BD116: 1 | BE116: 3 | BF116: 4 | BG116: 8 | BH116: 2 | BI116: 5 | BJ116: 6 | BK116: Corby | BL116: Tam | BM116: Kett | BN116: K&S | BO116: Royal | BP116: Wreake | BQ116: B&R | BR116: DASH | BS116: O | BT116: F | BU116: I | BV116: U | BW116: G | BX116: X | BY116: C | BZ116: B | CC116: 12 | CD116: 32 | CE116: 17 | CF116: 22 | CG116: 39 | CH116: 42 | CI116: 7 | CJ116: 27
A117: =B116&"B" -> 44B | D117: =VLOOKUP(B116,EventsOrder,3,FALSE) -> Long Jump | E117: B | G117: OO | H117: G | I117: FF | J117: II | K117: XX | O117: 3.24 | P117: 3.05 | Q117: 2.68 | R117: 2.56 | S117: 2.08 | AE117: =IF(LEN(G117)=0,"",VLOOKUP($B116,IF($F116="F",TeamSheetFemale,TeamSheetMale),CC117,FALSE)) -> Elliot Powell | AF117: Harry Darock | AG117: Daniel Aston | AH117: Ben Brooker | AI117: Finley Venables | AM117: 0 | AN117: 8 | AO117: 5 | AP117: 0 | AQ117: 0 | AR117: 6 | AS117: 7 | AT117: 4 | AU117: 0 | AV117: 3.24 | AW117: 2.56 | AX117: 0 | AY117: 0 | AZ117: 2.68 | BA117: 3.05 | BB117: 2.08 | BC117: 0 | BD117: 1 | BE117: 4 | BF117: 0 | BG117: 0 | BH117: 3 | BI117: 2 | BJ117: 5 | BK117: Corby | BL117: Royal | BM117: Tam | BN117: Kett | BO117: Wreake | BP117: 0 | BQ117: 0 | BR117: 0 | BS117: O | BT117: G | BU117: F | BV117: I | BW117: X | CC117: 14 | CD117: 37 | CE117: 34 | CF117: 19 | CG117: 44
A118: =B118&"A" -> 45A | B118: 45 | C118: =VLOOKUP(B118,EventsOrder,2,FALSE) -> 2.25 | D118: =VLOOKUP(B118,EventsOrder,4,FALSE) -> U15 Male | E118: A | F118: =IF(MID(D118,5,1)="F","F","M") -> M | G118: C | H118: O | I118: B | J118: F | K118: I | L118: U | M118: G | O118: 1.6 | P118: 1.55 | Q118: 1.5 | R118: 1.5 | S118: 1.45 | T118: 1.45 | U118: 1.35 | W118: C | X118: O | Y118: B | Z118: F | AA118: I | AB118: U | AC118: G | AE118: =IF(LEN(G118)=0,"",VLOOKUP($B118,IF($F118="F",TeamSheetFemale,TeamSheetMale),CC118,FALSE)) -> Jordan Hinds | AF118: Jacob Morris | AG118: Tom Slater | AH118: Lewis Johnson | AI118: Lewis-Morgan Barton | AJ118: Kieran Beech | AK118: Luke O'Brien | AM118: 8 | AN118: 7 | AO118: 4 | AP118: 3 | AQ118: 6 | AR118: 5 | AS118: 2 | AT118: 0 | AU118: 1.6 | AV118: 1.55 | AW118: 1.45 | AX118: 1.45 | AY118: 1.5 | AZ118: 1.5 | BA118: 1.35 | BB118: 0 | BC118: 1 | BD118: 2 | BE118: 5 | BF118: 6 | BG118: 3 | BH118: 4 | BI118: 7 | BJ118: 0 | BK118: B&R | BL118: Corby | BM118: DASH | BN118: Tam | BO118: Kett | BP118: K&S | BQ118: Royal | BR118: 0 | BS118: C | BT118: O | BU118: B | BV118: F | BW118: I | BX118: U | BY118: G | CC118: 7 | CD118: 12 | CE118: 27 | CF118: 32 | CG118: 17 | CH118: 22 | CI118: 37
A119: =B118&"B" -> 45B | D119: =VLOOKUP(B118,EventsOrder,3,FALSE) -> High Jump | E119: B | AE119: =IF(LEN(G119)=0,"",VLOOKUP($B118,IF($F118="F",TeamSheetFemale,TeamSheetMale),CC119,FALSE)) ->  | AM119: 0 | AN119: 0 | AO119: 0 | AP119: 0 | AQ119: 0 | AR119: 0 | AS119: 0 | AT119: 0 | AU119: 0 | AV119: 0 | AW119: 0 | AX119: 0 | AY119: 0 | AZ119: 0 | BA119: 0 | BB119: 0 | BC119: 0 | BD119: 0 | BE119: 0 | BF119: 0 | BG119: 0 | BH119: 0 | BI119: 0 | BJ119: 0 | BK119: 0 | BL119: 0 | BM119: 0 | BN119: 0 | BO119: 0 | BP119: 0 | BQ119: 0 | BR119: 0
A120: =B120&"A" -> 46A | B120: 46 | C120: =VLOOKUP(B120,EventsOrder,2,FALSE) ->  | D120: =VLOOKUP(B120,EventsOrder,4,FALSE) ->  | E120: A | F120: =IF(MID(D120,5,1)="F","F","M") ->  | AE120: =IF(LEN(G120)=0,"",VLOOKUP($B120,IF($F120="F",TeamSheetFemale,TeamSheetMale),CC120,FALSE)) ->  | AU120: 0 | AV120: 0 | AW120: 0 | AX120: 0 | AY120: 0 | AZ120: 0 | BA120: 0 | BB120: 0 | BC120: 0 | BD120: 0 | BE120: 0 | BF120: 0 | BG120: 0 | BH120: 0 | BI120: 0 | BJ120: 0 | BK120: 0 | BL120: 0 | BM120: 0 | BN120: 0 | BO120: 0 | BP120: 0 | BQ120: 0 | BR120: 0
A121: =B120&"B" -> 46B | D121: =VLOOKUP(B120,EventsOrder,3,FALSE) ->  | E121: B | AE121: =IF(LEN(G121)=0,"",VLOOKUP($B120,IF($F120="F",TeamSheetFemale,TeamSheetMale),CC121,FALSE)) ->  | AM121: 0 | AN121: 0 | AO121: 0 | AP121: 0 | AQ121: 0 | AR121: 0 | AS121: 0 | AT121: 0 | AU121: 0 | AV121: 0 | AW121: 0 | AX121: 0 | AY121: 0 | AZ121: 0 | BA121: 0 | BB121: 0 | BC121: 0 | BD121: 0 | BE121: 0 | BF121: 0 | BG121: 0 | BH121: 0 | BI121: 0 | BJ121: 0 | BK121: 0 | BL121: 0 | BM121: 0 | BN121: 0 | BO121: 0 | BP121: 0 | BQ121: 0 | BR121: 0
A122: =B122&"A" -> 47A | B122: 47 | C122: =VLOOKUP(B122,EventsOrder,2,FALSE) ->  | D122: =VLOOKUP(B122,EventsOrder,4,FALSE) ->  | E122: A | F122: =IF(MID(D122,5,1)="F","F","M") ->  | AE122: =IF(LEN(G122)=0,"",VLOOKUP($B122,IF($F122="F",TeamSheetFemale,TeamSheetMale),CC122,FALSE)) ->  | AU122: 0 | AV122: 0 | AW122: 0 | AX122: 0 | AY122: 0 | AZ122: 0 | BA122: 0 | BB122: 0 | BC122: 0 | BD122: 0 | BE122: 0 | BF122: 0 | BG122: 0 | BH122: 0 | BI122: 0 | BJ122: 0 | BK122: 0 | BL122: 0 | BM122: 0 | BN122: 0 | BO122: 0 | BP122: 0 | BQ122: 0 | BR122: 0
A123: =B122&"B" -> 47B | D123: =VLOOKUP(B122,EventsOrder,3,FALSE) ->  | E123: B | AE123: =IF(LEN(G123)=0,"",VLOOKUP($B122,IF($F122="F",TeamSheetFemale,TeamSheetMale),CC123,FALSE)) ->  | AM123: 0 | AN123: 0 | AO123: 0 | AP123: 0 | AQ123: 0 | AR123: 0 | AS123: 0 | AT123: 0 | AU123: 0 | AV123: 0 | AW123: 0 | AX123: 0 | AY123: 0 | AZ123: 0 | BA123: 0 | BB123: 0 | BC123: 0 | BD123: 0 | BE123: 0 | BF123: 0 | BG123: 0 | BH123: 0 | BI123: 0 | BJ123: 0 | BK123: 0 | BL123: 0 | BM123: 0 | BN123: 0 | BO123: 0 | BP123: 0 | BQ123: 0 | BR123: 0
A124: =B124&"A" -> 48A | B124: 48 | C124: =VLOOKUP(B124,EventsOrder,2,FALSE) ->  | D124: =VLOOKUP(B124,EventsOrder,4,FALSE) ->  | E124: A | F124: =IF(MID(D124,5,1)="F","F","M") ->  | AE124: =IF(LEN(G124)=0,"",VLOOKUP($B124,IF($F124="F",TeamSheetFemale,TeamSheetMale),CC124,FALSE)) ->  | AU124: 0 | AV124: 0 | AW124: 0 | AX124: 0 | AY124: 0 | AZ124: 0 | BA124: 0 | BB124: 0 | BC124: 0 | BD124: 0 | BE124: 0 | BF124: 0 | BG124: 0 | BH124: 0 | BI124: 0 | BJ124: 0 | BK124: =IF(LEN(G124)>0,VLOOKUP(LEFT(G124,1),Clubs,5,FALSE),0) -> 0 | BL124: =IF(LEN(H124)>0,VLOOKUP(LEFT(H124,1),Clubs,5,FALSE),0) -> 0 | BM124: =IF(LEN(I124)>0,VLOOKUP(LEFT(I124,1),Clubs,5,FALSE),0) -> 0 | BN124: =IF(LEN(J124)>0,VLOOKUP(LEFT(J124,1),Clubs,5,FALSE),0) -> 0 | BO124: =IF(LEN(K124)>0,VLOOKUP(LEFT(K124,1),Clubs,5,FALSE),0) -> 0 | BP124: =IF(LEN(L124)>0,VLOOKUP(LEFT(L124,1),Clubs,5,FALSE),0) -> 0 | BQ124: =IF(LEN(M124)>0,VLOOKUP(LEFT(M124,1),Clubs,5,FALSE),0) -> 0 | BR124: =IF(LEN(N124)>0,VLOOKUP(LEFT(N124,1),Clubs,5,FALSE),0) -> 0 | BS124: =LEFT(G124,1) -> 
A125: =B124&"B" -> 48B | D125: =VLOOKUP(B124,EventsOrder,3,FALSE) ->  | E125: B | AE125: =IF(LEN(G125)=0,"",VLOOKUP($B124,IF($F124="F",TeamSheetFemale,TeamSheetMale),CC125,FALSE)) ->  | AM125: 0 | AN125: 0 | AO125: 0 | AP125: 0 | AQ125: 0 | AR125: 0 | AS125: 0 | AT125: 0 | AU125: 0 | AV125: 0 | AW125: 0 | AX125: 0 | AY125: =OFFSET($N125,0,BG125) -> 0 | AZ125: =OFFSET($N125,0,BH125) -> 0 | BA125: =OFFSET($N125,0,BI125) -> 0 | BB125: =OFFSET($N125,0,BJ125) -> 0 | BC125: 0 | BD125: 0 | BE125: 0 | BF125: 0 | BG125: 0 | BH125: 0 | BI125: 0 | BJ125: 0 | BK125: 0 | BL125: 0 | BM125: 0 | BN125: 0 | BO125: 0 | BP125: 0 | BQ125: 0 | BR125: 0 | BT125: =LEFT(H125,1) ->  | BU125: =LEFT(I125,1) ->  | BV125: =LEFT(J125,1) ->  | BW125: =LEFT(K125,1) ->  | BX125: =LEFT(L125,1) ->  | BY125: =LEFT(M125,1) ->  | BZ125: =LEFT(N125,1) -> 
A126: =B126&"A" -> 49A | B126: 49 | C126: =VLOOKUP(B126,EventsOrder,2,FALSE) ->  | D126: =VLOOKUP(B126,EventsOrder,4,FALSE) ->  | E126: A | F126: =IF(MID(D126,5,1)="F","F","M") ->  | AE126: =IF(LEN(G126)=0,"",VLOOKUP($B126,IF($F126="F",TeamSheetFemale,TeamSheetMale),CC126,FALSE)) ->  | AM126: =IF(OR($F126="NS",AU126="DNF"),0,IF(BC126>0,$BK$29+1-BC126,0)) ->  | AN126: =IF(OR($F126="NS",AV126="DNF"),0,IF(BD126>0,$BK$29+1-BD126,0)) ->  | AO126: =IF(OR($F126="NS",AW126="DNF"),0,IF(BE126>0,$BK$29+1-BE126,0)) ->  | AP126: =IF(OR($F126="NS",AX126="DNF"),0,IF(BF126>0,$BK$29+1-BF126,0)) ->  | AQ126: =IF(OR($F126="NS",AY126="DNF"),0,IF(BG126>0,$BK$29+1-BG126,0)) ->  | AR126: =IF(OR($F126="NS",AZ126="DNF"),0,IF(BH126>0,$BK$29+1-BH126,0)) ->  | AS126: =IF(OR($F126="NS",BA126="DNF"),0,IF(BI126>0,$BK$29+1-BI126,0)) ->  | AT126: =IF(OR($F126="NS",BB126="DNF"),0,IF(BJ126>0,$BK$29+1-BJ126,0)) ->  | AU126: 0 | AV126: 0 | AW126: 0 | AX126: 0 | AY126: 0 | AZ126: 0 | BA126: 0 | BB126: 0 | BC126: 0 | BD126: 0 | BE126: 0 | BF126: 0 | BG126: 0 | BH126: 0 | BI126: 0 | BJ126: 0 | BK126: 0 | BL126: 0 | BM126: 0 | BN126: 0 | BO126: 0 | BP126: 0 | BQ126: 0 | BR126: 0
A127: =B126&"B" -> 49B | D127: =VLOOKUP(B126,EventsOrder,3,FALSE) ->  | E127: B | AE127: =IF(LEN(G127)=0,"",VLOOKUP($B126,IF($F126="F",TeamSheetFemale,TeamSheetMale),CC127,FALSE)) ->  | AM127: 0 | AN127: 0 | AO127: 0 | AP127: 0 | AQ127: 0 | AR127: 0 | AS127: 0 | AT127: 0 | AU127: 0 | AV127: 0 | AW127: 0 | AX127: 0 | AY127: 0 | AZ127: 0 | BA127: 0 | BB127: 0 | BC127: 0 | BD127: 0 | BE127: 0 | BF127: 0 | BG127: 0 | BH127: 0 | BI127: 0 | BJ127: 0 | BK127: 0 | BL127: 0 | BM127: 0 | BN127: 0 | BO127: 0 | BP127: 0 | BQ127: 0 | BR127: 0
A128: =B128&"A" -> 50A | B128: 50 | C128: =VLOOKUP(B128,EventsOrder,2,FALSE) -> 2.4 | D128: =VLOOKUP(B128,EventsOrder,4,FALSE) -> U15 Female | E128: A | F128: =IF(MID(D128,5,1)="F","F","M") -> F | G128: B | H128: I | I128: F | J128: X | K128: O | L128: G | M128: U | N128: C | O128: 43.2 | P128: 44.5 | Q128: 45.1 | R128: 45.8 | S128: 47.2 | T128: 47.7 | U128: 49.3 | V128: 49.9 | W128: B | X128: I | Y128: F | Z128: X | AA128: O | AB128: G | AC128: U | AD128: C | AE128: =IF(LEN(G128)=0,"",VLOOKUP($B128,IF($F128="F",TeamSheetFemale,TeamSheetMale),CC128,FALSE)) -> Emma Sherwood | AF128: Emily Williams | AG128: Emily Findlater | AH128: Emily McTaggart | AI128: ELOISE COOMBS | AJ128: Mel Adkins | AK128: Jessica Surridge | AL128: Ellen Bowen | AM128: 1 | AN128: 4 | AO128: 7 | AP128: 2 | AQ128: 8 | AR128: 6 | AS128: 3 | AT128: 5 | AU128: 49.9 | AV128: 47.2 | AW128: 44.5 | AX128: 49.3 | AY128: 43.2 | AZ128: 45.1 | BA128: 47.7 | BB128: 45.8 | BC128: 8 | BD128: 5 | BE128: 2 | BF128: 7 | BG128: 1 | BH128: 3 | BI128: 6 | BJ128: 4 | BK128: DASH | BL128: Kett | BM128: Tam | BN128: Wreake | BO128: Corby | BP128: Royal | BQ128: K&S | BR128: B&R | BS128: B | BT128: I | BU128: F | BV128: X | BW128: O | BX128: G | BY128: U | BZ128: C | CC128: =IF(LEN(G128)=0,"",HLOOKUP(BS128,$CC$26:$CJ$28,2,FALSE)+IF(LEN(G128)=2,2,0)) -> 27 | CD128: 17 | CE128: 32 | CF128: 42 | CG128: 12 | CH128: 37 | CI128: 22 | CJ128: 7
A129: =B128&"B" -> 50B | D129: =VLOOKUP(B128,EventsOrder,3,FALSE) -> 300m | E129: B | G129: BB | H129: UU | I129: FF | J129: OO | K129: XX | L129: CC | M129: II | N129: GG | O129: 43.7 | P129: 45.5 | Q129: 46 | R129: 49.4 | S129: 49.8 | T129: 50.4 | U129: 51.7 | V129: 52 | AC129: II | AD129: GG | AE129: =IF(LEN(G129)=0,"",VLOOKUP($B128,IF($F128="F",TeamSheetFemale,TeamSheetMale),CC129,FALSE)) -> Zara Milward | AF129: Georgia Lees | AG129: Eve Clawley | AH129: LAUREN MCMULLEN | AI129: Hollie Gamble | AJ129: Amy Mijovic-Cauldwell | AK129: Olivia Knibb | AL129: Evie Gough | AM129: 3 | AN129: 5 | AO129: 2 | AP129: 7 | AQ129: 8 | AR129: 6 | AS129: 1 | AT129: 4 | AU129: 50.4 | AV129: 49.4 | AW129: 51.7 | AX129: 45.5 | AY129: 43.7 | AZ129: 46 | BA129: 52 | BB129: 49.8 | BC129: 6 | BD129: 4 | BE129: 7 | BF129: 2 | BG129: 1 | BH129: 3 | BI129: 8 | BJ129: 5 | BK129: DASH | BL129: K&S | BM129: Tam | BN129: Corby | BO129: Wreake | BP129: B&R | BQ129: Kett | BR129: Royal | BS129: B | BT129: U | BU129: F | BV129: O | BW129: X | BX129: C | BY129: I | BZ129: G | CC129: 29 | CD129: 24 | CE129: 34 | CF129: 14 | CG129: 44 | CH129: 9 | CI129: 19 | CJ129: 39
A130: =B130&"A" -> 51A | B130: 51 | C130: =VLOOKUP(B130,EventsOrder,2,FALSE) -> 2.45 | D130: =VLOOKUP(B130,EventsOrder,4,FALSE) -> U17 F/Women | E130: A | F130: =IF(MID(D130,5,1)="F","F","M") -> F | G130: I | H130: G | I130: U | J130: C | K130: O | L130: X | O130: 42.2 | P130: 44.7 | Q130: 46.8 | R130: 4.9 | S130: 48.7 | T130: 49.7 | W130: I | X130: G | Y130: U | Z130: C | AA130: O | AB130: X | AE130: =IF(LEN(G130)=0,"",VLOOKUP($B130,IF($F130="F",TeamSheetFemale,TeamSheetMale),CC130,FALSE)) -> Ella Palmer | AF130: Jenny Hopkinson | AG130: Sarah Stuart-Smith | AH130: Megan Nicod | AI130: ELLIE MAY HATAHAWAY | AJ130: Michaela Knight | AM130: 5 | AN130: 4 | AO130: 8 | AP130: 6 | AQ130: 0 | AR130: 0 | AS130: 7 | AT130: 3 | AU130: 4.9 | AV130: 48.7 | AW130: 42.2 | AX130: 46.8 | AY130: 0 | AZ130: 0 | BA130: 44.7 | BB130: 49.7 | BC130: =IF(ISNA(MATCH(BC$29,$BS130:$BZ130,0)),0,MATCH(BC$29,$BS130:$BZ130,0)) -> 4 | BD130: 5 | BE130: 1 | BF130: 3 | BG130: 0 | BH130: 0 | BI130: 2 | BJ130: 6 | BK130: Kett | BL130: Royal | BM130: K&S | BN130: B&R | BO130: Corby | BP130: Wreake | BQ130: 0 | BR130: 0 | BS130: I | BT130: G | BU130: U | BV130: C | BW130: O | BX130: X | CC130: 17 | CD130: 37 | CE130: 22 | CF130: 7 | CG130: 12 | CH130: 42
A131: =B130&"B" -> 51B | D131: =VLOOKUP(B130,EventsOrder,3,FALSE) -> 300m | E131: B | G131: II | H131: XX | O131: 50 | P131: 53.1 | AE131: =IF(LEN(G131)=0,"",VLOOKUP($B130,IF($F130="F",TeamSheetFemale,TeamSheetMale),CC131,FALSE)) -> Chloe Hearne | AF131: Rosie Weselby | AM131: 0 | AN131: 0 | AO131: 8 | AP131: 0 | AQ131: 0 | AR131: 0 | AS131: 0 | AT131: 7 | AU131: =OFFSET($N131,0,BC131) -> 0 | AV131: =OFFSET($N131,0,BD131) -> 0 | AW131: =OFFSET($N131,0,BE131) -> 50 | AX131: =OFFSET($N131,0,BF131) -> 0 | AY131: 0 | AZ131: 0 | BA131: 0 | BB131: 53.1 | BC131: 0 | BD131: 0 | BE131: 1 | BF131: 0 | BG131: 0 | BH131: 0 | BI131: 0 | BJ131: 2 | BK131: Kett | BL131: Wreake | BM131: 0 | BN131: 0 | BO131: 0 | BP131: 0 | BQ131: 0 | BR131: 0 | BS131: I | BT131: X | CC131: 19 | CD131: 44
A132: =B132&"A" -> 52A | B132: 52 | C132: =VLOOKUP(B132,EventsOrder,2,FALSE) -> 2.4 | D132: =VLOOKUP(B132,EventsOrder,4,FALSE) -> U13 Male | E132: A | F132: =IF(MID(D132,5,1)="F","F","M") -> M | G132: G | H132: B | I132: F | J132: I | K132: X | L132: U | M132: C | O132: 6.45 | P132: 6.01 | Q132: 5.82 | R132: 5.81 | S132: 5.31 | T132: 4.28 | U132: 4.16 | W132: G | X132: B | Y132: F | Z132: I | AA132: X | AB132: U | AC132: C | AE132: =IF(LEN(G132)=0,"",VLOOKUP($B132,IF($F132="F",TeamSheetFemale,TeamSheetMale),CC132,FALSE)) -> Daniel Olatundun | AF132: Nathan Crook | AG132: James Sherriff | AH132: Dylan Bowley | AI132: Roman Watson Quilter | AJ132: Ryan Bennett | AK132: James Pickup | AM132: 2 | AN132: 0 | AO132: 5 | AP132: 3 | AQ132: 7 | AR132: 6 | AS132: 8 | AT132: 4 | AU132: 4.16 | AV132: 0 | AW132: 5.81 | AX132: 4.28 | AY132: 6.01 | AZ132: 5.82 | BA132: 6.45 | BB132: 5.31 | BC132: 7 | BD132: 0 | BE132: 4 | BF132: 6 | BG132: 2 | BH132: 3 | BI132: 1 | BJ132: 5 | BK132: Royal | BL132: DASH | BM132: Tam | BN132: Kett | BO132: Wreake | BP132: K&S | BQ132: B&R | BR132: 0 | BS132: G | BT132: B | BU132: F | BV132: I | BW132: X | BX132: U | BY132: C | CC132: 37 | CD132: 27 | CE132: 32 | CF132: 17 | CG132: 42 | CH132: 22 | CI132: 7
A133: =B132&"B" -> 52B | D133: =VLOOKUP(B132,EventsOrder,3,FALSE) -> Shot | E133: B | G133: II | H133: GG | I133: CC | J133: XX | O133: 5.62 | P133: 5.03 | Q133: 4.01 | R133: 3.99 | AE133: =IF(LEN(G133)=0,"",VLOOKUP($B132,IF($F132="F",TeamSheetFemale,TeamSheetMale),CC133,FALSE)) -> Ethan Nelis | AF133: Connor Race | AG133: Harrison Mayne | AH133: David Seidu | AM133: 6 | AN133: 0 | AO133: 8 | AP133: 0 | AQ133: 0 | AR133: 0 | AS133: 7 | AT133: 5 | AU133: 4.01 | AV133: 0 | AW133: 5.62 | AX133: 0 | AY133: 0 | AZ133: 0 | BA133: 5.03 | BB133: 3.99 | BC133: 3 | BD133: 0 | BE133: 1 | BF133: 0 | BG133: 0 | BH133: 0 | BI133: 2 | BJ133: 4 | BK133: Kett | BL133: Royal | BM133: B&R | BN133: Wreake | BO133: 0 | BP133: 0 | BQ133: 0 | BR133: 0 | BS133: I | BT133: G | BU133: C | BV133: X | CC133: 19 | CD133: 39 | CE133: 9 | CF133: 44
A134: =B134&"A" -> 53A | B134: 53 | C134: =VLOOKUP(B134,EventsOrder,2,FALSE) -> 2.4 | D134: =VLOOKUP(B134,EventsOrder,4,FALSE) -> U17 F/Women | E134: A | F134: =IF(MID(D134,5,1)="F","F","M") -> F | G134: G | H134: X | I134: B | J134: C | K134: U | L134: I | O134: 32.38 | P134: 18.11 | Q134: 17.77 | R134: 17.07 | S134: 12.88 | T134: 12.5 | W134: G | X134: X | Y134: B | Z134: C | AA134: U | AB134: I | AE134: =IF(LEN(G134)=0,"",VLOOKUP($B134,IF($F134="F",TeamSheetFemale,TeamSheetMale),CC134,FALSE)) -> Chrissie Prince | AF134: Michaela knight | AG134: Danielle Kinsell | AH134: Lauren Powell | AI134: Francais Milburn | AJ134: Ella Palmer | AM134: 5 | AN134: 0 | AO134: 3 | AP134: 4 | AQ134: 6 | AR134: 0 | AS134: 8 | AT134: 7 | AU134: 17.07 | AV134: 0 | AW134: 12.5 | AX134: 12.88 | AY134: 17.77 | AZ134: 0 | BA134: 32.38 | BB134: 18.11 | BC134: 4 | BD134: 0 | BE134: 6 | BF134: 5 | BG134: 3 | BH134: 0 | BI134: 1 | BJ134: 2 | BK134: Royal | BL134: Wreake | BM134: DASH | BN134: B&R | BO134: K&S | BP134: Kett | BQ134: 0 | BR134: 0 | BS134: G | BT134: X | BU134: B | BV134: C | BW134: U | BX134: I | CC134: 37 | CD134: 42 | CE134: 27 | CF134: 7 | CG134: 22 | CH134: 17
A135: =B134&"B" -> 53B | D135: =VLOOKUP(B134,EventsOrder,3,FALSE) -> Discus | E135: B | G135: GG | H135: II | I135: CC | O135: 17.56 | P135: 14.46 | Q135: 13.44 | AE135: =IF(LEN(G135)=0,"",VLOOKUP($B134,IF($F134="F",TeamSheetFemale,TeamSheetMale),CC135,FALSE)) -> Lucy Wood | AF135: Freya Marlow | AG135: Yasmine Al-daftari (Vet) | AM135: 6 | AN135: 0 | AO135: 7 | AP135: 0 | AQ135: 0 | AR135: 0 | AS135: 8 | AT135: 0 | AU135: 13.44 | AV135: 0 | AW135: 14.46 | AX135: 0 | AY135: 0 | AZ135: 0 | BA135: 17.56 | BB135: 0 | BC135: 3 | BD135: 0 | BE135: 2 | BF135: 0 | BG135: 0 | BH135: 0 | BI135: 1 | BJ135: 0 | BK135: Royal | BL135: Kett | BM135: B&R | BN135: 0 | BO135: 0 | BP135: 0 | BQ135: 0 | BR135: 0 | BS135: G | BT135: I | BU135: C | CC135: 39 | CD135: 19 | CE135: 9
A136: =B136&"A" -> 54A | B136: 54 | C136: =VLOOKUP(B136,EventsOrder,2,FALSE) -> 2.4 | D136: =VLOOKUP(B136,EventsOrder,4,FALSE) -> U15 Female | E136: A | F136: =IF(MID(D136,5,1)="F","F","M") -> F | AE136: =IF(LEN(G136)=0,"",VLOOKUP($B136,IF($F136="F",TeamSheetFemale,TeamSheetMale),CC136,FALSE)) ->  | AM136: 0 | AN136: 0 | AO136: 0 | AP136: 0 | AQ136: 0 | AR136: 0 | AS136: 0 | AT136: 0 | AU136: 0 | AV136: 0 | AW136: 0 | AX136: 0 | AY136: 0 | AZ136: 0 | BA136: 0 | BB136: 0 | BC136: 0 | BD136: 0 | BE136: 0 | BF136: 0 | BG136: 0 | BH136: 0 | BI136: 0 | BJ136: 0 | BK136: 0 | BL136: 0 | BM136: 0 | BN136: 0 | BO136: 0 | BP136: 0 | BQ136: 0 | BR136: 0
A137: =B136&"B" -> 54B | D137: =VLOOKUP(B136,EventsOrder,3,FALSE) -> Javelin | E137: B | AE137: =IF(LEN(G137)=0,"",VLOOKUP($B136,IF($F136="F",TeamSheetFemale,TeamSheetMale),CC137,FALSE)) ->  | AM137: 0 | AN137: 0 | AO137: 0 | AP137: 0 | AQ137: 0 | AR137: 0 | AS137: 0 | AT137: 0 | AU137: 0 | AV137: 0 | AW137: 0 | AX137: 0 | AY137: 0 | AZ137: 0 | BA137: 0 | BB137: 0 | BC137: 0 | BD137: 0 | BE137: 0 | BF137: 0 | BG137: 0 | BH137: 0 | BI137: 0 | BJ137: 0 | BK137: 0 | BL137: 0 | BM137: 0 | BN137: 0 | BO137: 0 | BP137: 0 | BQ137: 0 | BR137: 0
A138: =B138&"A" -> 55A | B138: 55 | C138: =VLOOKUP(B138,EventsOrder,2,FALSE) -> 2.55 | D138: =VLOOKUP(B138,EventsOrder,4,FALSE) -> U15 Male | E138: A | F138: =IF(MID(D138,5,1)="F","F","M") -> M | G138: C | H138: O | I138: G | J138: X | K138: I | L138: F | M138: B | O138: 36.5 | P138: 41.1 | Q138: 41.9 | R138: 42.8 | S138: 43.7 | T138: 43.9 | U138: 48.3 | W138: C | X138: O | Y138: G | Z138: X | AA138: I | AB138: F | AC138: B | AE138: =IF(LEN(G138)=0,"",VLOOKUP($B138,IF($F138="F",TeamSheetFemale,TeamSheetMale),CC138,FALSE)) -> Josh Pearson | AF138: Alex Cunningham | AG138: Ben White | AH138: Charlie McGlinchey | AI138: Henri Codling | AJ138: Andrew Woods | AK138: Daniel McGregor | AM138: 8 | AN138: 7 | AO138: 4 | AP138: 0 | AQ138: 2 | AR138: 3 | AS138: 6 | AT138: 5 | AU138: 36.5 | AV138: 41.1 | AW138: 43.7 | AX138: 0 | AY138: 48.3 | AZ138: 43.9 | BA138: 41.9 | BB138: 42.8 | BC138: 1 | BD138: 2 | BE138: 5 | BF138: 0 | BG138: 7 | BH138: 6 | BI138: 3 | BJ138: 4 | BK138: B&R | BL138: Corby | BM138: Royal | BN138: Wreake | BO138: Kett | BP138: Tam | BQ138: DASH | BR138: 0 | BS138: C | BT138: O | BU138: G | BV138: X | BW138: I | BX138: F | BY138: B | CC138: 7 | CD138: 12 | CE138: 37 | CF138: 42 | CG138: 17 | CH138: 32 | CI138: 27
A139: =B138&"B" -> 55B | D139: =VLOOKUP(B138,EventsOrder,3,FALSE) -> 300m | E139: B | G139: CC | H139: II | I139: FF | J139: GG | O139: 42.5 | P139: 47.1 | Q139: 47.9 | R139: 48.5 | W139: CC | X139: II | Y139: FF | Z139: GG | AE139: =IF(LEN(G139)=0,"",VLOOKUP($B138,IF($F138="F",TeamSheetFemale,TeamSheetMale),CC139,FALSE)) -> George Clements | AF139: Oliver Winstone | AG139: Max Kent | AH139: Luke Stoddart | AM139: 8 | AN139: 0 | AO139: 7 | AP139: 0 | AQ139: 0 | AR139: 6 | AS139: 5 | AT139: 0 | AU139: 42.5 | AV139: 0 | AW139: 47.1 | AX139: 0 | AY139: 0 | AZ139: 47.9 | BA139: 48.5 | BB139: 0 | BC139: 1 | BD139: 0 | BE139: 2 | BF139: 0 | BG139: 0 | BH139: 3 | BI139: 4 | BJ139: 0 | BK139: B&R | BL139: Kett | BM139: Tam | BN139: Royal | BO139: 0 | BP139: 0 | BQ139: 0 | BR139: 0 | BS139: C | BT139: I | BU139: F | BV139: G | CC139: 9 | CD139: 19 | CE139: 34 | CF139: 39
A140: =B140&"A" -> 56A | B140: 56 | C140: =VLOOKUP(B140,EventsOrder,2,FALSE) -> 2.5 | D140: =VLOOKUP(B140,EventsOrder,4,FALSE) -> U13 Female | E140: A | F140: =IF(MID(D140,5,1)="F","F","M") -> F | G140: O | H140: I | I140: B | J140: F | K140: G | L140: X | M140: C | O140: 4.11 | P140: 3.99 | Q140: 3.96 | R140: 3.78 | S140: 3.71 | T140: 3.6 | U140: 2.23 | W140: O | X140: I | Y140: B | Z140: F | AA140: G | AB140: X | AC140: C | AE140: =IF(LEN(G140)=0,"",VLOOKUP($B140,IF($F140="F",TeamSheetFemale,TeamSheetMale),CC140,FALSE)) -> SOPHIE BEATY | AF140: Blainne Conway | AG140: Molly Hall | AH140: Sian Lewis | AI140: Freya Liddington | AJ140: Flora Miskin-Young | AK140: Quincy Roberts | AM140: 2 | AN140: 8 | AO140: 7 | AP140: 0 | AQ140: 6 | AR140: 5 | AS140: 4 | AT140: 3 | AU140: 2.23 | AV140: 4.11 | AW140: 3.99 | AX140: 0 | AY140: 3.96 | AZ140: 3.78 | BA140: 3.71 | BB140: 3.6 | BC140: 7 | BD140: 1 | BE140: 2 | BF140: 0 | BG140: 3 | BH140: 4 | BI140: 5 | BJ140: 6 | BK140: Corby | BL140: Kett | BM140: DASH | BN140: Tam | BO140: Royal | BP140: Wreake | BQ140: B&R | BR140: 0 | BS140: O | BT140: I | BU140: B | BV140: F | BW140: G | BX140: X | BY140: C | CC140: 12 | CD140: 17 | CE140: 27 | CF140: 32 | CG140: 37 | CH140: 42 | CI140: 7
A141: =B140&"B" -> 56B | D141: =VLOOKUP(B140,EventsOrder,3,FALSE) -> Long Jump | E141: B | G141: II | H141: GG | I141: BB | J141: XX | K141: OO | L141: FF | M141: CC | O141: 3.64 | P141: 3.56 | Q141: 3.53 | R141: 3.23 | S141: 2.87 | T141: 2.44 | U141: 1.92 | AC141: CC | AE141: =IF(LEN(G141)=0,"",VLOOKUP($B140,IF($F140="F",TeamSheetFemale,TeamSheetMale),CC141,FALSE)) -> Millie Webb | AF141: Zoe Trevis | AG141: Jessica Granger | AH141: Sophie Thorpe | AI141: EMMA WILLIAMS | AJ141: Sophie Perry | AK141: Tally Scoltock | AM141: 2 | AN141: 4 | AO141: 8 | AP141: 0 | AQ141: 6 | AR141: 3 | AS141: 7 | AT141: 5 | AU141: 1.92 | AV141: 2.87 | AW141: 3.64 | AX141: 0 | AY141: 3.53 | AZ141: 2.44 | BA141: 3.56 | BB141: 3.23 | BC141: 7 | BD141: 5 | BE141: 1 | BF141: 0 | BG141: 3 | BH141: 6 | BI141: 2 | BJ141: 4 | BK141: Kett | BL141: Royal | BM141: DASH | BN141: Wreake | BO141: Corby | BP141: Tam | BQ141: B&R | BR141: 0 | BS141: I | BT141: G | BU141: B | BV141: X | BW141: O | BX141: F | BY141: C | CC141: 19 | CD141: 39 | CE141: 29 | CF141: 44 | CG141: 14 | CH141: 34 | CI141: 9
A142: =B142&"A" -> 57A | B142: 57 | C142: =VLOOKUP(B142,EventsOrder,2,FALSE) -> 3 | D142: =VLOOKUP(B142,EventsOrder,4,FALSE) -> U17 Men | E142: A | F142: =IF(MID(D142,5,1)="F","F","M") -> M | G142: I | H142: G | I142: O | J142: F | K142: X | L142: U | O142: 53.2 | P142: 53.8 | Q142: 54 | R142: 57.7 | S142: 60.9 | T142: 61.1 | W142: I | X142: G | Y142: O | Z142: F | AA142: X | AB142: U | AE142: =IF(LEN(G142)=0,"",VLOOKUP($B142,IF($F142="F",TeamSheetFemale,TeamSheetMale),CC142,FALSE)) -> Jake Trent | AF142: Lee Hetherington | AG142: Matthew Patterson | AH142: Owen Kent | AI142: Sam Alvey | AJ142: Thomas Palmer | AM142: 0 | AN142: 6 | AO142: 8 | AP142: 3 | AQ142: 0 | AR142: 5 | AS142: 7 | AT142: 4 | AU142: 0 | AV142: 54 | AW142: 53.2 | AX142: 61.1 | AY142: 0 | AZ142: 57.7 | BA142: 53.8 | BB142: 60.9 | BC142: 0 | BD142: 3 | BE142: 1 | BF142: 6 | BG142: 0 | BH142: 4 | BI142: 2 | BJ142: 5 | BK142: Kett | BL142: Royal | BM142: Corby | BN142: Tam | BO142: Wreake | BP142: K&S | BQ142: 0 | BR142: 0 | BS142: I | BT142: G | BU142: O | BV142: F | BW142: X | BX142: U | CC142: 17 | CD142: =IF(LEN(H142)=0,"",HLOOKUP(BT142,$CC$26:$CJ$28,2,FALSE)+IF(LEN(H142)=2,2,0)) -> 37 | CE142: =IF(LEN(I142)=0,"",HLOOKUP(BU142,$CC$26:$CJ$28,2,FALSE)+IF(LEN(I142)=2,2,0)) -> 12 | CF142: =IF(LEN(J142)=0,"",HLOOKUP(BV142,$CC$26:$CJ$28,2,FALSE)+IF(LEN(J142)=2,2,0)) -> 32 | CG142: =IF(LEN(K142)=0,"",HLOOKUP(BW142,$CC$26:$CJ$28,2,FALSE)+IF(LEN(K142)=2,2,0)) -> 42 | CH142: =IF(LEN(L142)=0,"",HLOOKUP(BX142,$CC$26:$CJ$28,2,FALSE)+IF(LEN(L142)=2,2,0)) -> 22 | CI142: =IF(LEN(M142)=0,"",HLOOKUP(BY142,$CC$26:$CJ$28,2,FALSE)+IF(LEN(M142)=2,2,0)) ->  | CJ142: =IF(LEN(N142)=0,"",HLOOKUP(BZ142,$CC$26:$CJ$28,2,FALSE)+IF(LEN(N142)=2,2,0)) -> 
A143: =B142&"B" -> 57B | D143: =VLOOKUP(B142,EventsOrder,3,FALSE) -> 400m | E143: B | G143: UU | O143: 64.4 | AE143: =IF(LEN(G143)=0,"",VLOOKUP($B142,IF($F142="F",TeamSheetFemale,TeamSheetMale),CC143,FALSE)) -> Greg Knight | AM143: 0 | AN143: 0 | AO143: 0 | AP143: 8 | AQ143: 0 | AR143: 0 | AS143: 0 | AT143: 0 | AU143: 0 | AV143: 0 | AW143: 0 | AX143: 64.4 | AY143: 0 | AZ143: 0 | BA143: 0 | BB143: 0 | BC143: 0 | BD143: 0 | BE143: 0 | BF143: 1 | BG143: 0 | BH143: 0 | BI143: 0 | BJ143: 0 | BK143: K&S | BL143: 0 | BM143: 0 | BN143: 0 | BO143: 0 | BP143: 0 | BQ143: 0 | BR143: 0 | BS143: U | CC143: 24
A144: =B144&"A" -> 58A | B144: 58 | C144: =VLOOKUP(B144,EventsOrder,2,FALSE) -> 3.1 | D144: =VLOOKUP(B144,EventsOrder,4,FALSE) -> U11 Female | E144: A | F144: =IF(MID(D144,5,1)="F","F","M") -> F | G144: C | H144: O | I144: U | J144: X | K144: G | L144: I | M144: B | N144: F | O144: 11.6 | P144: 11.7 | Q144: 12 | R144: 12.1 | S144: 12.4 | T144: 12.4 | U144: 13.1 | V144: 14.4 | W144: C | X144: O | Y144: U | Z144: X | AA144: G | AB144: I | AC144: B | AD144: F | AE144: =IF(LEN(G144)=0,"",VLOOKUP($B144,IF($F144="F",TeamSheetFemale,TeamSheetMale),CC144,FALSE)) -> Jessica Causer | AF144: MADELINE MAYES | AG144: Libby Oliver | AH144: Isobel Orencas | AI144: Hope Stirland | AJ144: Kate Nelis | AK144: Vyvyenne Crook | AL144: Tegan Vickery | AM144: 8 | AN144: 7 | AO144: 3 | AP144: 6 | AQ144: 2 | AR144: 1 | AS144: 4 | AT144: 5 | AU144: 11.6 | AV144: 11.7 | AW144: 12.4 | AX144: 12 | AY144: 13.1 | AZ144: 14.4 | BA144: 12.4 | BB144: 12.1 | BC144: 1 | BD144: 2 | BE144: 6 | BF144: 3 | BG144: 7 | BH144: 8 | BI144: 5 | BJ144: 4 | BK144: B&R | BL144: Corby | BM144: K&S | BN144: Wreake | BO144: Royal | BP144: Kett | BQ144: DASH | BR144: Tam | BS144: C | BT144: O | BU144: U | BV144: X | BW144: G | BX144: I | BY144: B | BZ144: F | CC144: 7 | CD144: 12 | CE144: 22 | CF144: 42 | CG144: 37 | CH144: 17 | CI144: 27 | CJ144: 32
A145: =B144&"B" -> 58B | D145: =VLOOKUP(B144,EventsOrder,3,FALSE) -> 75m | E145: B | G145: GG | H145: CC | I145: XX | J145: BB | K145: OO | L145: II | M145: UU | O145: 12.3 | P145: 12.4 | Q145: 12.8 | R145: 13 | S145: 13.1 | T145: 13.6 | U145: 15.2 | AC145: UU | AE145: =IF(LEN(G145)=0,"",VLOOKUP($B144,IF($F144="F",TeamSheetFemale,TeamSheetMale),CC145,FALSE)) -> Charlotte Prince | AF145: Alana Pullen | AG145: Mackenzie Smith | AH145: Libby Milward | AI145: ERIN MCCLYMONT | AJ145: Emma Robinson | AK145: Hannah Telling | AM145: 7 | AN145: 4 | AO145: 3 | AP145: 2 | AQ145: 5 | AR145: 0 | AS145: 8 | AT145: 6 | AU145: 12.4 | AV145: 13.1 | AW145: 13.6 | AX145: 15.2 | AY145: 13 | AZ145: 0 | BA145: 12.3 | BB145: 12.8 | BC145: 2 | BD145: 5 | BE145: 6 | BF145: 7 | BG145: 4 | BH145: 0 | BI145: 1 | BJ145: 3 | BK145: Royal | BL145: B&R | BM145: Wreake | BN145: DASH | BO145: Corby | BP145: Kett | BQ145: K&S | BR145: 0 | BS145: G | BT145: C | BU145: X | BV145: B | BW145: O | BX145: I | BY145: U | CC145: 39 | CD145: 9 | CE145: 44 | CF145: 29 | CG145: 14 | CH145: 19 | CI145: 24
A146: =B146&"A" -> 59A | B146: 59 | C146: =VLOOKUP(B146,EventsOrder,2,FALSE) -> 3.15 | D146: =VLOOKUP(B146,EventsOrder,4,FALSE) -> U11 Female | E146: A | F146: =IF(MID(D146,5,1)="F","F","M") -> F | G146: X | H146: XX | I146: G | J146: O | K146: OO | L146: GG | M146: C | O146: 12.3 | P146: 12.4 | Q146: 12.7 | R146: 13.3 | S146: 13.4 | T146: 13.5 | U146: 14.1 | W146: 503 | X146: 504 | Y146: 302 | Z146: 411 | AA146: 409 | AB146: 306 | AC146: 650 | AE146: =IF(LEN(G146)=0,"",VLOOKUP($B146,IF($F146="F",TeamSheetFemale,TeamSheetMale),CC146,FALSE)) -> Maddy Torbitt | AF146: Destiny Nicholson | AG146: Zara Buchanan | AH146: CASIE SEYMOUR | AI146: KIERA POTTER | AJ146: Sian Duval | AK146: Georgia Duncombe | AM146: 2 | AN146: 5 | AO146: 0 | AP146: 0 | AQ146: 0 | AR146: 0 | AS146: 6 | AT146: 8 | AU146: 14.1 | AV146: 13.3 | AW146: 0 | AX146: 0 | AY146: 0 | AZ146: 0 | BA146: 12.7 | BB146: 12.3 | BC146: =IF(ISNA(MATCH(BC$29,$BS146:$BZ146,0)),0,MATCH(BC$29,$BS146:$BZ146,0)) -> 7 | BD146: 4 | BE146: 0 | BF146: 0 | BG146: 0 | BH146: 0 | BI146: 3 | BJ146: 1 | BK146: Wreake | BL146: Wreake | BM146: Royal | BN146: Corby | BO146: Corby | BP146: Royal | BQ146: B&R | BR146: 0 | BS146: X | BT146: X | BU146: G | BV146: O | BW146: O | BX146: G | BY146: C | CC146: 42 | CD146: 44 | CE146: 37 | CF146: 12 | CG146: 14 | CH146: 39 | CI146: 7
A147: =B146&"B" -> 59B | D147: =VLOOKUP(B146,EventsOrder,3,FALSE) -> 75m | E147: B | AE147: =IF(LEN(G147)=0,"",VLOOKUP($B146,IF($F146="F",TeamSheetFemale,TeamSheetMale),CC147,FALSE)) ->  | AM147: 0 | AN147: 0 | AO147: 0 | AP147: 0 | AQ147: 0 | AR147: 0 | AS147: 0 | AT147: 0 | AU147: 0 | AV147: 0 | AW147: 0 | AX147: 0 | AY147: 0 | AZ147: 0 | BA147: 0 | BB147: 0 | BC147: 0 | BD147: 0 | BE147: 0 | BF147: 0 | BG147: 0 | BH147: 0 | BI147: 0 | BJ147: 0 | BK147: 0 | BL147: 0 | BM147: 0 | BN147: 0 | BO147: 0 | BP147: 0 | BQ147: 0 | BR147: 0
A148: =B148&"A" -> 60A | B148: 60 | C148: =VLOOKUP(B148,EventsOrder,2,FALSE) -> 3.1 | D148: =VLOOKUP(B148,EventsOrder,4,FALSE) -> U17 F/Women | E148: A | F148: =IF(MID(D148,5,1)="F","F","M") -> F | G148: I | H148: O | I148: C | J148: G | O148: 1.42 | P148: 1.3 | Q148: 1.3 | R148: 1.2 | W148: I | X148: O | Y148: C | Z148: G | AE148: =IF(LEN(G148)=0,"",VLOOKUP($B148,IF($F148="F",TeamSheetFemale,TeamSheetMale),CC148,FALSE)) -> Freya Marlow | AF148: ELLIE MAY HATHAWAY | AG148: Megan Nicod | AH148: Sophie Goodby | AM148: 6 | AN148: 7 | AO148: 8 | AP148: 0 | AQ148: 0 | AR148: 0 | AS148: 5 | AT148: 0 | AU148: 1.3 | AV148: 1.3 | AW148: 1.42 | AX148: 0 | AY148: 0 | AZ148: 0 | BA148: 1.2 | BB148: 0 | BC148: 3 | BD148: 2 | BE148: 1 | BF148: 0 | BG148: 0 | BH148: 0 | BI148: 4 | BJ148: 0 | BK148: Kett | BL148: Corby | BM148: B&R | BN148: Royal | BO148: 0 | BP148: 0 | BQ148: 0 | BR148: 0 | BS148: I | BT148: O | BU148: C | BV148: G | CC148: 17 | CD148: 12 | CE148: 7 | CF148: 37
A149: =B148&"B" -> 60B | D149: =VLOOKUP(B148,EventsOrder,3,FALSE) -> High Jump | E149: B | AE149: =IF(LEN(G149)=0,"",VLOOKUP($B148,IF($F148="F",TeamSheetFemale,TeamSheetMale),CC149,FALSE)) ->  | AM149: 0 | AN149: 0 | AO149: 0 | AP149: 0 | AQ149: 0 | AR149: 0 | AS149: 0 | AT149: 0 | AU149: 0 | AV149: 0 | AW149: 0 | AX149: 0 | AY149: 0 | AZ149: 0 | BA149: 0 | BB149: 0 | BC149: 0 | BD149: 0 | BE149: 0 | BF149: 0 | BG149: 0 | BH149: 0 | BI149: 0 | BJ149: 0 | BK149: 0 | BL149: 0 | BM149: 0 | BN149: 0 | BO149: 0 | BP149: 0 | BQ149: 0 | BR149: 0
A150: =B150&"A" -> 61A | B150: 61 | C150: =VLOOKUP(B150,EventsOrder,2,FALSE) -> 3.2 | D150: =VLOOKUP(B150,EventsOrder,4,FALSE) -> U11 Male | E150: A | F150: =IF(MID(D150,5,1)="F","F","M") -> M | G150: O | H150: G | I150: X | J150: F | K150: C | L150: I | M150: B | N150: U | O150: 11.1 | P150: 11.3 | Q150: 11.8 | R150: 12 | S150: 12.1 | T150: 12.2 | U150: 12.6 | V150: 12.7 | W150: O | X150: G | Y150: X | Z150: F | AA150: C | AB150: I | AC150: B | AD150: U | AE150: =IF(LEN(G150)=0,"",VLOOKUP($B150,IF($F150="F",TeamSheetFemale,TeamSheetMale),CC150,FALSE)) -> Fabian Powell | AF150: Tyrique Fagan | AG150: Jack Hollidge | AH150: Ashley Johnson | AI150: Sebastian Purvis | AJ150: Alfie Frayne | AK150: John Sparry | AL150: Harry Lees | AM150: 4 | AN150: 8 | AO150: 3 | AP150: 1 | AQ150: 2 | AR150: 5 | AS150: 7 | AT150: 6 | AU150: 12.1 | AV150: 11.1 | AW150: 12.2 | AX150: 12.7 | AY150: 12.6 | AZ150: 12 | BA150: 11.3 | BB150: 11.8 | BC150: 5 | BD150: 1 | BE150: 6 | BF150: 8 | BG150: 7 | BH150: 4 | BI150: 2 | BJ150: 3 | BK150: Corby | BL150: Royal | BM150: Wreake | BN150: Tam | BO150: B&R | BP150: Kett | BQ150: DASH | BR150: K&S | BS150: O | BT150: G | BU150: X | BV150: F | BW150: C | BX150: I | BY150: B | BZ150: U | CC150: 12 | CD150: 37 | CE150: 42 | CF150: 32 | CG150: 7 | CH150: 17 | CI150: 27 | CJ150: 22
A151: =B150&"B" -> 61B | D151: =VLOOKUP(B150,EventsOrder,3,FALSE) -> 75m | E151: B | G151: OO | H151: II | I151: FF | J151: GG | K151: XX | L151: BB | O151: 11.6 | P151: 12 | Q151: 12.1 | R151: 12.2 | S151: 12.3 | T151: 13.5 | W151: OO | X151: II | Y151: FF | Z151: GG | AA151: XX | AB151: BB | AE151: =IF(LEN(G151)=0,"",VLOOKUP($B150,IF($F150="F",TeamSheetFemale,TeamSheetMale),CC151,FALSE)) -> Seb Beckwith | AF151: Daniel Short | AG151: Kai Buckley | AH151: Tobias Clarke | AI151: Finley Venables | AJ151: Jaime Crooke | AM151: 0 | AN151: 8 | AO151: 7 | AP151: 0 | AQ151: 3 | AR151: 6 | AS151: 5 | AT151: 4 | AU151: 0 | AV151: 11.6 | AW151: 12 | AX151: 0 | AY151: 13.5 | AZ151: 12.1 | BA151: 12.2 | BB151: 12.3 | BC151: 0 | BD151: 1 | BE151: 2 | BF151: 0 | BG151: 6 | BH151: 3 | BI151: 4 | BJ151: 5 | BK151: Corby | BL151: Kett | BM151: Tam | BN151: Royal | BO151: Wreake | BP151: DASH | BQ151: 0 | BR151: 0 | BS151: O | BT151: I | BU151: F | BV151: G | BW151: X | BX151: B | CC151: 14 | CD151: 19 | CE151: 34 | CF151: 39 | CG151: 44 | CH151: 29
A152: =B152&"A" -> 62A | B152: 62 | C152: =VLOOKUP(B152,EventsOrder,2,FALSE) -> 3.25 | D152: =VLOOKUP(B152,EventsOrder,4,FALSE) -> U11 Male | E152: A | F152: =IF(MID(D152,5,1)="F","F","M") -> M | G152: GG | H152: F | I152: FF | J152: I | K152: GG | L152: B | M152: O | N152: X | O152: 12.1 | P152: 12.5 | Q152: 12.7 | R152: 13 | S152: 13.2 | T152: 13.4 | U152: 14.3 | V152: 14.8 | W152: 319 | X152: 14 | Y152: 15 | Z152: 95 | AA152: 319 | AB152: 205 | AC152: 412 | AD152: 507 | AE152: =IF(LEN(G152)=0,"",VLOOKUP($B152,IF($F152="F",TeamSheetFemale,TeamSheetMale),CC152,FALSE)) -> Jacob Thomas | AF152: James Stretton | AG152: Daniel Aston | AH152: Ben Brooker | AI152: Jacob Thomas | AJ152: Alex Jhonson | AK152: Seb Beckwith | AL152: ROHAN STOKES | AM152: 0 | AN152: 2 | AO152: 5 | AP152: 0 | AQ152: 3 | AR152: 7 | AS152: 8 | AT152: 1 | AU152: X | AV152: 14.3 | AW152: 13 | AX152: X | AY152: 13.4 | AZ152: 12.5 | BA152: 12.1 | BB152: 14.8 | BC152: 0 | BD152: 7 | BE152: 4 | BF152: 0 | BG152: 6 | BH152: 2 | BI152: 1 | BJ152: 8 | BK152: Royal | BL152: Tam | BM152: Tam | BN152: Kett | BO152: Royal | BP152: DASH | BQ152: Corby | BR152: Wreake | BS152: G | BT152: F | BU152: F | BV152: I | BW152: G | BX152: B | BY152: O | BZ152: X | CC152: 39 | CD152: 32 | CE152: 34 | CF152: 17 | CG152: 39 | CH152: 27 | CI152: 12 | CJ152: 42
A153: =B152&"B" -> 62B | D153: =VLOOKUP(B152,EventsOrder,3,FALSE) -> 75m | E153: B | AE153: =IF(LEN(G153)=0,"",VLOOKUP($B152,IF($F152="F",TeamSheetFemale,TeamSheetMale),CC153,FALSE)) ->  | AM153: 0 | AN153: 0 | AO153: 0 | AP153: 0 | AQ153: 0 | AR153: 0 | AS153: 0 | AT153: 0 | AU153: 0 | AV153: 0 | AW153: 0 | AX153: 0 | AY153: 0 | AZ153: 0 | BA153: 0 | BB153: 0 | BC153: 0 | BD153: 0 | BE153: 0 | BF153: 0 | BG153: 0 | BH153: 0 | BI153: 0 | BJ153: 0 | BK153: 0 | BL153: 0 | BM153: 0 | BN153: 0 | BO153: 0 | BP153: 0 | BQ153: 0 | BR153: 0
A154: =B154&"A" -> 63A | B154: 63 | C154: =VLOOKUP(B154,EventsOrder,2,FALSE) -> 3.35 | D154: =VLOOKUP(B154,EventsOrder,4,FALSE) -> U13 Female | E154: A | F154: =IF(MID(D154,5,1)="F","F","M") -> F | G154: U | H154: O | I154: I | J154: G | K154: B | L154: C | M154: F | N154: X | O154: 30.2 | P154: 30.9 | Q154: 31.2 | R154: 31.4 | S154: 31.9 | T154: 32.3 | U154: 33.9 | V154: 34.6 | W154: U | X154: O | Y154: I | Z154: G | AA154: B | AB154: C | AC154: F | AD154: X | AE154: =IF(LEN(G154)=0,"",VLOOKUP($B154,IF($F154="F",TeamSheetFemale,TeamSheetMale),CC154,FALSE)) -> Izzy Mullett | AF154: MATILDA SUMMERVILLE-COTTON | AG154: Ellen Smith | AH154: Maddie Hammond | AI154: Niamh Darby | AJ154: Henna Khaliq | AK154: Niamh Kilgallen | AL154: Sophie Thorpe | AM154: 3 | AN154: 7 | AO154: 6 | AP154: 8 | AQ154: 4 | AR154: 2 | AS154: 5 | AT154: 1 | AU154: 32.3 | AV154: 30.9 | AW154: 31.2 | AX154: 30.2 | AY154: 31.9 | AZ154: 33.9 | BA154: 31.4 | BB154: 34.6 | BC154: 6 | BD154: 2 | BE154: 3 | BF154: 1 | BG154: 5 | BH154: 7 | BI154: 4 | BJ154: 8 | BK154: K&S | BL154: Corby | BM154: Kett | BN154: Royal | BO154: DASH | BP154: B&R | BQ154: Tam | BR154: Wreake | BS154: U | BT154: O | BU154: I | BV154: G | BW154: B | BX154: C | BY154: F | BZ154: X | CC154: 22 | CD154: 12 | CE154: 17 | CF154: 37 | CG154: 27 | CH154: 7 | CI154: 32 | CJ154: 42
A155: =B154&"B" -> 63B | D155: =VLOOKUP(B154,EventsOrder,3,FALSE) -> 200m | E155: B | G155: FF | H155: II | I155: GG | J155: BB | K155: OO | L155: XX | O155: 30.5 | P155: 32.8 | Q155: 33.9 | R155: 34.2 | S155: 34.5 | T155: 36.2 | AE155: =IF(LEN(G155)=0,"",VLOOKUP($B154,IF($F154="F",TeamSheetFemale,TeamSheetMale),CC155,FALSE)) -> Lauren Bowman | AF155: Millie Webb | AG155: Zoe Trevis | AH155: Molly Hall | AI155: EMMA WILLIAMS | AJ155: Ravenn Cook | AM155: 0 | AN155: 4 | AO155: 7 | AP155: 0 | AQ155: 5 | AR155: 8 | AS155: 6 | AT155: 3 | AU155: 0 | AV155: 34.5 | AW155: 32.8 | AX155: 0 | AY155: 34.2 | AZ155: 30.5 | BA155: 33.9 | BB155: 36.2 | BC155: 0 | BD155: 5 | BE155: 2 | BF155: 0 | BG155: 4 | BH155: 1 | BI155: 3 | BJ155: 6 | BK155: Tam | BL155: Kett | BM155: Royal | BN155: DASH | BO155: Corby | BP155: Wreake | BQ155: 0 | BR155: 0 | BS155: F | BT155: I | BU155: G | BV155: B | BW155: O | BX155: X | CC155: 34 | CD155: 19 | CE155: 39 | CF155: 29 | CG155: 14 | CH155: 44
A156: =B156&"A" -> 64A | B156: 64 | C156: =VLOOKUP(B156,EventsOrder,2,FALSE) -> 3.2 | D156: =VLOOKUP(B156,EventsOrder,4,FALSE) -> U13 Male | E156: A | F156: =IF(MID(D156,5,1)="F","F","M") -> M | G156: FF | H156: C | I156: II | J156: G | K156: B | L156: X | M156: U | N156: OO | O156: 4.16 | P156: 4.1 | Q156: 3.78 | R156: 3.64 | S156: 3.61 | T156: 3.17 | U156: 3.15 | V156: 3.11 | W156: FF | X156: C | Y156: II | Z156: G | AA156: B | AB156: X | AC156: U | AD156: OO | AE156: =IF(LEN(G156)=0,"",VLOOKUP($B156,IF($F156="F",TeamSheetFemale,TeamSheetMale),CC156,FALSE)) -> Timothy Li | AF156: Toby Hill | AG156: Cole Sinnott | AH156: Joseph Creed | AI156: Jack Compton | AJ156: Euan Gibbs | AK156: Ryan Bennett | AL156: Jake Lawson | AM156: 7 | AN156: 1 | AO156: 6 | AP156: 2 | AQ156: 4 | AR156: 8 | AS156: 5 | AT156: 3 | AU156: 4.1 | AV156: 3.11 | AW156: 3.78 | AX156: 3.15 | AY156: 3.61 | AZ156: 4.16 | BA156: 3.64 | BB156: 3.17 | BC156: 2 | BD156: 8 | BE156: 3 | BF156: 7 | BG156: 5 | BH156: 1 | BI156: 4 | BJ156: 6 | BK156: Tam | BL156: B&R | BM156: Kett | BN156: Royal | BO156: DASH | BP156: Wreake | BQ156: K&S | BR156: Corby | BS156: F | BT156: C | BU156: I | BV156: G | BW156: B | BX156: X | BY156: U | BZ156: O | CC156: 34 | CD156: 7 | CE156: 19 | CF156: 37 | CG156: 27 | CH156: 42 | CI156: 22 | CJ156: 14
A157: =B156&"B" -> 64B | D157: =VLOOKUP(B156,EventsOrder,3,FALSE) -> Long Jump | E157: B | G157: F | H157: CC | I157: I | J157: BB | O157: 4.09 | P157: 3.75 | Q157: 3.58 | R157: 3.09 | AE157: =IF(LEN(G157)=0,"",VLOOKUP($B156,IF($F156="F",TeamSheetFemale,TeamSheetMale),CC157,FALSE)) -> Joel Bickley | AF157: Matthew Griffin | AG157: Max Mowforth | AH157: Nathan Pearson | AM157: 7 | AN157: 0 | AO157: 6 | AP157: 0 | AQ157: 5 | AR157: 8 | AS157: 0 | AT157: 0 | AU157: 3.75 | AV157: 0 | AW157: 3.58 | AX157: 0 | AY157: 3.09 | AZ157: 4.09 | BA157: 0 | BB157: 0 | BC157: 2 | BD157: 0 | BE157: 3 | BF157: 0 | BG157: 4 | BH157: 1 | BI157: 0 | BJ157: 0 | BK157: Tam | BL157: B&R | BM157: Kett | BN157: DASH | BO157: 0 | BP157: 0 | BQ157: 0 | BR157: 0 | BS157: F | BT157: C | BU157: I | BV157: B | CC157: 32 | CD157: 9 | CE157: 17 | CF157: 29
A158: =B158&"A" -> 65A | B158: 65 | C158: =VLOOKUP(B158,EventsOrder,2,FALSE) -> 3.3 | D158: =VLOOKUP(B158,EventsOrder,4,FALSE) -> U13 Female | E158: A | F158: =IF(MID(D158,5,1)="F","F","M") -> F | G158: I | H158: C | I158: GG | J158: X | K158: FF | O158: 6.97 | P158: 5.99 | Q158: 5.67 | R158: 5.28 | S158: 4.96 | W158: I | X158: C | Y158: GG | Z158: X | AA158: FF | AE158: =IF(LEN(G158)=0,"",VLOOKUP($B158,IF($F158="F",TeamSheetFemale,TeamSheetMale),CC158,FALSE)) -> Harriet Drake-Lee | AF158: Kate Mellors | AG158: Freya Liddington | AH158: Grace Alvey | AI158: Lauren Bowman | AM158: =IF(OR($F158="NS",AU158="DNF"),0,IF(BC158>0,$BK$29+1-BC158,0)) -> 7 | AN158: =IF(OR($F158="NS",AV158="DNF"),0,IF(BD158>0,$BK$29+1-BD158,0)) -> 0 | AO158: =IF(OR($F158="NS",AW158="DNF"),0,IF(BE158>0,$BK$29+1-BE158,0)) -> 8 | AP158: =IF(OR($F158="NS",AX158="DNF"),0,IF(BF158>0,$BK$29+1-BF158,0)) -> 0 | AQ158: =IF(OR($F158="NS",AY158="DNF"),0,IF(BG158>0,$BK$29+1-BG158,0)) -> 0 | AR158: =IF(OR($F158="NS",AZ158="DNF"),0,IF(BH158>0,$BK$29+1-BH158,0)) -> 4 | AS158: =IF(OR($F158="NS",BA158="DNF"),0,IF(BI158>0,$BK$29+1-BI158,0)) -> 6 | AT158: =IF(OR($F158="NS",BB158="DNF"),0,IF(BJ158>0,$BK$29+1-BJ158,0)) -> 5 | AU158: 5.99 | AV158: 0 | AW158: 6.97 | AX158: 0 | AY158: 0 | AZ158: 4.96 | BA158: 5.67 | BB158: 5.28 | BC158: 2 | BD158: 0 | BE158: 1 | BF158: 0 | BG158: 0 | BH158: 5 | BI158: 3 | BJ158: 4 | BK158: Kett | BL158: B&R | BM158: Royal | BN158: Wreake | BO158: Tam | BP158: 0 | BQ158: 0 | BR158: 0 | BS158: I | BT158: C | BU158: G | BV158: X | BW158: F | CC158: 17 | CD158: 7 | CE158: 39 | CF158: 42 | CG158: 34
A159: =B158&"B" -> 65B | D159: =VLOOKUP(B158,EventsOrder,3,FALSE) -> Shot | E159: B | G159: II | H159: XX | I159: G | J159: F | K159: CC | O159: 5.43 | P159: 4.54 | Q159: 4.44 | R159: 3.95 | S159: 3.16 | AE159: =IF(LEN(G159)=0,"",VLOOKUP($B158,IF($F158="F",TeamSheetFemale,TeamSheetMale),CC159,FALSE)) -> Millie Toseland | AF159: Rachel Nealon | AG159: Thea Criddle | AH159: Sophie Perry | AI159: Tally Scoltock | AM159: 4 | AN159: 0 | AO159: 8 | AP159: 0 | AQ159: 0 | AR159: 5 | AS159: 6 | AT159: 7 | AU159: 3.16 | AV159: 0 | AW159: 5.43 | AX159: 0 | AY159: 0 | AZ159: 3.95 | BA159: 4.44 | BB159: 4.54 | BC159: 5 | BD159: 0 | BE159: 1 | BF159: 0 | BG159: 0 | BH159: 4 | BI159: 3 | BJ159: 2 | BK159: Kett | BL159: Wreake | BM159: Royal | BN159: Tam | BO159: B&R | BP159: 0 | BQ159: 0 | BR159: 0 | BS159: I | BT159: X | BU159: G | BV159: F | BW159: C | CC159: 19 | CD159: 44 | CE159: 37 | CF159: 32 | CG159: 9
A160: =B160&"A" -> 66A | B160: 66 | C160: =VLOOKUP(B160,EventsOrder,2,FALSE) -> 3.3 | D160: =VLOOKUP(B160,EventsOrder,4,FALSE) -> U15 Male | E160: A | F160: =IF(MID(D160,5,1)="F","F","M") -> M | G160: U | H160: F | I160: G | J160: II | K160: OO | L160: X | M160: CC | N160: BB | O160: 26.8 | P160: 26.11 | Q160: 24.78 | R160: 23.47 | S160: 19.38 | T160: 13.97 | U160: 12.91 | V160: 12.68 | W160: U | X160: F | Y160: G | Z160: II | AA160: OO | AB160: X | AC160: CC | AD160: BB | AE160: =IF(LEN(G160)=0,"",VLOOKUP($B160,IF($F160="F",TeamSheetFemale,TeamSheetMale),CC160,FALSE)) -> Jack Lambert | AF160: Connor Hepple | AG160: James Ward | AH160: Josh Cannell | AI160: Alex Cunningham | AJ160: Chris Nealon | AK160: David Peaty | AL160: Harry Walters | AM160: 2 | AN160: 4 | AO160: 5 | AP160: 8 | AQ160: 1 | AR160: 7 | AS160: 6 | AT160: 3 | AU160: 12.91 | AV160: 19.38 | AW160: 23.47 | AX160: 26.8 | AY160: 12.68 | AZ160: 26.11 | BA160: 24.78 | BB160: 13.97 | BC160: 7 | BD160: 5 | BE160: 4 | BF160: 1 | BG160: 8 | BH160: 2 | BI160: 3 | BJ160: 6 | BK160: K&S | BL160: Tam | BM160: Royal | BN160: Kett | BO160: Corby | BP160: Wreake | BQ160: B&R | BR160: DASH | BS160: U | BT160: F | BU160: G | BV160: I | BW160: O | BX160: X | BY160: C | BZ160: B | CC160: =IF(LEN(G160)=0,"",HLOOKUP(BS160,$CC$26:$CJ$28,2,FALSE)+IF(LEN(G160)=2,2,0)) -> 22 | CD160: 32 | CE160: 37 | CF160: 19 | CG160: 14 | CH160: 42 | CI160: 9 | CJ160: 29
A161: =B160&"B" -> 66B | D161: =VLOOKUP(B160,EventsOrder,3,FALSE) -> Discus | E161: B | G161: FF | H161: II | I161: C | J161: B | K161: O | O161: 13.93 | P161: 13.22 | Q161: 12.53 | R161: 12.5 | S161: 12.08 | AE161: =IF(LEN(G161)=0,"",VLOOKUP($B160,IF($F160="F",TeamSheetFemale,TeamSheetMale),CC161,FALSE)) -> Oliver Barnard | AF161: Josh Cannell | AG161: Will Thorley | AH161: Adam Bodin | AI161: Sam Haines | AM161: 6 | AN161: 4 | AO161: 7 | AP161: 0 | AQ161: 5 | AR161: 8 | AS161: 0 | AT161: 0 | AU161: 12.53 | AV161: 12.08 | AW161: 13.22 | AX161: 0 | AY161: 12.5 | AZ161: 13.93 | BA161: 0 | BB161: 0 | BC161: 3 | BD161: 5 | BE161: 2 | BF161: 0 | BG161: 4 | BH161: 1 | BI161: 0 | BJ161: 0 | BK161: Tam | BL161: Kett | BM161: B&R | BN161: DASH | BO161: Corby | BP161: 0 | BQ161: 0 | BR161: 0 | BS161: F | BT161: I | BU161: C | BV161: B | BW161: O | CC161: 34 | CD161: 19 | CE161: 7 | CF161: 27 | CG161: 12
A162: =B162&"A" -> 67A | B162: 67 | C162: =VLOOKUP(B162,EventsOrder,2,FALSE) -> 3.3 | D162: =VLOOKUP(B162,EventsOrder,4,FALSE) -> U17 Men | E162: A | F162: =IF(MID(D162,5,1)="F","F","M") -> M | AE162: =IF(LEN(G162)=0,"",VLOOKUP($B162,IF($F162="F",TeamSheetFemale,TeamSheetMale),CC162,FALSE)) ->  | AM162: 0 | AN162: 0 | AO162: 0 | AP162: 0 | AQ162: 0 | AR162: 0 | AS162: 0 | AT162: 0 | AU162: 0 | AV162: 0 | AW162: 0 | AX162: 0 | AY162: 0 | AZ162: 0 | BA162: 0 | BB162: 0 | BC162: =IF(ISNA(MATCH(BC$29,$BS162:$BZ162,0)),0,MATCH(BC$29,$BS162:$BZ162,0)) -> 0 | BD162: 0 | BE162: 0 | BF162: 0 | BG162: 0 | BH162: 0 | BI162: 0 | BJ162: 0 | BK162: 0 | BL162: 0 | BM162: 0 | BN162: 0 | BO162: 0 | BP162: 0 | BQ162: 0 | BR162: 0
A163: =B162&"B" -> 67B | D163: =VLOOKUP(B162,EventsOrder,3,FALSE) -> Javelin | E163: B | AE163: =IF(LEN(G163)=0,"",VLOOKUP($B162,IF($F162="F",TeamSheetFemale,TeamSheetMale),CC163,FALSE)) ->  | AM163: 0 | AN163: 0 | AO163: 0 | AP163: 0 | AQ163: 0 | AR163: 0 | AS163: 0 | AT163: 0 | AU163: =OFFSET($N163,0,BC163) -> 0 | AV163: =OFFSET($N163,0,BD163) -> 0 | AW163: =OFFSET($N163,0,BE163) -> 0 | AX163: =OFFSET($N163,0,BF163) -> 0 | AY163: 0 | AZ163: 0 | BA163: 0 | BB163: 0 | BC163: 0 | BD163: 0 | BE163: 0 | BF163: 0 | BG163: 0 | BH163: 0 | BI163: 0 | BJ163: 0 | BK163: 0 | BL163: 0 | BM163: 0 | BN163: 0 | BO163: 0 | BP163: 0 | BQ163: 0 | BR163: 0
A164: =B164&"A" -> 68A | B164: 68 | C164: =VLOOKUP(B164,EventsOrder,2,FALSE) -> 3.4 | D164: =VLOOKUP(B164,EventsOrder,4,FALSE) -> U15 Female | E164: A | F164: =IF(MID(D164,5,1)="F","F","M") -> F | G164: U | H164: F | I164: X | J164: B | K164: C | L164: O | M164: I | N164: G | O164: 28.4 | P164: 28.5 | Q164: 28.8 | R164: 28.9 | S164: 29.1 | T164: 29.7 | U164: 30.2 | V164: 33.9 | W164: U | X164: F | Y164: X | Z164: B | AA164: C | AB164: O | AC164: I | AD164: G | AE164: =IF(LEN(G164)=0,"",VLOOKUP($B164,IF($F164="F",TeamSheetFemale,TeamSheetMale),CC164,FALSE)) -> Monica Aresu | AF164: Emily Findlater | AG164: Josie Orange | AH164: Lauren Milward | AI164: Orla Lewis | AJ164: DONNA HERON | AK164: Maurella Forbes | AL164: Madeleine Shay | AM164: 4 | AN164: 3 | AO164: 2 | AP164: 8 | AQ164: 5 | AR164: 7 | AS164: 1 | AT164: 6 | AU164: 29.1 | AV164: 29.7 | AW164: 30.2 | AX164: 28.4 | AY164: 28.9 | AZ164: 28.5 | BA164: 33.9 | BB164: 28.8 | BC164: 5 | BD164: 6 | BE164: 7 | BF164: 1 | BG164: 4 | BH164: 2 | BI164: 8 | BJ164: 3 | BK164: K&S | BL164: Tam | BM164: Wreake | BN164: DASH | BO164: B&R | BP164: Corby | BQ164: Kett | BR164: Royal | BS164: U | BT164: F | BU164: X | BV164: B | BW164: C | BX164: O | BY164: I | BZ164: G | CC164: 22 | CD164: 32 | CE164: 42 | CF164: 27 | CG164: 7 | CH164: 12 | CI164: 17 | CJ164: 37
A165: =B164&"B" -> 68B | D165: =VLOOKUP(B164,EventsOrder,3,FALSE) -> 200m | E165: B | G165: XX | H165: II | I165: BB | J165: OO | K165: UU | L165: CC | M165: FF | O165: 29.3 | P165: 29.7 | Q165: 30 | R165: 30.1 | S165: 30.6 | T165: 31.6 | U165: 32.6 | AC165: FF | AE165: =IF(LEN(G165)=0,"",VLOOKUP($B164,IF($F164="F",TeamSheetFemale,TeamSheetMale),CC165,FALSE)) -> Megan Luxford | AF165: Alex Beale | AG165: Isobel Fisher | AH165: ALICE MERRIMAN | AI165: Rosie Meacham | AJ165: Robyn Yeomans | AK165: Katie Stretton | AM165: 3 | AN165: 5 | AO165: 7 | AP165: 4 | AQ165: 6 | AR165: 2 | AS165: 0 | AT165: 8 | AU165: 31.6 | AV165: 30.1 | AW165: 29.7 | AX165: 30.6 | AY165: 30 | AZ165: 32.6 | BA165: 0 | BB165: 29.3 | BC165: 6 | BD165: 4 | BE165: 2 | BF165: 5 | BG165: 3 | BH165: 7 | BI165: 0 | BJ165: 1 | BK165: Wreake | BL165: Kett | BM165: DASH | BN165: Corby | BO165: K&S | BP165: B&R | BQ165: Tam | BR165: 0 | BS165: X | BT165: I | BU165: B | BV165: O | BW165: U | BX165: C | BY165: F | CC165: 44 | CD165: 19 | CE165: 29 | CF165: 14 | CG165: 24 | CH165: 9 | CI165: 34
A166: =B166&"A" -> 69A | B166: 69 | C166: =VLOOKUP(B166,EventsOrder,2,FALSE) -> 3.45 | D166: =VLOOKUP(B166,EventsOrder,4,FALSE) -> U17 F/Women | E166: A | F166: =IF(MID(D166,5,1)="F","F","M") -> F | G166: I | H166: X | I166: B | J166: O | K166: G | O166: 28.8 | P166: 29.2 | Q166: 29.9 | R166: 30.6 | S166: 31 | W166: I | X166: X | Y166: B | Z166: O | AA166: G | AE166: =IF(LEN(G166)=0,"",VLOOKUP($B166,IF($F166="F",TeamSheetFemale,TeamSheetMale),CC166,FALSE)) -> Sheena Britten | AF166: Jess Hazel | AG166: Lauren Hemmings | AH166: TANAYAH MAYOH | AI166: Anna Short | AM166: 0 | AN166: 5 | AO166: 8 | AP166: 0 | AQ166: 6 | AR166: 0 | AS166: 4 | AT166: 7 | AU166: 0 | AV166: 30.6 | AW166: 28.8 | AX166: 0 | AY166: 29.9 | AZ166: 0 | BA166: 31 | BB166: 29.2 | BC166: 0 | BD166: 4 | BE166: 1 | BF166: 0 | BG166: 3 | BH166: 0 | BI166: 5 | BJ166: 2 | BK166: Kett | BL166: Wreake | BM166: DASH | BN166: Corby | BO166: Royal | BP166: 0 | BQ166: 0 | BR166: 0 | BS166: I | BT166: X | BU166: B | BV166: O | BW166: G | CC166: 17 | CD166: 42 | CE166: 27 | CF166: 12 | CG166: 37
A167: =B166&"B" -> 69B | D167: =VLOOKUP(B166,EventsOrder,3,FALSE) -> 200m | E167: B | G167: II | H167: BB | I167: GG | O167: 29.7 | P167: 29.8 | Q167: 31.4 | AE167: =IF(LEN(G167)=0,"",VLOOKUP($B166,IF($F166="F",TeamSheetFemale,TeamSheetMale),CC167,FALSE)) -> Niamh Ruffles | AF167: Annabel Mullinder | AG167: Regan Keating | AM167: 0 | AN167: 0 | AO167: 8 | AP167: 0 | AQ167: 7 | AR167: 0 | AS167: 6 | AT167: 0 | AU167: 0 | AV167: 0 | AW167: 29.7 | AX167: 0 | AY167: 29.8 | AZ167: 0 | BA167: 31.4 | BB167: 0 | BC167: 0 | BD167: 0 | BE167: 1 | BF167: 0 | BG167: 2 | BH167: 0 | BI167: 3 | BJ167: 0 | BK167: Kett | BL167: DASH | BM167: Royal | BN167: 0 | BO167: 0 | BP167: 0 | BQ167: 0 | BR167: 0 | BS167: I | BT167: B | BU167: G | CC167: 19 | CD167: 29 | CE167: 39
A168: =B168&"A" -> 70A | B168: 70 | C168: =VLOOKUP(B168,EventsOrder,2,FALSE) -> 3.5 | D168: =VLOOKUP(B168,EventsOrder,4,FALSE) -> U13 Male | E168: A | F168: =IF(MID(D168,5,1)="F","F","M") -> M | G168: X | H168: C | I168: G | J168: I | K168: F | L168: B | O168: 28.3 | P168: 28.4 | Q168: 30.4 | R168: 30.7 | S168: 30.8 | T168: 32.9 | W168: X | X168: C | Y168: G | Z168: I | AA168: F | AB168: B | AE168: =IF(LEN(G168)=0,"",VLOOKUP($B168,IF($F168="F",TeamSheetFemale,TeamSheetMale),CC168,FALSE)) -> David Seidu | AF168: Mackenzie Besford | AG168: Daniel Olatundun | AH168: Max Mowforth | AI168: Joel Bickley | AJ168: Jack Compton | AM168: 7 | AN168: 0 | AO168: 5 | AP168: 0 | AQ168: 3 | AR168: 4 | AS168: 6 | AT168: 8 | AU168: 28.4 | AV168: 0 | AW168: 30.7 | AX168: 0 | AY168: 32.9 | AZ168: 30.8 | BA168: 30.4 | BB168: 28.3 | BC168: 2 | BD168: 0 | BE168: 4 | BF168: 0 | BG168: 6 | BH168: 5 | BI168: 3 | BJ168: 1 | BK168: Wreake | BL168: B&R | BM168: Royal | BN168: Kett | BO168: Tam | BP168: DASH | BQ168: 0 | BR168: 0 | BS168: X | BT168: C | BU168: G | BV168: I | BW168: F | BX168: B | CC168: 42 | CD168: 7 | CE168: 37 | CF168: 17 | CG168: 32 | CH168: 27
A169: =B168&"B" -> 70B | D169: =VLOOKUP(B168,EventsOrder,3,FALSE) -> 200m | E169: B | G169: CC | H169: II | I169: GG | J169: XX | K169: BB | O169: 29.9 | P169: 30.7 | Q169: 30.9 | R169: 32.2 | S169: 34.2 | AE169: =IF(LEN(G169)=0,"",VLOOKUP($B168,IF($F168="F",TeamSheetFemale,TeamSheetMale),CC169,FALSE)) -> Matthew Griffin | AF169: Cole Sinnott | AG169: Connor Race | AH169: Roman Watson Quilter | AI169: Zak Thurley | AM169: 8 | AN169: 0 | AO169: 7 | AP169: 0 | AQ169: 4 | AR169: 0 | AS169: 6 | AT169: 5 | AU169: 29.9 | AV169: 0 | AW169: 30.7 | AX169: 0 | AY169: 34.2 | AZ169: 0 | BA169: 30.9 | BB169: 32.2 | BC169: 1 | BD169: 0 | BE169: 2 | BF169: 0 | BG169: 5 | BH169: 0 | BI169: 3 | BJ169: 4 | BK169: B&R | BL169: Kett | BM169: Royal | BN169: Wreake | BO169: DASH | BP169: 0 | BQ169: 0 | BR169: 0 | BS169: C | BT169: I | BU169: G | BV169: X | BW169: B | CC169: 9 | CD169: 19 | CE169: 39 | CF169: 44 | CG169: 29
A170: =B170&"A" -> 71A | B170: 71 | C170: =VLOOKUP(B170,EventsOrder,2,FALSE) -> 3.55 | D170: =VLOOKUP(B170,EventsOrder,4,FALSE) -> U15 Male | E170: A | F170: =IF(MID(D170,5,1)="F","F","M") -> M | G170: F | H170: C | I170: O | J170: B | K170: X | L170: U | M170: I | N170: G | O170: 25.6 | P170: 25.9 | Q170: 26.3 | R170: 26.3 | S170: 27.3 | T170: 27.5 | U170: 28.2 | V170: 29.9 | W170: F | X170: C | Y170: O | Z170: B | AA170: X | AB170: U | AC170: I | AD170: G | AE170: =IF(LEN(G170)=0,"",VLOOKUP($B170,IF($F170="F",TeamSheetFemale,TeamSheetMale),CC170,FALSE)) -> Dan Cartwright | AF170: Jordan Hinds | AG170: Reece Cromblehome | AH170: Josh Galloway | AI170: Jacob Fairhurst | AJ170: Kieran Beech | AK170: Lewis-Morgan Barton | AL170: Luke O'Brien | AM170: 7 | AN170: 6 | AO170: 2 | AP170: 3 | AQ170: 5 | AR170: 8 | AS170: 1 | AT170: 4 | AU170: 25.9 | AV170: 26.3 | AW170: 28.2 | AX170: 27.5 | AY170: 26.3 | AZ170: 25.6 | BA170: 29.9 | BB170: 27.3 | BC170: 2 | BD170: 3 | BE170: 7 | BF170: 6 | BG170: 4 | BH170: 1 | BI170: 8 | BJ170: 5 | BK170: Tam | BL170: B&R | BM170: Corby | BN170: DASH | BO170: Wreake | BP170: K&S | BQ170: Kett | BR170: Royal | BS170: F | BT170: C | BU170: O | BV170: B | BW170: X | BX170: U | BY170: I | BZ170: G | CC170: 32 | CD170: 7 | CE170: 12 | CF170: 27 | CG170: 42 | CH170: 22 | CI170: 17 | CJ170: 37
A171: =B170&"B" -> 71B | D171: =VLOOKUP(B170,EventsOrder,3,FALSE) -> 200m | E171: B | G171: FF | H171: BB | I171: OO | J171: CC | K171: XX | L171: UU | M171: GG | O171: 26.1 | P171: 26.6 | Q171: 26.7 | R171: 28.6 | S171: 30.3 | T171: 31.3 | U171: 31.9 | AC171: GG | AE171: =IF(LEN(G171)=0,"",VLOOKUP($B170,IF($F170="F",TeamSheetFemale,TeamSheetMale),CC171,FALSE)) -> Owen Sherriff | AF171: Tom Slater | AG171: Jacob Morris | AH171: George Clements | AI171: Josh Rocks | AJ171: Christopher Telling | AK171: James Ward | AM171: 5 | AN171: 6 | AO171: 0 | AP171: 3 | AQ171: 7 | AR171: 8 | AS171: 2 | AT171: 4 | AU171: 28.6 | AV171: 26.7 | AW171: 0 | AX171: 31.3 | AY171: 26.6 | AZ171: 26.1 | BA171: 31.9 | BB171: 30.3 | BC171: 4 | BD171: 3 | BE171: 0 | BF171: 6 | BG171: 2 | BH171: 1 | BI171: 7 | BJ171: 5 | BK171: Tam | BL171: DASH | BM171: Corby | BN171: B&R | BO171: Wreake | BP171: K&S | BQ171: Royal | BR171: 0 | BS171: F | BT171: B | BU171: O | BV171: C | BW171: X | BX171: U | BY171: G | CC171: 34 | CD171: 29 | CE171: 14 | CF171: 9 | CG171: 44 | CH171: 24 | CI171: 39
A172: =B172&"A" -> 72A | B172: 72 | C172: =VLOOKUP(B172,EventsOrder,2,FALSE) -> 4 | D172: =VLOOKUP(B172,EventsOrder,4,FALSE) -> U17 Men | E172: A | F172: =IF(MID(D172,5,1)="F","F","M") -> M | G172: O | H172: C | I172: G | J172: F | K172: U | O172: 24.3 | P172: 24.4 | Q172: 24.5 | R172: 26.5 | S172: 28.3 | W172: O | X172: C | Y172: G | Z172: F | AA172: U | AE172: =IF(LEN(G172)=0,"",VLOOKUP($B172,IF($F172="F",TeamSheetFemale,TeamSheetMale),CC172,FALSE)) -> Harry Merriman | AF172: Andrew Johnson | AG172: Greg Knight | AH172: Owen Kent | AI172: Christopher Lane | AM172: 7 | AN172: 8 | AO172: 0 | AP172: 4 | AQ172: 0 | AR172: 5 | AS172: 6 | AT172: 0 | AU172: 24.4 | AV172: 24.3 | AW172: 0 | AX172: 28.3 | AY172: 0 | AZ172: 26.5 | BA172: 24.5 | BB172: 0 | BC172: 2 | BD172: 1 | BE172: 0 | BF172: 5 | BG172: 0 | BH172: 4 | BI172: 3 | BJ172: 0 | BK172: Corby | BL172: B&R | BM172: Royal | BN172: Tam | BO172: K&S | BP172: 0 | BQ172: 0 | BR172: 0 | BS172: O | BT172: C | BU172: G | BV172: F | BW172: U | CC172: 12 | CD172: 7 | CE172: 37 | CF172: 32 | CG172: 22
A173: =B172&"B" -> 72B | D173: =VLOOKUP(B172,EventsOrder,3,FALSE) -> 200m | E173: B | G173: OO | H173: II | I173: GG | J173: CC | O173: 24.5 | P173: 24.7 | Q173: 26 | R173: 26.8 | AE173: =IF(LEN(G173)=0,"",VLOOKUP($B172,IF($F172="F",TeamSheetFemale,TeamSheetMale),CC173,FALSE)) -> Matthew Patterson | AF173: Tim Hale | AG173: Sam Grimshaw | AH173: Aaron Pattison | AM173: 5 | AN173: 8 | AO173: 7 | AP173: 0 | AQ173: 0 | AR173: 0 | AS173: 6 | AT173: 0 | AU173: 26.8 | AV173: 24.5 | AW173: 24.7 | AX173: 0 | AY173: 0 | AZ173: 0 | BA173: 26 | BB173: 0 | BC173: 4 | BD173: 1 | BE173: 2 | BF173: 0 | BG173: 0 | BH173: 0 | BI173: 3 | BJ173: 0 | BK173: Corby | BL173: Kett | BM173: Royal | BN173: B&R | BO173: 0 | BP173: 0 | BQ173: 0 | BR173: 0 | BS173: O | BT173: I | BU173: G | BV173: C | CC173: 14 | CD173: 19 | CE173: 39 | CF173: 9
A174: =B174&"A" -> 73A | B174: 73 | C174: =VLOOKUP(B174,EventsOrder,2,FALSE) -> 4.2 | D174: =VLOOKUP(B174,EventsOrder,4,FALSE) -> U13 Male | E174: A | F174: =IF(MID(D174,5,1)="F","F","M") -> M | G174: O | H174: F | I174: X | J174: C | K174: I | O174: 4.44.3 | P174: 4.53.7 | Q174: 4.59.4 | R174: 5.00.7 | S174: 5.19.6 | W174: O | X174: F | Y174: X | Z174: C | AA174: I | AE174: =IF(LEN(G174)=0,"",VLOOKUP($B174,IF($F174="F",TeamSheetFemale,TeamSheetMale),CC174,FALSE)) -> Archie Parkinson | AF174: James Sherriff | AG174: Lucca Watson Quilter | AH174: Joshua Robins | AI174: Ollie Read | AM174: 5 | AN174: 8 | AO174: 4 | AP174: 0 | AQ174: 0 | AR174: 7 | AS174: 0 | AT174: 6 | AU174: 5.00.7 | AV174: 4.44.3 | AW174: 5.19.6 | AX174: 0 | AY174: 0 | AZ174: 4.53.7 | BA174: 0 | BB174: 4.59.4 | BC174: 4 | BD174: 1 | BE174: 5 | BF174: 0 | BG174: 0 | BH174: 2 | BI174: 0 | BJ174: 3 | BK174: Corby | BL174: Tam | BM174: Wreake | BN174: B&R | BO174: Kett | BP174: 0 | BQ174: 0 | BR174: 0 | BS174: O | BT174: F | BU174: X | BV174: C | BW174: I | CC174: 12 | CD174: =IF(LEN(H174)=0,"",HLOOKUP(BT174,$CC$26:$CJ$28,2,FALSE)+IF(LEN(H174)=2,2,0)) -> 32 | CE174: =IF(LEN(I174)=0,"",HLOOKUP(BU174,$CC$26:$CJ$28,2,FALSE)+IF(LEN(I174)=2,2,0)) -> 42 | CF174: =IF(LEN(J174)=0,"",HLOOKUP(BV174,$CC$26:$CJ$28,2,FALSE)+IF(LEN(J174)=2,2,0)) -> 7 | CG174: =IF(LEN(K174)=0,"",HLOOKUP(BW174,$CC$26:$CJ$28,2,FALSE)+IF(LEN(K174)=2,2,0)) -> 17 | CH174: =IF(LEN(L174)=0,"",HLOOKUP(BX174,$CC$26:$CJ$28,2,FALSE)+IF(LEN(L174)=2,2,0)) ->  | CI174: =IF(LEN(M174)=0,"",HLOOKUP(BY174,$CC$26:$CJ$28,2,FALSE)+IF(LEN(M174)=2,2,0)) ->  | CJ174: =IF(LEN(N174)=0,"",HLOOKUP(BZ174,$CC$26:$CJ$28,2,FALSE)+IF(LEN(N174)=2,2,0)) -> 
A175: =B174&"B" -> 73B | D175: =VLOOKUP(B174,EventsOrder,3,FALSE) -> 1500m | E175: B | G175: OO | H175: XX | I175: CC | J175: II | O175: 4.52.7 | P175: 5.27.9 | Q175: 5.29.1 | R175: 6.07.9 | AE175: =IF(LEN(G175)=0,"",VLOOKUP($B174,IF($F174="F",TeamSheetFemale,TeamSheetMale),CC175,FALSE)) -> Luca Mayes | AF175: Ethan Patel | AG175: Harrison Mayne | AH175: Ryan Raulia | AM175: 6 | AN175: 8 | AO175: 5 | AP175: 0 | AQ175: 0 | AR175: 0 | AS175: 0 | AT175: 7 | AU175: 5.29.1 | AV175: 4.52.7 | AW175: 6.07.9 | AX175: 0 | AY175: 0 | AZ175: 0 | BA175: 0 | BB175: 5.27.9 | BC175: 3 | BD175: 1 | BE175: 4 | BF175: 0 | BG175: 0 | BH175: 0 | BI175: 0 | BJ175: 2 | BK175: Corby | BL175: Wreake | BM175: B&R | BN175: Kett | BO175: 0 | BP175: 0 | BQ175: 0 | BR175: 0 | BS175: O | BT175: X | BU175: C | BV175: I | CC175: 14 | CD175: 44 | CE175: 9 | CF175: 19
A176: =B176&"A" -> 74A | B176: 74 | C176: =VLOOKUP(B176,EventsOrder,2,FALSE) -> 4.1 | D176: =VLOOKUP(B176,EventsOrder,4,FALSE) -> U17 Men | E176: A | F176: =IF(MID(D176,5,1)="F","F","M") -> M | G176: G | H176: C | O176: 1.55 | P176: 1.5 | W176: G | X176: C | AE176: =IF(LEN(G176)=0,"",VLOOKUP($B176,IF($F176="F",TeamSheetFemale,TeamSheetMale),CC176,FALSE)) -> Lee Hetherington | AF176: Tom Ward | AM176: 7 | AN176: 0 | AO176: 0 | AP176: 0 | AQ176: 0 | AR176: 0 | AS176: 8 | AT176: 0 | AU176: =OFFSET($N176,0,BC176) -> 1.5 | AV176: 0 | AW176: 0 | AX176: 0 | AY176: 0 | AZ176: 0 | BA176: 1.55 | BB176: 0 | BC176: 2 | BD176: 0 | BE176: 0 | BF176: 0 | BG176: 0 | BH176: 0 | BI176: 1 | BJ176: 0 | BK176: Royal | BL176: B&R | BM176: 0 | BN176: 0 | BO176: 0 | BP176: 0 | BQ176: 0 | BR176: 0 | BS176: G | BT176: C | CC176: 37 | CD176: 7
A177: =B176&"B" -> 74B | D177: =VLOOKUP(B176,EventsOrder,3,FALSE) -> High Jump | E177: B | AE177: =IF(LEN(G177)=0,"",VLOOKUP($B176,IF($F176="F",TeamSheetFemale,TeamSheetMale),CC177,FALSE)) ->  | AM177: 0 | AN177: 0 | AO177: 0 | AP177: 0 | AQ177: 0 | AR177: 0 | AS177: 0 | AT177: 0 | AU177: 0 | AV177: 0 | AW177: 0 | AX177: 0 | AY177: 0 | AZ177: 0 | BA177: 0 | BB177: 0 | BC177: 0 | BD177: 0 | BE177: 0 | BF177: 0 | BG177: 0 | BH177: 0 | BI177: 0 | BJ177: 0 | BK177: 0 | BL177: 0 | BM177: 0 | BN177: 0 | BO177: 0 | BP177: 0 | BQ177: 0 | BR177: 0
A178: =B178&"A" -> 75A | B178: 75 | C178: =VLOOKUP(B178,EventsOrder,2,FALSE) -> 4 | D178: =VLOOKUP(B178,EventsOrder,4,FALSE) -> U17 F/Women | E178: A | F178: =IF(MID(D178,5,1)="F","F","M") -> F | G178: I | H178: O | I178: G | J178: B | K178: C | O178: 4.13 | P178: 3.9 | Q178: 3.69 | R178: 3.22 | S178: 3.12 | W178: I | X178: O | Y178: G | Z178: B | AA178: C | AE178: =IF(LEN(G178)=0,"",VLOOKUP($B178,IF($F178="F",TeamSheetFemale,TeamSheetMale),CC178,FALSE)) -> Esther owewsa | AF178: TANAYAH MAYOH | AG178: Sophie Goodby | AH178: Annabel Mullinder | AI178: Yasmine Al-daftari (Vet) | AM178: 4 | AN178: 7 | AO178: 8 | AP178: 0 | AQ178: 5 | AR178: 0 | AS178: 6 | AT178: 0 | AU178: 3.12 | AV178: 3.9 | AW178: 4.13 | AX178: 0 | AY178: 3.22 | AZ178: 0 | BA178: 3.69 | BB178: 0 | BC178: =IF(ISNA(MATCH(BC$29,$BS178:$BZ178,0)),0,MATCH(BC$29,$BS178:$BZ178,0)) -> 5 | BD178: 2 | BE178: 1 | BF178: 0 | BG178: 4 | BH178: 0 | BI178: 3 | BJ178: 0 | BK178: Kett | BL178: Corby | BM178: Royal | BN178: DASH | BO178: B&R | BP178: 0 | BQ178: 0 | BR178: 0 | BS178: I | BT178: O | BU178: G | BV178: B | BW178: C | CC178: 17 | CD178: 12 | CE178: 37 | CF178: 27 | CG178: 7
A179: =B178&"B" -> 75B | D179: =VLOOKUP(B178,EventsOrder,3,FALSE) -> Long Jump | E179: B | G179: OO | H179: II | I179: GG | O179: 3.86 | P179: 3.63 | Q179: 3.43 | AE179: =IF(LEN(G179)=0,"",VLOOKUP($B178,IF($F178="F",TeamSheetFemale,TeamSheetMale),CC179,FALSE)) -> ELLIE MAY HATHAWAY | AF179: Chloe Hearne | AG179: Regan Keating | AM179: 0 | AN179: 8 | AO179: 7 | AP179: 0 | AQ179: 0 | AR179: 0 | AS179: 6 | AT179: 0 | AU179: 0 | AV179: 3.86 | AW179: 3.63 | AX179: 0 | AY179: 0 | AZ179: 0 | BA179: 3.43 | BB179: 0 | BC179: 0 | BD179: 1 | BE179: 2 | BF179: 0 | BG179: 0 | BH179: 0 | BI179: 3 | BJ179: 0 | BK179: Corby | BL179: Kett | BM179: Royal | BN179: 0 | BO179: 0 | BP179: 0 | BQ179: 0 | BR179: 0 | BS179: O | BT179: I | BU179: G | CC179: 14 | CD179: 19 | CE179: 39
A180: =B180&"A" -> 76A | B180: 76 | C180: =VLOOKUP(B180,EventsOrder,2,FALSE) -> 4.3 | D180: =VLOOKUP(B180,EventsOrder,4,FALSE) -> U15 Male | E180: A | F180: =IF(MID(D180,5,1)="F","F","M") -> M | G180: X | H180: C | I180: G | J180: O | K180: I | L180: F | M180: B | N180: U | O180: 4.34.9 | P180: 4.42.7 | Q180: 4.46.1 | R180: 4.48.5 | S180: 4.58.2 | T180: 5.00.1 | U180: 5.05.0 | V180: 5.25.0 | W180: X | X180: C | Y180: G | Z180: O | AA180: I | AB180: F | AC180: B | AD180: U | AE180: =IF(LEN(G180)=0,"",VLOOKUP($B180,IF($F180="F",TeamSheetFemale,TeamSheetMale),CC180,FALSE)) -> Charlie McGlinchey | AF180: Tom Deykin | AG180: Lewis Duvalle | AH180: Morgan Potter | AI180: Josh Cannell | AJ180: Andrew Woods | AK180: Adam Bodin | AL180: Christopher Telling | AM180: 7 | AN180: 5 | AO180: 4 | AP180: 1 | AQ180: 2 | AR180: 3 | AS180: 6 | AT180: 8 | AU180: 4.42.7 | AV180: 4.48.5 | AW180: 4.58.2 | AX180: 5.25.0 | AY180: 5.05.0 | AZ180: 5.00.1 | BA180: 4.46.1 | BB180: 4.34.9 | BC180: 2 | BD180: 4 | BE180: 5 | BF180: 8 | BG180: 7 | BH180: 6 | BI180: 3 | BJ180: 1 | BK180: Wreake | BL180: B&R | BM180: Royal | BN180: Corby | BO180: Kett | BP180: Tam | BQ180: DASH | BR180: K&S | BS180: X | BT180: C | BU180: G | BV180: O | BW180: I | BX180: F | BY180: B | BZ180: U | CC180: 42 | CD180: 7 | CE180: 37 | CF180: 12 | CG180: 17 | CH180: 32 | CI180: 27 | CJ180: 22
A181: =B180&"B" -> 76B | D181: =VLOOKUP(B180,EventsOrder,3,FALSE) -> 1500m | E181: B | G181: XX | H181: OO | I181: GG | J181: FF | K181: BB | L181: CC | O181: 4.39.6 | P181: 4.55.6 | Q181: 4.58.5 | R181: 5.02.6 | S181: 5.13.2 | T181: 5.26.3 | AE181: =IF(LEN(G181)=0,"",VLOOKUP($B180,IF($F180="F",TeamSheetFemale,TeamSheetMale),CC181,FALSE)) -> Chris Nealon | AF181: Alex Cunningham | AG181: Ben White | AH181: Max Kent | AI181: Daniel McGregor | AJ181: Trenton Roberts | AM181: 3 | AN181: 7 | AO181: 0 | AP181: 0 | AQ181: 4 | AR181: 5 | AS181: 6 | AT181: 8 | AU181: 5.26.3 | AV181: 4.55.6 | AW181: 0 | AX181: 0 | AY181: 5.13.2 | AZ181: 5.02.6 | BA181: 4.58.5 | BB181: 4.39.6 | BC181: 6 | BD181: 2 | BE181: 0 | BF181: 0 | BG181: 5 | BH181: 4 | BI181: 3 | BJ181: 1 | BK181: Wreake | BL181: Corby | BM181: Royal | BN181: Tam | BO181: DASH | BP181: B&R | BQ181: 0 | BR181: 0 | BS181: X | BT181: O | BU181: G | BV181: F | BW181: B | BX181: C | CC181: 44 | CD181: 14 | CE181: 39 | CF181: 34 | CG181: 29 | CH181: 9
A182: =B182&"A" -> 77A | B182: 77 | C182: =VLOOKUP(B182,EventsOrder,2,FALSE) -> 4.2 | D182: =VLOOKUP(B182,EventsOrder,4,FALSE) -> U15 Female | E182: A | F182: =IF(MID(D182,5,1)="F","F","M") -> F | G182: OO | H182: U | I182: X | J182: I | K182: CC | L182: G | M182: B | O182: 7.39 | P182: 7.34 | Q182: 7 | R182: 6.38 | S182: 5.85 | T182: 5.76 | U182: 5.59 | W182: OO | X182: U | Y182: X | Z182: I | AA182: CC | AB182: G | AC182: B | AE182: =IF(LEN(G182)=0,"",VLOOKUP($B182,IF($F182="F",TeamSheetFemale,TeamSheetMale),CC182,FALSE)) -> LAUREN MCMULLEN | AF182: Jessica Surridge | AG182: Megan Luxford | AH182: Alex Beale | AI182: Martha Cllifford | AJ182: Elley Criddle | AK182: Grace Slater | AM182: 4 | AN182: 8 | AO182: 5 | AP182: 7 | AQ182: 2 | AR182: 0 | AS182: 3 | AT182: 6 | AU182: 5.85 | AV182: 7.39 | AW182: 6.38 | AX182: 7.34 | AY182: 5.59 | AZ182: 0 | BA182: 5.76 | BB182: 7 | BC182: 5 | BD182: 1 | BE182: 4 | BF182: 2 | BG182: 7 | BH182: 0 | BI182: 6 | BJ182: 3 | BK182: Corby | BL182: K&S | BM182: Wreake | BN182: Kett | BO182: B&R | BP182: Royal | BQ182: DASH | BR182: 0 | BS182: O | BT182: U | BU182: X | BV182: I | BW182: C | BX182: G | BY182: B | CC182: 14 | CD182: 22 | CE182: 42 | CF182: 17 | CG182: 9 | CH182: 37 | CI182: 27
A183: =B182&"B" -> 77B | D183: =VLOOKUP(B182,EventsOrder,3,FALSE) -> Shot | E183: B | G183: O | H183: UU | I183: C | J183: GG | O183: 7.14 | P183: 5.72 | Q183: 5.2 | R183: 4.16 | AE183: =IF(LEN(G183)=0,"",VLOOKUP($B182,IF($F182="F",TeamSheetFemale,TeamSheetMale),CC183,FALSE)) -> CHLOE SHARMAN | AF183: Yasmin Berrows | AG183: Amy Mijovic-Cauldwell | AH183: Beth Darrock | AM183: 6 | AN183: 8 | AO183: 0 | AP183: 7 | AQ183: 0 | AR183: 0 | AS183: 5 | AT183: 0 | AU183: 5.2 | AV183: 7.14 | AW183: 0 | AX183: 5.72 | AY183: 0 | AZ183: 0 | BA183: 4.16 | BB183: 0 | BC183: 3 | BD183: 1 | BE183: 0 | BF183: 2 | BG183: 0 | BH183: 0 | BI183: 4 | BJ183: 0 | BK183: Corby | BL183: K&S | BM183: B&R | BN183: Royal | BO183: 0 | BP183: 0 | BQ183: 0 | BR183: 0 | BS183: O | BT183: U | BU183: C | BV183: G | CC183: 12 | CD183: 24 | CE183: 7 | CF183: 39
A184: =B184&"A" -> 78A | B184: 78 | C184: =VLOOKUP(B184,EventsOrder,2,FALSE) -> 4.2 | D184: =VLOOKUP(B184,EventsOrder,4,FALSE) -> U13 Male | E184: A | F184: =IF(MID(D184,5,1)="F","F","M") -> M | G184: C | H184: II | I184: GG | J184: B | O184: 16.62 | P184: 13.45 | Q184: 12.72 | R184: 9.91 | W184: C | X184: II | Y184: GG | Z184: B | AE184: =IF(LEN(G184)=0,"",VLOOKUP($B184,IF($F184="F",TeamSheetFemale,TeamSheetMale),CC184,FALSE)) -> Alistair Cook | AF184: Ethan Nelis | AG184: Connor Race | AH184: Zak Thurley | AM184: 8 | AN184: 0 | AO184: 7 | AP184: 0 | AQ184: 5 | AR184: 0 | AS184: 6 | AT184: 0 | AU184: 16.62 | AV184: 0 | AW184: 13.45 | AX184: 0 | AY184: 9.91 | AZ184: 0 | BA184: 12.72 | BB184: 0 | BC184: 1 | BD184: 0 | BE184: 2 | BF184: 0 | BG184: 4 | BH184: 0 | BI184: 3 | BJ184: 0 | BK184: B&R | BL184: Kett | BM184: Royal | BN184: DASH | BO184: 0 | BP184: 0 | BQ184: 0 | BR184: 0 | BS184: C | BT184: I | BU184: G | BV184: B | CC184: 7 | CD184: 19 | CE184: 39 | CF184: 27
A185: =B184&"B" -> 78B | D185: =VLOOKUP(B184,EventsOrder,3,FALSE) -> Discus | E185: B | G185: CC | H185: I | I185: G | O185: 16.07 | P185: 12.72 | Q185: 12.18 | AE185: =IF(LEN(G185)=0,"",VLOOKUP($B184,IF($F184="F",TeamSheetFemale,TeamSheetMale),CC185,FALSE)) -> Toby Hill | AF185: Dylan Bowley | AG185: Daniel Mills | AM185: 8 | AN185: 0 | AO185: 7 | AP185: 0 | AQ185: 0 | AR185: 0 | AS185: 6 | AT185: 0 | AU185: 16.07 | AV185: 0 | AW185: 12.72 | AX185: 0 | AY185: 0 | AZ185: 0 | BA185: 12.18 | BB185: 0 | BC185: 1 | BD185: 0 | BE185: 2 | BF185: 0 | BG185: 0 | BH185: 0 | BI185: 3 | BJ185: 0 | BK185: B&R | BL185: Kett | BM185: Royal | BN185: 0 | BO185: 0 | BP185: 0 | BQ185: 0 | BR185: 0 | BS185: C | BT185: I | BU185: G | CC185: 9 | CD185: 17 | CE185: 37
A186: =B186&"A" -> 79A | B186: 79 | C186: =VLOOKUP(B186,EventsOrder,2,FALSE) -> 4.2 | D186: =VLOOKUP(B186,EventsOrder,4,FALSE) -> U13 Female | E186: A | F186: =IF(MID(D186,5,1)="F","F","M") -> F | AE186: =IF(LEN(G186)=0,"",VLOOKUP($B186,IF($F186="F",TeamSheetFemale,TeamSheetMale),CC186,FALSE)) ->  | AM186: 0 | AN186: 0 | AO186: 0 | AP186: 0 | AQ186: 0 | AR186: 0 | AS186: 0 | AT186: 0 | AU186: 0 | AV186: 0 | AW186: 0 | AX186: 0 | AY186: 0 | AZ186: 0 | BA186: 0 | BB186: 0 | BC186: 0 | BD186: 0 | BE186: 0 | BF186: 0 | BG186: 0 | BH186: 0 | BI186: 0 | BJ186: 0 | BK186: 0 | BL186: 0 | BM186: 0 | BN186: 0 | BO186: 0 | BP186: 0 | BQ186: 0 | BR186: 0
A187: =B186&"B" -> 79B | D187: =VLOOKUP(B186,EventsOrder,3,FALSE) -> Javelin | E187: B | AE187: =IF(LEN(G187)=0,"",VLOOKUP($B186,IF($F186="F",TeamSheetFemale,TeamSheetMale),CC187,FALSE)) ->  | AM187: 0 | AN187: 0 | AO187: 0 | AP187: 0 | AQ187: 0 | AR187: 0 | AS187: 0 | AT187: 0 | AU187: 0 | AV187: 0 | AW187: 0 | AX187: 0 | AY187: 0 | AZ187: 0 | BA187: 0 | BB187: 0 | BC187: 0 | BD187: 0 | BE187: 0 | BF187: 0 | BG187: 0 | BH187: 0 | BI187: 0 | BJ187: 0 | BK187: 0 | BL187: 0 | BM187: 0 | BN187: 0 | BO187: 0 | BP187: 0 | BQ187: 0 | BR187: 0
A188: =B188&"A" -> 80A | B188: 80 | C188: =VLOOKUP(B188,EventsOrder,2,FALSE) -> 4.4 | D188: =VLOOKUP(B188,EventsOrder,4,FALSE) -> U17 Men | E188: A | F188: =IF(MID(D188,5,1)="F","F","M") -> M | G188: C | H188: I | I188: X | J188: O | O188: 4.18.2 | P188: 4.18.8 | Q188: 4.32.5 | R188: 4.52.1 | W188: C | X188: I | Y188: X | Z188: O | AE188: =IF(LEN(G188)=0,"",VLOOKUP($B188,IF($F188="F",TeamSheetFemale,TeamSheetMale),CC188,FALSE)) -> Conor Smith | AF188: Jake Trent | AG188: Luke Berryman | AH188: Harry Freeman | AM188: 8 | AN188: 5 | AO188: 7 | AP188: 0 | AQ188: 0 | AR188: 0 | AS188: 0 | AT188: 6 | AU188: 4.18.2 | AV188: 4.52.1 | AW188: 4.18.8 | AX188: 0 | AY188: 0 | AZ188: 0 | BA188: 0 | BB188: 4.32.5 | BC188: 1 | BD188: 4 | BE188: 2 | BF188: 0 | BG188: 0 | BH188: 0 | BI188: 0 | BJ188: 3 | BK188: =IF(LEN(G188)>0,VLOOKUP(LEFT(G188,1),Clubs,5,FALSE),0) -> B&R | BL188: =IF(LEN(H188)>0,VLOOKUP(LEFT(H188,1),Clubs,5,FALSE),0) -> Kett | BM188: =IF(LEN(I188)>0,VLOOKUP(LEFT(I188,1),Clubs,5,FALSE),0) -> Wreake | BN188: =IF(LEN(J188)>0,VLOOKUP(LEFT(J188,1),Clubs,5,FALSE),0) -> Corby | BO188: =IF(LEN(K188)>0,VLOOKUP(LEFT(K188,1),Clubs,5,FALSE),0) -> 0 | BP188: =IF(LEN(L188)>0,VLOOKUP(LEFT(L188,1),Clubs,5,FALSE),0) -> 0 | BQ188: =IF(LEN(M188)>0,VLOOKUP(LEFT(M188,1),Clubs,5,FALSE),0) -> 0 | BR188: =IF(LEN(N188)>0,VLOOKUP(LEFT(N188,1),Clubs,5,FALSE),0) -> 0 | BS188: =LEFT(G188,1) -> C | BT188: I | BU188: X | BV188: O | CC188: 7 | CD188: 17 | CE188: 42 | CF188: 12
A189: =B188&"B" -> 80B | D189: =VLOOKUP(B188,EventsOrder,3,FALSE) -> 1500m | E189: B | G189: CC | O189: 4.59.4 | AE189: =IF(LEN(G189)=0,"",VLOOKUP($B188,IF($F188="F",TeamSheetFemale,TeamSheetMale),CC189,FALSE)) -> Alex Johnson | AM189: 8 | AN189: 0 | AO189: 0 | AP189: 0 | AQ189: 0 | AR189: 0 | AS189: 0 | AT189: 0 | AU189: 4.59.4 | AV189: 0 | AW189: 0 | AX189: 0 | AY189: =OFFSET($N189,0,BG189) -> 0 | AZ189: =OFFSET($N189,0,BH189) -> 0 | BA189: =OFFSET($N189,0,BI189) -> 0 | BB189: =OFFSET($N189,0,BJ189) -> 0 | BC189: 1 | BD189: 0 | BE189: 0 | BF189: 0 | BG189: 0 | BH189: 0 | BI189: 0 | BJ189: 0 | BK189: B&R | BL189: 0 | BM189: 0 | BN189: 0 | BO189: 0 | BP189: 0 | BQ189: 0 | BR189: 0 | BS189: C | BT189: =LEFT(H189,1) ->  | BU189: =LEFT(I189,1) ->  | BV189: =LEFT(J189,1) ->  | BW189: =LEFT(K189,1) ->  | BX189: =LEFT(L189,1) ->  | BY189: =LEFT(M189,1) ->  | BZ189: =LEFT(N189,1) ->  | CC189: 9
A190: =B190&"A" -> 81A | B190: 81 | C190: =VLOOKUP(B190,EventsOrder,2,FALSE) -> 4.5 | D190: =VLOOKUP(B190,EventsOrder,4,FALSE) -> U11 Fem/Male | E190: A | F190: =IF(MID(D190,5,1)="F","F","M") -> F | G190: G | H190: O | I190: X | J190: C | K190: F | L190: I | M190: B | O190: 64 | P190: 65.4 | Q190: 65.7 | R190: 66.8 | S190: 67.5 | T190: 68.2 | U190: 69 | W190: 0 | X190: 0 | Y190: 0 | Z190: 0 | AA190: 0 | AB190: 0 | AC190: 0 | AE190: =IF(LEN(G190)=0,"",VLOOKUP($B190,IF($F190="F",TeamSheetFemale,TeamSheetMale),CC190,FALSE)) -> Royal Sutton | AF190: Corby | AG190: Wreake Runners | AH190: Brom & Redditch | AI190: Tamworth | AJ190: Kettering | AK190: Dudley & S'bridge | AM190: =IF(OR($F190="NS",AU190="DNF"),0,IF(BC190>0,$BK$29+1-BC190,0)) -> 5 | AN190: =IF(OR($F190="NS",AV190="DNF"),0,IF(BD190>0,$BK$29+1-BD190,0)) -> 7 | AO190: =IF(OR($F190="NS",AW190="DNF"),0,IF(BE190>0,$BK$29+1-BE190,0)) -> 3 | AP190: =IF(OR($F190="NS",AX190="DNF"),0,IF(BF190>0,$BK$29+1-BF190,0)) -> 0 | AQ190: =IF(OR($F190="NS",AY190="DNF"),0,IF(BG190>0,$BK$29+1-BG190,0)) -> 2 | AR190: =IF(OR($F190="NS",AZ190="DNF"),0,IF(BH190>0,$BK$29+1-BH190,0)) -> 4 | AS190: =IF(OR($F190="NS",BA190="DNF"),0,IF(BI190>0,$BK$29+1-BI190,0)) -> 8 | AT190: =IF(OR($F190="NS",BB190="DNF"),0,IF(BJ190>0,$BK$29+1-BJ190,0)) -> 6 | AU190: 66.8 | AV190: 65.4 | AW190: 68.2 | AX190: 0 | AY190: 69 | AZ190: 67.5 | BA190: 64 | BB190: 65.7 | BC190: 4 | BD190: 2 | BE190: 6 | BF190: 0 | BG190: 7 | BH190: 5 | BI190: 1 | BJ190: 3 | BK190: Royal | BL190: Corby | BM190: Wreake | BN190: B&R | BO190: Tam | BP190: Kett | BQ190: DASH | BR190: 0 | BS190: G | BT190: O | BU190: X | BV190: C | BW190: F | BX190: I | BY190: B | CC190: 37 | CD190: 12 | CE190: 42 | CF190: 7 | CG190: 32 | CH190: 17 | CI190: 27
A191: =B190&"B" -> 81B | D191: =VLOOKUP(B190,EventsOrder,3,FALSE) -> 4 x 100m Mixed | E191: B | AE191: =IF(LEN(G191)=0,"",VLOOKUP($B190,IF($F190="F",TeamSheetFemale,TeamSheetMale),CC191,FALSE)) ->  | AM191: 0 | AN191: 0 | AO191: 0 | AP191: 0 | AQ191: 0 | AR191: 0 | AS191: 0 | AT191: 0 | AU191: 0 | AV191: 0 | AW191: 0 | AX191: 0 | AY191: 0 | AZ191: 0 | BA191: 0 | BB191: 0 | BC191: 0 | BD191: 0 | BE191: 0 | BF191: 0 | BG191: 0 | BH191: 0 | BI191: 0 | BJ191: 0 | BK191: 0 | BL191: 0 | BM191: 0 | BN191: 0 | BO191: 0 | BP191: 0 | BQ191: 0 | BR191: 0
A192: =B192&"A" -> 82A | B192: 82 | C192: =VLOOKUP(B192,EventsOrder,2,FALSE) -> 4.55 | D192: =VLOOKUP(B192,EventsOrder,4,FALSE) -> U13 Female | E192: A | F192: =IF(MID(D192,5,1)="F","F","M") -> F | G192: I | H192: F | I192: O | J192: X | K192: G | L192: C | O192: 59.8 | P192: 61.4 | Q192: 61.7 | R192: 62.7 | S192: 31.1 | T192: 67.8 | W192: I | X192: F | Y192: O | Z192: X | AA192: G | AB192: C | AE192: =IF(LEN(G192)=0,"",VLOOKUP($B192,IF($F192="F",TeamSheetFemale,TeamSheetMale),CC192,FALSE)) -> Kettering | AF192: Tamworth | AG192: Corby | AH192: Wreake Runners | AI192: Royal Sutton | AJ192: Brom & Redditch | AM192: 3 | AN192: 6 | AO192: 8 | AP192: 0 | AQ192: 0 | AR192: 7 | AS192: 4 | AT192: 5 | AU192: 67.8 | AV192: 61.7 | AW192: 59.8 | AX192: 0 | AY192: 0 | AZ192: 61.4 | BA192: 31.1 | BB192: 62.7 | BC192: 6 | BD192: 3 | BE192: 1 | BF192: 0 | BG192: 0 | BH192: 2 | BI192: 5 | BJ192: 4 | BK192: Kett | BL192: Tam | BM192: Corby | BN192: Wreake | BO192: Royal | BP192: B&R | BQ192: 0 | BR192: 0 | BS192: I | BT192: F | BU192: O | BV192: X | BW192: G | BX192: C | CC192: =IF(LEN(G192)=0,"",HLOOKUP(BS192,$CC$26:$CJ$28,2,FALSE)+IF(LEN(G192)=2,2,0)) -> 17 | CD192: 32 | CE192: 12 | CF192: 42 | CG192: 37 | CH192: 7
A193: =B192&"B" -> 82B | D193: =VLOOKUP(B192,EventsOrder,3,FALSE) -> 4 x 100m | E193: B | AE193: =IF(LEN(G193)=0,"",VLOOKUP($B192,IF($F192="F",TeamSheetFemale,TeamSheetMale),CC193,FALSE)) ->  | AM193: 0 | AN193: 0 | AO193: 0 | AP193: 0 | AQ193: 0 | AR193: 0 | AS193: 0 | AT193: 0 | AU193: 0 | AV193: 0 | AW193: 0 | AX193: 0 | AY193: 0 | AZ193: 0 | BA193: 0 | BB193: 0 | BC193: 0 | BD193: 0 | BE193: 0 | BF193: 0 | BG193: 0 | BH193: 0 | BI193: 0 | BJ193: 0 | BK193: 0 | BL193: 0 | BM193: 0 | BN193: 0 | BO193: 0 | BP193: 0 | BQ193: 0 | BR193: 0
A194: =B194&"A" -> 83A | B194: 83 | C194: =VLOOKUP(B194,EventsOrder,2,FALSE) -> 5 | D194: =VLOOKUP(B194,EventsOrder,4,FALSE) -> U15 Female | E194: A | F194: =IF(MID(D194,5,1)="F","F","M") -> F | G194: B | H194: I | I194: X | J194: U | K194: O | L194: C | M194: F | N194: G | O194: 53.9 | P194: 55.7 | Q194: 56.2 | R194: 56.5 | S194: 56.8 | T194: 57.6 | U194: 60 | V194: 61 | W194: B | X194: I | Y194: X | Z194: U | AA194: O | AB194: C | AC194: F | AD194: G | AE194: =IF(LEN(G194)=0,"",VLOOKUP($B194,IF($F194="F",TeamSheetFemale,TeamSheetMale),CC194,FALSE)) -> Dudley & S'bridge | AF194: Kettering | AG194: Wreake Runners | AH194: Kidder & Stourport | AI194: Corby | AJ194: Brom & Redditch | AK194: Tamworth | AL194: Royal Sutton | AM194: 3 | AN194: 4 | AO194: 7 | AP194: 5 | AQ194: 8 | AR194: 2 | AS194: 1 | AT194: 6 | AU194: 57.6 | AV194: 56.8 | AW194: 55.7 | AX194: 56.5 | AY194: 53.9 | AZ194: 60 | BA194: 61 | BB194: 56.2 | BC194: =IF(ISNA(MATCH(BC$29,$BS194:$BZ194,0)),0,MATCH(BC$29,$BS194:$BZ194,0)) -> 6 | BD194: 5 | BE194: 2 | BF194: 4 | BG194: 1 | BH194: 7 | BI194: 8 | BJ194: 3 | BK194: DASH | BL194: Kett | BM194: Wreake | BN194: K&S | BO194: Corby | BP194: B&R | BQ194: Tam | BR194: Royal | BS194: B | BT194: I | BU194: X | BV194: U | BW194: O | BX194: C | BY194: F | BZ194: G | CC194: 27 | CD194: 17 | CE194: 42 | CF194: 22 | CG194: 12 | CH194: 7 | CI194: 32 | CJ194: 37
A195: =B194&"B" -> 83B | D195: =VLOOKUP(B194,EventsOrder,3,FALSE) -> 4 x 100m | E195: B | AE195: =IF(LEN(G195)=0,"",VLOOKUP($B194,IF($F194="F",TeamSheetFemale,TeamSheetMale),CC195,FALSE)) ->  | AM195: 0 | AN195: 0 | AO195: 0 | AP195: 0 | AQ195: 0 | AR195: 0 | AS195: 0 | AT195: 0 | AU195: =OFFSET($N195,0,BC195) -> 0 | AV195: =OFFSET($N195,0,BD195) -> 0 | AW195: =OFFSET($N195,0,BE195) -> 0 | AX195: =OFFSET($N195,0,BF195) -> 0 | AY195: 0 | AZ195: 0 | BA195: 0 | BB195: 0 | BC195: 0 | BD195: 0 | BE195: 0 | BF195: 0 | BG195: 0 | BH195: 0 | BI195: 0 | BJ195: 0 | BK195: 0 | BL195: 0 | BM195: 0 | BN195: 0 | BO195: 0 | BP195: 0 | BQ195: 0 | BR195: 0
A196: =B196&"A" -> 84A | B196: 84 | C196: =VLOOKUP(B196,EventsOrder,2,FALSE) -> 5.05 | D196: =VLOOKUP(B196,EventsOrder,4,FALSE) -> U17 F/Women | E196: A | F196: =IF(MID(D196,5,1)="F","F","M") -> F | G196: G | H196: I | I196: X | O196: 55.9 | P196: 57.6 | Q196: 58.7 | W196: G | X196: I | Y196: X | AE196: =IF(LEN(G196)=0,"",VLOOKUP($B196,IF($F196="F",TeamSheetFemale,TeamSheetMale),CC196,FALSE)) -> Royal Sutton | AF196: Kettering | AG196: Wreake Runners | AM196: 0 | AN196: 0 | AO196: 7 | AP196: 0 | AQ196: 0 | AR196: 0 | AS196: 8 | AT196: 6 | AU196: 0 | AV196: 0 | AW196: 57.6 | AX196: 0 | AY196: 0 | AZ196: 0 | BA196: 55.9 | BB196: 58.7 | BC196: 0 | BD196: 0 | BE196: 2 | BF196: 0 | BG196: 0 | BH196: 0 | BI196: 1 | BJ196: 3 | BK196: Royal | BL196: Kett | BM196: Wreake | BN196: 0 | BO196: 0 | BP196: 0 | BQ196: 0 | BR196: 0 | BS196: G | BT196: I | BU196: X | CC196: 37 | CD196: 17 | CE196: 42
A197: =B196&"B" -> 84B | D197: =VLOOKUP(B196,EventsOrder,3,FALSE) -> 4 x 100m | E197: B | AE197: =IF(LEN(G197)=0,"",VLOOKUP($B196,IF($F196="F",TeamSheetFemale,TeamSheetMale),CC197,FALSE)) ->  | AM197: 0 | AN197: 0 | AO197: 0 | AP197: 0 | AQ197: 0 | AR197: 0 | AS197: 0 | AT197: 0 | AU197: 0 | AV197: 0 | AW197: 0 | AX197: 0 | AY197: 0 | AZ197: 0 | BA197: 0 | BB197: 0 | BC197: 0 | BD197: 0 | BE197: 0 | BF197: 0 | BG197: 0 | BH197: 0 | BI197: 0 | BJ197: 0 | BK197: 0 | BL197: 0 | BM197: 0 | BN197: 0 | BO197: 0 | BP197: 0 | BQ197: 0 | BR197: 0
A198: =B198&"A" -> 85A | B198: 85 | C198: =VLOOKUP(B198,EventsOrder,2,FALSE) -> 5.1 | D198: =VLOOKUP(B198,EventsOrder,4,FALSE) -> U13 Male | E198: A | F198: =IF(MID(D198,5,1)="F","F","M") -> M | G198: C | H198: F | I198: G | J198: I | K198: X | L198: B | O198: 55.1 | P198: 56.9 | Q198: 57.6 | R198: 58.9 | S198: 59.9 | T198: 64.9 | W198: C | X198: F | Y198: G | Z198: I | AA198: X | AB198: B | AE198: =IF(LEN(G198)=0,"",VLOOKUP($B198,IF($F198="F",TeamSheetFemale,TeamSheetMale),CC198,FALSE)) -> Brom & Redditch | AF198: Tamworth | AG198: RSCAC | AH198: Kettering | AI198: Wreake Runners | AJ198: Dudley & S'bridge | AM198: 8 | AN198: 0 | AO198: 5 | AP198: 0 | AQ198: 3 | AR198: 7 | AS198: 6 | AT198: 4 | AU198: 55.1 | AV198: 0 | AW198: 58.9 | AX198: 0 | AY198: 64.9 | AZ198: 56.9 | BA198: 57.6 | BB198: 59.9 | BC198: 1 | BD198: 0 | BE198: 4 | BF198: 0 | BG198: 6 | BH198: 2 | BI198: 3 | BJ198: 5 | BK198: B&R | BL198: Tam | BM198: Royal | BN198: Kett | BO198: Wreake | BP198: DASH | BQ198: 0 | BR198: 0 | BS198: C | BT198: F | BU198: G | BV198: I | BW198: X | BX198: B | CC198: 7 | CD198: 32 | CE198: 37 | CF198: 17 | CG198: 42 | CH198: 27
A199: =B198&"B" -> 85B | D199: =VLOOKUP(B198,EventsOrder,3,FALSE) -> 4 x 100m | E199: B | AE199: =IF(LEN(G199)=0,"",VLOOKUP($B198,IF($F198="F",TeamSheetFemale,TeamSheetMale),CC199,FALSE)) ->  | AM199: 0 | AN199: 0 | AO199: 0 | AP199: 0 | AQ199: 0 | AR199: 0 | AS199: 0 | AT199: 0 | AU199: 0 | AV199: 0 | AW199: 0 | AX199: 0 | AY199: 0 | AZ199: 0 | BA199: 0 | BB199: 0 | BC199: 0 | BD199: 0 | BE199: 0 | BF199: 0 | BG199: 0 | BH199: 0 | BI199: 0 | BJ199: 0 | BK199: 0 | BL199: 0 | BM199: 0 | BN199: 0 | BO199: 0 | BP199: 0 | BQ199: 0 | BR199: 0
A200: =B200&"A" -> 86A | B200: 86 | C200: =VLOOKUP(B200,EventsOrder,2,FALSE) -> 5.15 | D200: =VLOOKUP(B200,EventsOrder,4,FALSE) -> U15 Male | E200: A | F200: =IF(MID(D200,5,1)="F","F","M") -> M | G200: F | H200: C | I200: G | J200: O | K200: B | L200: X | O200: 50.8 | P200: 51.5 | Q200: 52.6 | R200: 52.9 | S200: 54.2 | T200: 55.4 | W200: F | X200: C | Y200: G | Z200: O | AA200: B | AB200: X | AE200: =IF(LEN(G200)=0,"",VLOOKUP($B200,IF($F200="F",TeamSheetFemale,TeamSheetMale),CC200,FALSE)) -> Tamworth | AF200: Brom & Redditch | AG200: Royal Sutton | AH200: Corby | AI200: Dudley & S'bridge | AJ200: Wreake Runners | AM200: 7 | AN200: 5 | AO200: 0 | AP200: 0 | AQ200: 4 | AR200: 8 | AS200: 6 | AT200: 3 | AU200: 51.5 | AV200: 52.9 | AW200: 0 | AX200: 0 | AY200: 54.2 | AZ200: 50.8 | BA200: 52.6 | BB200: 55.4 | BC200: 2 | BD200: 4 | BE200: 0 | BF200: 0 | BG200: 5 | BH200: 1 | BI200: 3 | BJ200: 6 | BK200: Tam | BL200: B&R | BM200: Royal | BN200: Corby | BO200: DASH | BP200: Wreake | BQ200: 0 | BR200: 0 | BS200: F | BT200: C | BU200: G | BV200: O | BW200: B | BX200: X | CC200: 32 | CD200: 7 | CE200: 37 | CF200: 12 | CG200: 27 | CH200: 42
A201: =B200&"B" -> 86B | D201: =VLOOKUP(B200,EventsOrder,3,FALSE) -> 4 x 100m | E201: B | AE201: =IF(LEN(G201)=0,"",VLOOKUP($B200,IF($F200="F",TeamSheetFemale,TeamSheetMale),CC201,FALSE)) ->  | AM201: 0 | AN201: 0 | AO201: 0 | AP201: 0 | AQ201: 0 | AR201: 0 | AS201: 0 | AT201: 0 | AU201: 0 | AV201: 0 | AW201: 0 | AX201: 0 | AY201: 0 | AZ201: 0 | BA201: 0 | BB201: 0 | BC201: 0 | BD201: 0 | BE201: 0 | BF201: 0 | BG201: 0 | BH201: 0 | BI201: 0 | BJ201: 0 | BK201: 0 | BL201: 0 | BM201: 0 | BN201: 0 | BO201: 0 | BP201: 0 | BQ201: 0 | BR201: 0
A202: =B202&"A" -> 87A | B202: 87 | C202: =VLOOKUP(B202,EventsOrder,2,FALSE) -> 5.2 | D202: =VLOOKUP(B202,EventsOrder,4,FALSE) -> U17 Men | E202: A | F202: =IF(MID(D202,5,1)="F","F","M") -> M | G202: G | H202: I | I202: C | J202: U | O202: 47.7 | P202: 48.6 | Q202: 48.8 | R202: 55.1 | W202: G | X202: I | Y202: C | Z202: U | AE202: =IF(LEN(G202)=0,"",VLOOKUP($B202,IF($F202="F",TeamSheetFemale,TeamSheetMale),CC202,FALSE)) -> Royal Sutton | AF202: Kettering | AG202: Brom & Redditch | AH202: Kidder & Stourport | AM202: 6 | AN202: 0 | AO202: 7 | AP202: 5 | AQ202: 0 | AR202: 0 | AS202: 8 | AT202: 0 | AU202: 48.8 | AV202: 0 | AW202: 48.6 | AX202: 55.1 | AY202: 0 | AZ202: 0 | BA202: 47.7 | BB202: 0 | BC202: 3 | BD202: 0 | BE202: 2 | BF202: 4 | BG202: 0 | BH202: 0 | BI202: 1 | BJ202: 0 | BK202: Royal | BL202: Kett | BM202: B&R | BN202: K&S | BO202: 0 | BP202: 0 | BQ202: 0 | BR202: 0 | BS202: G | BT202: I | BU202: C | BV202: U | CC202: 37 | CD202: 17 | CE202: 7 | CF202: 22
A203: =B202&"B" -> 87B | D203: =VLOOKUP(B202,EventsOrder,3,FALSE) -> 4 x 100m | E203: B | AE203: =IF(LEN(G203)=0,"",VLOOKUP($B202,IF($F202="F",TeamSheetFemale,TeamSheetMale),CC203,FALSE)) ->  | AM203: 0 | AN203: 0 | AO203: 0 | AP203: 0 | AQ203: 0 | AR203: 0 | AS203: 0 | AT203: 0 | AU203: 0 | AV203: 0 | AW203: 0 | AX203: 0 | AY203: 0 | AZ203: 0 | BA203: 0 | BB203: 0 | BC203: 0 | BD203: 0 | BE203: 0 | BF203: 0 | BG203: 0 | BH203: 0 | BI203: 0 | BJ203: 0 | BK203: 0 | BL203: 0 | BM203: 0 | BN203: 0 | BO203: 0 | BP203: 0 | BQ203: 0 | BR203: 0
A204: =B204&"A" -> 88A | B204: 88 | C204: =VLOOKUP(B204,EventsOrder,2,FALSE) -> 11.45 | D204: =VLOOKUP(B204,EventsOrder,4,FALSE) -> U13 Female | E204: A | F204: =IF(MID(D204,5,1)="F","F","M") -> F | AE204: =IF(LEN(G204)=0,"",VLOOKUP($B204,IF($F204="F",TeamSheetFemale,TeamSheetMale),CC204,FALSE)) ->  | AF204: =IF(LEN(H204)=0,"",VLOOKUP($B204,IF($F204="F",TeamSheetFemale,TeamSheetMale),CD204,FALSE)) ->  | AG204: =IF(LEN(I204)=0,"",VLOOKUP($B204,IF($F204="F",TeamSheetFemale,TeamSheetMale),CE204,FALSE)) ->  | AH204: =IF(LEN(J204)=0,"",VLOOKUP($B204,IF($F204="F",TeamSheetFemale,TeamSheetMale),CF204,FALSE)) ->  | AI204: =IF(LEN(K204)=0,"",VLOOKUP($B204,IF($F204="F",TeamSheetFemale,TeamSheetMale),CG204,FALSE)) ->  | AJ204: =IF(LEN(L204)=0,"",VLOOKUP($B204,IF($F204="F",TeamSheetFemale,TeamSheetMale),CH204,FALSE)) ->  | AK204: =IF(LEN(M204)=0,"",VLOOKUP($B204,IF($F204="F",TeamSheetFemale,TeamSheetMale),CI204,FALSE)) ->  | AL204: =IF(LEN(N204)=0,"",VLOOKUP($B204,IF($F204="F",TeamSheetFemale,TeamSheetMale),CJ204,FALSE)) ->  | AM204: 0 | AN204: 0 | AO204: 0 | AP204: 0 | AQ204: 0 | AR204: 0 | AS204: 0 | AT204: 0 | AU204: 0 | AV204: 0 | AW204: 0 | AX204: 0 | AY204: 0 | AZ204: 0 | BA204: 0 | BB204: 0 | BC204: 0 | BD204: 0 | BE204: 0 | BF204: 0 | BG204: 0 | BH204: 0 | BI204: 0 | BJ204: 0 | BK204: 0 | BL204: 0 | BM204: 0 | BN204: 0 | BO204: 0 | BP204: 0 | BQ204: 0 | BR204: 0
A205: =B204&"B" -> 88B | D205: =VLOOKUP(B204,EventsOrder,3,FALSE) -> 1500m | E205: B | AE205: =IF(LEN(G205)=0,"",VLOOKUP($B204,IF($F204="F",TeamSheetFemale,TeamSheetMale),CC205,FALSE)) ->  | AF205: =IF(LEN(H205)=0,"",VLOOKUP($B204,IF($F204="F",TeamSheetFemale,TeamSheetMale),CD205,FALSE)) ->  | AG205: =IF(LEN(I205)=0,"",VLOOKUP($B204,IF($F204="F",TeamSheetFemale,TeamSheetMale),CE205,FALSE)) ->  | AH205: =IF(LEN(J205)=0,"",VLOOKUP($B204,IF($F204="F",TeamSheetFemale,TeamSheetMale),CF205,FALSE)) ->  | AI205: =IF(LEN(K205)=0,"",VLOOKUP($B204,IF($F204="F",TeamSheetFemale,TeamSheetMale),CG205,FALSE)) ->  | AJ205: =IF(LEN(L205)=0,"",VLOOKUP($B204,IF($F204="F",TeamSheetFemale,TeamSheetMale),CH205,FALSE)) ->  | AK205: =IF(LEN(M205)=0,"",VLOOKUP($B204,IF($F204="F",TeamSheetFemale,TeamSheetMale),CI205,FALSE)) ->  | AL205: =IF(LEN(N205)=0,"",VLOOKUP($B204,IF($F204="F",TeamSheetFemale,TeamSheetMale),CJ205,FALSE)) ->  | AM205: 0 | AN205: 0 | AO205: 0 | AP205: 0 | AQ205: 0 | AR205: 0 | AS205: 0 | AT205: 0 | AU205: 0 | AV205: 0 | AW205: 0 | AX205: 0 | AY205: 0 | AZ205: 0 | BA205: 0 | BB205: 0 | BC205: 0 | BD205: 0 | BE205: 0 | BF205: 0 | BG205: 0 | BH205: 0 | BI205: 0 | BJ205: 0 | BK205: 0 | BL205: 0 | BM205: 0 | BN205: 0 | BO205: 0 | BP205: 0 | BQ205: 0 | BR205: 0
A206: =B206&"A" -> 89A | B206: 89 | C206: =VLOOKUP(B206,EventsOrder,2,FALSE) -> 11.55 | D206: =VLOOKUP(B206,EventsOrder,4,FALSE) -> U15 Female | E206: A | F206: =IF(MID(D206,5,1)="F","F","M") -> F | G206: C | O206: 5.38.6 | W206: 661 | AE206: =IF(LEN(G206)=0,"",VLOOKUP($B206,IF($F206="F",TeamSheetFemale,TeamSheetMale),CC206,FALSE)) -> Ellie Moss | AF206: =IF(LEN(H206)=0,"",VLOOKUP($B206,IF($F206="F",TeamSheetFemale,TeamSheetMale),CD206,FALSE)) ->  | AG206: =IF(LEN(I206)=0,"",VLOOKUP($B206,IF($F206="F",TeamSheetFemale,TeamSheetMale),CE206,FALSE)) ->  | AH206: =IF(LEN(J206)=0,"",VLOOKUP($B206,IF($F206="F",TeamSheetFemale,TeamSheetMale),CF206,FALSE)) ->  | AI206: =IF(LEN(K206)=0,"",VLOOKUP($B206,IF($F206="F",TeamSheetFemale,TeamSheetMale),CG206,FALSE)) ->  | AJ206: =IF(LEN(L206)=0,"",VLOOKUP($B206,IF($F206="F",TeamSheetFemale,TeamSheetMale),CH206,FALSE)) ->  | AK206: =IF(LEN(M206)=0,"",VLOOKUP($B206,IF($F206="F",TeamSheetFemale,TeamSheetMale),CI206,FALSE)) ->  | AL206: =IF(LEN(N206)=0,"",VLOOKUP($B206,IF($F206="F",TeamSheetFemale,TeamSheetMale),CJ206,FALSE)) ->  | AM206: 8 | AN206: 0 | AO206: 0 | AP206: 0 | AQ206: 0 | AR206: 0 | AS206: 0 | AT206: 0 | AU206: 5.38.6 | AV206: 0 | AW206: 0 | AX206: 0 | AY206: 0 | AZ206: 0 | BA206: 0 | BB206: 0 | BC206: 1 | BD206: 0 | BE206: 0 | BF206: 0 | BG206: 0 | BH206: 0 | BI206: 0 | BJ206: 0 | BK206: B&R | BL206: 0 | BM206: 0 | BN206: 0 | BO206: 0 | BP206: 0 | BQ206: 0 | BR206: 0 | BS206: C | CC206: 7 | CD206: =IF(LEN(H206)=0,"",HLOOKUP(BT206,$CC$26:$CJ$28,2,FALSE)+IF(LEN(H206)=2,2,0)) ->  | CE206: =IF(LEN(I206)=0,"",HLOOKUP(BU206,$CC$26:$CJ$28,2,FALSE)+IF(LEN(I206)=2,2,0)) ->  | CF206: =IF(LEN(J206)=0,"",HLOOKUP(BV206,$CC$26:$CJ$28,2,FALSE)+IF(LEN(J206)=2,2,0)) ->  | CG206: =IF(LEN(K206)=0,"",HLOOKUP(BW206,$CC$26:$CJ$28,2,FALSE)+IF(LEN(K206)=2,2,0)) ->  | CH206: =IF(LEN(L206)=0,"",HLOOKUP(BX206,$CC$26:$CJ$28,2,FALSE)+IF(LEN(L206)=2,2,0)) ->  | CI206: =IF(LEN(M206)=0,"",HLOOKUP(BY206,$CC$26:$CJ$28,2,FALSE)+IF(LEN(M206)=2,2,0)) ->  | CJ206: =IF(LEN(N206)=0,"",HLOOKUP(BZ206,$CC$26:$CJ$28,2,FALSE)+IF(LEN(N206)=2,2,0)) -> 
A207: =B206&"B" -> 89B | D207: =VLOOKUP(B206,EventsOrder,3,FALSE) -> 1500m | E207: B | AE207: =IF(LEN(G207)=0,"",VLOOKUP($B206,IF($F206="F",TeamSheetFemale,TeamSheetMale),CC207,FALSE)) ->  | AF207: =IF(LEN(H207)=0,"",VLOOKUP($B206,IF($F206="F",TeamSheetFemale,TeamSheetMale),CD207,FALSE)) ->  | AG207: =IF(LEN(I207)=0,"",VLOOKUP($B206,IF($F206="F",TeamSheetFemale,TeamSheetMale),CE207,FALSE)) ->  | AH207: =IF(LEN(J207)=0,"",VLOOKUP($B206,IF($F206="F",TeamSheetFemale,TeamSheetMale),CF207,FALSE)) ->  | AI207: =IF(LEN(K207)=0,"",VLOOKUP($B206,IF($F206="F",TeamSheetFemale,TeamSheetMale),CG207,FALSE)) ->  | AJ207: =IF(LEN(L207)=0,"",VLOOKUP($B206,IF($F206="F",TeamSheetFemale,TeamSheetMale),CH207,FALSE)) ->  | AK207: =IF(LEN(M207)=0,"",VLOOKUP($B206,IF($F206="F",TeamSheetFemale,TeamSheetMale),CI207,FALSE)) ->  | AL207: =IF(LEN(N207)=0,"",VLOOKUP($B206,IF($F206="F",TeamSheetFemale,TeamSheetMale),CJ207,FALSE)) ->  | AM207: 0 | AN207: 0 | AO207: 0 | AP207: 0 | AQ207: 0 | AR207: 0 | AS207: 0 | AT207: 0 | AU207: 0 | AV207: 0 | AW207: 0 | AX207: 0 | AY207: 0 | AZ207: 0 | BA207: 0 | BB207: 0 | BC207: 0 | BD207: 0 | BE207: 0 | BF207: 0 | BG207: 0 | BH207: 0 | BI207: 0 | BJ207: 0 | BK207: 0 | BL207: 0 | BM207: 0 | BN207: 0 | BO207: 0 | BP207: 0 | BQ207: 0 | BR207: 0
A208: =B208&"A" -> 90A | B208: 90 | C208: =VLOOKUP(B208,EventsOrder,2,FALSE) -> 12.05 | D208: =VLOOKUP(B208,EventsOrder,4,FALSE) -> U17 F/Women | E208: A | F208: =IF(MID(D208,5,1)="F","F","M") -> F | AE208: =IF(LEN(G208)=0,"",VLOOKUP($B208,IF($F208="F",TeamSheetFemale,TeamSheetMale),CC208,FALSE)) ->  | AF208: =IF(LEN(H208)=0,"",VLOOKUP($B208,IF($F208="F",TeamSheetFemale,TeamSheetMale),CD208,FALSE)) ->  | AG208: =IF(LEN(I208)=0,"",VLOOKUP($B208,IF($F208="F",TeamSheetFemale,TeamSheetMale),CE208,FALSE)) ->  | AH208: =IF(LEN(J208)=0,"",VLOOKUP($B208,IF($F208="F",TeamSheetFemale,TeamSheetMale),CF208,FALSE)) ->  | AI208: =IF(LEN(K208)=0,"",VLOOKUP($B208,IF($F208="F",TeamSheetFemale,TeamSheetMale),CG208,FALSE)) ->  | AJ208: =IF(LEN(L208)=0,"",VLOOKUP($B208,IF($F208="F",TeamSheetFemale,TeamSheetMale),CH208,FALSE)) ->  | AK208: =IF(LEN(M208)=0,"",VLOOKUP($B208,IF($F208="F",TeamSheetFemale,TeamSheetMale),CI208,FALSE)) ->  | AL208: =IF(LEN(N208)=0,"",VLOOKUP($B208,IF($F208="F",TeamSheetFemale,TeamSheetMale),CJ208,FALSE)) ->  | AM208: 0 | AN208: 0 | AO208: 0 | AP208: 0 | AQ208: 0 | AR208: 0 | AS208: 0 | AT208: 0 | AU208: 0 | AV208: 0 | AW208: 0 | AX208: 0 | AY208: 0 | AZ208: 0 | BA208: 0 | BB208: 0 | BC208: 0 | BD208: 0 | BE208: 0 | BF208: 0 | BG208: 0 | BH208: 0 | BI208: 0 | BJ208: 0 | BK208: =IF(LEN(G208)>0,VLOOKUP(LEFT(G208,1),Clubs,5,FALSE),0) -> 0 | BL208: =IF(LEN(H208)>0,VLOOKUP(LEFT(H208,1),Clubs,5,FALSE),0) -> 0 | BM208: =IF(LEN(I208)>0,VLOOKUP(LEFT(I208,1),Clubs,5,FALSE),0) -> 0 | BN208: =IF(LEN(J208)>0,VLOOKUP(LEFT(J208,1),Clubs,5,FALSE),0) -> 0 | BO208: =IF(LEN(K208)>0,VLOOKUP(LEFT(K208,1),Clubs,5,FALSE),0) -> 0 | BP208: =IF(LEN(L208)>0,VLOOKUP(LEFT(L208,1),Clubs,5,FALSE),0) -> 0 | BQ208: =IF(LEN(M208)>0,VLOOKUP(LEFT(M208,1),Clubs,5,FALSE),0) -> 0 | BR208: =IF(LEN(N208)>0,VLOOKUP(LEFT(N208,1),Clubs,5,FALSE),0) -> 0 | BS208: =LEFT(G208,1) -> 
... 36 more rows

Sheet Results in Event Order
D1: Non-Scoring | G1: 31 | H1: 63 | I1: =G1+1 -> 32 | J1: =H1+1 -> 64 | K1: =I1+1 -> 33 | L1: 65 | M1: 34 | N1: 66 | O1: 35 | P1: 67 | Q1: 36 | R1: 68 | S1: 37 | T1: 69 | U1: 38 | V1: 70 | W1: ='Event Details'!C30 -> 0 | X1: =W1-1 -> -1 | Y1: -2 | Z1: -3 | AA1: -4 | AB1: -5 | AC1: -6 | AD1: -7
G2: 3 | H2: 15 | I2: =G2+2 -> 5 | J2: =H2+1 -> 16 | K2: =I2+2 -> 7 | L2: 17 | M2: =K2+2 -> 9 | N2: 18 | O2: =M2+2 -> 11 | P2: 19 | Q2: =O2+2 -> 13 | R2: 20 | S2: =Q2+2 -> 15 | T2: 21 | U2: =S2+2 -> 17 | V2: 22 | W2: 39 | X2: 40 | Y2: 41 | Z2: 42 | AA2: 43 | AB2: 44 | AC2: 45 | AD2: 46
D3: Scoring | G3: 31 | H3: 15 | I3: 32 | J3: 16 | K3: 33 | L3: 17 | M3: 34 | N3: 18 | O3: 35 | P3: 19 | Q3: 36 | R3: 20 | S3: 37 | T3: 21 | U3: 38 | V3: 22 | W3: ='Event Details'!C32 -> 8 | X3: =W3-1 -> 7 | Y3: 6 | Z3: 5 | AA3: 4 | AB3: 3 | AC3: 2 | AD3: 1
G4: 63 | H4: 31 | I4: 64 | J4: 32 | K4: 65 | L4: 33 | M4: 66 | N4: 34 | O4: 67 | P4: 35 | Q4: 68 | R4: 36 | S4: 69 | T4: 37 | U4: 70 | V4: 38 | W4: 39 | X4: 40 | Y4: 41 | Z4: 42 | AA4: 43 | AB4: 44 | AC4: 45 | AD4: 46
B5: Event No | K5: =CONCATENATE('Event Details'!D$5," ","Results in Events Order") -> Heart of England League Results in Events Order | W5: =W8 -> Brom & Redditch | X5: =X8 -> Corby | Y5: Kettering | Z5: Kidder & Stourport | AA5: Dudley & S'bridge | AB5: Tamworth | AC5: Royal Sutton | AD5: Wreake Runners
D6: Division | E6: ='Event Details'!D$9 -> 2 | K6: Venue | L6: ='Event Details'!F$17 -> Corby | Q6: Date | R6: ='Event Details'!B$17 -> 7th June 2015
C7: Time | D7: Event | F7: NS | G7: First | I7: Second | K7: Third | M7: Fourth | O7: Fifth | Q7: Sixth | S7: Seventh | U7: Eighth | W7: =W10 -> C | X7: =X10 -> O | Y7: I | Z7: U | AA7: B | AB7: F | AC7: G | AD7: X
B8: Event No | K8: =CONCATENATE('Event Details'!D$5," ","Results in Event Order") -> Heart of England League Results in Event Order | W8: ='Event Details'!$D22 -> Brom & Redditch | X8: ='Event Details'!D23 -> Corby | Y8: ='Event Details'!D24 -> Kettering | Z8: ='Event Details'!D25 -> Kidder & Stourport | AA8: ='Event Details'!D26 -> Dudley & S'bridge | AB8: ='Event Details'!D27 -> Tamworth | AC8: ='Event Details'!D28 -> Royal Sutton | AD8: ='Event Details'!D29 -> Wreake Runners
D9: Division | E9: ='Event Details'!D$9 -> 2 | K9: Venue | L9: ='Event Details'!F$17 -> Corby | Q9: Date | R9: ='Event Details'!B$17 -> 7th June 2015
C10: Time | D10: Event | F10: NS | G10: First | I10: Second | K10: Third | M10: Fourth | O10: Fifth | Q10: Sixth | S10: Seventh | U10: Eighth | W10: ='Event Details'!C22 -> C | X10: ='Event Details'!C23 -> O | Y10: ='Event Details'!C24 -> I | Z10: ='Event Details'!C25 -> U | AA10: ='Event Details'!C26 -> B | AB10: ='Event Details'!C27 -> F | AC10: ='Event Details'!C28 -> G | AD10: ='Event Details'!C29 -> X
A11: =B12&"A" -> 1A | D11: =VLOOKUP(B12,EventsOrder,4,FALSE) -> U13 Female | E11: A | G11: =VLOOKUP($A11,Results3,G$3,FALSE) -> Rachel Nealon | I11: =VLOOKUP($A11,Results3,I$3,FALSE) -> Elsa Buchanan | K11: =VLOOKUP($A11,Results3,K$3,FALSE) -> Charlotte Perry | M11: =VLOOKUP($A11,Results3,M$3,FALSE) -> Millie Toseland | O11: =VLOOKUP($A11,Results3,O$3,FALSE) -> Libby Hawkswell | Q11: =VLOOKUP($A11,Results3,Q$3,FALSE) -> TRINITY COOMBS | S11: =VLOOKUP($A11,Results3,S$3,FALSE) ->  | U11: =VLOOKUP($A11,Results3,U$3,FALSE) ->  | AE11: =IF(LEN(G11)>1,1,0) -> 1
A12: =B12&"A" -> 1A | B12: 1 | C12: =VLOOKUP(B12,EventsOrder,2,FALSE) -> 11.45 | G12: =VLOOKUP($A12,Results3,G$4,FALSE) -> Wreake | H12: =VLOOKUP($A12,Results3,H$3,FALSE) -> 5.15.6 | I12: =VLOOKUP($A12,Results3,I$4,FALSE) -> Royal | J12: =VLOOKUP($A12,Results3,J$3,FALSE) -> 5.36.0 | K12: =VLOOKUP($A12,Results3,K$4,FALSE) -> Tam | L12: =VLOOKUP($A12,Results3,L$3,FALSE) -> 5.55.0 | M12: =VLOOKUP($A12,Results3,M$4,FALSE) -> Kett | N12: =VLOOKUP($A12,Results3,N$3,FALSE) -> 5.59.3 | O12: =VLOOKUP($A12,Results3,O$4,FALSE) -> K&S | P12: =VLOOKUP($A12,Results3,P$3,FALSE) -> 6.04.8 | Q12: =VLOOKUP($A12,Results3,Q$4,FALSE) -> Corby | R12: =VLOOKUP($A12,Results3,R$3,FALSE) -> 6.05.5 | S12: =VLOOKUP($A12,Results3,S$4,FALSE) -> 0 | T12: =VLOOKUP($A12,Results3,T$3,FALSE) -> 0 | U12: =VLOOKUP($A12,Results3,U$4,FALSE) -> 0 | V12: =VLOOKUP($A12,Results3,V$3,FALSE) -> 0 | W12: =VLOOKUP($A12,Results3,W$4,FALSE) -> 0 | X12: =VLOOKUP($A12,Results3,X$4,FALSE) -> 3 | Y12: 5 | Z12: 4 | AA12: 0 | AB12: 6 | AC12: 7 | AD12: 8
A13: =B12&"B" -> 1B | D13: =VLOOKUP(B12,EventsOrder,3,FALSE) -> 1500m | E13: B | G13: =VLOOKUP($A13,Results3,G$3,FALSE) -> Katie Parker | I13: =VLOOKUP($A13,Results3,I$3,FALSE) -> IMOGEN DEE | K13: =VLOOKUP($A13,Results3,K$3,FALSE) -> Mia Brockway | M13: =VLOOKUP($A13,Results3,M$3,FALSE) ->  | O13: =VLOOKUP($A13,Results3,O$3,FALSE) ->  | Q13: =VLOOKUP($A13,Results3,Q$3,FALSE) ->  | S13: =VLOOKUP($A13,Results3,S$3,FALSE) ->  | U13: =VLOOKUP($A13,Results3,U$3,FALSE) -> 
A14: =B12&"B" -> 1B | G14: =VLOOKUP($A14,Results3,G$4,FALSE) -> Wreake | H14: =VLOOKUP($A14,Results3,H$3,FALSE) -> 5.25.8 | I14: =VLOOKUP($A14,Results3,I$4,FALSE) -> Corby | J14: =VLOOKUP($A14,Results3,J$3,FALSE) -> 5.40.1 | K14: =VLOOKUP($A14,Results3,K$4,FALSE) -> Kett | L14: =VLOOKUP($A14,Results3,L$3,FALSE) -> 5.50.2 | M14: =VLOOKUP($A14,Results3,M$4,FALSE) -> 0 | N14: =VLOOKUP($A14,Results3,N$3,FALSE) -> 0 | O14: =VLOOKUP($A14,Results3,O$4,FALSE) -> 0 | P14: =VLOOKUP($A14,Results3,P$3,FALSE) -> 0 | Q14: =VLOOKUP($A14,Results3,Q$4,FALSE) -> 0 | R14: =VLOOKUP($A14,Results3,R$3,FALSE) -> 0 | S14: =VLOOKUP($A14,Results3,S$4,FALSE) -> 0 | T14: =VLOOKUP($A14,Results3,T$3,FALSE) -> 0 | U14: =VLOOKUP($A14,Results3,U$4,FALSE) -> 0 | V14: =VLOOKUP($A14,Results3,V$3,FALSE) -> 0 | W14: =VLOOKUP($A14,Results3,W$4,FALSE) -> 0 | X14: 7 | Y14: 6 | Z14: 0 | AA14: 0 | AB14: 0 | AC14: 0 | AD14: 8
A15: =B16&"A" -> 4A | D15: =VLOOKUP(B16,EventsOrder,4,FALSE) -> U15 Female | E15: A | G15: =VLOOKUP($A15,Results3,G$3,FALSE) -> Ellen Bowen | I15: =VLOOKUP($A15,Results3,I$3,FALSE) -> ELOISE COOMBS | K15: =VLOOKUP($A15,Results3,K$3,FALSE) -> Charlotte Bush | M15: =VLOOKUP($A15,Results3,M$3,FALSE) -> Hollie Gamble | O15: =VLOOKUP($A15,Results3,O$3,FALSE) -> Grace Slater | Q15: =VLOOKUP($A15,Results3,Q$3,FALSE) -> Caitlin O'Connor | S15: =VLOOKUP($A15,Results3,S$3,FALSE) ->  | U15: =VLOOKUP($A15,Results3,U$3,FALSE) ->  | AE15: =IF(LEN(G15)>1,1,0) -> 1
A16: =B16&"A" -> 4A | B16: 4 | C16: =VLOOKUP(B16,EventsOrder,2,FALSE) -> 11.55 | G16: =VLOOKUP($A16,Results3,G$4,FALSE) -> B&R | H16: =VLOOKUP($A16,Results3,H$3,FALSE) -> 5.01.1 | I16: =VLOOKUP($A16,Results3,I$4,FALSE) -> Corby | J16: =VLOOKUP($A16,Results3,J$3,FALSE) -> 5.06.5 | K16: =VLOOKUP($A16,Results3,K$4,FALSE) -> Tam | L16: =VLOOKUP($A16,Results3,L$3,FALSE) -> 5.08.5 | M16: =VLOOKUP($A16,Results3,M$4,FALSE) -> Wreake | N16: =VLOOKUP($A16,Results3,N$3,FALSE) -> 5.12.0 | O16: =VLOOKUP($A16,Results3,O$4,FALSE) -> DASH | P16: =VLOOKUP($A16,Results3,P$3,FALSE) -> 5.23.0 | Q16: =VLOOKUP($A16,Results3,Q$4,FALSE) -> Royal | R16: =VLOOKUP($A16,Results3,R$3,FALSE) -> 5.59.1 | S16: =VLOOKUP($A16,Results3,S$4,FALSE) -> 0 | T16: =VLOOKUP($A16,Results3,T$3,FALSE) -> 0 | U16: =VLOOKUP($A16,Results3,U$4,FALSE) -> 0 | V16: =VLOOKUP($A16,Results3,V$3,FALSE) -> 0 | W16: =VLOOKUP($A16,Results3,W$4,FALSE) -> 8 | X16: =VLOOKUP($A16,Results3,X$4,FALSE) -> 7 | Y16: 0 | Z16: 0 | AA16: 4 | AB16: 6 | AC16: 3 | AD16: 5
A17: =B16&"B" -> 4B | D17: =VLOOKUP(B16,EventsOrder,3,FALSE) -> 1500m | E17: B | G17: =VLOOKUP($A17,Results3,G$3,FALSE) -> Amy Mijovic-Cauldwell | I17: =VLOOKUP($A17,Results3,I$3,FALSE) -> SELINA SCOTT | K17: =VLOOKUP($A17,Results3,K$3,FALSE) -> Rosie Timlock | M17: =VLOOKUP($A17,Results3,M$3,FALSE) -> Katie Stretton | O17: =VLOOKUP($A17,Results3,O$3,FALSE) ->  | Q17: =VLOOKUP($A17,Results3,Q$3,FALSE) ->  | S17: =VLOOKUP($A17,Results3,S$3,FALSE) ->  | U17: =VLOOKUP($A17,Results3,U$3,FALSE) -> 
A18: =B16&"B" -> 4B | G18: =VLOOKUP($A18,Results3,G$4,FALSE) -> B&R | H18: =VLOOKUP($A18,Results3,H$3,FALSE) -> 5.03.1 | I18: =VLOOKUP($A18,Results3,I$4,FALSE) -> Corby | J18: =VLOOKUP($A18,Results3,J$3,FALSE) -> 5.04.3 | K18: =VLOOKUP($A18,Results3,K$4,FALSE) -> Wreake | L18: =VLOOKUP($A18,Results3,L$3,FALSE) -> 5.21.3 | M18: =VLOOKUP($A18,Results3,M$4,FALSE) -> Tam | N18: =VLOOKUP($A18,Results3,N$3,FALSE) -> 6.06.1 | O18: =VLOOKUP($A18,Results3,O$4,FALSE) -> 0 | P18: =VLOOKUP($A18,Results3,P$3,FALSE) -> 0 | Q18: =VLOOKUP($A18,Results3,Q$4,FALSE) -> 0 | R18: =VLOOKUP($A18,Results3,R$3,FALSE) -> 0 | S18: =VLOOKUP($A18,Results3,S$4,FALSE) -> 0 | T18: =VLOOKUP($A18,Results3,T$3,FALSE) -> 0 | U18: =VLOOKUP($A18,Results3,U$4,FALSE) -> 0 | V18: =VLOOKUP($A18,Results3,V$3,FALSE) -> 0 | W18: =VLOOKUP($A18,Results3,W$4,FALSE) -> 8 | X18: 7 | Y18: 0 | Z18: 0 | AA18: 0 | AB18: 5 | AC18: 0 | AD18: 6
A19: =B20&"A" -> 5A | D19: =VLOOKUP(B20,EventsOrder,4,FALSE) -> U13 Male | E19: A | G19: =VLOOKUP($A19,Results3,G$3,FALSE) -> Brandon Raulia | I19: =VLOOKUP($A19,Results3,I$3,FALSE) -> Nathan Crook | K19: =VLOOKUP($A19,Results3,K$3,FALSE) -> James Pickup | M19: =VLOOKUP($A19,Results3,M$3,FALSE) ->  | O19: =VLOOKUP($A19,Results3,O$3,FALSE) ->  | Q19: =VLOOKUP($A19,Results3,Q$3,FALSE) ->  | S19: =VLOOKUP($A19,Results3,S$3,FALSE) ->  | U19: =VLOOKUP($A19,Results3,U$3,FALSE) ->  | AE19: =IF(LEN(G19)>1,1,0) -> 1
A20: =B20&"A" -> 5A | B20: 5 | C20: =VLOOKUP(B20,EventsOrder,2,FALSE) -> 12 | G20: =VLOOKUP($A20,Results3,G$4,FALSE) -> Kett | H20: =VLOOKUP($A20,Results3,H$3,FALSE) -> 1.27 | I20: =VLOOKUP($A20,Results3,I$4,FALSE) -> DASH | J20: =VLOOKUP($A20,Results3,J$3,FALSE) -> 1.22 | K20: =VLOOKUP($A20,Results3,K$4,FALSE) -> B&R | L20: =VLOOKUP($A20,Results3,L$3,FALSE) -> 1.13 | M20: =VLOOKUP($A20,Results3,M$4,FALSE) -> 0 | N20: =VLOOKUP($A20,Results3,N$3,FALSE) -> 0 | O20: =VLOOKUP($A20,Results3,O$4,FALSE) -> 0 | P20: =VLOOKUP($A20,Results3,P$3,FALSE) -> 0 | Q20: =VLOOKUP($A20,Results3,Q$4,FALSE) -> 0 | R20: =VLOOKUP($A20,Results3,R$3,FALSE) -> 0 | S20: =VLOOKUP($A20,Results3,S$4,FALSE) -> 0 | T20: =VLOOKUP($A20,Results3,T$3,FALSE) -> 0 | U20: =VLOOKUP($A20,Results3,U$4,FALSE) -> 0 | V20: =VLOOKUP($A20,Results3,V$3,FALSE) -> 0 | W20: =VLOOKUP($A20,Results3,W$4,FALSE) -> 6 | X20: =VLOOKUP($A20,Results3,X$4,FALSE) -> 0 | Y20: 8 | Z20: 0 | AA20: 7 | AB20: 0 | AC20: 0 | AD20: 0
A21: =B20&"B" -> 5B | D21: =VLOOKUP(B20,EventsOrder,3,FALSE) -> High Jump | E21: B | G21: =VLOOKUP($A21,Results3,G$3,FALSE) ->  | I21: =VLOOKUP($A21,Results3,I$3,FALSE) ->  | K21: =VLOOKUP($A21,Results3,K$3,FALSE) ->  | M21: =VLOOKUP($A21,Results3,M$3,FALSE) ->  | O21: =VLOOKUP($A21,Results3,O$3,FALSE) ->  | Q21: =VLOOKUP($A21,Results3,Q$3,FALSE) ->  | S21: =VLOOKUP($A21,Results3,S$3,FALSE) ->  | U21: =VLOOKUP($A21,Results3,U$3,FALSE) -> 
A22: =B20&"B" -> 5B | G22: =VLOOKUP($A22,Results3,G$4,FALSE) -> 0 | H22: =VLOOKUP($A22,Results3,H$3,FALSE) -> 0 | I22: =VLOOKUP($A22,Results3,I$4,FALSE) -> 0 | J22: =VLOOKUP($A22,Results3,J$3,FALSE) -> 0 | K22: =VLOOKUP($A22,Results3,K$4,FALSE) -> 0 | L22: =VLOOKUP($A22,Results3,L$3,FALSE) -> 0 | M22: =VLOOKUP($A22,Results3,M$4,FALSE) -> 0 | N22: =VLOOKUP($A22,Results3,N$3,FALSE) -> 0 | O22: =VLOOKUP($A22,Results3,O$4,FALSE) -> 0 | P22: =VLOOKUP($A22,Results3,P$3,FALSE) -> 0 | Q22: =VLOOKUP($A22,Results3,Q$4,FALSE) -> 0 | R22: =VLOOKUP($A22,Results3,R$3,FALSE) -> 0 | S22: =VLOOKUP($A22,Results3,S$4,FALSE) -> 0 | T22: =VLOOKUP($A22,Results3,T$3,FALSE) -> 0 | U22: =VLOOKUP($A22,Results3,U$4,FALSE) -> 0 | V22: =VLOOKUP($A22,Results3,V$3,FALSE) -> 0 | W22: =VLOOKUP($A22,Results3,W$4,FALSE) -> 0 | X22: 0 | Y22: 0 | Z22: 0 | AA22: 0 | AB22: 0 | AC22: 0 | AD22: 0
A23: =B24&"A" -> 6A | D23: =VLOOKUP(B24,EventsOrder,4,FALSE) -> U15 Male | E23: A | G23: =VLOOKUP($A23,Results3,G$3,FALSE) -> Morgan Potter | I23: =VLOOKUP($A23,Results3,I$3,FALSE) -> James Oakley | K23: =VLOOKUP($A23,Results3,K$3,FALSE) -> Harrison Casey | M23: =VLOOKUP($A23,Results3,M$3,FALSE) -> Brandon Granger | O23: =VLOOKUP($A23,Results3,O$3,FALSE) -> Jack Lambert | Q23: =VLOOKUP($A23,Results3,Q$3,FALSE) -> George Clements | S23: =VLOOKUP($A23,Results3,S$3,FALSE) ->  | U23: =VLOOKUP($A23,Results3,U$3,FALSE) ->  | AE23: =IF(LEN(G23)>1,1,0) -> 1
A24: =B24&"A" -> 6A | B24: 6 | C24: =VLOOKUP(B24,EventsOrder,2,FALSE) -> 12 | G24: =VLOOKUP($A24,Results3,G$4,FALSE) -> Corby | H24: =VLOOKUP($A24,Results3,H$3,FALSE) -> 4.65 | I24: =VLOOKUP($A24,Results3,I$4,FALSE) -> Tam | J24: =VLOOKUP($A24,Results3,J$3,FALSE) -> 4.62 | K24: =VLOOKUP($A24,Results3,K$4,FALSE) -> Royal | L24: =VLOOKUP($A24,Results3,L$3,FALSE) -> 4.52 | M24: =VLOOKUP($A24,Results3,M$4,FALSE) -> DASH | N24: =VLOOKUP($A24,Results3,N$3,FALSE) -> 4.36 | O24: =VLOOKUP($A24,Results3,O$4,FALSE) -> K&S | P24: =VLOOKUP($A24,Results3,P$3,FALSE) -> 4.14 | Q24: =VLOOKUP($A24,Results3,Q$4,FALSE) -> B&R | R24: =VLOOKUP($A24,Results3,R$3,FALSE) -> 3.89 | S24: =VLOOKUP($A24,Results3,S$4,FALSE) -> 0 | T24: =VLOOKUP($A24,Results3,T$3,FALSE) -> 0 | U24: =VLOOKUP($A24,Results3,U$4,FALSE) -> 0 | V24: =VLOOKUP($A24,Results3,V$3,FALSE) -> 0 | W24: =VLOOKUP($A24,Results3,W$4,FALSE) -> 3 | X24: =VLOOKUP($A24,Results3,X$4,FALSE) -> 8 | Y24: 0 | Z24: 4 | AA24: 5 | AB24: 7 | AC24: 6 | AD24: 0
A25: =B24&"B" -> 6B | D25: =VLOOKUP(B24,EventsOrder,3,FALSE) -> Long Jump | E25: B | G25: =VLOOKUP($A25,Results3,G$3,FALSE) -> Luke O'Brien | I25: =VLOOKUP($A25,Results3,I$3,FALSE) -> Oliver Barnard | K25: =VLOOKUP($A25,Results3,K$3,FALSE) -> Joel Camera | M25: =VLOOKUP($A25,Results3,M$3,FALSE) -> Will Thorley | O25: =VLOOKUP($A25,Results3,O$3,FALSE) ->  | Q25: =VLOOKUP($A25,Results3,Q$3,FALSE) ->  | S25: =VLOOKUP($A25,Results3,S$3,FALSE) ->  | U25: =VLOOKUP($A25,Results3,U$3,FALSE) ->  | AE25: =IF(LEN(G25)>1,1,0) -> 1
A26: =B24&"B" -> 6B | G26: =VLOOKUP($A26,Results3,G$4,FALSE) -> Royal | H26: =VLOOKUP($A26,Results3,H$3,FALSE) -> 4.42 | I26: =VLOOKUP($A26,Results3,I$4,FALSE) -> Tam | J26: =VLOOKUP($A26,Results3,J$3,FALSE) -> 4.29 | K26: =VLOOKUP($A26,Results3,K$4,FALSE) -> Corby | L26: =VLOOKUP($A26,Results3,L$3,FALSE) -> 3.9 | M26: =VLOOKUP($A26,Results3,M$4,FALSE) -> B&R | N26: =VLOOKUP($A26,Results3,N$3,FALSE) -> 3.69 | O26: =VLOOKUP($A26,Results3,O$4,FALSE) -> 0 | P26: =VLOOKUP($A26,Results3,P$3,FALSE) -> 0 | Q26: =VLOOKUP($A26,Results3,Q$4,FALSE) -> 0 | R26: =VLOOKUP($A26,Results3,R$3,FALSE) -> 0 | S26: =VLOOKUP($A26,Results3,S$4,FALSE) -> 0 | T26: =VLOOKUP($A26,Results3,T$3,FALSE) -> 0 | U26: =VLOOKUP($A26,Results3,U$4,FALSE) -> 0 | V26: =VLOOKUP($A26,Results3,V$3,FALSE) -> 0 | W26: =VLOOKUP($A26,Results3,W$4,FALSE) -> 5 | X26: 6 | Y26: 0 | Z26: 0 | AA26: 0 | AB26: 7 | AC26: 8 | AD26: 0
A27: =B28&"A" -> 7A | D27: =VLOOKUP(B28,EventsOrder,4,FALSE) -> U17 F/Women | E27: A | G27: =VLOOKUP($A27,Results3,G$3,FALSE) -> Fern Harrison | I27: =VLOOKUP($A27,Results3,I$3,FALSE) -> ELLIE MAY HATAHAWAY | K27: =VLOOKUP($A27,Results3,K$3,FALSE) -> Hannah Winstone | M27: =VLOOKUP($A27,Results3,M$3,FALSE) ->  | O27: =VLOOKUP($A27,Results3,O$3,FALSE) ->  | Q27: =VLOOKUP($A27,Results3,Q$3,FALSE) ->  | S27: =VLOOKUP($A27,Results3,S$3,FALSE) ->  | U27: =VLOOKUP($A27,Results3,U$3,FALSE) -> 
A28: =B28&"A" -> 7A | B28: 7 | C28: =VLOOKUP(B28,EventsOrder,2,FALSE) -> 12.05 | G28: =VLOOKUP($A28,Results3,G$4,FALSE) -> Wreake | H28: =VLOOKUP($A28,Results3,H$3,FALSE) -> 5.01.6 | I28: =VLOOKUP($A28,Results3,I$4,FALSE) -> Corby | J28: =VLOOKUP($A28,Results3,J$3,FALSE) -> 5.11.5 | K28: =VLOOKUP($A28,Results3,K$4,FALSE) -> Kett | L28: =VLOOKUP($A28,Results3,L$3,FALSE) -> 5,20.2 | M28: =VLOOKUP($A28,Results3,M$4,FALSE) -> 0 | N28: =VLOOKUP($A28,Results3,N$3,FALSE) -> 0 | O28: =VLOOKUP($A28,Results3,O$4,FALSE) -> 0 | P28: =VLOOKUP($A28,Results3,P$3,FALSE) -> 0 | Q28: =VLOOKUP($A28,Results3,Q$4,FALSE) -> 0 | R28: =VLOOKUP($A28,Results3,R$3,FALSE) -> 0 | S28: =VLOOKUP($A28,Results3,S$4,FALSE) -> 0 | T28: =VLOOKUP($A28,Results3,T$3,FALSE) -> 0 | U28: =VLOOKUP($A28,Results3,U$4,FALSE) -> 0 | V28: =VLOOKUP($A28,Results3,V$3,FALSE) -> 0 | W28: =VLOOKUP($A28,Results3,W$4,FALSE) -> 0 | X28: =VLOOKUP($A28,Results3,X$4,FALSE) -> 7 | Y28: 6 | Z28: 0 | AA28: 0 | AB28: 0 | AC28: 0 | AD28: 8 | AE28: =IF(LEN(G28)>1,1,0) -> 1
A29: =B28&"B" -> 7B | D29: =VLOOKUP(B28,EventsOrder,3,FALSE) -> 1500m | E29: B | G29: =VLOOKUP($A29,Results3,G$3,FALSE) -> Jess Hazel | I29: =VLOOKUP($A29,Results3,I$3,FALSE) -> Sophie Moss | K29: =VLOOKUP($A29,Results3,K$3,FALSE) ->  | M29: =VLOOKUP($A29,Results3,M$3,FALSE) ->  | O29: =VLOOKUP($A29,Results3,O$3,FALSE) ->  | Q29: =VLOOKUP($A29,Results3,Q$3,FALSE) ->  | S29: =VLOOKUP($A29,Results3,S$3,FALSE) ->  | U29: =VLOOKUP($A29,Results3,U$3,FALSE) -> 
A30: =B28&"B" -> 7B | G30: =VLOOKUP($A30,Results3,G$4,FALSE) -> Wreake | H30: =VLOOKUP($A30,Results3,H$3,FALSE) -> 5.12.1 | I30: =VLOOKUP($A30,Results3,I$4,FALSE) -> Kett | J30: =VLOOKUP($A30,Results3,J$3,FALSE) -> 5.24.6 | K30: =VLOOKUP($A30,Results3,K$4,FALSE) -> 0 | L30: =VLOOKUP($A30,Results3,L$3,FALSE) -> 0 | M30: =VLOOKUP($A30,Results3,M$4,FALSE) -> 0 | N30: =VLOOKUP($A30,Results3,N$3,FALSE) -> 0 | O30: =VLOOKUP($A30,Results3,O$4,FALSE) -> 0 | P30: =VLOOKUP($A30,Results3,P$3,FALSE) -> 0 | Q30: =VLOOKUP($A30,Results3,Q$4,FALSE) -> 0 | R30: =VLOOKUP($A30,Results3,R$3,FALSE) -> 0 | S30: =VLOOKUP($A30,Results3,S$4,FALSE) -> 0 | T30: =VLOOKUP($A30,Results3,T$3,FALSE) -> 0 | U30: =VLOOKUP($A30,Results3,U$4,FALSE) -> 0 | V30: =VLOOKUP($A30,Results3,V$3,FALSE) -> 0 | W30: =VLOOKUP($A30,Results3,W$4,FALSE) -> 0 | X30: 0 | Y30: 7 | Z30: 0 | AA30: 0 | AB30: 0 | AC30: 0 | AD30: 8
A31: =B32&"A" -> 8A | D31: =VLOOKUP(B32,EventsOrder,4,FALSE) -> U17 Men | E31: A | G31: =VLOOKUP($A31,Results3,G$3,FALSE) -> James Kelly | I31: =VLOOKUP($A31,Results3,I$3,FALSE) -> Aaron Pattison | K31: =VLOOKUP($A31,Results3,K$3,FALSE) -> James Milburn | M31: =VLOOKUP($A31,Results3,M$3,FALSE) -> Sam Grimshaw | O31: =VLOOKUP($A31,Results3,O$3,FALSE) ->  | Q31: =VLOOKUP($A31,Results3,Q$3,FALSE) ->  | S31: =VLOOKUP($A31,Results3,S$3,FALSE) ->  | U31: =VLOOKUP($A31,Results3,U$3,FALSE) -> 
A32: =B32&"A" -> 8A | B32: 8 | C32: =VLOOKUP(B32,EventsOrder,2,FALSE) -> 12.15 | G32: =VLOOKUP($A32,Results3,G$4,FALSE) -> DASH | H32: =VLOOKUP($A32,Results3,H$3,FALSE) -> 10.44 | I32: =VLOOKUP($A32,Results3,I$4,FALSE) -> B&R | J32: =VLOOKUP($A32,Results3,J$3,FALSE) -> 9.07 | K32: =VLOOKUP($A32,Results3,K$4,FALSE) -> K&S | L32: =VLOOKUP($A32,Results3,L$3,FALSE) -> 8.88 | M32: =VLOOKUP($A32,Results3,M$4,FALSE) -> Royal | N32: =VLOOKUP($A32,Results3,N$3,FALSE) -> 8.32 | O32: =VLOOKUP($A32,Results3,O$4,FALSE) -> 0 | P32: =VLOOKUP($A32,Results3,P$3,FALSE) -> 0 | Q32: =VLOOKUP($A32,Results3,Q$4,FALSE) -> 0 | R32: =VLOOKUP($A32,Results3,R$3,FALSE) -> 0 | S32: =VLOOKUP($A32,Results3,S$4,FALSE) -> 0 | T32: =VLOOKUP($A32,Results3,T$3,FALSE) -> 0 | U32: =VLOOKUP($A32,Results3,U$4,FALSE) -> 0 | V32: =VLOOKUP($A32,Results3,V$3,FALSE) -> 0 | W32: =VLOOKUP($A32,Results3,W$4,FALSE) -> 7 | X32: =VLOOKUP($A32,Results3,X$4,FALSE) -> 0 | Y32: 0 | Z32: 6 | AA32: 8 | AB32: 0 | AC32: 5 | AD32: 0
